Workbook

Sheet Accueil
B10: Découvrez bientôt l'identité de notre partenaire | E10: FoodAnalytics© est le compagnon d'analyse des professionnels des métiers de la transformation alimentaire
D14: FoodAnalytics permet de calculer le coût de revient en matières premières et en main d'œuvre de produits alimentaires, d'estimer l'impact de ces coûts sur la marge nette et d'analyser ces résultats graphiquement pour adapter la production. Il est tout particulièrement adapté aux boulangeries-pâtisseries, restaurants et autres entreprises de la transformation alimentaire, avec laboratoire individuel ou centre de production.
C17: FoodAnalytics est programmé pour fonctionner sous windows avec Excel© 2007 SP3/12.0 6611 ou supérieur (optimisé pour Excel 2013)
D19: Lien vers l'aide en ligne : | H19: Aide en ligne
D20: Lien vers la foire aux questions : | H20: Foire aux questions
D21: Votre version d'Excel : | H21: Compatible - Excel 2013
H22: Acheter Excel en ligne
D23: Votre logiciel d'exploitation : | H23: Windows 7, 2008 Server R2
D24: ID unique de votre ordinateur : | H24: -1937177232
H26: Cet ID unique identifie votre ordinateur. Le logiciel ne peut fonctionner que sur celui-ci.
C30: Activation des macros et des contrôles ActiveX
D32: Les macros et les contrôles ActiveX permettent l'exécution du logiciel sous Excel. Vous devez activer les macros et les contrôles ActiveX pour que le logiciel puisse fonctionner, en toute sécurité.
D35: Pour activer les macros :
E37: • Allez dans Fichier (en haut à gauche de l'écran) -> Options Excel -> Centre de gestion de la confidentialité -> Paramètres du Centre de gestion de la confidentialité -> Paramètres des macros -> Désactiver toutes les macros à l’exception des macros signées numériquement.
E41: • Ou suivez le mode opératoire proposé par Microsoft
D43: Pour activer les contrôles ActiveX :
E45: • Allez dans Fichier (en haut à gauche de l'écran) -> Options Excel -> Centre de gestion de la confidentialité -> Paramètres du Centre de gestion de la confidentialité -> Paramètres ActiveX -> M’avertir avant d’activer tous les contrôles dotés de restrictions minimales
E49: • Ou suivez le mode opératoire proposé par Microsoft
D51: Refermez et rouvrez le fichier. A l'ouverture, un bandeau s'affiche en haut de votre écran - suivez les indications pour activer les macros et les contrôles ActiveX même si les conseils de sécurité vous recommandent le contraire : FoodAnalytics n'a aucun contenu à risque.
E62: Ceci est une image représentative du bandeau qui s'affiche à l'ouverture. On ne peut pas cliquer dessus.
D65: Important : si Excel indique que les macros sont chiffrées et que le bouton permettant de les activer n'est pas disponible, il faut télécharger le service pack 3 (SP3) de Microsoft Office 2007 ou utiliser Excel 2010 ou supérieur.
C69: Sécurité & identification
D71: FoodAnalytics© 2014 est protégé par les lois du droit des marques et du droit d'auteur. Toute utilisation qui déroge à ces lois est passible de poursuites. En particulier, la licence d'utilisation du logiciel ne donne droit à utilisation que sur un poste, le programme ne peut pas être distribué ou partagé et il ne peut pas être utilisé à des fins commerciales sans l'accord de FoodMeUp™, société mère propriétaire de tous les droits sur FoodAnalytics©.
D76: FoodAnalytics© est protégé par un système de détection des fraudes, prenez soin de conserver votre copie et vos codes en sécurité pour éviter un blocage.
D80: Version du logiciel achetée : | H80: =Param_Version & " v" & Param_Numero -> Groupe v1.12
O82: Copiez (ctrl+c)-collez (ctrl+v) ici la clef donnée lors de l'achat ↓
D83: Clef du programme : | H83: d1A02100E6F33434417537C3C5D820F00DB1547110C1B127A430D5638D1261956D3C1CD1D4C775A4A5A463D03123A0457203540F2D8821B12554B0306083F0C4F520D572B1C48C2DDD85D08444F13040D2B1456080A5B303843C8C7CC1E03544B1747423C5115564A037D5102EFD3900F0D197F410C80E0D34B1Af
L90: La clef est valide
D92: Ce logiciel a été acheté par :
D94: Prénom : | H94: Sébastien
D96: Nom : | H96: Vassaux
F98: Nom de l'entreprise : | H98: FoodMeUp
D100: Coordonnées postales : | H100: http://www.foodmeup.net
D102: Téléphone : | H102: -
D104: E-mail : | H104: contact@foodmeup.net
D106: Numéro de TVA/SIREN : | H106: -
L107: =IF(AND(Param_SIRET<>"interdit",vSIRET<>""),"La licence est valide","La licence est invalide") -> La licence est valide
C110: Contrat de licence
K126: J'accepte le contrat de licence
C137: FoodAnalytics© est une production de FoodMeUp™, tous droits réservés ©2014 - http://www.foodmeup.net

Sheet Présentation
B10: Découvrez bientôt l'identité de notre partenaire | E10: FoodAnalytics© est le compagnon d'analyse des professionnels des métiers de la transformation alimentaire
D14: FoodAnalytics permet de calculer le coût de revient en matières premières et en main d'œuvre de produits alimentaires, d'estimer l'impact de ces coûts sur la marge nette et d'analyser ces résultats graphiquement pour adapter la production. Il est tout particulièrement adapté aux boulangeries-pâtisseries, restaurants et autres entreprises de la transformation alimentaire, avec laboratoire individuel ou centre de production.
D16: FoodAnalytics© 2014 est protégé par les lois du droit des marques et du droit d'auteur. Toute utilisation qui déroge à ces lois est passible de poursuites. En particulier, la licence d'utilisation du logiciel ne donne droit à utilisation que sur un poste, le programme ne peut pas être distribué ou partagé et il ne peut pas être utilisé à des fins commerciales sans l'accord de FoodMeUp™, société mère propriétaire de tous les droits sur FoodAnalytics©.
D23: Découvrez ci-dessous les différentes versions du logiciel :
C28: Fonctions disponibles dans les différentes versions du logiciel | I28: Version light | K28: Version standard | M28: Version Premium | O28: Version groupe
C29: Intégration et recherche des données de production : ingrédients & fournisseurs, salaires et taux horaires, recettes, liste de produits, prix et nombre de vente
C30: Génération et impression de fiches techniques pour toutes les recettes des appareils et produits, récapitulant tous les ingrédients et leurs quantités, toutes les étapes de production, leur durée et le responsable. Affichage des recettes des différents sous-appareils sur la recette des produits
C31: Calcul et compte rendu des marges brutes pour chaque produit par prise en compte des quantités précises des ingrédients utilisés dans les recettes ; simulation d'incidence sur le compte de résultat et la marge nette
C32: Calcul et compte rendu des marges sur coûts de production par prise en compte des étapes de production, de leur durée, des ressources humaines associées et de leur rémunération ; simulation d'incidence sur le compte de résultat et la marge nette
C33: Calcul de coefficients de vente ou coût matière et recommandation de prix sur base des analyses de marge disponible
C34: Analyses graphiques light : - marge brute par produit ; - coût en matière première et prix par produit ; - modulable par produit.
C35: Analyses graphiques standard : - marge sur coûts de matière et de main d'œuvre ; - temps de fabrication par unité/part de produit ; - marge opérationnelle et marge nette par produit ; - modulable par produit.
C36: Analyses graphiques premium: - ventilation des charges par produit ; - CAHT et marge nette par recette par période de base ; - Manhattan de CA par type de marge et produit ; - modulable par produit ; - export des données des graphes au format excel.
C37: Déverrouillage partiel de l'outil : déverrouillage partiel des données rentrées et résultats pour exportation (accès en sélection et copie aux tables de données).
C38: Déverrouillage total de l'outil : accès à toutes les données et formules, à tous les tableaux et pivots ainsi qu'à tout le code source VBA pour adaptation à vos propres besoins analytiques. License d'utilisation et de modification à but non commercial pour un poste. Formation personnelle par nos experts de 2h incluse. ----- Nécessite une équipe administrative avec une compétence analytique - adapté aux groupes de plus de 3 points de vente
M39: fonction présente | O39: fonction absente
C42: Options | M42: Prix*
C43: Présentation du logiciel par nos experts | M43: Gratuit
C44: Jeu de données de recettes et produits de boulangerie-pâtissierie pour une saisie facilitée | M44: Gratuit
C45: Assistance téléphonique avec prise de contrôle à distance de votre ordinateur pour vous guider dans l'utilisation du programme | M45: 190€ HT par heure
C46: Formation d'une demi-journée en groupe à Paris (dispensée par nos experts) | M46: 480€ HT
C47: Formation d'une demi-journée dans votre boutique (dispensée par nos experts) | M47: 980€ HT par demi-journée + transport et hébergement
C48: Assistance à la saisie des données dans le programme (par nos analystes après envoi des données imprimées ou par vous rédigées) | M48: 720€ HT
P49: *Prix indicatif au 15/06/2014
C58: FoodAnalytics© est une production de FoodMeUp™, tous droits réservés ©2014 - http://www.foodmeup.net

Sheet Aide
N2: Aide
H6: Retrouvez-ici un aperçu de toutes les fonctionnalités du programme.
H7: Sur la gauche un menu de navigation vous permet de passer d'un écran à l'autre.
H8: L'icône de point d'interrogation vous permet d'accéder à l'aide en ligne.
B12: =IF(Param_Message<>"",Param_Message,"") -> Rendez-vous sur http://www.foodmeup.net pour decouvrir nos nouveaux produits !
E16: Ne commencez pas à utiliser l'outil avant d'avoir lu l'aide en ligne. Elle vous décrit dans le détail comment procéder pour organiser la saisie des données et gagner un temps précieux.
E18: Le guide est accessible en ligne : | I18: http://www.foodmeup.net/aide
C21: Navigation dans l'outil
G24: Ce menu déroulant vous permet de vous déplacer d'une page à l'autre de l'outil.
D26: Ce bouton permet d'aller à la page suivante. Cliquez dessus. | L26: Ce bouton permet d'imprimer la page.
D28: Ce bouton permet d'aller à la page précédente. Cliquez dessus. | L28: Ce bouton permet de supprimer la ligne d'un tableau.
D30: Ce bouton permet d'ouvrir la page d'aide dans votre navigateur. Cliquez dessus. | L30: Ce bouton permet d'ajouter une ligne à un tableau.
D32: Ce bouton permet d'enregistrer l'outil. Faites-le régulièrement pour ne pas perdre votre travail. | L32: Ce bouton ouvre une boite de dialogue qui vous guide dans la saisie des données.
D35: Une case orange signifie qu'une interaction est possible. Utilisez le menu déroulant ou le bouton d'aide à la saisie | L35: Le coin rouge indique la présence de commentaires sur le fonctionnement du logiciel
C39: Les différentes pages de l'outil
C42: Aide C'est la page actuelle qui constitue l'aide du programme | H42: Options Définissez les principaux paramètres de fonctionnement du programme | M42: Cout RH Renseignez les salaires et charges de vos équipes
C53: Ingrédients Renseignez le coût de vos ingrédients | H53: Recettes Renseignez les quantités et étapes de confection de vos recettes | M53: Fiche technique Découvrez le mode opératoire de vos recettes sous une belle mise en page
C64: Compte de résultat Découvrez l'impact de vos coûts de revient sur votre compte de résultat | H64: Analyses graphiques Analysez tous les résultats du programme graphiquement | M64: Améliorations Donnez votre avis et découvrez les améliorations à venir
C78: FoodAnalytics© est une production de FoodMeUp™, tous droits réservés ©2014 - http://www.foodmeup.net

Sheet Options
P2: Options
H6: Retrouvez-ici un aperçu de toutes les fonctionnalités du programme.
H7: Sur la gauche un menu de navigation vous permet de passer de l'une à l'autre.
H8: L'icône de point d'interrogation vous permet d'accéder à l'aide en ligne.
B12: =IF(Param_Message<>"",Param_Message,"") -> Rendez-vous sur http://www.foodmeup.net pour decouvrir nos nouveaux produits !
C16: Fonctionnement du programme
D18: Page de démarrage du programme | H18: Présentation | K18: Le programme commencera directement sur cette page à l'ouverture.
D20: Régler l'interface Excel | H20: Masquer tout | K20: Dépend de votre version du programme.
D22: Importer des données | H22: Pack RH | K22: Récupérez les données d'un pack ou d'une version précédemment enregistrée. Ne concerne que les tables de données.
D25: Lancer la détection des erreurs | K25: Essayer d'identifier des erreurs éventuelles dans les données renseignées.
D27: Niveau d'accès au programme | H27: Formules modifiables | K27: Permet de limiter l'accès en écriture pour protéger le programme des erreurs de saisie. Dépend de votre version du programme.
C31: Paramètres d'entrée
D33: Facteurs de multiplication de la recette de base | H33: F1 | I33: 0.5 | K33: Ces facteurs sont repris dans les fiches de recettes pour calculer rapidement des quantités différentes.
H34: F2 | I34: 1.5
H35: F3 | I35: 2
H36: F4 | I36: 3
D38: Période temporelle d'analyses / Période de base | H38: Semaine | K38: Indiquez quelle est la période de base considérée pour les analyses. Ce peut être la périodicité de répétition de vos recettes. Choisissez de préférence une période qui peut être extrapolée à l'année (par exemple la semaine en boulangerie-pâtisserie, la journée en restauration).
D43: Chiffre d'affaire TTC (CATTC) | H43: 1108208.925 | K43: Indiquez le montant de votre chiffre d'affaire annuel TTC en euros.
D45: Chiffre d'affaire HT (CAHT) | H45: 1050435 | K45: Indiquez le montant de votre chiffre d'affaire annuel HT en euros.
D47: Prise en compte de la main d'œuvre | H47: Par produit et globale | K47: • En version light, on substitut à la donnée du coût de main d'œuvre par recette le coût de main d'œuvre global : le CAHT de tous les produits est affecté du même pourcentage de main d'œuvre. • En version standard ou premium, il est préférable de calculer la main d'œuvre par produit. On peut alors prendre en compte uniquement la main d'œuvre productive ou la main d'œuvre productive et la part de la main d'œuvre affectée à des tâches globales (vente, administratif, etc.). →Par produit : le CAHT d'un produit n'est affecté que du coût de matière et de main d'œuvre ayant servi à ce produit →Par produit et globale : le CAHT d'un produit est affecté du coût de matière et de main d'œuvre ayant servi à ce produit et encore d'un pourcentage fixe correspondant à la main d'œuvre non affectée à des tâches de production. Pour cette seconde option, il faut avoir renseigné tous les procédés de fabrication, sans quoi il y aurait des incohérences d'un produit à l'autre.
C66: FoodAnalytics© est une production de FoodMeUp™, tous droits réservés ©2014 - http://www.foodmeup.net

Sheet Coût RH
K2: Salaires
E6: Précisez ici les salaires et charges de tous vos employés ou équipes. Une action peut être associée à une équipe composée de plusieurs employés. Les valeurs de salaires et durée de travail doivent alors correspondre à la somme des valeurs de chacun des membres.
B12: =IF(Param_Message<>"",Param_Message,"") -> Rendez-vous sur http://www.foodmeup.net pour decouvrir nos nouveaux produits !
C16: Ajouter un employé ou une équipe {F4}
K17: Bloquer | L17: la plage de données
C18: Supprimer un employé ou une équipe {F5}
K19: Afficher | L19: les filtres de données
C20: Aide à la saisie {F6}
J21: Ajouter les congés payés | K21: Non
C22: Rafraichir | D22: ← Rafraichissez pour actualiser les valeurs
D24: par mois | G24: par semaine | H24: par mois | J24: ="par " & LOWER(Option_freq) -> par semaine
C25: Employé ou équipe | D25: Salaire brut | E25: Charges patronales | F25: Autres coûts | G25: Durée de travail | H25: Cout total | I25: Cout horaire | J25: Prorata durée de travail | K25: Prorata coût total | L25: Cumul temps de recette | M25: Cout productif
C26: Chef d'entreprise | D26: 2000 | E26: 860 | F26: 300 | G26: 50 | H26: =IFERROR((Table_CoutRH[[#This Row],[Salaire brut]]+Table_CoutRH[[#This Row],[Charges patronales]]+Table_CoutRH[[#This Row],[Autres coûts]])*(1+IF($K$21="Oui",2.5/(365/12),0)),"") -> 3160 | I26: =IFERROR(H26/(G26*52/12),0) -> 14.58461538 | J26: =Table_CoutRH[[#This Row],[Durée de travail]]*52/Param_freq -> 50 | K26: =Table_CoutRH[[#This Row],[Cout total]]*12/Param_freq -> 729.2307692 | L26: =FctDureeTotRH(Table_CoutRH[[#This Row],[Employé ou équipe]]) -> 0 | M26: =Table_CoutRH[[#This Row],[Cout horaire]]*Table_CoutRH[[#This Row],[Cumul temps de recette]]*24 -> 0
C27: Equipe boulangerie | D27: 3100 | E27: 1333 | F27: 465 | G27: 100 | H27: =IFERROR((Table_CoutRH[[#This Row],[Salaire brut]]+Table_CoutRH[[#This Row],[Charges patronales]]+Table_CoutRH[[#This Row],[Autres coûts]])*(1+IF($K$21="Oui",2.5/(365/12),0)),"") -> 4898 | I27: =IFERROR(H27/(G27*52/12),0) -> 11.30307692 | J27: =Table_CoutRH[[#This Row],[Durée de travail]]*52/Param_freq -> 100 | K27: =Table_CoutRH[[#This Row],[Cout total]]*12/Param_freq -> 1130.307692 | L27: =FctDureeTotRH(Table_CoutRH[[#This Row],[Employé ou équipe]]) -> 4.055208333 | M27: =Table_CoutRH[[#This Row],[Cout horaire]]*Table_CoutRH[[#This Row],[Cumul temps de recette]]*24 -> 1100.071962
C28: Equipe pâtisserie | D28: 3300 | E28: 1419 | F28: 495 | G28: 90 | H28: =IFERROR((Table_CoutRH[[#This Row],[Salaire brut]]+Table_CoutRH[[#This Row],[Charges patronales]]+Table_CoutRH[[#This Row],[Autres coûts]])*(1+IF($K$21="Oui",2.5/(365/12),0)),"") -> 5214 | I28: =IFERROR(H28/(G28*52/12),0) -> 13.36923077 | J28: =Table_CoutRH[[#This Row],[Durée de travail]]*52/Param_freq -> 90 | K28: =Table_CoutRH[[#This Row],[Cout total]]*12/Param_freq -> 1203.230769 | L28: =FctDureeTotRH(Table_CoutRH[[#This Row],[Employé ou équipe]]) -> 3.160416667 | M28: =Table_CoutRH[[#This Row],[Cout horaire]]*Table_CoutRH[[#This Row],[Cumul temps de recette]]*24 -> 1014.056154
C29: Equipe tour | D29: 1800 | E29: 774 | F29: 270 | G29: 35 | H29: =IFERROR((Table_CoutRH[[#This Row],[Salaire brut]]+Table_CoutRH[[#This Row],[Charges patronales]]+Table_CoutRH[[#This Row],[Autres coûts]])*(1+IF($K$21="Oui",2.5/(365/12),0)),"") -> 2844 | I29: =IFERROR(H29/(G29*52/12),0) -> 18.75164835 | J29: =Table_CoutRH[[#This Row],[Durée de travail]]*52/Param_freq -> 35 | K29: =Table_CoutRH[[#This Row],[Cout total]]*12/Param_freq -> 656.3076923 | L29: =FctDureeTotRH(Table_CoutRH[[#This Row],[Employé ou équipe]]) -> 0.8944444444 | M29: =Table_CoutRH[[#This Row],[Cout horaire]]*Table_CoutRH[[#This Row],[Cumul temps de recette]]*24 -> 402.5353846
C30: Equipe vente | D30: 2600 | E30: 1118 | F30: 390 | G30: 70 | H30: =IFERROR((Table_CoutRH[[#This Row],[Salaire brut]]+Table_CoutRH[[#This Row],[Charges patronales]]+Table_CoutRH[[#This Row],[Autres coûts]])*(1+IF($K$21="Oui",2.5/(365/12),0)),"") -> 4108 | I30: =IFERROR(H30/(G30*52/12),0) -> 13.54285714 | J30: =Table_CoutRH[[#This Row],[Durée de travail]]*52/Param_freq -> 70 | K30: =Table_CoutRH[[#This Row],[Cout total]]*12/Param_freq -> 948 | L30: =FctDureeTotRH(Table_CoutRH[[#This Row],[Employé ou équipe]]) -> 0 | M30: =Table_CoutRH[[#This Row],[Cout horaire]]*Table_CoutRH[[#This Row],[Cumul temps de recette]]*24 -> 0
C31: Total | D31: =SUBTOTAL(109,Table_CoutRH[Salaire brut]) -> 12800 | E31: =SUBTOTAL(109,Table_CoutRH[Charges patronales]) -> 5504 | F31: =SUBTOTAL(109,Table_CoutRH[Autres coûts]) -> 1920 | G31: =SUBTOTAL(109,Table_CoutRH[Durée de travail]) -> 345 | H31: =SUBTOTAL(109,Table_CoutRH[Cout total]) -> 20224 | I31: =IFERROR(Table_CoutRH[[#Totals],[Cout total]]/(Table_CoutRH[[#Totals],[Durée de travail]]*52/12),0) -> 13.5277592 | J31: =SUBTOTAL(109,Table_CoutRH[Prorata durée de travail]) -> 345 | K31: =SUBTOTAL(109,Table_CoutRH[Prorata coût total]) -> 4667.076923 | L31: =SUBTOTAL(109,Table_CoutRH[Cumul temps de recette]) -> 8.110069444 | M31: =SUBTOTAL(109,Table_CoutRH[Cout productif]) -> 2516.6635
C37: FoodAnalytics© est une production de FoodMeUp™, tous droits réservés ©2014 - http://www.foodmeup.net

Sheet Ingrédients
J2: Ingrédients
F6: Précisez ici la liste des ingrédients utilisés dans vos recettes et les coûts correspondants.
F7: Le coût est défini par unité de mesure (par exemple 1000g=1kg) et le coût par unité est automatiquement calculé.
B12: =IF(Param_Message<>"",Param_Message,"") -> Rendez-vous sur http://www.foodmeup.net pour decouvrir nos nouveaux produits !
D16: Ajouter un ingrédient {F4} | I16: Numéro | J16: Nom du fournisseur
F17: Débloquer | G17: la plage de données | I17: Fournisseur 1 | J17: Nom1 | K17: ← Renseignez ici les noms de vos fournisseurs
D18: Supprimer un ingrédient {F5} | I18: Fournisseur 2
F19: Masquer | G19: les filtres de données | I19: Fournisseur 3
D20: Aide à la saisie {F6} | I20: Fournisseur 4
D22: Rafraichir | E22: ← Rafraichissez pour actualiser les valeurs
E24: ← Insérez ici du texte pour filtrer les ingrédients
D26: Ingredient | E26: Nombre d'unités | F26: Unité | G26: Coût HT Fournisseur 1 | H26: Coût HT Fournisseur 2 | I26: Coût HT Fournisseur 3 | J26: Coût HT Fournisseur 4 | K26: Coût par unité | L26: Dépenses totales
D27: Abricot au sirop | E27: 1000 | F27: g | G27: 5.61 | K27: =IFERROR(AVERAGE(Table_ing[[#This Row],[Coût HT Fournisseur 1]:[Coût HT Fournisseur 4]])/Table_ing[[#This Row],[Nombre d''unités]],0) -> 0.00561
D28: Abricot sec | E28: 1000 | F28: g | G28: 3.9 | K28: =IFERROR(AVERAGE(Table_ing[[#This Row],[Coût HT Fournisseur 1]:[Coût HT Fournisseur 4]])/Table_ing[[#This Row],[Nombre d''unités]],0) -> 0.0039
D29: Amandes effilées | E29: 1000 | F29: g | G29: 9.97 | K29: =IFERROR(AVERAGE(Table_ing[[#This Row],[Coût HT Fournisseur 1]:[Coût HT Fournisseur 4]])/Table_ing[[#This Row],[Nombre d''unités]],0) -> 0.00997
D30: Amandes hachées | E30: 1000 | F30: g | G30: 10.93 | K30: =IFERROR(MIN(Table_ing[[#This Row],[Coût HT Fournisseur 1]:[Coût HT Fournisseur 4]])/Table_ing[[#This Row],[Nombre d''unités]],0) -> 0.01093
D31: Améliorant | E31: 1000 | F31: g | G31: 7 | K31: =IFERROR(AVERAGE(Table_ing[[#This Row],[Coût HT Fournisseur 1]:[Coût HT Fournisseur 4]])/Table_ing[[#This Row],[Nombre d''unités]],0) -> 0.007
D32: Ananas | E32: 1800 | F32: g | G32: 9.5 | K32: =IFERROR(AVERAGE(Table_ing[[#This Row],[Coût HT Fournisseur 1]:[Coût HT Fournisseur 4]])/Table_ing[[#This Row],[Nombre d''unités]],0) -> 0.005277777778
D33: Ananas au sirop | E33: 1000 | F33: g | G33: 1.7 | K33: =IFERROR(AVERAGE(Table_ing[[#This Row],[Coût HT Fournisseur 1]:[Coût HT Fournisseur 4]])/Table_ing[[#This Row],[Nombre d''unités]],0) -> 0.0017
D34: Arôme vanille | E34: 1000 | F34: g | G34: 13.5 | K34: =IFERROR(AVERAGE(Table_ing[[#This Row],[Coût HT Fournisseur 1]:[Coût HT Fournisseur 4]])/Table_ing[[#This Row],[Nombre d''unités]],0) -> 0.0135
D35: Arôme violette | E35: 1000 | F35: g | G35: 7.68 | K35: =IFERROR(AVERAGE(Table_ing[[#This Row],[Coût HT Fournisseur 1]:[Coût HT Fournisseur 4]])/Table_ing[[#This Row],[Nombre d''unités]],0) -> 0.00768
D36: Bâtons de chocolat | E36: 500 | F36: U | G36: 2.9 | K36: =IFERROR(AVERAGE(Table_ing[[#This Row],[Coût HT Fournisseur 1]:[Coût HT Fournisseur 4]])/Table_ing[[#This Row],[Nombre d''unités]],0) -> 0.0058
D37: Beurre | E37: 1000 | F37: g | G37: 4.19 | K37: =IFERROR(AVERAGE(Table_ing[[#This Row],[Coût HT Fournisseur 1]:[Coût HT Fournisseur 4]])/Table_ing[[#This Row],[Nombre d''unités]],0) -> 0.00419
D38: Beurre de cacao | E38: 1000 | F38: g | G38: 10.6 | K38: =IFERROR(AVERAGE(Table_ing[[#This Row],[Coût HT Fournisseur 1]:[Coût HT Fournisseur 4]])/Table_ing[[#This Row],[Nombre d''unités]],0) -> 0.0106
D39: Beurre salé | E39: 1000 | F39: g | G39: 4.2 | K39: =IFERROR(AVERAGE(Table_ing[[#This Row],[Coût HT Fournisseur 1]:[Coût HT Fournisseur 4]])/Table_ing[[#This Row],[Nombre d''unités]],0) -> 0.0042
D40: Blanc d'oeufs | E40: 1000 | F40: g | G40: 2.68 | K40: =IFERROR(AVERAGE(Table_ing[[#This Row],[Coût HT Fournisseur 1]:[Coût HT Fournisseur 4]])/Table_ing[[#This Row],[Nombre d''unités]],0) -> 0.00268
D41: Bleu Auvergne | E41: 1000 | F41: g | G41: 6.29 | K41: =IFERROR(AVERAGE(Table_ing[[#This Row],[Coût HT Fournisseur 1]:[Coût HT Fournisseur 4]])/Table_ing[[#This Row],[Nombre d''unités]],0) -> 0.00629
D42: Brie | E42: 1000 | F42: g | G42: 5.79 | K42: =IFERROR(AVERAGE(Table_ing[[#This Row],[Coût HT Fournisseur 1]:[Coût HT Fournisseur 4]])/Table_ing[[#This Row],[Nombre d''unités]],0) -> 0.00579
D43: Brisures de noix | E43: 120 | F43: g | G43: 2.5 | K43: =IFERROR(AVERAGE(Table_ing[[#This Row],[Coût HT Fournisseur 1]:[Coût HT Fournisseur 4]])/Table_ing[[#This Row],[Nombre d''unités]],0) -> 0.02083333333
D44: Café en poudre | E44: 1000 | F44: g | G44: 2 | K44: =IFERROR(AVERAGE(Table_ing[[#This Row],[Coût HT Fournisseur 1]:[Coût HT Fournisseur 4]])/Table_ing[[#This Row],[Nombre d''unités]],0) -> 0.002
D45: Camembert | E45: 1000 | F45: g | G45: 1.43 | K45: =IFERROR(AVERAGE(Table_ing[[#This Row],[Coût HT Fournisseur 1]:[Coût HT Fournisseur 4]])/Table_ing[[#This Row],[Nombre d''unités]],0) -> 0.00143
D46: Cerises | E46: 1000 | F46: g | G46: 16 | K46: =IFERROR(AVERAGE(Table_ing[[#This Row],[Coût HT Fournisseur 1]:[Coût HT Fournisseur 4]])/Table_ing[[#This Row],[Nombre d''unités]],0) -> 0.016
D47: Champignons émincés | E47: 1000 | F47: g | G47: 1.83 | K47: =IFERROR(AVERAGE(Table_ing[[#This Row],[Coût HT Fournisseur 1]:[Coût HT Fournisseur 4]])/Table_ing[[#This Row],[Nombre d''unités]],0) -> 0.00183
D48: Cheddar | E48: 1000 | F48: g | G48: 4.68 | K48: =IFERROR(AVERAGE(Table_ing[[#This Row],[Coût HT Fournisseur 1]:[Coût HT Fournisseur 4]])/Table_ing[[#This Row],[Nombre d''unités]],0) -> 0.00468
D49: Chèvre | E49: 1000 | F49: g | G49: 1.3 | K49: =IFERROR(AVERAGE(Table_ing[[#This Row],[Coût HT Fournisseur 1]:[Coût HT Fournisseur 4]])/Table_ing[[#This Row],[Nombre d''unités]],0) -> 0.0013
D50: Chocolat au lait | E50: 1000 | F50: g | G50: 4.95 | K50: =IFERROR(AVERAGE(Table_ing[[#This Row],[Coût HT Fournisseur 1]:[Coût HT Fournisseur 4]])/Table_ing[[#This Row],[Nombre d''unités]],0) -> 0.00495
D51: Chocolat blanc | E51: 1000 | F51: g | G51: 5.55 | K51: =IFERROR(AVERAGE(Table_ing[[#This Row],[Coût HT Fournisseur 1]:[Coût HT Fournisseur 4]])/Table_ing[[#This Row],[Nombre d''unités]],0) -> 0.00555
D52: Chocolat noir 58% | E52: 1000 | F52: g | G52: 4.8 | K52: =IFERROR(AVERAGE(Table_ing[[#This Row],[Coût HT Fournisseur 1]:[Coût HT Fournisseur 4]])/Table_ing[[#This Row],[Nombre d''unités]],0) -> 0.0048
D53: Chocolat noir 67% | E53: 1000 | F53: g | G53: 7 | K53: =IFERROR(AVERAGE(Table_ing[[#This Row],[Coût HT Fournisseur 1]:[Coût HT Fournisseur 4]])/Table_ing[[#This Row],[Nombre d''unités]],0) -> 0.007
D54: Codineige | E54: 1000 | F54: g | G54: 3.49 | K54: =IFERROR(AVERAGE(Table_ing[[#This Row],[Coût HT Fournisseur 1]:[Coût HT Fournisseur 4]])/Table_ing[[#This Row],[Nombre d''unités]],0) -> 0.00349
D55: Colorant jaune | E55: 1000 | F55: g | G55: 11 | K55: =IFERROR(AVERAGE(Table_ing[[#This Row],[Coût HT Fournisseur 1]:[Coût HT Fournisseur 4]])/Table_ing[[#This Row],[Nombre d''unités]],0) -> 0.011
D56: Colorant liquide | E56: 1000 | F56: g | G56: 11 | K56: =IFERROR(AVERAGE(Table_ing[[#This Row],[Coût HT Fournisseur 1]:[Coût HT Fournisseur 4]])/Table_ing[[#This Row],[Nombre d''unités]],0) -> 0.011
D57: Colorant menthe | E57: 1000 | F57: g | G57: 26 | K57: =IFERROR(AVERAGE(Table_ing[[#This Row],[Coût HT Fournisseur 1]:[Coût HT Fournisseur 4]])/Table_ing[[#This Row],[Nombre d''unités]],0) -> 0.026
D58: Colorant rouge | E58: 1000 | F58: g | G58: 11 | K58: =IFERROR(AVERAGE(Table_ing[[#This Row],[Coût HT Fournisseur 1]:[Coût HT Fournisseur 4]])/Table_ing[[#This Row],[Nombre d''unités]],0) -> 0.011
D59: Compote de pommes | E59: 1000 | F59: g | G59: 6.77 | K59: =IFERROR(AVERAGE(Table_ing[[#This Row],[Coût HT Fournisseur 1]:[Coût HT Fournisseur 4]])/Table_ing[[#This Row],[Nombre d''unités]],0) -> 0.00677
D60: Cornichons | E60: 1000 | F60: g | G60: 5.28 | K60: =IFERROR(AVERAGE(Table_ing[[#This Row],[Coût HT Fournisseur 1]:[Coût HT Fournisseur 4]])/Table_ing[[#This Row],[Nombre d''unités]],0) -> 0.00528
D61: Courgettes congelées | E61: 1000 | F61: g | G61: 1.36 | K61: =IFERROR(AVERAGE(Table_ing[[#This Row],[Coût HT Fournisseur 1]:[Coût HT Fournisseur 4]])/Table_ing[[#This Row],[Nombre d''unités]],0) -> 0.00136
D62: Couverture café | E62: 1000 | F62: g | G62: 13 | K62: =IFERROR(AVERAGE(Table_ing[[#This Row],[Coût HT Fournisseur 1]:[Coût HT Fournisseur 4]])/Table_ing[[#This Row],[Nombre d''unités]],0) -> 0.013
D63: Couverture Ivoire | E63: 1000 | F63: g | G63: 5.9 | K63: =IFERROR(AVERAGE(Table_ing[[#This Row],[Coût HT Fournisseur 1]:[Coût HT Fournisseur 4]])/Table_ing[[#This Row],[Nombre d''unités]],0) -> 0.0059
D64: Couverture lactée | E64: 5000 | F64: g | G64: 72.5 | K64: =IFERROR(AVERAGE(Table_ing[[#This Row],[Coût HT Fournisseur 1]:[Coût HT Fournisseur 4]])/Table_ing[[#This Row],[Nombre d''unités]],0) -> 0.0145
D65: Crème 12% | E65: 1000 | F65: g | G65: 2.25 | K65: =IFERROR(AVERAGE(Table_ing[[#This Row],[Coût HT Fournisseur 1]:[Coût HT Fournisseur 4]])/Table_ing[[#This Row],[Nombre d''unités]],0) -> 0.00225
D66: Crème 35% | E66: 1000 | F66: g | G66: 2.96 | K66: =IFERROR(AVERAGE(Table_ing[[#This Row],[Coût HT Fournisseur 1]:[Coût HT Fournisseur 4]])/Table_ing[[#This Row],[Nombre d''unités]],0) -> 0.00296
D67: Crème de marron | E67: 1000 | F67: g | G67: 4.9 | K67: =IFERROR(AVERAGE(Table_ing[[#This Row],[Coût HT Fournisseur 1]:[Coût HT Fournisseur 4]])/Table_ing[[#This Row],[Nombre d''unités]],0) -> 0.0049
D68: Crème épaisse | E68: 1000 | F68: g | G68: 3.14 | K68: =IFERROR(AVERAGE(Table_ing[[#This Row],[Coût HT Fournisseur 1]:[Coût HT Fournisseur 4]])/Table_ing[[#This Row],[Nombre d''unités]],0) -> 0.00314 | L68: 0
D69: Eau | E69: 1000000 | F69: g | G69: 3.19 | K69: =IFERROR(AVERAGE(Table_ing[[#This Row],[Coût HT Fournisseur 1]:[Coût HT Fournisseur 4]])/Table_ing[[#This Row],[Nombre d''unités]],0) -> 3.19e-06 | L69: 2.1038
D70: Emmental bloc | E70: 1000 | F70: g | G70: 5.75 | K70: =IFERROR(AVERAGE(Table_ing[[#This Row],[Coût HT Fournisseur 1]:[Coût HT Fournisseur 4]])/Table_ing[[#This Row],[Nombre d''unités]],0) -> 0.00575 | L70: 0.01108525
D71: Emmental râpé | E71: 1000 | F71: g | G71: 5.06 | K71: =IFERROR(AVERAGE(Table_ing[[#This Row],[Coût HT Fournisseur 1]:[Coût HT Fournisseur 4]])/Table_ing[[#This Row],[Nombre d''unités]],0) -> 0.00506 | L71: 0
D72: Epinards hachés | E72: 1000 | F72: g | G72: 1.43 | K72: =IFERROR(AVERAGE(Table_ing[[#This Row],[Coût HT Fournisseur 1]:[Coût HT Fournisseur 4]])/Table_ing[[#This Row],[Nombre d''unités]],0) -> 0.00143 | L72: 0
D73: Extra Bitter 61% | E73: 1000 | F73: g | G73: 5.5 | K73: =IFERROR(AVERAGE(Table_ing[[#This Row],[Coût HT Fournisseur 1]:[Coût HT Fournisseur 4]])/Table_ing[[#This Row],[Nombre d''unités]],0) -> 0.0055 | L73: 0
D74: Extrait café | E74: 1000 | F74: g | G74: 19.5 | K74: =IFERROR(AVERAGE(Table_ing[[#This Row],[Coût HT Fournisseur 1]:[Coût HT Fournisseur 4]])/Table_ing[[#This Row],[Nombre d''unités]],0) -> 0.0195 | L74: 0
D75: Farine bucheron | E75: 1000 | F75: g | G75: 2.24 | K75: =IFERROR(AVERAGE(Table_ing[[#This Row],[Coût HT Fournisseur 1]:[Coût HT Fournisseur 4]])/Table_ing[[#This Row],[Nombre d''unités]],0) -> 0.00224 | L75: 0
D76: Farine classique T55 OR | E76: 25000 | F76: g | G76: 21.04 | K76: =IFERROR(AVERAGE(Table_ing[[#This Row],[Coût HT Fournisseur 1]:[Coût HT Fournisseur 4]])/Table_ing[[#This Row],[Nombre d''unités]],0) -> 0.0008416
D77: Farine de blé complète T150 | E77: 1000 | F77: g | G77: 2.1 | K77: =IFERROR(AVERAGE(Table_ing[[#This Row],[Coût HT Fournisseur 1]:[Coût HT Fournisseur 4]])/Table_ing[[#This Row],[Nombre d''unités]],0) -> 0.0021 | L77: 11.201696
D78: Farine de gruau T45 | E78: 1000 | F78: g | G78: 0.71 | K78: =IFERROR(AVERAGE(Table_ing[[#This Row],[Coût HT Fournisseur 1]:[Coût HT Fournisseur 4]])/Table_ing[[#This Row],[Nombre d''unités]],0) -> 0.00071 | L78: 0
D79: Farine de maïs | E79: 1000 | F79: g | G79: 1.65 | K79: =IFERROR(AVERAGE(Table_ing[[#This Row],[Coût HT Fournisseur 1]:[Coût HT Fournisseur 4]])/Table_ing[[#This Row],[Nombre d''unités]],0) -> 0.00165 | L79: 1.06974
D80: Farine de meule bio T110 | E80: 1000 | F80: g | G80: 6.5 | K80: =IFERROR(AVERAGE(Table_ing[[#This Row],[Coût HT Fournisseur 1]:[Coût HT Fournisseur 4]])/Table_ing[[#This Row],[Nombre d''unités]],0) -> 0.0065
D81: Farine de seigle T85 | E81: 1000 | F81: g | G81: 1.7 | K81: =IFERROR(AVERAGE(Table_ing[[#This Row],[Coût HT Fournisseur 1]:[Coût HT Fournisseur 4]])/Table_ing[[#This Row],[Nombre d''unités]],0) -> 0.0017 | L81: 0
D82: Farine de tradition T65 | E82: 1000 | F82: g | G82: 0.58 | K82: =IFERROR(AVERAGE(Table_ing[[#This Row],[Coût HT Fournisseur 1]:[Coût HT Fournisseur 4]])/Table_ing[[#This Row],[Nombre d''unités]],0) -> 0.00058 | L82: 0
D83: Farine paysan | E83: 1000 | F83: g | G83: 2.1 | K83: =IFERROR(AVERAGE(Table_ing[[#This Row],[Coût HT Fournisseur 1]:[Coût HT Fournisseur 4]])/Table_ing[[#This Row],[Nombre d''unités]],0) -> 0.0021 | L83: 0
D84: Farine Viking | E84: 1000 | F84: g | G84: 2.5 | K84: =IFERROR(AVERAGE(Table_ing[[#This Row],[Coût HT Fournisseur 1]:[Coût HT Fournisseur 4]])/Table_ing[[#This Row],[Nombre d''unités]],0) -> 0.0025
D85: Fécule | E85: 1000 | F85: g | G85: 2.3 | K85: =IFERROR(AVERAGE(Table_ing[[#This Row],[Coût HT Fournisseur 1]:[Coût HT Fournisseur 4]])/Table_ing[[#This Row],[Nombre d''unités]],0) -> 0.0023
D86: Feuille de gélatine | E86: 1000 | F86: U | G86: 39.96 | K86: =IFERROR(AVERAGE(Table_ing[[#This Row],[Coût HT Fournisseur 1]:[Coût HT Fournisseur 4]])/Table_ing[[#This Row],[Nombre d''unités]],0) -> 0.03996 | L86: 0.345
D87: Feuille OR | E87: 1000 | F87: U | G87: 42.5 | K87: =IFERROR(AVERAGE(Table_ing[[#This Row],[Coût HT Fournisseur 1]:[Coût HT Fournisseur 4]])/Table_ing[[#This Row],[Nombre d''unités]],0) -> 0.0425 | L87: 3.23676
D88: Feuilles de basilic | E88: 100 | F88: g | G88: 3 | K88: =IFERROR(AVERAGE(Table_ing[[#This Row],[Coût HT Fournisseur 1]:[Coût HT Fournisseur 4]])/Table_ing[[#This Row],[Nombre d''unités]],0) -> 0.03 | L88: 0
D89: Figue congelée | E89: 1000 | F89: g | G89: 3.49 | K89: =IFERROR(AVERAGE(Table_ing[[#This Row],[Coût HT Fournisseur 1]:[Coût HT Fournisseur 4]])/Table_ing[[#This Row],[Nombre d''unités]],0) -> 0.00349 | L89: 0
D90: Figue sèche | E90: 1000 | F90: g | G90: 4.9 | K90: =IFERROR(AVERAGE(Table_ing[[#This Row],[Coût HT Fournisseur 1]:[Coût HT Fournisseur 4]])/Table_ing[[#This Row],[Nombre d''unités]],0) -> 0.0049 | L90: 0
D91: Flocons d'avoine | E91: 1000 | F91: g | G91: 1.15 | K91: =IFERROR(AVERAGE(Table_ing[[#This Row],[Coût HT Fournisseur 1]:[Coût HT Fournisseur 4]])/Table_ing[[#This Row],[Nombre d''unités]],0) -> 0.00115 | L91: 0
D92: Fondant | E92: 1000 | F92: g | G92: 1.27 | K92: =IFERROR(AVERAGE(Table_ing[[#This Row],[Coût HT Fournisseur 1]:[Coût HT Fournisseur 4]])/Table_ing[[#This Row],[Nombre d''unités]],0) -> 0.00127 | L92: 0
D93: Fraises entières | E93: 1000 | F93: g | G93: 2 | K93: =IFERROR(AVERAGE(Table_ing[[#This Row],[Coût HT Fournisseur 1]:[Coût HT Fournisseur 4]])/Table_ing[[#This Row],[Nombre d''unités]],0) -> 0.002 | L93: 0.762
D94: Framboise pépin | E94: 1000 | F94: g | G94: 3.59 | K94: =IFERROR(AVERAGE(Table_ing[[#This Row],[Coût HT Fournisseur 1]:[Coût HT Fournisseur 4]])/Table_ing[[#This Row],[Nombre d''unités]],0) -> 0.00359
D95: Framboises à bille | E95: 5000 | F95: g | G95: 17.5 | K95: =IFERROR(AVERAGE(Table_ing[[#This Row],[Coût HT Fournisseur 1]:[Coût HT Fournisseur 4]])/Table_ing[[#This Row],[Nombre d''unités]],0) -> 0.0035 | L95: 0
D96: Framboises congelées | E96: 1000 | F96: g | G96: 5.49 | K96: =IFERROR(AVERAGE(Table_ing[[#This Row],[Coût HT Fournisseur 1]:[Coût HT Fournisseur 4]])/Table_ing[[#This Row],[Nombre d''unités]],0) -> 0.00549
D97: Framboises entières | E97: 1000 | F97: g | G97: 5 | K97: =IFERROR(AVERAGE(Table_ing[[#This Row],[Coût HT Fournisseur 1]:[Coût HT Fournisseur 4]])/Table_ing[[#This Row],[Nombre d''unités]],0) -> 0.005 | L97: 0
D98: Fromage blanc | E98: 1000 | F98: g | G98: 2.14 | K98: =IFERROR(AVERAGE(Table_ing[[#This Row],[Coût HT Fournisseur 1]:[Coût HT Fournisseur 4]])/Table_ing[[#This Row],[Nombre d''unités]],0) -> 0.00214 | L98: 0
D99: Fruits | E99: 1000 | F99: g | G99: 4 | K99: =IFERROR(AVERAGE(Table_ing[[#This Row],[Coût HT Fournisseur 1]:[Coût HT Fournisseur 4]])/Table_ing[[#This Row],[Nombre d''unités]],0) -> 0.004 | L99: 0
D100: Fruits confits | E100: 1000 | F100: g | G100: 3.1 | K100: =IFERROR(AVERAGE(Table_ing[[#This Row],[Coût HT Fournisseur 1]:[Coût HT Fournisseur 4]])/Table_ing[[#This Row],[Nombre d''unités]],0) -> 0.0031 | L100: 0
D101: Fruits rouges | E101: 1000 | F101: g | G101: 4.45 | K101: =IFERROR(AVERAGE(Table_ing[[#This Row],[Coût HT Fournisseur 1]:[Coût HT Fournisseur 4]])/Table_ing[[#This Row],[Nombre d''unités]],0) -> 0.00445 | L101: 0
D102: Gélatine | E102: 1000 | F102: g | G102: 28.55 | K102: =IFERROR(AVERAGE(Table_ing[[#This Row],[Coût HT Fournisseur 1]:[Coût HT Fournisseur 4]])/Table_ing[[#This Row],[Nombre d''unités]],0) -> 0.02855 | L102: 0
D103: Glaçage neutre | E103: 1000 | F103: g | G103: 5 | K103: =IFERROR(AVERAGE(Table_ing[[#This Row],[Coût HT Fournisseur 1]:[Coût HT Fournisseur 4]])/Table_ing[[#This Row],[Nombre d''unités]],0) -> 0.005 | L103: 7.050615
D104: Glucose | E104: 1000 | F104: g | G104: 1.88 | K104: =IFERROR(AVERAGE(Table_ing[[#This Row],[Coût HT Fournisseur 1]:[Coût HT Fournisseur 4]])/Table_ing[[#This Row],[Nombre d''unités]],0) -> 0.00188 | L104: 0
D105: Gluten | E105: 5000 | F105: g | G105: 18.57 | K105: =IFERROR(AVERAGE(Table_ing[[#This Row],[Coût HT Fournisseur 1]:[Coût HT Fournisseur 4]])/Table_ing[[#This Row],[Nombre d''unités]],0) -> 0.003714 | L105: 2.2748
D106: Gousses de vanille | E106: 50 | F106: g | G106: 22.82 | K106: =IFERROR(AVERAGE(Table_ing[[#This Row],[Coût HT Fournisseur 1]:[Coût HT Fournisseur 4]])/Table_ing[[#This Row],[Nombre d''unités]],0) -> 0.4564 | L106: 0
D107: Graines de sésame | E107: 1000 | F107: g | G107: 3.79 | K107: =IFERROR(AVERAGE(Table_ing[[#This Row],[Coût HT Fournisseur 1]:[Coût HT Fournisseur 4]])/Table_ing[[#This Row],[Nombre d''unités]],0) -> 0.00379 | L107: 9.5844
D108: Grains de café | E108: 1000 | F108: g | G108: 27 | K108: =IFERROR(AVERAGE(Table_ing[[#This Row],[Coût HT Fournisseur 1]:[Coût HT Fournisseur 4]])/Table_ing[[#This Row],[Nombre d''unités]],0) -> 0.027 | L108: 0
D109: Guacamole | E109: 1000 | F109: g | G109: 7.85 | K109: =IFERROR(AVERAGE(Table_ing[[#This Row],[Coût HT Fournisseur 1]:[Coût HT Fournisseur 4]])/Table_ing[[#This Row],[Nombre d''unités]],0) -> 0.00785 | L109: 0
D110: Huile | E110: 1000 | F110: g | G110: 2.05 | K110: =IFERROR(AVERAGE(Table_ing[[#This Row],[Coût HT Fournisseur 1]:[Coût HT Fournisseur 4]])/Table_ing[[#This Row],[Nombre d''unités]],0) -> 0.00205 | L110: 0
D111: Huile d'arachide | E111: 1000 | F111: g | G111: 1.25 | K111: =IFERROR(AVERAGE(Table_ing[[#This Row],[Coût HT Fournisseur 1]:[Coût HT Fournisseur 4]])/Table_ing[[#This Row],[Nombre d''unités]],0) -> 0.00125 | L111: 0
D112: Huile de maïs | E112: 1000 | F112: g | G112: 1.25 | K112: =IFERROR(AVERAGE(Table_ing[[#This Row],[Coût HT Fournisseur 1]:[Coût HT Fournisseur 4]])/Table_ing[[#This Row],[Nombre d''unités]],0) -> 0.00125 | L112: 0
D113: Huile de tournesol | E113: 1000 | F113: g | G113: 1.35 | K113: =IFERROR(AVERAGE(Table_ing[[#This Row],[Coût HT Fournisseur 1]:[Coût HT Fournisseur 4]])/Table_ing[[#This Row],[Nombre d''unités]],0) -> 0.00135 | L113: 0
D114: Huile d'olive | E114: 1000 | F114: g | G114: 3.71 | K114: =IFERROR(AVERAGE(Table_ing[[#This Row],[Coût HT Fournisseur 1]:[Coût HT Fournisseur 4]])/Table_ing[[#This Row],[Nombre d''unités]],0) -> 0.00371 | L114: 0
D115: Jambon | E115: 1000 | F115: g | G115: 5.46 | K115: =IFERROR(AVERAGE(Table_ing[[#This Row],[Coût HT Fournisseur 1]:[Coût HT Fournisseur 4]])/Table_ing[[#This Row],[Nombre d''unités]],0) -> 0.00546 | L115: 0
D116: Jambon sec | E116: 1000 | F116: g | G116: 13.17 | K116: =IFERROR(AVERAGE(Table_ing[[#This Row],[Coût HT Fournisseur 1]:[Coût HT Fournisseur 4]])/Table_ing[[#This Row],[Nombre d''unités]],0) -> 0.01317 | L116: 0
D117: Jaune d'oeufs | E117: 1000 | F117: g | G117: 5.29 | K117: =IFERROR(AVERAGE(Table_ing[[#This Row],[Coût HT Fournisseur 1]:[Coût HT Fournisseur 4]])/Table_ing[[#This Row],[Nombre d''unités]],0) -> 0.00529 | L117: 0
D118: Jus de citron | E118: 1000 | F118: g | G118: 3.28 | K118: =IFERROR(AVERAGE(Table_ing[[#This Row],[Coût HT Fournisseur 1]:[Coût HT Fournisseur 4]])/Table_ing[[#This Row],[Nombre d''unités]],0) -> 0.00328 | L118: 51.235875
D119: Jus de citron vert | E119: 3000 | F119: g | G119: 3.16 | K119: =IFERROR(AVERAGE(Table_ing[[#This Row],[Coût HT Fournisseur 1]:[Coût HT Fournisseur 4]])/Table_ing[[#This Row],[Nombre d''unités]],0) -> 0.001053333333 | L119: 0
D120: Kirsch | E120: 1000 | F120: g | G120: 15 | K120: =IFERROR(AVERAGE(Table_ing[[#This Row],[Coût HT Fournisseur 1]:[Coût HT Fournisseur 4]])/Table_ing[[#This Row],[Nombre d''unités]],0) -> 0.015 | L120: 0
D121: Lait | E121: 1000 | F121: g | G121: 0.62 | K121: =IFERROR(AVERAGE(Table_ing[[#This Row],[Coût HT Fournisseur 1]:[Coût HT Fournisseur 4]])/Table_ing[[#This Row],[Nombre d''unités]],0) -> 0.00062 | L121: 0.9
D122: Lait de coco | E122: 1000 | F122: g | G122: 3.16 | K122: =IFERROR(AVERAGE(Table_ing[[#This Row],[Coût HT Fournisseur 1]:[Coût HT Fournisseur 4]])/Table_ing[[#This Row],[Nombre d''unités]],0) -> 0.00316 | L122: 2.604
D123: Lardon | E123: 1000 | F123: g | G123: 4.5 | K123: =IFERROR(AVERAGE(Table_ing[[#This Row],[Coût HT Fournisseur 1]:[Coût HT Fournisseur 4]])/Table_ing[[#This Row],[Nombre d''unités]],0) -> 0.0045 | L123: 0
D124: Légumes du soleil | E124: 1000 | F124: g | G124: 1.5 | K124: =IFERROR(AVERAGE(Table_ing[[#This Row],[Coût HT Fournisseur 1]:[Coût HT Fournisseur 4]])/Table_ing[[#This Row],[Nombre d''unités]],0) -> 0.0015 | L124: 0
D125: Levure | E125: 1000 | F125: g | G125: 1.14 | K125: =IFERROR(AVERAGE(Table_ing[[#This Row],[Coût HT Fournisseur 1]:[Coût HT Fournisseur 4]])/Table_ing[[#This Row],[Nombre d''unités]],0) -> 0.00114
D126: Mais | E126: 1000 | F126: g | G126: 1.46 | K126: =IFERROR(AVERAGE(Table_ing[[#This Row],[Coût HT Fournisseur 1]:[Coût HT Fournisseur 4]])/Table_ing[[#This Row],[Nombre d''unités]],0) -> 0.00146 | L126: 0.3493
D127: Marrons | E127: 1300 | F127: g | G127: 39 | K127: =IFERROR(AVERAGE(Table_ing[[#This Row],[Coût HT Fournisseur 1]:[Coût HT Fournisseur 4]])/Table_ing[[#This Row],[Nombre d''unités]],0) -> 0.03 | L127: 0
D128: Mascarpone | E128: 1000 | F128: g | G128: 5.9 | K128: =IFERROR(AVERAGE(Table_ing[[#This Row],[Coût HT Fournisseur 1]:[Coût HT Fournisseur 4]])/Table_ing[[#This Row],[Nombre d''unités]],0) -> 0.0059 | L128: 0
D129: Miel | E129: 1000 | F129: g | G129: 4.26 | K129: =IFERROR(AVERAGE(Table_ing[[#This Row],[Coût HT Fournisseur 1]:[Coût HT Fournisseur 4]])/Table_ing[[#This Row],[Nombre d''unités]],0) -> 0.00426 | L129: 0
D130: Mirabelles au sirop | E130: 1000 | F130: g | G130: 2.42 | K130: =IFERROR(AVERAGE(Table_ing[[#This Row],[Coût HT Fournisseur 1]:[Coût HT Fournisseur 4]])/Table_ing[[#This Row],[Nombre d''unités]],0) -> 0.00242 | L130: 1.9143
D131: Moutarde | E131: 1000 | F131: g | G131: 1.37 | K131: =IFERROR(AVERAGE(Table_ing[[#This Row],[Coût HT Fournisseur 1]:[Coût HT Fournisseur 4]])/Table_ing[[#This Row],[Nombre d''unités]],0) -> 0.00137 | L131: 0
D132: Moutarde à l'ancienne | E132: 1000 | F132: g | G132: 1.99 | K132: =IFERROR(AVERAGE(Table_ing[[#This Row],[Coût HT Fournisseur 1]:[Coût HT Fournisseur 4]])/Table_ing[[#This Row],[Nombre d''unités]],0) -> 0.00199 | L132: 0.685
D133: Mozza râpée | E133: 1000 | F133: g | G133: 5.13 | K133: =IFERROR(AVERAGE(Table_ing[[#This Row],[Coût HT Fournisseur 1]:[Coût HT Fournisseur 4]])/Table_ing[[#This Row],[Nombre d''unités]],0) -> 0.00513 | L133: 0
D134: Nappage abricot | E134: 1000 | F134: g | G134: 1.56 | K134: =IFERROR(AVERAGE(Table_ing[[#This Row],[Coût HT Fournisseur 1]:[Coût HT Fournisseur 4]])/Table_ing[[#This Row],[Nombre d''unités]],0) -> 0.00156 | L134: 0
D135: Nappage blond | E135: 1000 | F135: g | G135: 1.6 | K135: =IFERROR(AVERAGE(Table_ing[[#This Row],[Coût HT Fournisseur 1]:[Coût HT Fournisseur 4]])/Table_ing[[#This Row],[Nombre d''unités]],0) -> 0.0016 | L135: 0
D136: Nappage neutre | E136: 1000 | F136: g | G136: 3.99 | K136: =IFERROR(AVERAGE(Table_ing[[#This Row],[Coût HT Fournisseur 1]:[Coût HT Fournisseur 4]])/Table_ing[[#This Row],[Nombre d''unités]],0) -> 0.00399 | L136: 0
D137: Noisettes entières | E137: 1000 | F137: g | G137: 9.42 | K137: =IFERROR(AVERAGE(Table_ing[[#This Row],[Coût HT Fournisseur 1]:[Coût HT Fournisseur 4]])/Table_ing[[#This Row],[Nombre d''unités]],0) -> 0.00942 | L137: 4.788
D138: Noix de coco | E138: 1000 | F138: g | G138: 3 | K138: =IFERROR(AVERAGE(Table_ing[[#This Row],[Coût HT Fournisseur 1]:[Coût HT Fournisseur 4]])/Table_ing[[#This Row],[Nombre d''unités]],0) -> 0.003 | L138: 0
D139: Noix de pécan | E139: 1000 | F139: g | G139: 17 | K139: =IFERROR(AVERAGE(Table_ing[[#This Row],[Coût HT Fournisseur 1]:[Coût HT Fournisseur 4]])/Table_ing[[#This Row],[Nombre d''unités]],0) -> 0.017 | L139: 0
D140: Noix hachées | E140: 1000 | F140: g | G140: 9.9 | K140: =IFERROR(AVERAGE(Table_ing[[#This Row],[Coût HT Fournisseur 1]:[Coût HT Fournisseur 4]])/Table_ing[[#This Row],[Nombre d''unités]],0) -> 0.0099 | L140: 0
D141: Oeuf coquille | E141: 20 | F141: U | G141: 2.82 | K141: =IFERROR(AVERAGE(Table_ing[[#This Row],[Coût HT Fournisseur 1]:[Coût HT Fournisseur 4]])/Table_ing[[#This Row],[Nombre d''unités]],0) -> 0.141 | L141: 4.95
D142: Oeuf entier | E142: 1000 | F142: g | G142: 2.64 | K142: =IFERROR(AVERAGE(Table_ing[[#This Row],[Coût HT Fournisseur 1]:[Coût HT Fournisseur 4]])/Table_ing[[#This Row],[Nombre d''unités]],0) -> 0.00264 | L142: 0.52734
D143: Oignons émincés | E143: 1000 | F143: g | G143: 1.54 | K143: =IFERROR(AVERAGE(Table_ing[[#This Row],[Coût HT Fournisseur 1]:[Coût HT Fournisseur 4]])/Table_ing[[#This Row],[Nombre d''unités]],0) -> 0.00154 | L143: 4.224
D144: Oignons entiers | E144: 1000 | F144: g | G144: 1.29 | K144: =IFERROR(AVERAGE(Table_ing[[#This Row],[Coût HT Fournisseur 1]:[Coût HT Fournisseur 4]])/Table_ing[[#This Row],[Nombre d''unités]],0) -> 0.00129 | L144: 0
D145: Olives en rondelles | E145: 1000 | F145: g | G145: 5.48 | K145: =IFERROR(AVERAGE(Table_ing[[#This Row],[Coût HT Fournisseur 1]:[Coût HT Fournisseur 4]])/Table_ing[[#This Row],[Nombre d''unités]],0) -> 0.00548 | L145: 0
D146: Oranges confites en cubes | E146: 1000 | F146: g | G146: 5 | K146: =IFERROR(AVERAGE(Table_ing[[#This Row],[Coût HT Fournisseur 1]:[Coût HT Fournisseur 4]])/Table_ing[[#This Row],[Nombre d''unités]],0) -> 0.005 | L146: 0
D147: Pailleté chocolat | E147: 1000 | F147: g | G147: 6.9 | K147: =IFERROR(AVERAGE(Table_ing[[#This Row],[Coût HT Fournisseur 1]:[Coût HT Fournisseur 4]])/Table_ing[[#This Row],[Nombre d''unités]],0) -> 0.0069 | L147: 0
D148: Pailleté feuilletine | E148: 1000 | F148: g | G148: 7.25 | K148: =IFERROR(AVERAGE(Table_ing[[#This Row],[Coût HT Fournisseur 1]:[Coût HT Fournisseur 4]])/Table_ing[[#This Row],[Nombre d''unités]],0) -> 0.00725 | L148: 0
D149: Pain nordique | E149: 1000 | F149: g | G149: 17.77 | K149: =IFERROR(AVERAGE(Table_ing[[#This Row],[Coût HT Fournisseur 1]:[Coût HT Fournisseur 4]])/Table_ing[[#This Row],[Nombre d''unités]],0) -> 0.01777 | L149: 9.05625
D150: Pâte à glacer | E150: 5000 | F150: g | G150: 35 | K150: =IFERROR(AVERAGE(Table_ing[[#This Row],[Coût HT Fournisseur 1]:[Coût HT Fournisseur 4]])/Table_ing[[#This Row],[Nombre d''unités]],0) -> 0.007 | L150: 0
D151: Pâte à glacer brune | E151: 1000 | F151: g | G151: 4.39 | K151: =IFERROR(AVERAGE(Table_ing[[#This Row],[Coût HT Fournisseur 1]:[Coût HT Fournisseur 4]])/Table_ing[[#This Row],[Nombre d''unités]],0) -> 0.00439 | L151: 0
D152: Pâte à glacer Ivoire | E152: 1000 | F152: g | G152: 5.4 | K152: =IFERROR(AVERAGE(Table_ing[[#This Row],[Coût HT Fournisseur 1]:[Coût HT Fournisseur 4]])/Table_ing[[#This Row],[Nombre d''unités]],0) -> 0.0054 | L152: 0
D153: Pâte à tartiner | E153: 1000 | F153: g | G153: 4.5 | K153: =IFERROR(AVERAGE(Table_ing[[#This Row],[Coût HT Fournisseur 1]:[Coût HT Fournisseur 4]])/Table_ing[[#This Row],[Nombre d''unités]],0) -> 0.0045 | L153: 0
D154: Pâte d'amandes | E154: 1000 | F154: g | G154: 4.6 | K154: =IFERROR(AVERAGE(Table_ing[[#This Row],[Coût HT Fournisseur 1]:[Coût HT Fournisseur 4]])/Table_ing[[#This Row],[Nombre d''unités]],0) -> 0.0046 | L154: 0
D155: Pâte de cacao | E155: 1000 | F155: g | G155: 11.54 | K155: =IFERROR(AVERAGE(Table_ing[[#This Row],[Coût HT Fournisseur 1]:[Coût HT Fournisseur 4]])/Table_ing[[#This Row],[Nombre d''unités]],0) -> 0.01154 | L155: 0
D156: Pâte de noisettes | E156: 5000 | F156: g | G156: 99 | K156: =IFERROR(AVERAGE(Table_ing[[#This Row],[Coût HT Fournisseur 1]:[Coût HT Fournisseur 4]])/Table_ing[[#This Row],[Nombre d''unités]],0) -> 0.0198 | L156: 4.3275
D157: Pâte de pistache | E157: 1000 | F157: g | G157: 19.8 | K157: =IFERROR(AVERAGE(Table_ing[[#This Row],[Coût HT Fournisseur 1]:[Coût HT Fournisseur 4]])/Table_ing[[#This Row],[Nombre d''unités]],0) -> 0.0198 | L157: 0
D158: Pavot | E158: 1000 | F158: g | G158: 3.9 | K158: =IFERROR(AVERAGE(Table_ing[[#This Row],[Coût HT Fournisseur 1]:[Coût HT Fournisseur 4]])/Table_ing[[#This Row],[Nombre d''unités]],0) -> 0.0039 | L158: 15.048
D159: Pêches au sirop | E159: 1000 | F159: g | G159: 4.16 | K159: =IFERROR(AVERAGE(Table_ing[[#This Row],[Coût HT Fournisseur 1]:[Coût HT Fournisseur 4]])/Table_ing[[#This Row],[Nombre d''unités]],0) -> 0.00416 | L159: 0
D160: Pectine | E160: 1000 | F160: g | G160: 45 | K160: =IFERROR(AVERAGE(Table_ing[[#This Row],[Coût HT Fournisseur 1]:[Coût HT Fournisseur 4]])/Table_ing[[#This Row],[Nombre d''unités]],0) -> 0.045 | L160: 0
D161: Pépites de chocolat | E161: 1000 | F161: g | G161: 3.07 | K161: =IFERROR(AVERAGE(Table_ing[[#This Row],[Coût HT Fournisseur 1]:[Coût HT Fournisseur 4]])/Table_ing[[#This Row],[Nombre d''unités]],0) -> 0.00307 | L161: 0
D162: Perles de chocolat | E162: 5000 | F162: g | G162: 57 | K162: =IFERROR(AVERAGE(Table_ing[[#This Row],[Coût HT Fournisseur 1]:[Coût HT Fournisseur 4]])/Table_ing[[#This Row],[Nombre d''unités]],0) -> 0.0114 | L162: 0
D163: Philadelphia | E163: 125 | F163: g | G163: 2.5 | K163: =IFERROR(AVERAGE(Table_ing[[#This Row],[Coût HT Fournisseur 1]:[Coût HT Fournisseur 4]])/Table_ing[[#This Row],[Nombre d''unités]],0) -> 0.02
D164: Pistaches hachées | E164: 1000 | F164: g | G164: 32.8 | K164: =IFERROR(AVERAGE(Table_ing[[#This Row],[Coût HT Fournisseur 1]:[Coût HT Fournisseur 4]])/Table_ing[[#This Row],[Nombre d''unités]],0) -> 0.0328 | L164: 0
D165: Poireaux congelés | E165: 1000 | F165: g | G165: 1.4 | K165: =IFERROR(AVERAGE(Table_ing[[#This Row],[Coût HT Fournisseur 1]:[Coût HT Fournisseur 4]])/Table_ing[[#This Row],[Nombre d''unités]],0) -> 0.0014 | L165: 16.4
D166: Poires | E166: 1000 | F166: g | G166: 2.79 | K166: =IFERROR(AVERAGE(Table_ing[[#This Row],[Coût HT Fournisseur 1]:[Coût HT Fournisseur 4]])/Table_ing[[#This Row],[Nombre d''unités]],0) -> 0.00279 | L166: 0
D167: Poires au sirop | E167: 1000 | F167: g | G167: 7.9 | K167: =IFERROR(AVERAGE(Table_ing[[#This Row],[Coût HT Fournisseur 1]:[Coût HT Fournisseur 4]])/Table_ing[[#This Row],[Nombre d''unités]],0) -> 0.0079 | L167: 0
D168: Pommes | E168: 1000 | F168: g | G168: 2 | K168: =IFERROR(AVERAGE(Table_ing[[#This Row],[Coût HT Fournisseur 1]:[Coût HT Fournisseur 4]])/Table_ing[[#This Row],[Nombre d''unités]],0) -> 0.002 | L168: 0
D169: Poudre à flan | E169: 1000 | F169: g | G169: 2.3 | K169: =IFERROR(AVERAGE(Table_ing[[#This Row],[Coût HT Fournisseur 1]:[Coût HT Fournisseur 4]])/Table_ing[[#This Row],[Nombre d''unités]],0) -> 0.0023 | L169: 0
D170: Poudre à lever | E170: 1000 | F170: g | G170: 5.91 | K170: =IFERROR(AVERAGE(Table_ing[[#This Row],[Coût HT Fournisseur 1]:[Coût HT Fournisseur 4]])/Table_ing[[#This Row],[Nombre d''unités]],0) -> 0.00591 | L170: 0.437
D171: Poudre d'amandes | E171: 1000 | F171: g | G171: 8.82 | K171: =IFERROR(AVERAGE(Table_ing[[#This Row],[Coût HT Fournisseur 1]:[Coût HT Fournisseur 4]])/Table_ing[[#This Row],[Nombre d''unités]],0) -> 0.00882 | L171: 0.11814
D172: Poudre de cacao | E172: 1000 | F172: g | G172: 5.84 | K172: =IFERROR(AVERAGE(Table_ing[[#This Row],[Coût HT Fournisseur 1]:[Coût HT Fournisseur 4]])/Table_ing[[#This Row],[Nombre d''unités]],0) -> 0.00584 | L172: 41.013
D173: Poudre de lait | E173: 1000 | F173: g | G173: 4.92 | K173: =IFERROR(AVERAGE(Table_ing[[#This Row],[Coût HT Fournisseur 1]:[Coût HT Fournisseur 4]])/Table_ing[[#This Row],[Nombre d''unités]],0) -> 0.00492 | L173: 13.799775
D174: Poudre de noisettes | E174: 1000 | F174: g | G174: 9.7 | K174: =IFERROR(AVERAGE(Table_ing[[#This Row],[Coût HT Fournisseur 1]:[Coût HT Fournisseur 4]])/Table_ing[[#This Row],[Nombre d''unités]],0) -> 0.0097 | L174: 2.948
D175: Poudre de noix de coco | E175: 1000 | F175: g | G175: 3 | K175: =IFERROR(AVERAGE(Table_ing[[#This Row],[Coût HT Fournisseur 1]:[Coût HT Fournisseur 4]])/Table_ing[[#This Row],[Nombre d''unités]],0) -> 0.003 | L175: 2.134
D176: Poulet émincé cuit | E176: 1000 | F176: g | G176: 6.52 | K176: =IFERROR(AVERAGE(Table_ing[[#This Row],[Coût HT Fournisseur 1]:[Coût HT Fournisseur 4]])/Table_ing[[#This Row],[Nombre d''unités]],0) -> 0.00652 | L176: 0
D177: Poulet filet cru | E177: 1000 | F177: g | G177: 5.24 | K177: =IFERROR(AVERAGE(Table_ing[[#This Row],[Coût HT Fournisseur 1]:[Coût HT Fournisseur 4]])/Table_ing[[#This Row],[Nombre d''unités]],0) -> 0.00524 | L177: 0
D178: Praliné | E178: 1000 | F178: g | G178: 6.52 | K178: =IFERROR(AVERAGE(Table_ing[[#This Row],[Coût HT Fournisseur 1]:[Coût HT Fournisseur 4]])/Table_ing[[#This Row],[Nombre d''unités]],0) -> 0.00652 | L178: 0
D179: Praliné amandes noisettes | E179: 1000 | F179: g | G179: 7.19 | K179: =IFERROR(AVERAGE(Table_ing[[#This Row],[Coût HT Fournisseur 1]:[Coût HT Fournisseur 4]])/Table_ing[[#This Row],[Nombre d''unités]],0) -> 0.00719 | L179: 24.76333333
D180: Pulpe d'abricot | E180: 1000 | F180: g | G180: 4.43 | K180: =IFERROR(AVERAGE(Table_ing[[#This Row],[Coût HT Fournisseur 1]:[Coût HT Fournisseur 4]])/Table_ing[[#This Row],[Nombre d''unités]],0) -> 0.00443 | L180: 0
D181: Pulpe d'ananas | E181: 1000 | F181: g | G181: 11.5 | K181: =IFERROR(AVERAGE(Table_ing[[#This Row],[Coût HT Fournisseur 1]:[Coût HT Fournisseur 4]])/Table_ing[[#This Row],[Nombre d''unités]],0) -> 0.0115
D182: Pulpe de cassis | E182: 1000 | F182: g | G182: 6.36 | K182: =IFERROR(AVERAGE(Table_ing[[#This Row],[Coût HT Fournisseur 1]:[Coût HT Fournisseur 4]])/Table_ing[[#This Row],[Nombre d''unités]],0) -> 0.00636 | L182: 0
D183: Pulpe de fraises | E183: 1000 | F183: g | G183: 7.69 | K183: =IFERROR(AVERAGE(Table_ing[[#This Row],[Coût HT Fournisseur 1]:[Coût HT Fournisseur 4]])/Table_ing[[#This Row],[Nombre d''unités]],0) -> 0.00769
D184: Pulpe de framboise | E184: 1000 | F184: g | G184: 7.69 | K184: =IFERROR(AVERAGE(Table_ing[[#This Row],[Coût HT Fournisseur 1]:[Coût HT Fournisseur 4]])/Table_ing[[#This Row],[Nombre d''unités]],0) -> 0.00769 | L184: 0
D185: Pulpe de fruits | E185: 1000 | F185: g | G185: 6.9 | K185: =IFERROR(AVERAGE(Table_ing[[#This Row],[Coût HT Fournisseur 1]:[Coût HT Fournisseur 4]])/Table_ing[[#This Row],[Nombre d''unités]],0) -> 0.0069 | L185: 0
D186: Pulpe de groseilles | E186: 1000 | F186: g | G186: 6.95 | K186: =IFERROR(AVERAGE(Table_ing[[#This Row],[Coût HT Fournisseur 1]:[Coût HT Fournisseur 4]])/Table_ing[[#This Row],[Nombre d''unités]],0) -> 0.00695 | L186: 0
D187: Pulpe de poires | E187: 1000 | F187: g | G187: 4.93 | K187: =IFERROR(AVERAGE(Table_ing[[#This Row],[Coût HT Fournisseur 1]:[Coût HT Fournisseur 4]])/Table_ing[[#This Row],[Nombre d''unités]],0) -> 0.00493
D188: Pulpe de pomme | E188: 1000 | F188: g | G188: 4.93 | K188: =IFERROR(AVERAGE(Table_ing[[#This Row],[Coût HT Fournisseur 1]:[Coût HT Fournisseur 4]])/Table_ing[[#This Row],[Nombre d''unités]],0) -> 0.00493 | L188: 0
D189: Punch | E189: 1000 | F189: g | G189: 20 | K189: =IFERROR(AVERAGE(Table_ing[[#This Row],[Coût HT Fournisseur 1]:[Coût HT Fournisseur 4]])/Table_ing[[#This Row],[Nombre d''unités]],0) -> 0.02
D190: Purée passion | E190: 1000 | F190: g | G190: 8 | K190: =IFERROR(AVERAGE(Table_ing[[#This Row],[Coût HT Fournisseur 1]:[Coût HT Fournisseur 4]])/Table_ing[[#This Row],[Nombre d''unités]],0) -> 0.008 | L190: 0
D191: Raisins secs | E191: 1000 | F191: g | G191: 4.29 | K191: =IFERROR(AVERAGE(Table_ing[[#This Row],[Coût HT Fournisseur 1]:[Coût HT Fournisseur 4]])/Table_ing[[#This Row],[Nombre d''unités]],0) -> 0.00429
D192: Reblochon | E192: 1000 | F192: g | G192: 5.15 | K192: =IFERROR(AVERAGE(Table_ing[[#This Row],[Coût HT Fournisseur 1]:[Coût HT Fournisseur 4]])/Table_ing[[#This Row],[Nombre d''unités]],0) -> 0.00515 | L192: 0
D193: Régulateur anti-cloques Lissor | E193: 1000 | F193: g | G193: 39.96 | K193: =IFERROR(AVERAGE(Table_ing[[#This Row],[Coût HT Fournisseur 1]:[Coût HT Fournisseur 4]])/Table_ing[[#This Row],[Nombre d''unités]],0) -> 0.03996 | L193: 0
D194: Rhubarbe | E194: 1000 | F194: g | G194: 2.35 | K194: =IFERROR(AVERAGE(Table_ing[[#This Row],[Coût HT Fournisseur 1]:[Coût HT Fournisseur 4]])/Table_ing[[#This Row],[Nombre d''unités]],0) -> 0.00235 | L194: 0
D195: Rhum | E195: 1000 | F195: g | G195: 5.67 | K195: =IFERROR(AVERAGE(Table_ing[[#This Row],[Coût HT Fournisseur 1]:[Coût HT Fournisseur 4]])/Table_ing[[#This Row],[Nombre d''unités]],0) -> 0.00567 | L195: 0
D196: Rosbif | E196: 1000 | F196: g | G196: 11.46 | K196: =IFERROR(AVERAGE(Table_ing[[#This Row],[Coût HT Fournisseur 1]:[Coût HT Fournisseur 4]])/Table_ing[[#This Row],[Nombre d''unités]],0) -> 0.01146 | L196: 0
D197: Sauce Béarnaise | E197: 1000 | F197: g | G197: 3.63 | K197: =IFERROR(AVERAGE(Table_ing[[#This Row],[Coût HT Fournisseur 1]:[Coût HT Fournisseur 4]])/Table_ing[[#This Row],[Nombre d''unités]],0) -> 0.00363 | L197: 0
D198: Sauce Berger | E198: 1000 | F198: g | G198: 3.39 | K198: =IFERROR(AVERAGE(Table_ing[[#This Row],[Coût HT Fournisseur 1]:[Coût HT Fournisseur 4]])/Table_ing[[#This Row],[Nombre d''unités]],0) -> 0.00339 | L198: 0
D199: Sauce Cesar | E199: 1000 | F199: g | G199: 5.99 | K199: =IFERROR(AVERAGE(Table_ing[[#This Row],[Coût HT Fournisseur 1]:[Coût HT Fournisseur 4]])/Table_ing[[#This Row],[Nombre d''unités]],0) -> 0.00599 | L199: 0
D200: Sauce pizza | E200: 1000 | F200: g | G200: 7.2 | K200: =IFERROR(AVERAGE(Table_ing[[#This Row],[Coût HT Fournisseur 1]:[Coût HT Fournisseur 4]])/Table_ing[[#This Row],[Nombre d''unités]],0) -> 0.0072 | L200: 0
D201: Sauce poivre | E201: 1000 | F201: g | G201: 3.99 | K201: =IFERROR(AVERAGE(Table_ing[[#This Row],[Coût HT Fournisseur 1]:[Coût HT Fournisseur 4]])/Table_ing[[#This Row],[Nombre d''unités]],0) -> 0.00399 | L201: 0
D202: Sauce tomate concentrée | E202: 1000 | F202: g | G202: 1.96 | K202: =IFERROR(AVERAGE(Table_ing[[#This Row],[Coût HT Fournisseur 1]:[Coût HT Fournisseur 4]])/Table_ing[[#This Row],[Nombre d''unités]],0) -> 0.00196 | L202: 0
D203: Saucisson | E203: 1000 | F203: g | G203: 7.95 | K203: =IFERROR(AVERAGE(Table_ing[[#This Row],[Coût HT Fournisseur 1]:[Coût HT Fournisseur 4]])/Table_ing[[#This Row],[Nombre d''unités]],0) -> 0.00795 | L203: 0
D204: Saumon fumé | E204: 1000 | F204: g | G204: 15.7 | K204: =IFERROR(AVERAGE(Table_ing[[#This Row],[Coût HT Fournisseur 1]:[Coût HT Fournisseur 4]])/Table_ing[[#This Row],[Nombre d''unités]],0) -> 0.0157 | L204: 0
D205: Sel | E205: 1000 | F205: g | G205: 0.18 | K205: =IFERROR(AVERAGE(Table_ing[[#This Row],[Coût HT Fournisseur 1]:[Coût HT Fournisseur 4]])/Table_ing[[#This Row],[Nombre d''unités]],0) -> 0.00018 | L205: 0
D206: Sirop de malt | E206: 1000 | F206: g | G206: 4 | K206: =IFERROR(AVERAGE(Table_ing[[#This Row],[Coût HT Fournisseur 1]:[Coût HT Fournisseur 4]])/Table_ing[[#This Row],[Nombre d''unités]],0) -> 0.004 | L206: 0.074106
D207: Sucre cassonade | E207: 1000 | F207: g | G207: 1.2 | K207: =IFERROR(AVERAGE(Table_ing[[#This Row],[Coût HT Fournisseur 1]:[Coût HT Fournisseur 4]])/Table_ing[[#This Row],[Nombre d''unités]],0) -> 0.0012
D208: Sucre cristal | E208: 1000 | F208: g | G208: 0.97 | K208: =IFERROR(AVERAGE(Table_ing[[#This Row],[Coût HT Fournisseur 1]:[Coût HT Fournisseur 4]])/Table_ing[[#This Row],[Nombre d''unités]],0) -> 0.00097 | L208: 0
D209: Sucre en grains | E209: 25000 | F209: g | G209: 25.97 | K209: =IFERROR(AVERAGE(Table_ing[[#This Row],[Coût HT Fournisseur 1]:[Coût HT Fournisseur 4]])/Table_ing[[#This Row],[Nombre d''unités]],0) -> 0.0010388 | L209: 0.0965
D210: Sucre glace | E210: 1000 | F210: g | G210: 1.31 | K210: =IFERROR(AVERAGE(Table_ing[[#This Row],[Coût HT Fournisseur 1]:[Coût HT Fournisseur 4]])/Table_ing[[#This Row],[Nombre d''unités]],0) -> 0.00131 | L210: 0
D211: Sucre inverti | E211: 1000 | F211: g | G211: 5 | K211: =IFERROR(AVERAGE(Table_ing[[#This Row],[Coût HT Fournisseur 1]:[Coût HT Fournisseur 4]])/Table_ing[[#This Row],[Nombre d''unités]],0) -> 0.005 | L211: 6.1074
D212: Sucre semoule | E212: 1000 | F212: g | G212: 0.97 | K212: =IFERROR(AVERAGE(Table_ing[[#This Row],[Coût HT Fournisseur 1]:[Coût HT Fournisseur 4]])/Table_ing[[#This Row],[Nombre d''unités]],0) -> 0.00097 | L212: 0
D213: Thon | E213: 1000 | F213: g | G213: 8.04 | K213: =IFERROR(AVERAGE(Table_ing[[#This Row],[Coût HT Fournisseur 1]:[Coût HT Fournisseur 4]])/Table_ing[[#This Row],[Nombre d''unités]],0) -> 0.00804 | L213: 24.515825
D214: Trimoline | E214: 1000 | F214: g | G214: 5 | K214: =IFERROR(AVERAGE(Table_ing[[#This Row],[Coût HT Fournisseur 1]:[Coût HT Fournisseur 4]])/Table_ing[[#This Row],[Nombre d''unités]],0) -> 0.005 | L214: 0
... 5 more rows

Sheet Recettes
M2: Recettes
G6: Vous pouvez créer ici des recettes d'appareils (combinaisons d'ingrédients) ou de produits (combinaison d'ingrédients et/ou d'appareils). Utilisez l'aide à la saisie pour ne pas faire d'erreurs, les détails sur ces recettes vous permettront d'évaluer votre rentabilité avec précision.
B12: =IF(Param_Message<>"",Param_Message,"") -> Rendez-vous sur http://www.foodmeup.net pour decouvrir nos nouveaux produits !
E16: Ajouter une recette {F4} | H16: Fixer les colonnes | J16: En-têtes de tableaux
E18: Supprimer une recette {F5} | H18: Bloquer | J18: la plage de données
E20: Aide à la saisie {F6} | H20: Masquer | J20: les filtres de données
E22: Rafraichir | F22: ← Rafraichissez pour actualiser les valeurs et les listes d'aide à la saisie
F24: ← Insérez ici du texte pour filtrer les recettes
J25: ↓ Retrouvez ci-dessous la succession des éléments de votre recette (I pour ingrédient et Q pour quantité, de 1 à 8) | AD25: ↓ Retrouvez ci-dessous la succession des éléments de votre mode opératoire (A pour action, D pour durée et RH pour ressource humaine, de 1 à 8)
C26: Type | D26: Catégorie | E26: Recette | F26: Frequence | G26: Unités | H26: Prix/U | I26: TVA applicable | J26: I1 | K26: Q1 | L26: I2 | M26: Q2 | N26: I3 | O26: Q3 | P26: I4 | Q26: Q4 | R26: I5 | S26: Q5 | T26: I6 | U26: Q6 | V26: I7 | W26: Q7 | X26: I8 | Y26: Q8 | Z26: I9 | AA26: Q9 | AB26: I10 | AC26: Q10 | AD26: A1 | AE26: D1 | AF26: A2 | AG26: D2 | AH26: RH2 | AI26: A3 | AJ26: D3 | AK26: RH3 | AL26: A4 | AM26: D4 | AN26: RH4 | AO26: A5 | AP26: D5 | AQ26: RH5 | AR26: A6 | AS26: D6 | AT26: RH6 | AU26: A7 | AV26: D7 | AW26: RH7 | AX26: A8 | AY26: D8 | AZ26: RH8 | BA26: A9 | BB26: D9 | BC26: RH9 | BD26: A10 | BE26: D10 | BF26: RH10 | BG26: DateModif | BH26: DateCrea | BI26: Duree | BJ26: Frequence*unités | BK26: Duree/U | BL26: Poids | BM26: Poids/U | BN26: CoutIng Freq | BO26: CoutIng Recette | BP26: CoutIng/U | BQ26: CoutRH Freq | BR26: CoutRH Recette | BS26: CoutRH/U | BT26: CA Total TTC Freq | BU26: CA Total TTC Recette | BV26: TVA totale Freq | BW26: TVA totale Recette | BX26: TVA/U | BY26: Marge Brute Recette | BZ26: Marge SCP Recette | CA26: Marge opérationnelle Recette | CB26: Marge Nette Recette | CC26: Marge Brute/U | CD26: Marge SCP/U | CE26: Marge opérationnelle/U | CF26: Marge Nette/U | CG26: DiffMarge Brute/SCP | CH26: DiffMarge SCP/nette | CI26: Marge Brute/U% | CJ26: Marge SCP/U% | CK26: Marge opérationnelle/U% | CL26: Marge Nette/U%
C27: Appareil | D27: Appareil | E27: Appareil à financiers | F27: 2 | J27: Sucre glace | K27: 1000 | L27: Poudre d'amandes | M27: 1200 | N27: Blanc d'oeufs | O27: 1250 | P27: Miel | Q27: 250 | R27: Fécule | S27: 125 | T27: Beurre | U27: 750 | AD27: ="Prorata poids de la fabrication des appareils" -> Prorata poids de la fabrication des appareils | AE27: =FctDuree(ROW(Table_recettes[[#This Row],[D1]])) -> 0 | AF27: Préparer les ingrédients | AG27: 0.003472222222 | AH27: Equipe pâtisserie | AI27: Faire fondre le beurre dans une casserole. Y ajouter le sucre glace, la poudre d'amande, le miel et la fécule, remuer. En parallèle, mettre les blancs dans la cuve du batteur et commencer à battre. | AJ27: 0.006944444444 | AK27: Equipe pâtisserie | AL27: Quand le mélange beurre est fondu, le verser sur les blancs pas encore montés et battre jusqu'à épaississement. | AM27: 0.006944444444 | AN27: Equipe pâtisserie | AO27: Verser le tout dans des moules | AP27: 0.003472222222 | AQ27: Equipe pâtisserie | BG27: 2014-07-01 | BH27: 2014-05-03 | BI27: =(Table_recettes[[#This Row],[D1]]+Table_recettes[[#This Row],[D2]]+Table_recettes[[#This Row],[D3]]+Table_recettes[[#This Row],[D4]]+Table_recettes[[#This Row],[D5]]+Table_recettes[[#This Row],[D6]]+Table_recettes[[#This Row],[D7]]+Table_recettes[[#This Row],[D8]]+Table_recettes[[#This Row],[D9]]+Table_recettes[[#This Row],[D10]]) -> 0.02083333333 | BJ27: =Table_recettes[[#This Row],[Frequence]]*Table_recettes[[#This Row],[Unités]] -> 0 | BK27: =IFERROR(Table_recettes[[#This Row],[Duree]]/IF(Table_recettes[[#This Row],[Type]]="Produit",Table_recettes[[#This Row],[Unités]],Table_recettes[[#This Row],[Poids]]),0) -> 4.553734062e-06 | BL27: =IFERROR(IF(INDEX(Table_ing[Unité],MATCH(Table_recettes[[#This Row],[I1]],Table_ing[Ingredient],0))="g",Table_recettes[[#This Row],[Q1]],0),Table_recettes[[#This Row],[Q1]]) +IFERROR(IF(INDEX(Table_ing[Unité],MATCH(Table_recettes[[#This Row],[I2]],Table_ing[Ingredient],0))="g",Table_recettes[[#This Row],[Q2]],0),Table_recettes[[#This Row],[Q2]]) +IFERROR(IF(INDEX(Table_ing[Unité],MATCH(Table_recettes[[#This Row],[I3]],Table_ing[Ingredient],0))="g",Table_recettes[[#This Row],[Q3]],0),Table_recettes[[#This Row],[Q3]]) +IFERROR(IF(INDEX(Table_ing[Unité],MATCH(Table_recettes[[#This Row],[I4]],Table_ing[Ingredient],0))="g",Table_recettes[[#This Row],[Q4]],0),Table_recettes[[#This Row],[Q4]]) +IFERROR(IF(INDEX(Table_ing[Unité],MATCH(Table_recettes[[#This Row],[I5]],Table_ing[Ingredient],0))="g",Table_recettes[[#This Row],[Q5]],0),Table_recettes[[#This Row],[Q5]]) +IFERROR(IF(INDEX(Table_ing[Unité],MATCH(Table_recettes[[#This Row],[I6]],Table_ing[Ingredient],0))="g",Table_recettes[[#This Row],[Q6]],0),Table_recettes[[#This Row],[Q6]]) +IFERROR(IF(INDEX(Table_ing[Unité],MATCH(Table_recettes[[#This Row],[I7]],Table_ing[Ingredient],0))="g",Table_recettes[[#This Row],[Q7]],0),Table_recettes[[#This Row],[Q7]]) +IFERROR(IF(INDEX(Table_ing[Unité],MATCH(Table_recettes[[#This Row],[I8]],Table_ing[Ingredient],0))="g",Table_recettes[[#This Row],[Q8]],0),Table_recettes[[#This Row],[Q8]]) +IFERROR(IF(INDEX(Table_ing[Unité],MATCH(Table_recettes[[#This Row],[I9]],Table_ing[Ingredient],0))="g",Table_recettes[[#This Row],[Q9]],0),Table_recettes[[#This Row],[Q9]]) +IFERROR(IF(INDEX(Table_ing[Unité],MATCH(Table_recettes[[#This Row],[I10]],Table_ing[Ingredient],0))="g",Table_recettes[[#This Row],[Q10]],0),Table_recettes[[#This Row],[Q10]]) -> 4575 | BM27: =IFERROR(Table_recettes[[#This Row],[Poids]]/IF(Table_recettes[[#This Row],[Type]]="Produit",Table_recettes[[#This Row],[Unités]],1),0) -> 4575 | BN27: =Table_recettes[[#This Row],[CoutIng Recette]]*Table_recettes[[#This Row],[Frequence]] -> 39.478 | BO27: =IF(Table_recettes[[#This Row],[Q1]]>0,IFERROR(INDEX(Table_ing[Coût par unité],MATCH(Table_recettes[[#This Row],[I1]],Table_ing[Ingredient],0))*Table_recettes[[#This Row],[Q1]],INDEX(Table_recettes[CoutIng/U],MATCH(Table_recettes[[#This Row],[I1]],Table_recettes[Recette],0))*Table_recettes[[#This Row],[Q1]]),0) +IF(Table_recettes[[#This Row],[Q2]]>0,IFERROR(INDEX(Table_ing[Coût par unité],MATCH(Table_recettes[[#This Row],[I2]],Table_ing[Ingredient],0))*Table_recettes[[#This Row],[Q2]],INDEX(Table_recettes[CoutIng/U],MATCH(Table_recettes[[#This Row],[I2]],Table_recettes[Recette],0))*Table_recettes[[#This Row],[Q2]]),0) +IF(Table_recettes[[#This Row],[Q3]]>0,IFERROR(INDEX(Table_ing[Coût par unité],MATCH(Table_recettes[[#This Row],[I3]],Table_ing[Ingredient],0))*Table_recettes[[#This Row],[Q3]],INDEX(Table_recettes[CoutIng/U],MATCH(Table_recettes[[#This Row],[I3]],Table_recettes[Recette],0))*Table_recettes[[#This Row],[Q3]]),0) +IF(Table_recettes[[#This Row],[Q4]]>0,IFERROR(INDEX(Table_ing[Coût par unité],MATCH(Table_recettes[[#This Row],[I4]],Table_ing[Ingredient],0))*Table_recettes[[#This Row],[Q4]],INDEX(Table_recettes[CoutIng/U],MATCH(Table_recettes[[#This Row],[I4]],Table_recettes[Recette],0))*Table_recettes[[#This Row],[Q4]]),0) +IF(Table_recettes[[#This Row],[Q5]]>0,IFERROR(INDEX(Table_ing[Coût par unité],MATCH(Table_recettes[[#This Row],[I5]],Table_ing[Ingredient],0))*Table_recettes[[#This Row],[Q5]],INDEX(Table_recettes[CoutIng/U],MATCH(Table_recettes[[#This Row],[I5]],Table_recettes[Recette],0))*Table_recettes[[#This Row],[Q5]]),0) +IF(Table_recettes[[#This Row],[Q6]]>0,IFERROR(INDEX(Table_ing[Coût par unité],MATCH(Table_recettes[[#This Row],[I6]],Table_ing[Ingredient],0))*Table_recettes[[#This Row],[Q6]],INDEX(Table_recettes[CoutIng/U],MATCH(Table_recettes[[#This Row],[I6]],Table_recettes[Recette],0))*Table_recettes[[#This Row],[Q6]]),0) +IF(Table_recettes[[#This Row],[Q7]]>0,IFERROR(INDEX(Table_ing[Coût par unité],MATCH(Table_recettes[[#This Row],[I7]],Table_ing[Ingredient],0))*Table_recettes[[#This Row],[Q7]],INDEX(Table_recettes[CoutIng/U],MATCH(Table_recettes[[#This Row],[I7]],Table_recettes[Recette],0))*Table_recettes[[#This Row],[Q7]]),0) +IF(Table_recettes[[#This Row],[Q8]]>0,IFERROR(INDEX(Table_ing[Coût par unité],MATCH(Table_recettes[[#This Row],[I8]],Table_ing[Ingredient],0))*Table_recettes[[#This Row],[Q8]],INDEX(Table_recettes[CoutIng/U],MATCH(Table_recettes[[#This Row],[I8]],Table_recettes[Recette],0))*Table_recettes[[#This Row],[Q8]]),0) +IF(Table_recettes[[#This Row],[Q9]]>0,IFERROR(INDEX(Table_ing[Coût par unité],MATCH(Table_recettes[[#This Row],[I9]],Table_ing[Ingredient],0))*Table_recettes[[#This Row],[Q9]],INDEX(Table_recettes[CoutIng/U],MATCH(Table_recettes[[#This Row],[I9]],Table_recettes[Recette],0))*Table_recettes[[#This Row],[Q9]]),0) +IF(Table_recettes[[#This Row],[Q10]]>0,IFERROR(INDEX(Table_ing[Coût par unité],MATCH(Table_recettes[[#This Row],[I10]],Table_ing[Ingredient],0))*Table_recettes[[#This Row],[Q10]],INDEX(Table_recettes[CoutIng/U],MATCH(Table_recettes[[#This Row],[I10]],Table_recettes[Recette],0))*Table_recettes[[#This Row],[Q8]]),0) -> 19.739 | BP27: =IFERROR(Table_recettes[[#This Row],[CoutIng Recette]]/IF(Table_recettes[[#This Row],[Type]]="Produit",Table_recettes[[#This Row],[Unités]],Table_recettes[[#This Row],[Poids]]),0) -> 0.004314535519 | BQ27: =Table_recettes[[#This Row],[CoutRH Recette]]*Table_recettes[[#This Row],[Frequence]] -> 13.36923077 | BR27: =(IFERROR(INDEX(Table_CoutRH[Cout horaire],MATCH(Table_recettes[[#This Row],[RH2]],Table_CoutRH[Employé ou équipe],0))*Table_recettes[[#This Row],[D2]],0) +IFERROR(INDEX(Table_CoutRH[Cout horaire],MATCH(Table_recettes[[#This Row],[RH3]],Table_CoutRH[Employé ou équipe],0))*Table_recettes[[#This Row],[D3]],0) +IFERROR(INDEX(Table_CoutRH[Cout horaire],MATCH(Table_recettes[[#This Row],[RH4]],Table_CoutRH[Employé ou équipe],0))*Table_recettes[[#This Row],[D4]],0) +IFERROR(INDEX(Table_CoutRH[Cout horaire],MATCH(Table_recettes[[#This Row],[RH5]],Table_CoutRH[Employé ou équipe],0))*Table_recettes[[#This Row],[D5]],0) +IFERROR(INDEX(Table_CoutRH[Cout horaire],MATCH(Table_recettes[[#This Row],[RH6]],Table_CoutRH[Employé ou équipe],0))*Table_recettes[[#This Row],[D6]],0) +IFERROR(INDEX(Table_CoutRH[Cout horaire],MATCH(Table_recettes[[#This Row],[RH7]],Table_CoutRH[Employé ou équipe],0))*Table_recettes[[#This Row],[D7]],0) +IFERROR(INDEX(Table_CoutRH[Cout horaire],MATCH(Table_recettes[[#This Row],[RH8]],Table_CoutRH[Employé ou équipe],0))*Table_recettes[[#This Row],[D8]],0) +IFERROR(INDEX(Table_CoutRH[Cout horaire],MATCH(Table_recettes[[#This Row],[RH9]],Table_CoutRH[Employé ou équipe],0))*Table_recettes[[#This Row],[D9]],0) +IFERROR(INDEX(Table_CoutRH[Cout horaire],MATCH(Table_recettes[[#This Row],[RH10]],Table_CoutRH[Employé ou équipe],0))*Table_recettes[[#This Row],[D10]],0))*24 +FctCoutRH(ROW(Table_recettes[[#This Row],[CoutRH/U]])) -> 6.684615385 | BS27: =IFERROR(Table_recettes[[#This Row],[CoutRH Recette]]/IF(Table_recettes[[#This Row],[Type]]="Produit",Table_recettes[[#This Row],[Unités]],Table_recettes[[#This Row],[Poids]]),0) -> 0.001461118117 | BT27: =IF(Table_recettes[[#This Row],[Type]]="Produit",Table_recettes[[#This Row],[CA Total TTC Recette]]*Table_recettes[[#This Row],[Frequence]],"") ->  | BU27: =IF(Table_recettes[[#This Row],[Type]]="Produit",Table_recettes[Unités]*Table_recettes[[#This Row],[Prix/U]],"") ->  | BV27: =IF(Table_recettes[[#This Row],[Type]]="Produit",Table_recettes[[#This Row],[TVA totale Recette]]*Table_recettes[[#This Row],[Frequence]],"") ->  | BW27: =IF(Table_recettes[[#This Row],[Type]]="Produit",Table_recettes[[#This Row],[CA Total TTC Recette]]*Table_recettes[[#This Row],[TVA applicable]]/(1+Table_recettes[[#This Row],[TVA applicable]]),"") ->  | BX27: =IF(Table_recettes[[#This Row],[Type]]="Produit",Table_recettes[[#This Row],[Prix/U]]*Table_recettes[[#This Row],[TVA applicable]]/(1+Table_recettes[[#This Row],[TVA applicable]]),"") ->  | BY27: =IF(Table_recettes[[#This Row],[Type]]="Produit",Table_recettes[[#This Row],[CA Total TTC Recette]]-Table_recettes[[#This Row],[TVA totale Recette]]-Table_recettes[[#This Row],[CoutIng Recette]],"") ->  | BZ27: =IF(Table_recettes[[#This Row],[Type]]="Produit",(Table_recettes[[#This Row],[CA Total TTC Recette]]-Table_recettes[[#This Row],[TVA totale Recette]])*(1-IF(OR(Option_MO="Globale",Option_MO="Par produit et globale"),Cell_CRp9,0))-Table_recettes[[#This Row],[CoutIng Recette]]-IF(OR(Option_MO="Par produit",Option_MO="Par produit et globale"),Table_recettes[[#This Row],[CoutRH Recette]],0),"") ->  | CA27: =IF(Table_recettes[[#This Row],[Type]]="Produit",(Table_recettes[[#This Row],[CA Total TTC Recette]]-Table_recettes[[#This Row],[TVA totale Recette]])*(1-Cell_CRp10-Cell_CRp2-IF(OR(Option_MO="Globale",Option_MO="Par produit et globale"),Cell_CRp9,0))-Table_recettes[[#This Row],[CoutIng Recette]]-IF(OR(Option_MO="Par produit",Option_MO="Par produit et globale"),Table_recettes[[#This Row],[CoutRH Recette]],0),"") ->  | CB27: =IF(Table_recettes[[#This Row],[Type]]="Produit",((Table_recettes[[#This Row],[CA Total TTC Recette]]-Table_recettes[[#This Row],[TVA totale Recette]])*(1-Cell_CRp10-Cell_CRp2-Cell_CRp4-Cell_CRp5-Cell_CRp6-Cell_CRp7-IF(OR(Option_MO="Globale",Option_MO="Par produit et globale"),Cell_CRp9,0))-Table_recettes[[#This Row],[CoutIng Recette]]-IF(OR(Option_MO="Par produit",Option_MO="Par produit et globale"),Table_recettes[[#This Row],[CoutRH Recette]],0))*(1-Cell_CRp8),"") ->  | CC27: =IFERROR(IF(Table_recettes[[#This Row],[Type]]="Produit",Table_recettes[[#This Row],[Marge Brute Recette]]/Table_recettes[[#This Row],[Unités]],""),0) ->  | CD27: =IFERROR(IF(Table_recettes[[#This Row],[Type]]="Produit",Table_recettes[[#This Row],[Marge SCP Recette]]/Table_recettes[[#This Row],[Unités]],""),0) ->  | CE27: =IFERROR(IF(Table_recettes[[#This Row],[Type]]="Produit",Table_recettes[[#This Row],[Marge opérationnelle Recette]]/Table_recettes[[#This Row],[Unités]],""),0) ->  | CF27: =IFERROR(IF(Table_recettes[[#This Row],[Type]]="Produit",Table_recettes[[#This Row],[Marge Nette Recette]]/Table_recettes[[#This Row],[Unités]],""),0) ->  | CG27: =IFERROR(IF(Table_recettes[[#This Row],[Type]]="Produit",Table_recettes[[#This Row],[Marge Brute/U]]-Table_recettes[[#This Row],[Marge SCP/U]],""),0) ->  | CH27: =IF(Table_recettes[[#This Row],[Type]]="Produit",Table_recettes[[#This Row],[Marge SCP/U]]-Table_recettes[[#This Row],[Marge Nette/U]],"") ->  | CI27: =IFERROR(IF(Table_recettes[[#This Row],[Type]]="Produit",Table_recettes[[#This Row],[Marge Brute/U]]/(Table_recettes[[#This Row],[Prix/U]]-Table_recettes[[#This Row],[TVA/U]]),""),0) ->  | CJ27: =IFERROR(IF(Table_recettes[[#This Row],[Type]]="Produit",Table_recettes[[#This Row],[Marge SCP/U]]/(Table_recettes[[#This Row],[Prix/U]]-Table_recettes[[#This Row],[TVA/U]]),""),0) ->  | CK27: =IFERROR(IF(Table_recettes[[#This Row],[Type]]="Produit",Table_recettes[[#This Row],[Marge opérationnelle/U]]/(Table_recettes[[#This Row],[Prix/U]]-Table_recettes[[#This Row],[TVA/U]]),""),0) ->  | CL27: =IFERROR(IF(Table_recettes[[#This Row],[Type]]="Produit",Table_recettes[[#This Row],[Marge Nette/U]]/(Table_recettes[[#This Row],[Prix/U]]-Table_recettes[[#This Row],[TVA/U]]),""),0) -> 
C28: Appareil | D28: Appareil | E28: Appareil à normande | F28: 1 | J28: Beurre | K28: 100 | L28: Sucre semoule | M28: 100 | N28: Oeuf coquille | O28: 2 | P28: Crème 35% | Q28: 50 | AD28: Prorata poids de la fabrication des appareils | AE28: =FctDuree(ROW(Table_recettes[[#This Row],[D1]])) -> 0 | AF28: Peser les ingrédients | AG28: 0.001388888889 | AH28: Equipe pâtisserie | AI28: Mélanger tous les ingrédients | AJ28: 0.001388888889 | AK28: Equipe pâtisserie | BG28: 2014-06-25 | BH28: 2014-05-03 | BI28: =(Table_recettes[[#This Row],[D1]]+Table_recettes[[#This Row],[D2]]+Table_recettes[[#This Row],[D3]]+Table_recettes[[#This Row],[D4]]+Table_recettes[[#This Row],[D5]]+Table_recettes[[#This Row],[D6]]+Table_recettes[[#This Row],[D7]]+Table_recettes[[#This Row],[D8]]+Table_recettes[[#This Row],[D9]]+Table_recettes[[#This Row],[D10]]) -> 0.002777777778 | BJ28: =Table_recettes[[#This Row],[Frequence]]*Table_recettes[[#This Row],[Unités]] -> 0 | BK28: =IFERROR(Table_recettes[[#This Row],[Duree]]/IF(Table_recettes[[#This Row],[Type]]="Produit",Table_recettes[[#This Row],[Unités]],Table_recettes[[#This Row],[Poids]]),0) -> 1.111111111e-05 | BL28: =IFERROR(IF(INDEX(Table_ing[Unité],MATCH(Table_recettes[[#This Row],[I1]],Table_ing[Ingredient],0))="g",Table_recettes[[#This Row],[Q1]],0),Table_recettes[[#This Row],[Q1]]) +IFERROR(IF(INDEX(Table_ing[Unité],MATCH(Table_recettes[[#This Row],[I2]],Table_ing[Ingredient],0))="g",Table_recettes[[#This Row],[Q2]],0),Table_recettes[[#This Row],[Q2]]) +IFERROR(IF(INDEX(Table_ing[Unité],MATCH(Table_recettes[[#This Row],[I3]],Table_ing[Ingredient],0))="g",Table_recettes[[#This Row],[Q3]],0),Table_recettes[[#This Row],[Q3]]) +IFERROR(IF(INDEX(Table_ing[Unité],MATCH(Table_recettes[[#This Row],[I4]],Table_ing[Ingredient],0))="g",Table_recettes[[#This Row],[Q4]],0),Table_recettes[[#This Row],[Q4]]) +IFERROR(IF(INDEX(Table_ing[Unité],MATCH(Table_recettes[[#This Row],[I5]],Table_ing[Ingredient],0))="g",Table_recettes[[#This Row],[Q5]],0),Table_recettes[[#This Row],[Q5]]) +IFERROR(IF(INDEX(Table_ing[Unité],MATCH(Table_recettes[[#This Row],[I6]],Table_ing[Ingredient],0))="g",Table_recettes[[#This Row],[Q6]],0),Table_recettes[[#This Row],[Q6]]) +IFERROR(IF(INDEX(Table_ing[Unité],MATCH(Table_recettes[[#This Row],[I7]],Table_ing[Ingredient],0))="g",Table_recettes[[#This Row],[Q7]],0),Table_recettes[[#This Row],[Q7]]) +IFERROR(IF(INDEX(Table_ing[Unité],MATCH(Table_recettes[[#This Row],[I8]],Table_ing[Ingredient],0))="g",Table_recettes[[#This Row],[Q8]],0),Table_recettes[[#This Row],[Q8]]) +IFERROR(IF(INDEX(Table_ing[Unité],MATCH(Table_recettes[[#This Row],[I9]],Table_ing[Ingredient],0))="g",Table_recettes[[#This Row],[Q9]],0),Table_recettes[[#This Row],[Q9]]) +IFERROR(IF(INDEX(Table_ing[Unité],MATCH(Table_recettes[[#This Row],[I10]],Table_ing[Ingredient],0))="g",Table_recettes[[#This Row],[Q10]],0),Table_recettes[[#This Row],[Q10]]) -> 250 | BM28: =IFERROR(Table_recettes[[#This Row],[Poids]]/IF(Table_recettes[[#This Row],[Type]]="Produit",Table_recettes[[#This Row],[Unités]],1),0) -> 250 | BN28: =Table_recettes[[#This Row],[CoutIng Recette]]*Table_recettes[[#This Row],[Frequence]] -> 0.946 | BO28: =IF(Table_recettes[[#This Row],[Q1]]>0,IFERROR(INDEX(Table_ing[Coût par unité],MATCH(Table_recettes[[#This Row],[I1]],Table_ing[Ingredient],0))*Table_recettes[[#This Row],[Q1]],INDEX(Table_recettes[CoutIng/U],MATCH(Table_recettes[[#This Row],[I1]],Table_recettes[Recette],0))*Table_recettes[[#This Row],[Q1]]),0) +IF(Table_recettes[[#This Row],[Q2]]>0,IFERROR(INDEX(Table_ing[Coût par unité],MATCH(Table_recettes[[#This Row],[I2]],Table_ing[Ingredient],0))*Table_recettes[[#This Row],[Q2]],INDEX(Table_recettes[CoutIng/U],MATCH(Table_recettes[[#This Row],[I2]],Table_recettes[Recette],0))*Table_recettes[[#This Row],[Q2]]),0) +IF(Table_recettes[[#This Row],[Q3]]>0,IFERROR(INDEX(Table_ing[Coût par unité],MATCH(Table_recettes[[#This Row],[I3]],Table_ing[Ingredient],0))*Table_recettes[[#This Row],[Q3]],INDEX(Table_recettes[CoutIng/U],MATCH(Table_recettes[[#This Row],[I3]],Table_recettes[Recette],0))*Table_recettes[[#This Row],[Q3]]),0) +IF(Table_recettes[[#This Row],[Q4]]>0,IFERROR(INDEX(Table_ing[Coût par unité],MATCH(Table_recettes[[#This Row],[I4]],Table_ing[Ingredient],0))*Table_recettes[[#This Row],[Q4]],INDEX(Table_recettes[CoutIng/U],MATCH(Table_recettes[[#This Row],[I4]],Table_recettes[Recette],0))*Table_recettes[[#This Row],[Q4]]),0) +IF(Table_recettes[[#This Row],[Q5]]>0,IFERROR(INDEX(Table_ing[Coût par unité],MATCH(Table_recettes[[#This Row],[I5]],Table_ing[Ingredient],0))*Table_recettes[[#This Row],[Q5]],INDEX(Table_recettes[CoutIng/U],MATCH(Table_recettes[[#This Row],[I5]],Table_recettes[Recette],0))*Table_recettes[[#This Row],[Q5]]),0) +IF(Table_recettes[[#This Row],[Q6]]>0,IFERROR(INDEX(Table_ing[Coût par unité],MATCH(Table_recettes[[#This Row],[I6]],Table_ing[Ingredient],0))*Table_recettes[[#This Row],[Q6]],INDEX(Table_recettes[CoutIng/U],MATCH(Table_recettes[[#This Row],[I6]],Table_recettes[Recette],0))*Table_recettes[[#This Row],[Q6]]),0) +IF(Table_recettes[[#This Row],[Q7]]>0,IFERROR(INDEX(Table_ing[Coût par unité],MATCH(Table_recettes[[#This Row],[I7]],Table_ing[Ingredient],0))*Table_recettes[[#This Row],[Q7]],INDEX(Table_recettes[CoutIng/U],MATCH(Table_recettes[[#This Row],[I7]],Table_recettes[Recette],0))*Table_recettes[[#This Row],[Q7]]),0) +IF(Table_recettes[[#This Row],[Q8]]>0,IFERROR(INDEX(Table_ing[Coût par unité],MATCH(Table_recettes[[#This Row],[I8]],Table_ing[Ingredient],0))*Table_recettes[[#This Row],[Q8]],INDEX(Table_recettes[CoutIng/U],MATCH(Table_recettes[[#This Row],[I8]],Table_recettes[Recette],0))*Table_recettes[[#This Row],[Q8]]),0) +IF(Table_recettes[[#This Row],[Q9]]>0,IFERROR(INDEX(Table_ing[Coût par unité],MATCH(Table_recettes[[#This Row],[I9]],Table_ing[Ingredient],0))*Table_recettes[[#This Row],[Q9]],INDEX(Table_recettes[CoutIng/U],MATCH(Table_recettes[[#This Row],[I9]],Table_recettes[Recette],0))*Table_recettes[[#This Row],[Q9]]),0) +IF(Table_recettes[[#This Row],[Q10]]>0,IFERROR(INDEX(Table_ing[Coût par unité],MATCH(Table_recettes[[#This Row],[I10]],Table_ing[Ingredient],0))*Table_recettes[[#This Row],[Q10]],INDEX(Table_recettes[CoutIng/U],MATCH(Table_recettes[[#This Row],[I10]],Table_recettes[Recette],0))*Table_recettes[[#This Row],[Q8]]),0) -> 0.946 | BP28: =IFERROR(Table_recettes[[#This Row],[CoutIng Recette]]/IF(Table_recettes[[#This Row],[Type]]="Produit",Table_recettes[[#This Row],[Unités]],Table_recettes[[#This Row],[Poids]]),0) -> 0.003784 | BQ28: =Table_recettes[[#This Row],[CoutRH Recette]]*Table_recettes[[#This Row],[Frequence]] -> 0.8912820513 | BR28: =(IFERROR(INDEX(Table_CoutRH[Cout horaire],MATCH(Table_recettes[[#This Row],[RH2]],Table_CoutRH[Employé ou équipe],0))*Table_recettes[[#This Row],[D2]],0) +IFERROR(INDEX(Table_CoutRH[Cout horaire],MATCH(Table_recettes[[#This Row],[RH3]],Table_CoutRH[Employé ou équipe],0))*Table_recettes[[#This Row],[D3]],0) +IFERROR(INDEX(Table_CoutRH[Cout horaire],MATCH(Table_recettes[[#This Row],[RH4]],Table_CoutRH[Employé ou équipe],0))*Table_recettes[[#This Row],[D4]],0) +IFERROR(INDEX(Table_CoutRH[Cout horaire],MATCH(Table_recettes[[#This Row],[RH5]],Table_CoutRH[Employé ou équipe],0))*Table_recettes[[#This Row],[D5]],0) +IFERROR(INDEX(Table_CoutRH[Cout horaire],MATCH(Table_recettes[[#This Row],[RH6]],Table_CoutRH[Employé ou équipe],0))*Table_recettes[[#This Row],[D6]],0) +IFERROR(INDEX(Table_CoutRH[Cout horaire],MATCH(Table_recettes[[#This Row],[RH7]],Table_CoutRH[Employé ou équipe],0))*Table_recettes[[#This Row],[D7]],0) +IFERROR(INDEX(Table_CoutRH[Cout horaire],MATCH(Table_recettes[[#This Row],[RH8]],Table_CoutRH[Employé ou équipe],0))*Table_recettes[[#This Row],[D8]],0) +IFERROR(INDEX(Table_CoutRH[Cout horaire],MATCH(Table_recettes[[#This Row],[RH9]],Table_CoutRH[Employé ou équipe],0))*Table_recettes[[#This Row],[D9]],0) +IFERROR(INDEX(Table_CoutRH[Cout horaire],MATCH(Table_recettes[[#This Row],[RH10]],Table_CoutRH[Employé ou équipe],0))*Table_recettes[[#This Row],[D10]],0))*24 +FctCoutRH(ROW(Table_recettes[[#This Row],[CoutRH/U]])) -> 0.8912820513 | BS28: =IFERROR(Table_recettes[[#This Row],[CoutRH Recette]]/IF(Table_recettes[[#This Row],[Type]]="Produit",Table_recettes[[#This Row],[Unités]],Table_recettes[[#This Row],[Poids]]),0) -> 0.003565128205 | BT28: =IF(Table_recettes[[#This Row],[Type]]="Produit",Table_recettes[[#This Row],[CA Total TTC Recette]]*Table_recettes[[#This Row],[Frequence]],"") ->  | BU28: =IF(Table_recettes[[#This Row],[Type]]="Produit",Table_recettes[Unités]*Table_recettes[[#This Row],[Prix/U]],"") ->  | BV28: =IF(Table_recettes[[#This Row],[Type]]="Produit",Table_recettes[[#This Row],[TVA totale Recette]]*Table_recettes[[#This Row],[Frequence]],"") ->  | BW28: =IF(Table_recettes[[#This Row],[Type]]="Produit",Table_recettes[[#This Row],[CA Total TTC Recette]]*Table_recettes[[#This Row],[TVA applicable]]/(1+Table_recettes[[#This Row],[TVA applicable]]),"") ->  | BX28: =IF(Table_recettes[[#This Row],[Type]]="Produit",Table_recettes[[#This Row],[Prix/U]]*Table_recettes[[#This Row],[TVA applicable]]/(1+Table_recettes[[#This Row],[TVA applicable]]),"") ->  | BY28: =IF(Table_recettes[[#This Row],[Type]]="Produit",Table_recettes[[#This Row],[CA Total TTC Recette]]-Table_recettes[[#This Row],[TVA totale Recette]]-Table_recettes[[#This Row],[CoutIng Recette]],"") ->  | BZ28: =IF(Table_recettes[[#This Row],[Type]]="Produit",(Table_recettes[[#This Row],[CA Total TTC Recette]]-Table_recettes[[#This Row],[TVA totale Recette]])*(1-IF(OR(Option_MO="Globale",Option_MO="Par produit et globale"),Cell_CRp9,0))-Table_recettes[[#This Row],[CoutIng Recette]]-IF(OR(Option_MO="Par produit",Option_MO="Par produit et globale"),Table_recettes[[#This Row],[CoutRH Recette]],0),"") ->  | CA28: =IF(Table_recettes[[#This Row],[Type]]="Produit",(Table_recettes[[#This Row],[CA Total TTC Recette]]-Table_recettes[[#This Row],[TVA totale Recette]])*(1-Cell_CRp10-Cell_CRp2-IF(OR(Option_MO="Globale",Option_MO="Par produit et globale"),Cell_CRp9,0))-Table_recettes[[#This Row],[CoutIng Recette]]-IF(OR(Option_MO="Par produit",Option_MO="Par produit et globale"),Table_recettes[[#This Row],[CoutRH Recette]],0),"") ->  | CB28: =IF(Table_recettes[[#This Row],[Type]]="Produit",((Table_recettes[[#This Row],[CA Total TTC Recette]]-Table_recettes[[#This Row],[TVA totale Recette]])*(1-Cell_CRp10-Cell_CRp2-Cell_CRp4-Cell_CRp5-Cell_CRp6-Cell_CRp7-IF(OR(Option_MO="Globale",Option_MO="Par produit et globale"),Cell_CRp9,0))-Table_recettes[[#This Row],[CoutIng Recette]]-IF(OR(Option_MO="Par produit",Option_MO="Par produit et globale"),Table_recettes[[#This Row],[CoutRH Recette]],0))*(1-Cell_CRp8),"") ->  | CC28: =IFERROR(IF(Table_recettes[[#This Row],[Type]]="Produit",Table_recettes[[#This Row],[Marge Brute Recette]]/Table_recettes[[#This Row],[Unités]],""),0) ->  | CD28: =IFERROR(IF(Table_recettes[[#This Row],[Type]]="Produit",Table_recettes[[#This Row],[Marge SCP Recette]]/Table_recettes[[#This Row],[Unités]],""),0) ->  | CE28: =IFERROR(IF(Table_recettes[[#This Row],[Type]]="Produit",Table_recettes[[#This Row],[Marge opérationnelle Recette]]/Table_recettes[[#This Row],[Unités]],""),0) ->  | CF28: =IFERROR(IF(Table_recettes[[#This Row],[Type]]="Produit",Table_recettes[[#This Row],[Marge Nette Recette]]/Table_recettes[[#This Row],[Unités]],""),0) ->  | CG28: =IFERROR(IF(Table_recettes[[#This Row],[Type]]="Produit",Table_recettes[[#This Row],[Marge Brute/U]]-Table_recettes[[#This Row],[Marge SCP/U]],""),0) ->  | CH28: =IF(Table_recettes[[#This Row],[Type]]="Produit",Table_recettes[[#This Row],[Marge SCP/U]]-Table_recettes[[#This Row],[Marge Nette/U]],"") ->  | CI28: =IFERROR(IF(Table_recettes[[#This Row],[Type]]="Produit",Table_recettes[[#This Row],[Marge Brute/U]]/(Table_recettes[[#This Row],[Prix/U]]-Table_recettes[[#This Row],[TVA/U]]),""),0) ->  | CJ28: =IFERROR(IF(Table_recettes[[#This Row],[Type]]="Produit",Table_recettes[[#This Row],[Marge SCP/U]]/(Table_recettes[[#This Row],[Prix/U]]-Table_recettes[[#This Row],[TVA/U]]),""),0) ->  | CK28: =IFERROR(IF(Table_recettes[[#This Row],[Type]]="Produit",Table_recettes[[#This Row],[Marge opérationnelle/U]]/(Table_recettes[[#This Row],[Prix/U]]-Table_recettes[[#This Row],[TVA/U]]),""),0) ->  | CL28: =IFERROR(IF(Table_recettes[[#This Row],[Type]]="Produit",Table_recettes[[#This Row],[Marge Nette/U]]/(Table_recettes[[#This Row],[Prix/U]]-Table_recettes[[#This Row],[TVA/U]]),""),0) -> 
C29: Appareil | D29: Appareil | E29: Appareil crumble | F29: 1 | J29: Beurre | K29: 50 | L29: Sucre semoule | M29: 50 | N29: Poudre d'amandes | O29: 50 | P29: Farine classique t55 or | Q29: 50 | AD29: Prorata poids de la fabrication des appareils | AE29: =FctDuree(ROW(Table_recettes[[#This Row],[D1]])) -> 0 | AF29: Préparer les ingrédients | AG29: 0.003472222222 | AH29: Equipe pâtisserie | AI29: Mélanger tous les ingrédients puis mettre dans la poële à feu doux. COntinuer à mélanger jusqu'à brunissement léger. | AJ29: 0.006944444444 | AK29: Equipe pâtisserie | BG29: 2014-07-01 | BH29: 2014-05-03 | BI29: =(Table_recettes[[#This Row],[D1]]+Table_recettes[[#This Row],[D2]]+Table_recettes[[#This Row],[D3]]+Table_recettes[[#This Row],[D4]]+Table_recettes[[#This Row],[D5]]+Table_recettes[[#This Row],[D6]]+Table_recettes[[#This Row],[D7]]+Table_recettes[[#This Row],[D8]]+Table_recettes[[#This Row],[D9]]+Table_recettes[[#This Row],[D10]]) -> 0.01041666667 | BJ29: =Table_recettes[[#This Row],[Frequence]]*Table_recettes[[#This Row],[Unités]] -> 0 | BK29: =IFERROR(Table_recettes[[#This Row],[Duree]]/IF(Table_recettes[[#This Row],[Type]]="Produit",Table_recettes[[#This Row],[Unités]],Table_recettes[[#This Row],[Poids]]),0) -> 5.208333333e-05 | BL29: =IFERROR(IF(INDEX(Table_ing[Unité],MATCH(Table_recettes[[#This Row],[I1]],Table_ing[Ingredient],0))="g",Table_recettes[[#This Row],[Q1]],0),Table_recettes[[#This Row],[Q1]]) +IFERROR(IF(INDEX(Table_ing[Unité],MATCH(Table_recettes[[#This Row],[I2]],Table_ing[Ingredient],0))="g",Table_recettes[[#This Row],[Q2]],0),Table_recettes[[#This Row],[Q2]]) +IFERROR(IF(INDEX(Table_ing[Unité],MATCH(Table_recettes[[#This Row],[I3]],Table_ing[Ingredient],0))="g",Table_recettes[[#This Row],[Q3]],0),Table_recettes[[#This Row],[Q3]]) +IFERROR(IF(INDEX(Table_ing[Unité],MATCH(Table_recettes[[#This Row],[I4]],Table_ing[Ingredient],0))="g",Table_recettes[[#This Row],[Q4]],0),Table_recettes[[#This Row],[Q4]]) +IFERROR(IF(INDEX(Table_ing[Unité],MATCH(Table_recettes[[#This Row],[I5]],Table_ing[Ingredient],0))="g",Table_recettes[[#This Row],[Q5]],0),Table_recettes[[#This Row],[Q5]]) +IFERROR(IF(INDEX(Table_ing[Unité],MATCH(Table_recettes[[#This Row],[I6]],Table_ing[Ingredient],0))="g",Table_recettes[[#This Row],[Q6]],0),Table_recettes[[#This Row],[Q6]]) +IFERROR(IF(INDEX(Table_ing[Unité],MATCH(Table_recettes[[#This Row],[I7]],Table_ing[Ingredient],0))="g",Table_recettes[[#This Row],[Q7]],0),Table_recettes[[#This Row],[Q7]]) +IFERROR(IF(INDEX(Table_ing[Unité],MATCH(Table_recettes[[#This Row],[I8]],Table_ing[Ingredient],0))="g",Table_recettes[[#This Row],[Q8]],0),Table_recettes[[#This Row],[Q8]]) +IFERROR(IF(INDEX(Table_ing[Unité],MATCH(Table_recettes[[#This Row],[I9]],Table_ing[Ingredient],0))="g",Table_recettes[[#This Row],[Q9]],0),Table_recettes[[#This Row],[Q9]]) +IFERROR(IF(INDEX(Table_ing[Unité],MATCH(Table_recettes[[#This Row],[I10]],Table_ing[Ingredient],0))="g",Table_recettes[[#This Row],[Q10]],0),Table_recettes[[#This Row],[Q10]]) -> 200 | BM29: =IFERROR(Table_recettes[[#This Row],[Poids]]/IF(Table_recettes[[#This Row],[Type]]="Produit",Table_recettes[[#This Row],[Unités]],1),0) -> 200 | BN29: =Table_recettes[[#This Row],[CoutIng Recette]]*Table_recettes[[#This Row],[Frequence]] -> 0.74108 | BO29: =IF(Table_recettes[[#This Row],[Q1]]>0,IFERROR(INDEX(Table_ing[Coût par unité],MATCH(Table_recettes[[#This Row],[I1]],Table_ing[Ingredient],0))*Table_recettes[[#This Row],[Q1]],INDEX(Table_recettes[CoutIng/U],MATCH(Table_recettes[[#This Row],[I1]],Table_recettes[Recette],0))*Table_recettes[[#This Row],[Q1]]),0) +IF(Table_recettes[[#This Row],[Q2]]>0,IFERROR(INDEX(Table_ing[Coût par unité],MATCH(Table_recettes[[#This Row],[I2]],Table_ing[Ingredient],0))*Table_recettes[[#This Row],[Q2]],INDEX(Table_recettes[CoutIng/U],MATCH(Table_recettes[[#This Row],[I2]],Table_recettes[Recette],0))*Table_recettes[[#This Row],[Q2]]),0) +IF(Table_recettes[[#This Row],[Q3]]>0,IFERROR(INDEX(Table_ing[Coût par unité],MATCH(Table_recettes[[#This Row],[I3]],Table_ing[Ingredient],0))*Table_recettes[[#This Row],[Q3]],INDEX(Table_recettes[CoutIng/U],MATCH(Table_recettes[[#This Row],[I3]],Table_recettes[Recette],0))*Table_recettes[[#This Row],[Q3]]),0) +IF(Table_recettes[[#This Row],[Q4]]>0,IFERROR(INDEX(Table_ing[Coût par unité],MATCH(Table_recettes[[#This Row],[I4]],Table_ing[Ingredient],0))*Table_recettes[[#This Row],[Q4]],INDEX(Table_recettes[CoutIng/U],MATCH(Table_recettes[[#This Row],[I4]],Table_recettes[Recette],0))*Table_recettes[[#This Row],[Q4]]),0) +IF(Table_recettes[[#This Row],[Q5]]>0,IFERROR(INDEX(Table_ing[Coût par unité],MATCH(Table_recettes[[#This Row],[I5]],Table_ing[Ingredient],0))*Table_recettes[[#This Row],[Q5]],INDEX(Table_recettes[CoutIng/U],MATCH(Table_recettes[[#This Row],[I5]],Table_recettes[Recette],0))*Table_recettes[[#This Row],[Q5]]),0) +IF(Table_recettes[[#This Row],[Q6]]>0,IFERROR(INDEX(Table_ing[Coût par unité],MATCH(Table_recettes[[#This Row],[I6]],Table_ing[Ingredient],0))*Table_recettes[[#This Row],[Q6]],INDEX(Table_recettes[CoutIng/U],MATCH(Table_recettes[[#This Row],[I6]],Table_recettes[Recette],0))*Table_recettes[[#This Row],[Q6]]),0) +IF(Table_recettes[[#This Row],[Q7]]>0,IFERROR(INDEX(Table_ing[Coût par unité],MATCH(Table_recettes[[#This Row],[I7]],Table_ing[Ingredient],0))*Table_recettes[[#This Row],[Q7]],INDEX(Table_recettes[CoutIng/U],MATCH(Table_recettes[[#This Row],[I7]],Table_recettes[Recette],0))*Table_recettes[[#This Row],[Q7]]),0) +IF(Table_recettes[[#This Row],[Q8]]>0,IFERROR(INDEX(Table_ing[Coût par unité],MATCH(Table_recettes[[#This Row],[I8]],Table_ing[Ingredient],0))*Table_recettes[[#This Row],[Q8]],INDEX(Table_recettes[CoutIng/U],MATCH(Table_recettes[[#This Row],[I8]],Table_recettes[Recette],0))*Table_recettes[[#This Row],[Q8]]),0) +IF(Table_recettes[[#This Row],[Q9]]>0,IFERROR(INDEX(Table_ing[Coût par unité],MATCH(Table_recettes[[#This Row],[I9]],Table_ing[Ingredient],0))*Table_recettes[[#This Row],[Q9]],INDEX(Table_recettes[CoutIng/U],MATCH(Table_recettes[[#This Row],[I9]],Table_recettes[Recette],0))*Table_recettes[[#This Row],[Q9]]),0) +IF(Table_recettes[[#This Row],[Q10]]>0,IFERROR(INDEX(Table_ing[Coût par unité],MATCH(Table_recettes[[#This Row],[I10]],Table_ing[Ingredient],0))*Table_recettes[[#This Row],[Q10]],INDEX(Table_recettes[CoutIng/U],MATCH(Table_recettes[[#This Row],[I10]],Table_recettes[Recette],0))*Table_recettes[[#This Row],[Q8]]),0) -> 0.74108 | BP29: =IFERROR(Table_recettes[[#This Row],[CoutIng Recette]]/IF(Table_recettes[[#This Row],[Type]]="Produit",Table_recettes[[#This Row],[Unités]],Table_recettes[[#This Row],[Poids]]),0) -> 0.0037054 | BQ29: =Table_recettes[[#This Row],[CoutRH Recette]]*Table_recettes[[#This Row],[Frequence]] -> 3.342307692 | BR29: =(IFERROR(INDEX(Table_CoutRH[Cout horaire],MATCH(Table_recettes[[#This Row],[RH2]],Table_CoutRH[Employé ou équipe],0))*Table_recettes[[#This Row],[D2]],0) +IFERROR(INDEX(Table_CoutRH[Cout horaire],MATCH(Table_recettes[[#This Row],[RH3]],Table_CoutRH[Employé ou équipe],0))*Table_recettes[[#This Row],[D3]],0) +IFERROR(INDEX(Table_CoutRH[Cout horaire],MATCH(Table_recettes[[#This Row],[RH4]],Table_CoutRH[Employé ou équipe],0))*Table_recettes[[#This Row],[D4]],0) +IFERROR(INDEX(Table_CoutRH[Cout horaire],MATCH(Table_recettes[[#This Row],[RH5]],Table_CoutRH[Employé ou équipe],0))*Table_recettes[[#This Row],[D5]],0) +IFERROR(INDEX(Table_CoutRH[Cout horaire],MATCH(Table_recettes[[#This Row],[RH6]],Table_CoutRH[Employé ou équipe],0))*Table_recettes[[#This Row],[D6]],0) +IFERROR(INDEX(Table_CoutRH[Cout horaire],MATCH(Table_recettes[[#This Row],[RH7]],Table_CoutRH[Employé ou équipe],0))*Table_recettes[[#This Row],[D7]],0) +IFERROR(INDEX(Table_CoutRH[Cout horaire],MATCH(Table_recettes[[#This Row],[RH8]],Table_CoutRH[Employé ou équipe],0))*Table_recettes[[#This Row],[D8]],0) +IFERROR(INDEX(Table_CoutRH[Cout horaire],MATCH(Table_recettes[[#This Row],[RH9]],Table_CoutRH[Employé ou équipe],0))*Table_recettes[[#This Row],[D9]],0) +IFERROR(INDEX(Table_CoutRH[Cout horaire],MATCH(Table_recettes[[#This Row],[RH10]],Table_CoutRH[Employé ou équipe],0))*Table_recettes[[#This Row],[D10]],0))*24 +FctCoutRH(ROW(Table_recettes[[#This Row],[CoutRH/U]])) -> 3.342307692 | BS29: =IFERROR(Table_recettes[[#This Row],[CoutRH Recette]]/IF(Table_recettes[[#This Row],[Type]]="Produit",Table_recettes[[#This Row],[Unités]],Table_recettes[[#This Row],[Poids]]),0) -> 0.01671153846 | BT29: =IF(Table_recettes[[#This Row],[Type]]="Produit",Table_recettes[[#This Row],[CA Total TTC Recette]]*Table_recettes[[#This Row],[Frequence]],"") ->  | BU29: =IF(Table_recettes[[#This Row],[Type]]="Produit",Table_recettes[Unités]*Table_recettes[[#This Row],[Prix/U]],"") ->  | BV29: =IF(Table_recettes[[#This Row],[Type]]="Produit",Table_recettes[[#This Row],[TVA totale Recette]]*Table_recettes[[#This Row],[Frequence]],"") ->  | BW29: =IF(Table_recettes[[#This Row],[Type]]="Produit",Table_recettes[[#This Row],[CA Total TTC Recette]]*Table_recettes[[#This Row],[TVA applicable]]/(1+Table_recettes[[#This Row],[TVA applicable]]),"") ->  | BX29: =IF(Table_recettes[[#This Row],[Type]]="Produit",Table_recettes[[#This Row],[Prix/U]]*Table_recettes[[#This Row],[TVA applicable]]/(1+Table_recettes[[#This Row],[TVA applicable]]),"") ->  | BY29: =IF(Table_recettes[[#This Row],[Type]]="Produit",Table_recettes[[#This Row],[CA Total TTC Recette]]-Table_recettes[[#This Row],[TVA totale Recette]]-Table_recettes[[#This Row],[CoutIng Recette]],"") ->  | BZ29: =IF(Table_recettes[[#This Row],[Type]]="Produit",(Table_recettes[[#This Row],[CA Total TTC Recette]]-Table_recettes[[#This Row],[TVA totale Recette]])*(1-IF(OR(Option_MO="Globale",Option_MO="Par produit et globale"),Cell_CRp9,0))-Table_recettes[[#This Row],[CoutIng Recette]]-IF(OR(Option_MO="Par produit",Option_MO="Par produit et globale"),Table_recettes[[#This Row],[CoutRH Recette]],0),"") ->  | CA29: =IF(Table_recettes[[#This Row],[Type]]="Produit",(Table_recettes[[#This Row],[CA Total TTC Recette]]-Table_recettes[[#This Row],[TVA totale Recette]])*(1-Cell_CRp10-Cell_CRp2-IF(OR(Option_MO="Globale",Option_MO="Par produit et globale"),Cell_CRp9,0))-Table_recettes[[#This Row],[CoutIng Recette]]-IF(OR(Option_MO="Par produit",Option_MO="Par produit et globale"),Table_recettes[[#This Row],[CoutRH Recette]],0),"") ->  | CB29: =IF(Table_recettes[[#This Row],[Type]]="Produit",((Table_recettes[[#This Row],[CA Total TTC Recette]]-Table_recettes[[#This Row],[TVA totale Recette]])*(1-Cell_CRp10-Cell_CRp2-Cell_CRp4-Cell_CRp5-Cell_CRp6-Cell_CRp7-IF(OR(Option_MO="Globale",Option_MO="Par produit et globale"),Cell_CRp9,0))-Table_recettes[[#This Row],[CoutIng Recette]]-IF(OR(Option_MO="Par produit",Option_MO="Par produit et globale"),Table_recettes[[#This Row],[CoutRH Recette]],0))*(1-Cell_CRp8),"") ->  | CC29: =IFERROR(IF(Table_recettes[[#This Row],[Type]]="Produit",Table_recettes[[#This Row],[Marge Brute Recette]]/Table_recettes[[#This Row],[Unités]],""),0) ->  | CD29: =IFERROR(IF(Table_recettes[[#This Row],[Type]]="Produit",Table_recettes[[#This Row],[Marge SCP Recette]]/Table_recettes[[#This Row],[Unités]],""),0) ->  | CE29: =IFERROR(IF(Table_recettes[[#This Row],[Type]]="Produit",Table_recettes[[#This Row],[Marge opérationnelle Recette]]/Table_recettes[[#This Row],[Unités]],""),0) ->  | CF29: =IFERROR(IF(Table_recettes[[#This Row],[Type]]="Produit",Table_recettes[[#This Row],[Marge Nette Recette]]/Table_recettes[[#This Row],[Unités]],""),0) ->  | CG29: =IFERROR(IF(Table_recettes[[#This Row],[Type]]="Produit",Table_recettes[[#This Row],[Marge Brute/U]]-Table_recettes[[#This Row],[Marge SCP/U]],""),0) ->  | CH29: =IF(Table_recettes[[#This Row],[Type]]="Produit",Table_recettes[[#This Row],[Marge SCP/U]]-Table_recettes[[#This Row],[Marge Nette/U]],"") ->  | CI29: =IFERROR(IF(Table_recettes[[#This Row],[Type]]="Produit",Table_recettes[[#This Row],[Marge Brute/U]]/(Table_recettes[[#This Row],[Prix/U]]-Table_recettes[[#This Row],[TVA/U]]),""),0) ->  | CJ29: =IFERROR(IF(Table_recettes[[#This Row],[Type]]="Produit",Table_recettes[[#This Row],[Marge SCP/U]]/(Table_recettes[[#This Row],[Prix/U]]-Table_recettes[[#This Row],[TVA/U]]),""),0) ->  | CK29: =IFERROR(IF(Table_recettes[[#This Row],[Type]]="Produit",Table_recettes[[#This Row],[Marge opérationnelle/U]]/(Table_recettes[[#This Row],[Prix/U]]-Table_recettes[[#This Row],[TVA/U]]),""),0) ->  | CL29: =IFERROR(IF(Table_recettes[[#This Row],[Type]]="Produit",Table_recettes[[#This Row],[Marge Nette/U]]/(Table_recettes[[#This Row],[Prix/U]]-Table_recettes[[#This Row],[TVA/U]]),""),0) -> 
C30: Appareil | D30: Appareil | E30: Appareil glaçage chocolat | F30: 1 | J30: Eau | K30: 4560 | L30: Sucre semoule | M30: 5520 | N30: Poudre de cacao | O30: 1440 | P30: Poudre de lait | Q30: 600 | AD30: Prorata poids de la fabrication des appareils | AE30: =FctDuree(ROW(Table_recettes[[#This Row],[D1]])) -> 0 | AF30: Préparer les ingrédients | AG30: 0.001388888889 | AH30: Equipe pâtisserie | AI30: Mélanger la poudre de lait à l'eau puis y verser le sucre. Porter à ébullition. Verser sur la poudre de cacao petit à petit. Mélanger. Mixer. Chinoiser. | AJ30: 0.004166666667 | AK30: Equipe pâtisserie | BG30: 2014-05-30 | BH30: 2014-05-03 | BI30: =(Table_recettes[[#This Row],[D1]]+Table_recettes[[#This Row],[D2]]+Table_recettes[[#This Row],[D3]]+Table_recettes[[#This Row],[D4]]+Table_recettes[[#This Row],[D5]]+Table_recettes[[#This Row],[D6]]+Table_recettes[[#This Row],[D7]]+Table_recettes[[#This Row],[D8]]+Table_recettes[[#This Row],[D9]]+Table_recettes[[#This Row],[D10]]) -> 0.005555555556 | BJ30: =Table_recettes[[#This Row],[Frequence]]*Table_recettes[[#This Row],[Unités]] -> 0 | BK30: =IFERROR(Table_recettes[[#This Row],[Duree]]/IF(Table_recettes[[#This Row],[Type]]="Produit",Table_recettes[[#This Row],[Unités]],Table_recettes[[#This Row],[Poids]]),0) -> 4.583791713e-07 | BL30: =IFERROR(IF(INDEX(Table_ing[Unité],MATCH(Table_recettes[[#This Row],[I1]],Table_ing[Ingredient],0))="g",Table_recettes[[#This Row],[Q1]],0),Table_recettes[[#This Row],[Q1]]) +IFERROR(IF(INDEX(Table_ing[Unité],MATCH(Table_recettes[[#This Row],[I2]],Table_ing[Ingredient],0))="g",Table_recettes[[#This Row],[Q2]],0),Table_recettes[[#This Row],[Q2]]) +IFERROR(IF(INDEX(Table_ing[Unité],MATCH(Table_recettes[[#This Row],[I3]],Table_ing[Ingredient],0))="g",Table_recettes[[#This Row],[Q3]],0),Table_recettes[[#This Row],[Q3]]) +IFERROR(IF(INDEX(Table_ing[Unité],MATCH(Table_recettes[[#This Row],[I4]],Table_ing[Ingredient],0))="g",Table_recettes[[#This Row],[Q4]],0),Table_recettes[[#This Row],[Q4]]) +IFERROR(IF(INDEX(Table_ing[Unité],MATCH(Table_recettes[[#This Row],[I5]],Table_ing[Ingredient],0))="g",Table_recettes[[#This Row],[Q5]],0),Table_recettes[[#This Row],[Q5]]) +IFERROR(IF(INDEX(Table_ing[Unité],MATCH(Table_recettes[[#This Row],[I6]],Table_ing[Ingredient],0))="g",Table_recettes[[#This Row],[Q6]],0),Table_recettes[[#This Row],[Q6]]) +IFERROR(IF(INDEX(Table_ing[Unité],MATCH(Table_recettes[[#This Row],[I7]],Table_ing[Ingredient],0))="g",Table_recettes[[#This Row],[Q7]],0),Table_recettes[[#This Row],[Q7]]) +IFERROR(IF(INDEX(Table_ing[Unité],MATCH(Table_recettes[[#This Row],[I8]],Table_ing[Ingredient],0))="g",Table_recettes[[#This Row],[Q8]],0),Table_recettes[[#This Row],[Q8]]) +IFERROR(IF(INDEX(Table_ing[Unité],MATCH(Table_recettes[[#This Row],[I9]],Table_ing[Ingredient],0))="g",Table_recettes[[#This Row],[Q9]],0),Table_recettes[[#This Row],[Q9]]) +IFERROR(IF(INDEX(Table_ing[Unité],MATCH(Table_recettes[[#This Row],[I10]],Table_ing[Ingredient],0))="g",Table_recettes[[#This Row],[Q10]],0),Table_recettes[[#This Row],[Q10]]) -> 12120 | BM30: =IFERROR(Table_recettes[[#This Row],[Poids]]/IF(Table_recettes[[#This Row],[Type]]="Produit",Table_recettes[[#This Row],[Unités]],1),0) -> 12120 | BN30: =Table_recettes[[#This Row],[CoutIng Recette]]*Table_recettes[[#This Row],[Frequence]] -> 16.7305464 | BO30: =IF(Table_recettes[[#This Row],[Q1]]>0,IFERROR(INDEX(Table_ing[Coût par unité],MATCH(Table_recettes[[#This Row],[I1]],Table_ing[Ingredient],0))*Table_recettes[[#This Row],[Q1]],INDEX(Table_recettes[CoutIng/U],MATCH(Table_recettes[[#This Row],[I1]],Table_recettes[Recette],0))*Table_recettes[[#This Row],[Q1]]),0) +IF(Table_recettes[[#This Row],[Q2]]>0,IFERROR(INDEX(Table_ing[Coût par unité],MATCH(Table_recettes[[#This Row],[I2]],Table_ing[Ingredient],0))*Table_recettes[[#This Row],[Q2]],INDEX(Table_recettes[CoutIng/U],MATCH(Table_recettes[[#This Row],[I2]],Table_recettes[Recette],0))*Table_recettes[[#This Row],[Q2]]),0) +IF(Table_recettes[[#This Row],[Q3]]>0,IFERROR(INDEX(Table_ing[Coût par unité],MATCH(Table_recettes[[#This Row],[I3]],Table_ing[Ingredient],0))*Table_recettes[[#This Row],[Q3]],INDEX(Table_recettes[CoutIng/U],MATCH(Table_recettes[[#This Row],[I3]],Table_recettes[Recette],0))*Table_recettes[[#This Row],[Q3]]),0) +IF(Table_recettes[[#This Row],[Q4]]>0,IFERROR(INDEX(Table_ing[Coût par unité],MATCH(Table_recettes[[#This Row],[I4]],Table_ing[Ingredient],0))*Table_recettes[[#This Row],[Q4]],INDEX(Table_recettes[CoutIng/U],MATCH(Table_recettes[[#This Row],[I4]],Table_recettes[Recette],0))*Table_recettes[[#This Row],[Q4]]),0) +IF(Table_recettes[[#This Row],[Q5]]>0,IFERROR(INDEX(Table_ing[Coût par unité],MATCH(Table_recettes[[#This Row],[I5]],Table_ing[Ingredient],0))*Table_recettes[[#This Row],[Q5]],INDEX(Table_recettes[CoutIng/U],MATCH(Table_recettes[[#This Row],[I5]],Table_recettes[Recette],0))*Table_recettes[[#This Row],[Q5]]),0) +IF(Table_recettes[[#This Row],[Q6]]>0,IFERROR(INDEX(Table_ing[Coût par unité],MATCH(Table_recettes[[#This Row],[I6]],Table_ing[Ingredient],0))*Table_recettes[[#This Row],[Q6]],INDEX(Table_recettes[CoutIng/U],MATCH(Table_recettes[[#This Row],[I6]],Table_recettes[Recette],0))*Table_recettes[[#This Row],[Q6]]),0) +IF(Table_recettes[[#This Row],[Q7]]>0,IFERROR(INDEX(Table_ing[Coût par unité],MATCH(Table_recettes[[#This Row],[I7]],Table_ing[Ingredient],0))*Table_recettes[[#This Row],[Q7]],INDEX(Table_recettes[CoutIng/U],MATCH(Table_recettes[[#This Row],[I7]],Table_recettes[Recette],0))*Table_recettes[[#This Row],[Q7]]),0) +IF(Table_recettes[[#This Row],[Q8]]>0,IFERROR(INDEX(Table_ing[Coût par unité],MATCH(Table_recettes[[#This Row],[I8]],Table_ing[Ingredient],0))*Table_recettes[[#This Row],[Q8]],INDEX(Table_recettes[CoutIng/U],MATCH(Table_recettes[[#This Row],[I8]],Table_recettes[Recette],0))*Table_recettes[[#This Row],[Q8]]),0) +IF(Table_recettes[[#This Row],[Q9]]>0,IFERROR(INDEX(Table_ing[Coût par unité],MATCH(Table_recettes[[#This Row],[I9]],Table_ing[Ingredient],0))*Table_recettes[[#This Row],[Q9]],INDEX(Table_recettes[CoutIng/U],MATCH(Table_recettes[[#This Row],[I9]],Table_recettes[Recette],0))*Table_recettes[[#This Row],[Q9]]),0) +IF(Table_recettes[[#This Row],[Q10]]>0,IFERROR(INDEX(Table_ing[Coût par unité],MATCH(Table_recettes[[#This Row],[I10]],Table_ing[Ingredient],0))*Table_recettes[[#This Row],[Q10]],INDEX(Table_recettes[CoutIng/U],MATCH(Table_recettes[[#This Row],[I10]],Table_recettes[Recette],0))*Table_recettes[[#This Row],[Q8]]),0) -> 16.7305464 | BP30: =IFERROR(Table_recettes[[#This Row],[CoutIng Recette]]/IF(Table_recettes[[#This Row],[Type]]="Produit",Table_recettes[[#This Row],[Unités]],Table_recettes[[#This Row],[Poids]]),0) -> 0.001380408119 | BQ30: =Table_recettes[[#This Row],[CoutRH Recette]]*Table_recettes[[#This Row],[Frequence]] -> 1.782564103 | BR30: =(IFERROR(INDEX(Table_CoutRH[Cout horaire],MATCH(Table_recettes[[#This Row],[RH2]],Table_CoutRH[Employé ou équipe],0))*Table_recettes[[#This Row],[D2]],0) +IFERROR(INDEX(Table_CoutRH[Cout horaire],MATCH(Table_recettes[[#This Row],[RH3]],Table_CoutRH[Employé ou équipe],0))*Table_recettes[[#This Row],[D3]],0) +IFERROR(INDEX(Table_CoutRH[Cout horaire],MATCH(Table_recettes[[#This Row],[RH4]],Table_CoutRH[Employé ou équipe],0))*Table_recettes[[#This Row],[D4]],0) +IFERROR(INDEX(Table_CoutRH[Cout horaire],MATCH(Table_recettes[[#This Row],[RH5]],Table_CoutRH[Employé ou équipe],0))*Table_recettes[[#This Row],[D5]],0) +IFERROR(INDEX(Table_CoutRH[Cout horaire],MATCH(Table_recettes[[#This Row],[RH6]],Table_CoutRH[Employé ou équipe],0))*Table_recettes[[#This Row],[D6]],0) +IFERROR(INDEX(Table_CoutRH[Cout horaire],MATCH(Table_recettes[[#This Row],[RH7]],Table_CoutRH[Employé ou équipe],0))*Table_recettes[[#This Row],[D7]],0) +IFERROR(INDEX(Table_CoutRH[Cout horaire],MATCH(Table_recettes[[#This Row],[RH8]],Table_CoutRH[Employé ou équipe],0))*Table_recettes[[#This Row],[D8]],0) +IFERROR(INDEX(Table_CoutRH[Cout horaire],MATCH(Table_recettes[[#This Row],[RH9]],Table_CoutRH[Employé ou équipe],0))*Table_recettes[[#This Row],[D9]],0) +IFERROR(INDEX(Table_CoutRH[Cout horaire],MATCH(Table_recettes[[#This Row],[RH10]],Table_CoutRH[Employé ou équipe],0))*Table_recettes[[#This Row],[D10]],0))*24 +FctCoutRH(ROW(Table_recettes[[#This Row],[CoutRH/U]])) -> 1.782564103 | BS30: =IFERROR(Table_recettes[[#This Row],[CoutRH Recette]]/IF(Table_recettes[[#This Row],[Type]]="Produit",Table_recettes[[#This Row],[Unités]],Table_recettes[[#This Row],[Poids]]),0) -> 0.0001470762461 | BT30: =IF(Table_recettes[[#This Row],[Type]]="Produit",Table_recettes[[#This Row],[CA Total TTC Recette]]*Table_recettes[[#This Row],[Frequence]],"") ->  | BU30: =IF(Table_recettes[[#This Row],[Type]]="Produit",Table_recettes[Unités]*Table_recettes[[#This Row],[Prix/U]],"") ->  | BV30: =IF(Table_recettes[[#This Row],[Type]]="Produit",Table_recettes[[#This Row],[TVA totale Recette]]*Table_recettes[[#This Row],[Frequence]],"") ->  | BW30: =IF(Table_recettes[[#This Row],[Type]]="Produit",Table_recettes[[#This Row],[CA Total TTC Recette]]*Table_recettes[[#This Row],[TVA applicable]]/(1+Table_recettes[[#This Row],[TVA applicable]]),"") ->  | BX30: =IF(Table_recettes[[#This Row],[Type]]="Produit",Table_recettes[[#This Row],[Prix/U]]*Table_recettes[[#This Row],[TVA applicable]]/(1+Table_recettes[[#This Row],[TVA applicable]]),"") ->  | BY30: =IF(Table_recettes[[#This Row],[Type]]="Produit",Table_recettes[[#This Row],[CA Total TTC Recette]]-Table_recettes[[#This Row],[TVA totale Recette]]-Table_recettes[[#This Row],[CoutIng Recette]],"") ->  | BZ30: =IF(Table_recettes[[#This Row],[Type]]="Produit",(Table_recettes[[#This Row],[CA Total TTC Recette]]-Table_recettes[[#This Row],[TVA totale Recette]])*(1-IF(OR(Option_MO="Globale",Option_MO="Par produit et globale"),Cell_CRp9,0))-Table_recettes[[#This Row],[CoutIng Recette]]-IF(OR(Option_MO="Par produit",Option_MO="Par produit et globale"),Table_recettes[[#This Row],[CoutRH Recette]],0),"") ->  | CA30: =IF(Table_recettes[[#This Row],[Type]]="Produit",(Table_recettes[[#This Row],[CA Total TTC Recette]]-Table_recettes[[#This Row],[TVA totale Recette]])*(1-Cell_CRp10-Cell_CRp2-IF(OR(Option_MO="Globale",Option_MO="Par produit et globale"),Cell_CRp9,0))-Table_recettes[[#This Row],[CoutIng Recette]]-IF(OR(Option_MO="Par produit",Option_MO="Par produit et globale"),Table_recettes[[#This Row],[CoutRH Recette]],0),"") ->  | CB30: =IF(Table_recettes[[#This Row],[Type]]="Produit",((Table_recettes[[#This Row],[CA Total TTC Recette]]-Table_recettes[[#This Row],[TVA totale Recette]])*(1-Cell_CRp10-Cell_CRp2-Cell_CRp4-Cell_CRp5-Cell_CRp6-Cell_CRp7-IF(OR(Option_MO="Globale",Option_MO="Par produit et globale"),Cell_CRp9,0))-Table_recettes[[#This Row],[CoutIng Recette]]-IF(OR(Option_MO="Par produit",Option_MO="Par produit et globale"),Table_recettes[[#This Row],[CoutRH Recette]],0))*(1-Cell_CRp8),"") ->  | CC30: =IFERROR(IF(Table_recettes[[#This Row],[Type]]="Produit",Table_recettes[[#This Row],[Marge Brute Recette]]/Table_recettes[[#This Row],[Unités]],""),0) ->  | CD30: =IFERROR(IF(Table_recettes[[#This Row],[Type]]="Produit",Table_recettes[[#This Row],[Marge SCP Recette]]/Table_recettes[[#This Row],[Unités]],""),0) ->  | CE30: =IFERROR(IF(Table_recettes[[#This Row],[Type]]="Produit",Table_recettes[[#This Row],[Marge opérationnelle Recette]]/Table_recettes[[#This Row],[Unités]],""),0) ->  | CF30: =IFERROR(IF(Table_recettes[[#This Row],[Type]]="Produit",Table_recettes[[#This Row],[Marge Nette Recette]]/Table_recettes[[#This Row],[Unités]],""),0) ->  | CG30: =IFERROR(IF(Table_recettes[[#This Row],[Type]]="Produit",Table_recettes[[#This Row],[Marge Brute/U]]-Table_recettes[[#This Row],[Marge SCP/U]],""),0) ->  | CH30: =IF(Table_recettes[[#This Row],[Type]]="Produit",Table_recettes[[#This Row],[Marge SCP/U]]-Table_recettes[[#This Row],[Marge Nette/U]],"") ->  | CI30: =IFERROR(IF(Table_recettes[[#This Row],[Type]]="Produit",Table_recettes[[#This Row],[Marge Brute/U]]/(Table_recettes[[#This Row],[Prix/U]]-Table_recettes[[#This Row],[TVA/U]]),""),0) ->  | CJ30: =IFERROR(IF(Table_recettes[[#This Row],[Type]]="Produit",Table_recettes[[#This Row],[Marge SCP/U]]/(Table_recettes[[#This Row],[Prix/U]]-Table_recettes[[#This Row],[TVA/U]]),""),0) ->  | CK30: =IFERROR(IF(Table_recettes[[#This Row],[Type]]="Produit",Table_recettes[[#This Row],[Marge opérationnelle/U]]/(Table_recettes[[#This Row],[Prix/U]]-Table_recettes[[#This Row],[TVA/U]]),""),0) ->  | CL30: =IFERROR(IF(Table_recettes[[#This Row],[Type]]="Produit",Table_recettes[[#This Row],[Marge Nette/U]]/(Table_recettes[[#This Row],[Prix/U]]-Table_recettes[[#This Row],[TVA/U]]),""),0) -> 
C31: Produit | D31: Pains | E31: Baguette | F31: 7 | G31: 252 | H31: 0.85 | I31: 0.055 | J31: Pâte baguette blanche | K31: 88200 | AD31: Prorata poids de la fabrication des appareils | AE31: =FctDuree(ROW(Table_recettes[[#This Row],[D1]])) -> 0.01237373737 | AF31: Façonner en baguettes | AG31: 0.03472222222 | AH31: Equipe boulangerie | AI31: Enfourner, cuire 7 minutes puis défourner | AJ31: 0.03472222222 | AK31: Equipe boulangerie | BG31: 2014-06-09 | BH31: 2014-05-03 | BI31: =(Table_recettes[[#This Row],[D1]]+Table_recettes[[#This Row],[D2]]+Table_recettes[[#This Row],[D3]]+Table_recettes[[#This Row],[D4]]+Table_recettes[[#This Row],[D5]]+Table_recettes[[#This Row],[D6]]+Table_recettes[[#This Row],[D7]]+Table_recettes[[#This Row],[D8]]+Table_recettes[[#This Row],[D9]]+Table_recettes[[#This Row],[D10]]) -> 0.08181818182 | BJ31: =Table_recettes[[#This Row],[Frequence]]*Table_recettes[[#This Row],[Unités]] -> 1764 | BK31: =IFERROR(Table_recettes[[#This Row],[Duree]]/IF(Table_recettes[[#This Row],[Type]]="Produit",Table_recettes[[#This Row],[Unités]],Table_recettes[[#This Row],[Poids]]),0) -> 0.0003246753247 | BL31: =IFERROR(IF(INDEX(Table_ing[Unité],MATCH(Table_recettes[[#This Row],[I1]],Table_ing[Ingredient],0))="g",Table_recettes[[#This Row],[Q1]],0),Table_recettes[[#This Row],[Q1]]) +IFERROR(IF(INDEX(Table_ing[Unité],MATCH(Table_recettes[[#This Row],[I2]],Table_ing[Ingredient],0))="g",Table_recettes[[#This Row],[Q2]],0),Table_recettes[[#This Row],[Q2]]) +IFERROR(IF(INDEX(Table_ing[Unité],MATCH(Table_recettes[[#This Row],[I3]],Table_ing[Ingredient],0))="g",Table_recettes[[#This Row],[Q3]],0),Table_recettes[[#This Row],[Q3]]) +IFERROR(IF(INDEX(Table_ing[Unité],MATCH(Table_recettes[[#This Row],[I4]],Table_ing[Ingredient],0))="g",Table_recettes[[#This Row],[Q4]],0),Table_recettes[[#This Row],[Q4]]) +IFERROR(IF(INDEX(Table_ing[Unité],MATCH(Table_recettes[[#This Row],[I5]],Table_ing[Ingredient],0))="g",Table_recettes[[#This Row],[Q5]],0),Table_recettes[[#This Row],[Q5]]) +IFERROR(IF(INDEX(Table_ing[Unité],MATCH(Table_recettes[[#This Row],[I6]],Table_ing[Ingredient],0))="g",Table_recettes[[#This Row],[Q6]],0),Table_recettes[[#This Row],[Q6]]) +IFERROR(IF(INDEX(Table_ing[Unité],MATCH(Table_recettes[[#This Row],[I7]],Table_ing[Ingredient],0))="g",Table_recettes[[#This Row],[Q7]],0),Table_recettes[[#This Row],[Q7]]) +IFERROR(IF(INDEX(Table_ing[Unité],MATCH(Table_recettes[[#This Row],[I8]],Table_ing[Ingredient],0))="g",Table_recettes[[#This Row],[Q8]],0),Table_recettes[[#This Row],[Q8]]) +IFERROR(IF(INDEX(Table_ing[Unité],MATCH(Table_recettes[[#This Row],[I9]],Table_ing[Ingredient],0))="g",Table_recettes[[#This Row],[Q9]],0),Table_recettes[[#This Row],[Q9]]) +IFERROR(IF(INDEX(Table_ing[Unité],MATCH(Table_recettes[[#This Row],[I10]],Table_ing[Ingredient],0))="g",Table_recettes[[#This Row],[Q10]],0),Table_recettes[[#This Row],[Q10]]) -> 88200 | BM31: =IFERROR(Table_recettes[[#This Row],[Poids]]/IF(Table_recettes[[#This Row],[Type]]="Produit",Table_recettes[[#This Row],[Unités]],1),0) -> 350 | BN31: =Table_recettes[[#This Row],[CoutIng Recette]]*Table_recettes[[#This Row],[Frequence]] -> 221.2513705 | BO31: =IF(Table_recettes[[#This Row],[Q1]]>0,IFERROR(INDEX(Table_ing[Coût par unité],MATCH(Table_recettes[[#This Row],[I1]],Table_ing[Ingredient],0))*Table_recettes[[#This Row],[Q1]],INDEX(Table_recettes[CoutIng/U],MATCH(Table_recettes[[#This Row],[I1]],Table_recettes[Recette],0))*Table_recettes[[#This Row],[Q1]]),0) +IF(Table_recettes[[#This Row],[Q2]]>0,IFERROR(INDEX(Table_ing[Coût par unité],MATCH(Table_recettes[[#This Row],[I2]],Table_ing[Ingredient],0))*Table_recettes[[#This Row],[Q2]],INDEX(Table_recettes[CoutIng/U],MATCH(Table_recettes[[#This Row],[I2]],Table_recettes[Recette],0))*Table_recettes[[#This Row],[Q2]]),0) +IF(Table_recettes[[#This Row],[Q3]]>0,IFERROR(INDEX(Table_ing[Coût par unité],MATCH(Table_recettes[[#This Row],[I3]],Table_ing[Ingredient],0))*Table_recettes[[#This Row],[Q3]],INDEX(Table_recettes[CoutIng/U],MATCH(Table_recettes[[#This Row],[I3]],Table_recettes[Recette],0))*Table_recettes[[#This Row],[Q3]]),0) +IF(Table_recettes[[#This Row],[Q4]]>0,IFERROR(INDEX(Table_ing[Coût par unité],MATCH(Table_recettes[[#This Row],[I4]],Table_ing[Ingredient],0))*Table_recettes[[#This Row],[Q4]],INDEX(Table_recettes[CoutIng/U],MATCH(Table_recettes[[#This Row],[I4]],Table_recettes[Recette],0))*Table_recettes[[#This Row],[Q4]]),0) +IF(Table_recettes[[#This Row],[Q5]]>0,IFERROR(INDEX(Table_ing[Coût par unité],MATCH(Table_recettes[[#This Row],[I5]],Table_ing[Ingredient],0))*Table_recettes[[#This Row],[Q5]],INDEX(Table_recettes[CoutIng/U],MATCH(Table_recettes[[#This Row],[I5]],Table_recettes[Recette],0))*Table_recettes[[#This Row],[Q5]]),0) +IF(Table_recettes[[#This Row],[Q6]]>0,IFERROR(INDEX(Table_ing[Coût par unité],MATCH(Table_recettes[[#This Row],[I6]],Table_ing[Ingredient],0))*Table_recettes[[#This Row],[Q6]],INDEX(Table_recettes[CoutIng/U],MATCH(Table_recettes[[#This Row],[I6]],Table_recettes[Recette],0))*Table_recettes[[#This Row],[Q6]]),0) +IF(Table_recettes[[#This Row],[Q7]]>0,IFERROR(INDEX(Table_ing[Coût par unité],MATCH(Table_recettes[[#This Row],[I7]],Table_ing[Ingredient],0))*Table_recettes[[#This Row],[Q7]],INDEX(Table_recettes[CoutIng/U],MATCH(Table_recettes[[#This Row],[I7]],Table_recettes[Recette],0))*Table_recettes[[#This Row],[Q7]]),0) +IF(Table_recettes[[#This Row],[Q8]]>0,IFERROR(INDEX(Table_ing[Coût par unité],MATCH(Table_recettes[[#This Row],[I8]],Table_ing[Ingredient],0))*Table_recettes[[#This Row],[Q8]],INDEX(Table_recettes[CoutIng/U],MATCH(Table_recettes[[#This Row],[I8]],Table_recettes[Recette],0))*Table_recettes[[#This Row],[Q8]]),0) +IF(Table_recettes[[#This Row],[Q9]]>0,IFERROR(INDEX(Table_ing[Coût par unité],MATCH(Table_recettes[[#This Row],[I9]],Table_ing[Ingredient],0))*Table_recettes[[#This Row],[Q9]],INDEX(Table_recettes[CoutIng/U],MATCH(Table_recettes[[#This Row],[I9]],Table_recettes[Recette],0))*Table_recettes[[#This Row],[Q9]]),0) +IF(Table_recettes[[#This Row],[Q10]]>0,IFERROR(INDEX(Table_ing[Coût par unité],MATCH(Table_recettes[[#This Row],[I10]],Table_ing[Ingredient],0))*Table_recettes[[#This Row],[Q10]],INDEX(Table_recettes[CoutIng/U],MATCH(Table_recettes[[#This Row],[I10]],Table_recettes[Recette],0))*Table_recettes[[#This Row],[Q8]]),0) -> 31.60733864 | BP31: =IFERROR(Table_recettes[[#This Row],[CoutIng Recette]]/IF(Table_recettes[[#This Row],[Type]]="Produit",Table_recettes[[#This Row],[Unités]],Table_recettes[[#This Row],[Poids]]),0) -> 0.125425947 | BQ31: =Table_recettes[[#This Row],[CoutRH Recette]]*Table_recettes[[#This Row],[Frequence]] -> 155.3659301 | BR31: =(IFERROR(INDEX(Table_CoutRH[Cout horaire],MATCH(Table_recettes[[#This Row],[RH2]],Table_CoutRH[Employé ou équipe],0))*Table_recettes[[#This Row],[D2]],0) +IFERROR(INDEX(Table_CoutRH[Cout horaire],MATCH(Table_recettes[[#This Row],[RH3]],Table_CoutRH[Employé ou équipe],0))*Table_recettes[[#This Row],[D3]],0) +IFERROR(INDEX(Table_CoutRH[Cout horaire],MATCH(Table_recettes[[#This Row],[RH4]],Table_CoutRH[Employé ou équipe],0))*Table_recettes[[#This Row],[D4]],0) +IFERROR(INDEX(Table_CoutRH[Cout horaire],MATCH(Table_recettes[[#This Row],[RH5]],Table_CoutRH[Employé ou équipe],0))*Table_recettes[[#This Row],[D5]],0) +IFERROR(INDEX(Table_CoutRH[Cout horaire],MATCH(Table_recettes[[#This Row],[RH6]],Table_CoutRH[Employé ou équipe],0))*Table_recettes[[#This Row],[D6]],0) +IFERROR(INDEX(Table_CoutRH[Cout horaire],MATCH(Table_recettes[[#This Row],[RH7]],Table_CoutRH[Employé ou équipe],0))*Table_recettes[[#This Row],[D7]],0) +IFERROR(INDEX(Table_CoutRH[Cout horaire],MATCH(Table_recettes[[#This Row],[RH8]],Table_CoutRH[Employé ou équipe],0))*Table_recettes[[#This Row],[D8]],0) +IFERROR(INDEX(Table_CoutRH[Cout horaire],MATCH(Table_recettes[[#This Row],[RH9]],Table_CoutRH[Employé ou équipe],0))*Table_recettes[[#This Row],[D9]],0) +IFERROR(INDEX(Table_CoutRH[Cout horaire],MATCH(Table_recettes[[#This Row],[RH10]],Table_CoutRH[Employé ou équipe],0))*Table_recettes[[#This Row],[D10]],0))*24 +FctCoutRH(ROW(Table_recettes[[#This Row],[CoutRH/U]])) -> 22.19513287 | BS31: =IFERROR(Table_recettes[[#This Row],[CoutRH Recette]]/IF(Table_recettes[[#This Row],[Type]]="Produit",Table_recettes[[#This Row],[Unités]],Table_recettes[[#This Row],[Poids]]),0) -> 0.08807592408 | BT31: =IF(Table_recettes[[#This Row],[Type]]="Produit",Table_recettes[[#This Row],[CA Total TTC Recette]]*Table_recettes[[#This Row],[Frequence]],"") -> 1499.4 | BU31: =IF(Table_recettes[[#This Row],[Type]]="Produit",Table_recettes[Unités]*Table_recettes[[#This Row],[Prix/U]],"") -> 214.2 | BV31: =IF(Table_recettes[[#This Row],[Type]]="Produit",Table_recettes[[#This Row],[TVA totale Recette]]*Table_recettes[[#This Row],[Frequence]],"") -> 78.16777251 | BW31: =IF(Table_recettes[[#This Row],[Type]]="Produit",Table_recettes[[#This Row],[CA Total TTC Recette]]*Table_recettes[[#This Row],[TVA applicable]]/(1+Table_recettes[[#This Row],[TVA applicable]]),"") -> 11.16682464 | BX31: =IF(Table_recettes[[#This Row],[Type]]="Produit",Table_recettes[[#This Row],[Prix/U]]*Table_recettes[[#This Row],[TVA applicable]]/(1+Table_recettes[[#This Row],[TVA applicable]]),"") -> 0.04431279621 | BY31: =IF(Table_recettes[[#This Row],[Type]]="Produit",Table_recettes[[#This Row],[CA Total TTC Recette]]-Table_recettes[[#This Row],[TVA totale Recette]]-Table_recettes[[#This Row],[CoutIng Recette]],"") -> 171.4258367 | BZ31: =IF(Table_recettes[[#This Row],[Type]]="Produit",(Table_recettes[[#This Row],[CA Total TTC Recette]]-Table_recettes[[#This Row],[TVA totale Recette]])*(1-IF(OR(Option_MO="Globale",Option_MO="Par produit et globale"),Cell_CRp9,0))-Table_recettes[[#This Row],[CoutIng Recette]]-IF(OR(Option_MO="Par produit",Option_MO="Par produit et globale"),Table_recettes[[#This Row],[CoutRH Recette]],0),"") -> 127.617302 | CA31: =IF(Table_recettes[[#This Row],[Type]]="Produit",(Table_recettes[[#This Row],[CA Total TTC Recette]]-Table_recettes[[#This Row],[TVA totale Recette]])*(1-Cell_CRp10-Cell_CRp2-IF(OR(Option_MO="Globale",Option_MO="Par produit et globale"),Cell_CRp9,0))-Table_recettes[[#This Row],[CoutIng Recette]]-IF(OR(Option_MO="Par produit",Option_MO="Par produit et globale"),Table_recettes[[#This Row],[CoutRH Recette]],0),"") -> 68.73768111 | CB31: =IF(Table_recettes[[#This Row],[Type]]="Produit",((Table_recettes[[#This Row],[CA Total TTC Recette]]-Table_recettes[[#This Row],[TVA totale Recette]])*(1-Cell_CRp10-Cell_CRp2-Cell_CRp4-Cell_CRp5-Cell_CRp6-Cell_CRp7-IF(OR(Option_MO="Globale",Option_MO="Par produit et globale"),Cell_CRp9,0))-Table_recettes[[#This Row],[CoutIng Recette]]-IF(OR(Option_MO="Par produit",Option_MO="Par produit et globale"),Table_recettes[[#This Row],[CoutRH Recette]],0))*(1-Cell_CRp8),"") -> 39.12998616 | CC31: =IFERROR(IF(Table_recettes[[#This Row],[Type]]="Produit",Table_recettes[[#This Row],[Marge Brute Recette]]/Table_recettes[[#This Row],[Unités]],""),0) -> 0.6802612568 | CD31: =IFERROR(IF(Table_recettes[[#This Row],[Type]]="Produit",Table_recettes[[#This Row],[Marge SCP Recette]]/Table_recettes[[#This Row],[Unités]],""),0) -> 0.5064178649 | CE31: =IFERROR(IF(Table_recettes[[#This Row],[Type]]="Produit",Table_recettes[[#This Row],[Marge opérationnelle Recette]]/Table_recettes[[#This Row],[Unités]],""),0) -> 0.2727685758 | CF31: =IFERROR(IF(Table_recettes[[#This Row],[Type]]="Produit",Table_recettes[[#This Row],[Marge Nette Recette]]/Table_recettes[[#This Row],[Unités]],""),0) -> 0.1552777229 | CG31: =IFERROR(IF(Table_recettes[[#This Row],[Type]]="Produit",Table_recettes[[#This Row],[Marge Brute/U]]-Table_recettes[[#This Row],[Marge SCP/U]],""),0) -> 0.1738433919 | CH31: =IF(Table_recettes[[#This Row],[Type]]="Produit",Table_recettes[[#This Row],[Marge SCP/U]]-Table_recettes[[#This Row],[Marge Nette/U]],"") -> 0.3511401421 | CI31: =IFERROR(IF(Table_recettes[[#This Row],[Type]]="Produit",Table_recettes[[#This Row],[Marge Brute/U]]/(Table_recettes[[#This Row],[Prix/U]]-Table_recettes[[#This Row],[TVA/U]]),""),0) -> 0.8443242658 | CJ31: =IFERROR(IF(Table_recettes[[#This Row],[Type]]="Produit",Table_recettes[[#This Row],[Marge SCP/U]]/(Table_recettes[[#This Row],[Prix/U]]-Table_recettes[[#This Row],[TVA/U]]),""),0) -> 0.6285539382 | CK31: =IFERROR(IF(Table_recettes[[#This Row],[Type]]="Produit",Table_recettes[[#This Row],[Marge opérationnelle/U]]/(Table_recettes[[#This Row],[Prix/U]]-Table_recettes[[#This Row],[TVA/U]]),""),0) -> 0.3385539382 | CL31: =IFERROR(IF(Table_recettes[[#This Row],[Type]]="Produit",Table_recettes[[#This Row],[Marge Nette/U]]/(Table_recettes[[#This Row],[Prix/U]]-Table_recettes[[#This Row],[TVA/U]]),""),0) -> 0.192727056
C32: Produit | D32: Pains spéciaux | E32: Baguette sésame | F32: 6 | G32: 5 | H32: 1.3 | I32: 0.055 | J32: Pâte tradition | K32: 1750 | L32: Graines de sésame | M32: 50 | AD32: Prorata poids de la fabrication des appareils | AE32: =FctDuree(ROW(Table_recettes[[#This Row],[D1]])) -> 0.0006920983483 | AF32: Façonner en baguettes | AG32: 0.005555555556 | AH32: Equipe boulangerie | AI32: Enfourner, cuire 7 minutes puis défourner | AJ32: 0.005555555556 | AK32: Equipe boulangerie | BG32: 2014-06-08 | BH32: 2014-05-03 | BI32: =(Table_recettes[[#This Row],[D1]]+Table_recettes[[#This Row],[D2]]+Table_recettes[[#This Row],[D3]]+Table_recettes[[#This Row],[D4]]+Table_recettes[[#This Row],[D5]]+Table_recettes[[#This Row],[D6]]+Table_recettes[[#This Row],[D7]]+Table_recettes[[#This Row],[D8]]+Table_recettes[[#This Row],[D9]]+Table_recettes[[#This Row],[D10]]) -> 0.01180320946 | BJ32: =Table_recettes[[#This Row],[Frequence]]*Table_recettes[[#This Row],[Unités]] -> 30 | BK32: =IFERROR(Table_recettes[[#This Row],[Duree]]/IF(Table_recettes[[#This Row],[Type]]="Produit",Table_recettes[[#This Row],[Unités]],Table_recettes[[#This Row],[Poids]]),0) -> 0.002360641892 | BL32: =IFERROR(IF(INDEX(Table_ing[Unité],MATCH(Table_recettes[[#This Row],[I1]],Table_ing[Ingredient],0))="g",Table_recettes[[#This Row],[Q1]],0),Table_recettes[[#This Row],[Q1]]) +IFERROR(IF(INDEX(Table_ing[Unité],MATCH(Table_recettes[[#This Row],[I2]],Table_ing[Ingredient],0))="g",Table_recettes[[#This Row],[Q2]],0),Table_recettes[[#This Row],[Q2]]) +IFERROR(IF(INDEX(Table_ing[Unité],MATCH(Table_recettes[[#This Row],[I3]],Table_ing[Ingredient],0))="g",Table_recettes[[#This Row],[Q3]],0),Table_recettes[[#This Row],[Q3]]) +IFERROR(IF(INDEX(Table_ing[Unité],MATCH(Table_recettes[[#This Row],[I4]],Table_ing[Ingredient],0))="g",Table_recettes[[#This Row],[Q4]],0),Table_recettes[[#This Row],[Q4]]) +IFERROR(IF(INDEX(Table_ing[Unité],MATCH(Table_recettes[[#This Row],[I5]],Table_ing[Ingredient],0))="g",Table_recettes[[#This Row],[Q5]],0),Table_recettes[[#This Row],[Q5]]) +IFERROR(IF(INDEX(Table_ing[Unité],MATCH(Table_recettes[[#This Row],[I6]],Table_ing[Ingredient],0))="g",Table_recettes[[#This Row],[Q6]],0),Table_recettes[[#This Row],[Q6]]) +IFERROR(IF(INDEX(Table_ing[Unité],MATCH(Table_recettes[[#This Row],[I7]],Table_ing[Ingredient],0))="g",Table_recettes[[#This Row],[Q7]],0),Table_recettes[[#This Row],[Q7]]) +IFERROR(IF(INDEX(Table_ing[Unité],MATCH(Table_recettes[[#This Row],[I8]],Table_ing[Ingredient],0))="g",Table_recettes[[#This Row],[Q8]],0),Table_recettes[[#This Row],[Q8]]) +IFERROR(IF(INDEX(Table_ing[Unité],MATCH(Table_recettes[[#This Row],[I9]],Table_ing[Ingredient],0))="g",Table_recettes[[#This Row],[Q9]],0),Table_recettes[[#This Row],[Q9]]) +IFERROR(IF(INDEX(Table_ing[Unité],MATCH(Table_recettes[[#This Row],[I10]],Table_ing[Ingredient],0))="g",Table_recettes[[#This Row],[Q10]],0),Table_recettes[[#This Row],[Q10]]) -> 1800 | BM32: =IFERROR(Table_recettes[[#This Row],[Poids]]/IF(Table_recettes[[#This Row],[Type]]="Produit",Table_recettes[[#This Row],[Unités]],1),0) -> 360 | BN32: =Table_recettes[[#This Row],[CoutIng Recette]]*Table_recettes[[#This Row],[Frequence]] -> 4.735984459 | BO32: =IF(Table_recettes[[#This Row],[Q1]]>0,IFERROR(INDEX(Table_ing[Coût par unité],MATCH(Table_recettes[[#This Row],[I1]],Table_ing[Ingredient],0))*Table_recettes[[#This Row],[Q1]],INDEX(Table_recettes[CoutIng/U],MATCH(Table_recettes[[#This Row],[I1]],Table_recettes[Recette],0))*Table_recettes[[#This Row],[Q1]]),0) +IF(Table_recettes[[#This Row],[Q2]]>0,IFERROR(INDEX(Table_ing[Coût par unité],MATCH(Table_recettes[[#This Row],[I2]],Table_ing[Ingredient],0))*Table_recettes[[#This Row],[Q2]],INDEX(Table_recettes[CoutIng/U],MATCH(Table_recettes[[#This Row],[I2]],Table_recettes[Recette],0))*Table_recettes[[#This Row],[Q2]]),0) +IF(Table_recettes[[#This Row],[Q3]]>0,IFERROR(INDEX(Table_ing[Coût par unité],MATCH(Table_recettes[[#This Row],[I3]],Table_ing[Ingredient],0))*Table_recettes[[#This Row],[Q3]],INDEX(Table_recettes[CoutIng/U],MATCH(Table_recettes[[#This Row],[I3]],Table_recettes[Recette],0))*Table_recettes[[#This Row],[Q3]]),0) +IF(Table_recettes[[#This Row],[Q4]]>0,IFERROR(INDEX(Table_ing[Coût par unité],MATCH(Table_recettes[[#This Row],[I4]],Table_ing[Ingredient],0))*Table_recettes[[#This Row],[Q4]],INDEX(Table_recettes[CoutIng/U],MATCH(Table_recettes[[#This Row],[I4]],Table_recettes[Recette],0))*Table_recettes[[#This Row],[Q4]]),0) +IF(Table_recettes[[#This Row],[Q5]]>0,IFERROR(INDEX(Table_ing[Coût par unité],MATCH(Table_recettes[[#This Row],[I5]],Table_ing[Ingredient],0))*Table_recettes[[#This Row],[Q5]],INDEX(Table_recettes[CoutIng/U],MATCH(Table_recettes[[#This Row],[I5]],Table_recettes[Recette],0))*Table_recettes[[#This Row],[Q5]]),0) +IF(Table_recettes[[#This Row],[Q6]]>0,IFERROR(INDEX(Table_ing[Coût par unité],MATCH(Table_recettes[[#This Row],[I6]],Table_ing[Ingredient],0))*Table_recettes[[#This Row],[Q6]],INDEX(Table_recettes[CoutIng/U],MATCH(Table_recettes[[#This Row],[I6]],Table_recettes[Recette],0))*Table_recettes[[#This Row],[Q6]]),0) +IF(Table_recettes[[#This Row],[Q7]]>0,IFERROR(INDEX(Table_ing[Coût par unité],MATCH(Table_recettes[[#This Row],[I7]],Table_ing[Ingredient],0))*Table_recettes[[#This Row],[Q7]],INDEX(Table_recettes[CoutIng/U],MATCH(Table_recettes[[#This Row],[I7]],Table_recettes[Recette],0))*Table_recettes[[#This Row],[Q7]]),0) +IF(Table_recettes[[#This Row],[Q8]]>0,IFERROR(INDEX(Table_ing[Coût par unité],MATCH(Table_recettes[[#This Row],[I8]],Table_ing[Ingredient],0))*Table_recettes[[#This Row],[Q8]],INDEX(Table_recettes[CoutIng/U],MATCH(Table_recettes[[#This Row],[I8]],Table_recettes[Recette],0))*Table_recettes[[#This Row],[Q8]]),0) +IF(Table_recettes[[#This Row],[Q9]]>0,IFERROR(INDEX(Table_ing[Coût par unité],MATCH(Table_recettes[[#This Row],[I9]],Table_ing[Ingredient],0))*Table_recettes[[#This Row],[Q9]],INDEX(Table_recettes[CoutIng/U],MATCH(Table_recettes[[#This Row],[I9]],Table_recettes[Recette],0))*Table_recettes[[#This Row],[Q9]]),0) +IF(Table_recettes[[#This Row],[Q10]]>0,IFERROR(INDEX(Table_ing[Coût par unité],MATCH(Table_recettes[[#This Row],[I10]],Table_ing[Ingredient],0))*Table_recettes[[#This Row],[Q10]],INDEX(Table_recettes[CoutIng/U],MATCH(Table_recettes[[#This Row],[I10]],Table_recettes[Recette],0))*Table_recettes[[#This Row],[Q8]]),0) -> 0.7893307432 | BP32: =IFERROR(Table_recettes[[#This Row],[CoutIng Recette]]/IF(Table_recettes[[#This Row],[Type]]="Produit",Table_recettes[[#This Row],[Unités]],Table_recettes[[#This Row],[Poids]]),0) -> 0.1578661486 | BQ32: =Table_recettes[[#This Row],[CoutRH Recette]]*Table_recettes[[#This Row],[Frequence]] -> 19.21141216 | BR32: =(IFERROR(INDEX(Table_CoutRH[Cout horaire],MATCH(Table_recettes[[#This Row],[RH2]],Table_CoutRH[Employé ou équipe],0))*Table_recettes[[#This Row],[D2]],0) +IFERROR(INDEX(Table_CoutRH[Cout horaire],MATCH(Table_recettes[[#This Row],[RH3]],Table_CoutRH[Employé ou équipe],0))*Table_recettes[[#This Row],[D3]],0) +IFERROR(INDEX(Table_CoutRH[Cout horaire],MATCH(Table_recettes[[#This Row],[RH4]],Table_CoutRH[Employé ou équipe],0))*Table_recettes[[#This Row],[D4]],0) +IFERROR(INDEX(Table_CoutRH[Cout horaire],MATCH(Table_recettes[[#This Row],[RH5]],Table_CoutRH[Employé ou équipe],0))*Table_recettes[[#This Row],[D5]],0) +IFERROR(INDEX(Table_CoutRH[Cout horaire],MATCH(Table_recettes[[#This Row],[RH6]],Table_CoutRH[Employé ou équipe],0))*Table_recettes[[#This Row],[D6]],0) +IFERROR(INDEX(Table_CoutRH[Cout horaire],MATCH(Table_recettes[[#This Row],[RH7]],Table_CoutRH[Employé ou équipe],0))*Table_recettes[[#This Row],[D7]],0) +IFERROR(INDEX(Table_CoutRH[Cout horaire],MATCH(Table_recettes[[#This Row],[RH8]],Table_CoutRH[Employé ou équipe],0))*Table_recettes[[#This Row],[D8]],0) +IFERROR(INDEX(Table_CoutRH[Cout horaire],MATCH(Table_recettes[[#This Row],[RH9]],Table_CoutRH[Employé ou équipe],0))*Table_recettes[[#This Row],[D9]],0) +IFERROR(INDEX(Table_CoutRH[Cout horaire],MATCH(Table_recettes[[#This Row],[RH10]],Table_CoutRH[Employé ou équipe],0))*Table_recettes[[#This Row],[D10]],0))*24 +FctCoutRH(ROW(Table_recettes[[#This Row],[CoutRH/U]])) -> 3.201902027 | BS32: =IFERROR(Table_recettes[[#This Row],[CoutRH Recette]]/IF(Table_recettes[[#This Row],[Type]]="Produit",Table_recettes[[#This Row],[Unités]],Table_recettes[[#This Row],[Poids]]),0) -> 0.6403804054 | BT32: =IF(Table_recettes[[#This Row],[Type]]="Produit",Table_recettes[[#This Row],[CA Total TTC Recette]]*Table_recettes[[#This Row],[Frequence]],"") -> 39 | BU32: =IF(Table_recettes[[#This Row],[Type]]="Produit",Table_recettes[Unités]*Table_recettes[[#This Row],[Prix/U]],"") -> 6.5 | BV32: =IF(Table_recettes[[#This Row],[Type]]="Produit",Table_recettes[[#This Row],[TVA totale Recette]]*Table_recettes[[#This Row],[Frequence]],"") -> 2.033175355 | BW32: =IF(Table_recettes[[#This Row],[Type]]="Produit",Table_recettes[[#This Row],[CA Total TTC Recette]]*Table_recettes[[#This Row],[TVA applicable]]/(1+Table_recettes[[#This Row],[TVA applicable]]),"") -> 0.3388625592 | BX32: =IF(Table_recettes[[#This Row],[Type]]="Produit",Table_recettes[[#This Row],[Prix/U]]*Table_recettes[[#This Row],[TVA applicable]]/(1+Table_recettes[[#This Row],[TVA applicable]]),"") -> 0.06777251185 | BY32: =IF(Table_recettes[[#This Row],[Type]]="Produit",Table_recettes[[#This Row],[CA Total TTC Recette]]-Table_recettes[[#This Row],[TVA totale Recette]]-Table_recettes[[#This Row],[CoutIng Recette]],"") -> 5.371806698 | BZ32: =IF(Table_recettes[[#This Row],[Type]]="Produit",(Table_recettes[[#This Row],[CA Total TTC Recette]]-Table_recettes[[#This Row],[TVA totale Recette]])*(1-IF(OR(Option_MO="Globale",Option_MO="Par produit et globale"),Cell_CRp9,0))-Table_recettes[[#This Row],[CoutIng Recette]]-IF(OR(Option_MO="Par produit",Option_MO="Par produit et globale"),Table_recettes[[#This Row],[CoutRH Recette]],0),"") -> 1.514035799 | CA32: =IF(Table_recettes[[#This Row],[Type]]="Produit",(Table_recettes[[#This Row],[CA Total TTC Recette]]-Table_recettes[[#This Row],[TVA totale Recette]])*(1-Cell_CRp10-Cell_CRp2-IF(OR(Option_MO="Globale",Option_MO="Par produit et globale"),Cell_CRp9,0))-Table_recettes[[#This Row],[CoutIng Recette]]-IF(OR(Option_MO="Par produit",Option_MO="Par produit et globale"),Table_recettes[[#This Row],[CoutRH Recette]],0),"") -> -0.2726940588 | CB32: =IF(Table_recettes[[#This Row],[Type]]="Produit",((Table_recettes[[#This Row],[CA Total TTC Recette]]-Table_recettes[[#This Row],[TVA totale Recette]])*(1-Cell_CRp10-Cell_CRp2-Cell_CRp4-Cell_CRp5-Cell_CRp6-Cell_CRp7-IF(OR(Option_MO="Globale",Option_MO="Par produit et globale"),Cell_CRp9,0))-Table_recettes[[#This Row],[CoutIng Recette]]-IF(OR(Option_MO="Par produit",Option_MO="Par produit et globale"),Table_recettes[[#This Row],[CoutRH Recette]],0))*(1-Cell_CRp8),"") -> -0.4503197276 | CC32: =IFERROR(IF(Table_recettes[[#This Row],[Type]]="Produit",Table_recettes[[#This Row],[Marge Brute Recette]]/Table_recettes[[#This Row],[Unités]],""),0) -> 1.07436134 | CD32: =IFERROR(IF(Table_recettes[[#This Row],[Type]]="Produit",Table_recettes[[#This Row],[Marge SCP Recette]]/Table_recettes[[#This Row],[Unités]],""),0) -> 0.3028071598 | CE32: =IFERROR(IF(Table_recettes[[#This Row],[Type]]="Produit",Table_recettes[[#This Row],[Marge opérationnelle Recette]]/Table_recettes[[#This Row],[Unités]],""),0) -> -0.05453881176 | CF32: =IFERROR(IF(Table_recettes[[#This Row],[Type]]="Produit",Table_recettes[[#This Row],[Marge Nette Recette]]/Table_recettes[[#This Row],[Unités]],""),0) -> -0.09006394552 | CG32: =IFERROR(IF(Table_recettes[[#This Row],[Type]]="Produit",Table_recettes[[#This Row],[Marge Brute/U]]-Table_recettes[[#This Row],[Marge SCP/U]],""),0) -> 0.7715541797 | CH32: =IF(Table_recettes[[#This Row],[Type]]="Produit",Table_recettes[[#This Row],[Marge SCP/U]]-Table_recettes[[#This Row],[Marge Nette/U]],"") -> 0.3928711053 | CI32: =IFERROR(IF(Table_recettes[[#This Row],[Type]]="Produit",Table_recettes[[#This Row],[Marge Brute/U]]/(Table_recettes[[#This Row],[Prix/U]]-Table_recettes[[#This Row],[TVA/U]]),""),0) -> 0.8718855486 | CJ32: =IFERROR(IF(Table_recettes[[#This Row],[Type]]="Produit",Table_recettes[[#This Row],[Marge SCP/U]]/(Table_recettes[[#This Row],[Prix/U]]-Table_recettes[[#This Row],[TVA/U]]),""),0) -> 0.2457396566 | CK32: =IFERROR(IF(Table_recettes[[#This Row],[Type]]="Produit",Table_recettes[[#This Row],[Marge opérationnelle/U]]/(Table_recettes[[#This Row],[Prix/U]]-Table_recettes[[#This Row],[TVA/U]]),""),0) -> -0.04426034339 | CL32: =IFERROR(IF(Table_recettes[[#This Row],[Type]]="Produit",Table_recettes[[#This Row],[Marge Nette/U]]/(Table_recettes[[#This Row],[Prix/U]]-Table_recettes[[#This Row],[TVA/U]]),""),0) -> -0.07309035579
C33: Produit | D33: Pains | E33: Baguette tradition pavot | F33: 8 | G33: 5 | H33: 1.3 | I33: 0.055 | J33: Pâte tradition | K33: 1750 | L33: Pavot | M33: 50 | AD33: Prorata poids de la fabrication des appareils | AE33: =FctDuree(ROW(Table_recettes[[#This Row],[D1]])) -> 0.0006920983483 | AF33: Façonner en baguettes | AG33: 0.002777777778 | AH33: Equipe boulangerie | AI33: Enfourner, cuire 7 minutes puis défourner | AJ33: 0.002777777778 | AK33: Equipe boulangerie | BG33: 2014-07-01 | BH33: 2014-05-03 | BI33: =(Table_recettes[[#This Row],[D1]]+Table_recettes[[#This Row],[D2]]+Table_recettes[[#This Row],[D3]]+Table_recettes[[#This Row],[D4]]+Table_recettes[[#This Row],[D5]]+Table_recettes[[#This Row],[D6]]+Table_recettes[[#This Row],[D7]]+Table_recettes[[#This Row],[D8]]+Table_recettes[[#This Row],[D9]]+Table_recettes[[#This Row],[D10]]) -> 0.006247653904 | BJ33: =Table_recettes[[#This Row],[Frequence]]*Table_recettes[[#This Row],[Unités]] -> 40 | BK33: =IFERROR(Table_recettes[[#This Row],[Duree]]/IF(Table_recettes[[#This Row],[Type]]="Produit",Table_recettes[[#This Row],[Unités]],Table_recettes[[#This Row],[Poids]]),0) -> 0.001249530781 | BL33: =IFERROR(IF(INDEX(Table_ing[Unité],MATCH(Table_recettes[[#This Row],[I1]],Table_ing[Ingredient],0))="g",Table_recettes[[#This Row],[Q1]],0),Table_recettes[[#This Row],[Q1]]) +IFERROR(IF(INDEX(Table_ing[Unité],MATCH(Table_recettes[[#This Row],[I2]],Table_ing[Ingredient],0))="g",Table_recettes[[#This Row],[Q2]],0),Table_recettes[[#This Row],[Q2]]) +IFERROR(IF(INDEX(Table_ing[Unité],MATCH(Table_recettes[[#This Row],[I3]],Table_ing[Ingredient],0))="g",Table_recettes[[#This Row],[Q3]],0),Table_recettes[[#This Row],[Q3]]) +IFERROR(IF(INDEX(Table_ing[Unité],MATCH(Table_recettes[[#This Row],[I4]],Table_ing[Ingredient],0))="g",Table_recettes[[#This Row],[Q4]],0),Table_recettes[[#This Row],[Q4]]) +IFERROR(IF(INDEX(Table_ing[Unité],MATCH(Table_recettes[[#This Row],[I5]],Table_ing[Ingredient],0))="g",Table_recettes[[#This Row],[Q5]],0),Table_recettes[[#This Row],[Q5]]) +IFERROR(IF(INDEX(Table_ing[Unité],MATCH(Table_recettes[[#This Row],[I6]],Table_ing[Ingredient],0))="g",Table_recettes[[#This Row],[Q6]],0),Table_recettes[[#This Row],[Q6]]) +IFERROR(IF(INDEX(Table_ing[Unité],MATCH(Table_recettes[[#This Row],[I7]],Table_ing[Ingredient],0))="g",Table_recettes[[#This Row],[Q7]],0),Table_recettes[[#This Row],[Q7]]) +IFERROR(IF(INDEX(Table_ing[Unité],MATCH(Table_recettes[[#This Row],[I8]],Table_ing[Ingredient],0))="g",Table_recettes[[#This Row],[Q8]],0),Table_recettes[[#This Row],[Q8]]) +IFERROR(IF(INDEX(Table_ing[Unité],MATCH(Table_recettes[[#This Row],[I9]],Table_ing[Ingredient],0))="g",Table_recettes[[#This Row],[Q9]],0),Table_recettes[[#This Row],[Q9]]) +IFERROR(IF(INDEX(Table_ing[Unité],MATCH(Table_recettes[[#This Row],[I10]],Table_ing[Ingredient],0))="g",Table_recettes[[#This Row],[Q10]],0),Table_recettes[[#This Row],[Q10]]) -> 1800 | BM33: =IFERROR(Table_recettes[[#This Row],[Poids]]/IF(Table_recettes[[#This Row],[Type]]="Produit",Table_recettes[[#This Row],[Unités]],1),0) -> 360 | BN33: =Table_recettes[[#This Row],[CoutIng Recette]]*Table_recettes[[#This Row],[Frequence]] -> 6.358645946 | BO33: =IF(Table_recettes[[#This Row],[Q1]]>0,IFERROR(INDEX(Table_ing[Coût par unité],MATCH(Table_recettes[[#This Row],[I1]],Table_ing[Ingredient],0))*Table_recettes[[#This Row],[Q1]],INDEX(Table_recettes[CoutIng/U],MATCH(Table_recettes[[#This Row],[I1]],Table_recettes[Recette],0))*Table_recettes[[#This Row],[Q1]]),0) +IF(Table_recettes[[#This Row],[Q2]]>0,IFERROR(INDEX(Table_ing[Coût par unité],MATCH(Table_recettes[[#This Row],[I2]],Table_ing[Ingredient],0))*Table_recettes[[#This Row],[Q2]],INDEX(Table_recettes[CoutIng/U],MATCH(Table_recettes[[#This Row],[I2]],Table_recettes[Recette],0))*Table_recettes[[#This Row],[Q2]]),0) +IF(Table_recettes[[#This Row],[Q3]]>0,IFERROR(INDEX(Table_ing[Coût par unité],MATCH(Table_recettes[[#This Row],[I3]],Table_ing[Ingredient],0))*Table_recettes[[#This Row],[Q3]],INDEX(Table_recettes[CoutIng/U],MATCH(Table_recettes[[#This Row],[I3]],Table_recettes[Recette],0))*Table_recettes[[#This Row],[Q3]]),0) +IF(Table_recettes[[#This Row],[Q4]]>0,IFERROR(INDEX(Table_ing[Coût par unité],MATCH(Table_recettes[[#This Row],[I4]],Table_ing[Ingredient],0))*Table_recettes[[#This Row],[Q4]],INDEX(Table_recettes[CoutIng/U],MATCH(Table_recettes[[#This Row],[I4]],Table_recettes[Recette],0))*Table_recettes[[#This Row],[Q4]]),0) +IF(Table_recettes[[#This Row],[Q5]]>0,IFERROR(INDEX(Table_ing[Coût par unité],MATCH(Table_recettes[[#This Row],[I5]],Table_ing[Ingredient],0))*Table_recettes[[#This Row],[Q5]],INDEX(Table_recettes[CoutIng/U],MATCH(Table_recettes[[#This Row],[I5]],Table_recettes[Recette],0))*Table_recettes[[#This Row],[Q5]]),0) +IF(Table_recettes[[#This Row],[Q6]]>0,IFERROR(INDEX(Table_ing[Coût par unité],MATCH(Table_recettes[[#This Row],[I6]],Table_ing[Ingredient],0))*Table_recettes[[#This Row],[Q6]],INDEX(Table_recettes[CoutIng/U],MATCH(Table_recettes[[#This Row],[I6]],Table_recettes[Recette],0))*Table_recettes[[#This Row],[Q6]]),0) +IF(Table_recettes[[#This Row],[Q7]]>0,IFERROR(INDEX(Table_ing[Coût par unité],MATCH(Table_recettes[[#This Row],[I7]],Table_ing[Ingredient],0))*Table_recettes[[#This Row],[Q7]],INDEX(Table_recettes[CoutIng/U],MATCH(Table_recettes[[#This Row],[I7]],Table_recettes[Recette],0))*Table_recettes[[#This Row],[Q7]]),0) +IF(Table_recettes[[#This Row],[Q8]]>0,IFERROR(INDEX(Table_ing[Coût par unité],MATCH(Table_recettes[[#This Row],[I8]],Table_ing[Ingredient],0))*Table_recettes[[#This Row],[Q8]],INDEX(Table_recettes[CoutIng/U],MATCH(Table_recettes[[#This Row],[I8]],Table_recettes[Recette],0))*Table_recettes[[#This Row],[Q8]]),0) +IF(Table_recettes[[#This Row],[Q9]]>0,IFERROR(INDEX(Table_ing[Coût par unité],MATCH(Table_recettes[[#This Row],[I9]],Table_ing[Ingredient],0))*Table_recettes[[#This Row],[Q9]],INDEX(Table_recettes[CoutIng/U],MATCH(Table_recettes[[#This Row],[I9]],Table_recettes[Recette],0))*Table_recettes[[#This Row],[Q9]]),0) +IF(Table_recettes[[#This Row],[Q10]]>0,IFERROR(INDEX(Table_ing[Coût par unité],MATCH(Table_recettes[[#This Row],[I10]],Table_ing[Ingredient],0))*Table_recettes[[#This Row],[Q10]],INDEX(Table_recettes[CoutIng/U],MATCH(Table_recettes[[#This Row],[I10]],Table_recettes[Recette],0))*Table_recettes[[#This Row],[Q8]]),0) -> 0.7948307432 | BP33: =IFERROR(Table_recettes[[#This Row],[CoutIng Recette]]/IF(Table_recettes[[#This Row],[Type]]="Produit",Table_recettes[[#This Row],[Unités]],Table_recettes[[#This Row],[Poids]]),0) -> 0.1589661486 | BQ33: =Table_recettes[[#This Row],[CoutRH Recette]]*Table_recettes[[#This Row],[Frequence]] -> 13.55860083 | BR33: =(IFERROR(INDEX(Table_CoutRH[Cout horaire],MATCH(Table_recettes[[#This Row],[RH2]],Table_CoutRH[Employé ou équipe],0))*Table_recettes[[#This Row],[D2]],0) +IFERROR(INDEX(Table_CoutRH[Cout horaire],MATCH(Table_recettes[[#This Row],[RH3]],Table_CoutRH[Employé ou équipe],0))*Table_recettes[[#This Row],[D3]],0) +IFERROR(INDEX(Table_CoutRH[Cout horaire],MATCH(Table_recettes[[#This Row],[RH4]],Table_CoutRH[Employé ou équipe],0))*Table_recettes[[#This Row],[D4]],0) +IFERROR(INDEX(Table_CoutRH[Cout horaire],MATCH(Table_recettes[[#This Row],[RH5]],Table_CoutRH[Employé ou équipe],0))*Table_recettes[[#This Row],[D5]],0) +IFERROR(INDEX(Table_CoutRH[Cout horaire],MATCH(Table_recettes[[#This Row],[RH6]],Table_CoutRH[Employé ou équipe],0))*Table_recettes[[#This Row],[D6]],0) +IFERROR(INDEX(Table_CoutRH[Cout horaire],MATCH(Table_recettes[[#This Row],[RH7]],Table_CoutRH[Employé ou équipe],0))*Table_recettes[[#This Row],[D7]],0) +IFERROR(INDEX(Table_CoutRH[Cout horaire],MATCH(Table_recettes[[#This Row],[RH8]],Table_CoutRH[Employé ou équipe],0))*Table_recettes[[#This Row],[D8]],0) +IFERROR(INDEX(Table_CoutRH[Cout horaire],MATCH(Table_recettes[[#This Row],[RH9]],Table_CoutRH[Employé ou équipe],0))*Table_recettes[[#This Row],[D9]],0) +IFERROR(INDEX(Table_CoutRH[Cout horaire],MATCH(Table_recettes[[#This Row],[RH10]],Table_CoutRH[Employé ou équipe],0))*Table_recettes[[#This Row],[D10]],0))*24 +FctCoutRH(ROW(Table_recettes[[#This Row],[CoutRH/U]])) -> 1.694825104 | BS33: =IFERROR(Table_recettes[[#This Row],[CoutRH Recette]]/IF(Table_recettes[[#This Row],[Type]]="Produit",Table_recettes[[#This Row],[Unités]],Table_recettes[[#This Row],[Poids]]),0) -> 0.3389650208 | BT33: =IF(Table_recettes[[#This Row],[Type]]="Produit",Table_recettes[[#This Row],[CA Total TTC Recette]]*Table_recettes[[#This Row],[Frequence]],"") -> 52 | BU33: =IF(Table_recettes[[#This Row],[Type]]="Produit",Table_recettes[Unités]*Table_recettes[[#This Row],[Prix/U]],"") -> 6.5 | BV33: =IF(Table_recettes[[#This Row],[Type]]="Produit",Table_recettes[[#This Row],[TVA totale Recette]]*Table_recettes[[#This Row],[Frequence]],"") -> 2.710900474 | BW33: =IF(Table_recettes[[#This Row],[Type]]="Produit",Table_recettes[[#This Row],[CA Total TTC Recette]]*Table_recettes[[#This Row],[TVA applicable]]/(1+Table_recettes[[#This Row],[TVA applicable]]),"") -> 0.3388625592 | BX33: =IF(Table_recettes[[#This Row],[Type]]="Produit",Table_recettes[[#This Row],[Prix/U]]*Table_recettes[[#This Row],[TVA applicable]]/(1+Table_recettes[[#This Row],[TVA applicable]]),"") -> 0.06777251185 | BY33: =IF(Table_recettes[[#This Row],[Type]]="Produit",Table_recettes[[#This Row],[CA Total TTC Recette]]-Table_recettes[[#This Row],[TVA totale Recette]]-Table_recettes[[#This Row],[CoutIng Recette]],"") -> 5.366306698 | BZ33: =IF(Table_recettes[[#This Row],[Type]]="Produit",(Table_recettes[[#This Row],[CA Total TTC Recette]]-Table_recettes[[#This Row],[TVA totale Recette]])*(1-IF(OR(Option_MO="Globale",Option_MO="Par produit et globale"),Cell_CRp9,0))-Table_recettes[[#This Row],[CoutIng Recette]]-IF(OR(Option_MO="Par produit",Option_MO="Par produit et globale"),Table_recettes[[#This Row],[CoutRH Recette]],0),"") -> 3.015612722 | CA33: =IF(Table_recettes[[#This Row],[Type]]="Produit",(Table_recettes[[#This Row],[CA Total TTC Recette]]-Table_recettes[[#This Row],[TVA totale Recette]])*(1-Cell_CRp10-Cell_CRp2-IF(OR(Option_MO="Globale",Option_MO="Par produit et globale"),Cell_CRp9,0))-Table_recettes[[#This Row],[CoutIng Recette]]-IF(OR(Option_MO="Par produit",Option_MO="Par produit et globale"),Table_recettes[[#This Row],[CoutRH Recette]],0),"") -> 1.228882864 | CB33: =IF(Table_recettes[[#This Row],[Type]]="Produit",((Table_recettes[[#This Row],[CA Total TTC Recette]]-Table_recettes[[#This Row],[TVA totale Recette]])*(1-Cell_CRp10-Cell_CRp2-Cell_CRp4-Cell_CRp5-Cell_CRp6-Cell_CRp7-IF(OR(Option_MO="Globale",Option_MO="Par produit et globale"),Cell_CRp9,0))-Table_recettes[[#This Row],[CoutIng Recette]]-IF(OR(Option_MO="Par produit",Option_MO="Par produit et globale"),Table_recettes[[#This Row],[CoutRH Recette]],0))*(1-Cell_CRp8),"") -> 0.5923406706 | CC33: =IFERROR(IF(Table_recettes[[#This Row],[Type]]="Produit",Table_recettes[[#This Row],[Marge Brute Recette]]/Table_recettes[[#This Row],[Unités]],""),0) -> 1.07326134 | CD33: =IFERROR(IF(Table_recettes[[#This Row],[Type]]="Produit",Table_recettes[[#This Row],[Marge SCP Recette]]/Table_recettes[[#This Row],[Unités]],""),0) -> 0.6031225444 | CE33: =IFERROR(IF(Table_recettes[[#This Row],[Type]]="Produit",Table_recettes[[#This Row],[Marge opérationnelle Recette]]/Table_recettes[[#This Row],[Unités]],""),0) -> 0.2457765729 | CF33: =IFERROR(IF(Table_recettes[[#This Row],[Type]]="Produit",Table_recettes[[#This Row],[Marge Nette Recette]]/Table_recettes[[#This Row],[Unités]],""),0) -> 0.1184681341 | CG33: =IFERROR(IF(Table_recettes[[#This Row],[Type]]="Produit",Table_recettes[[#This Row],[Marge Brute/U]]-Table_recettes[[#This Row],[Marge SCP/U]],""),0) -> 0.4701387951 | CH33: =IF(Table_recettes[[#This Row],[Type]]="Produit",Table_recettes[[#This Row],[Marge SCP/U]]-Table_recettes[[#This Row],[Marge Nette/U]],"") -> 0.4846544103 | CI33: =IFERROR(IF(Table_recettes[[#This Row],[Type]]="Produit",Table_recettes[[#This Row],[Marge Brute/U]]/(Table_recettes[[#This Row],[Prix/U]]-Table_recettes[[#This Row],[TVA/U]]),""),0) -> 0.8709928563 | CJ33: =IFERROR(IF(Table_recettes[[#This Row],[Type]]="Produit",Table_recettes[[#This Row],[Marge SCP/U]]/(Table_recettes[[#This Row],[Prix/U]]-Table_recettes[[#This Row],[TVA/U]]),""),0) -> 0.4894571418 | CK33: =IFERROR(IF(Table_recettes[[#This Row],[Type]]="Produit",Table_recettes[[#This Row],[Marge opérationnelle/U]]/(Table_recettes[[#This Row],[Prix/U]]-Table_recettes[[#This Row],[TVA/U]]),""),0) -> 0.1994571418 | CL33: =IFERROR(IF(Table_recettes[[#This Row],[Type]]="Produit",Table_recettes[[#This Row],[Marge Nette/U]]/(Table_recettes[[#This Row],[Prix/U]]-Table_recettes[[#This Row],[TVA/U]]),""),0) -> 0.0961414473
C34: Appareil | D34: Appareil | E34: Base tarte fruits rouges | F34: 10 | J34: Pâte sucrée | K34: 1500 | L34: Crème d'amandes | M34: 900 | N34: Mousseline | O34: 1200 | AD34: Prorata poids de la fabrication des appareils | AE34: =FctDuree(ROW(Table_recettes[[#This Row],[D1]])) -> 0.007311928268 | AF34: Préparer les appareils | AG34: 0.002083333333 | AH34: Equipe pâtisserie | AI34: Foncer les tartelettes | AJ34: 0.001388888889 | AK34: Equipe pâtisserie | AL34: Remplir les tartelettes de crème d'amande et recouvrir de mousseline | AM34: 0.003472222222 | AN34: Equipe pâtisserie | BG34: 2014-06-08 | BH34: 2014-05-03 | BI34: =(Table_recettes[[#This Row],[D1]]+Table_recettes[[#This Row],[D2]]+Table_recettes[[#This Row],[D3]]+Table_recettes[[#This Row],[D4]]+Table_recettes[[#This Row],[D5]]+Table_recettes[[#This Row],[D6]]+Table_recettes[[#This Row],[D7]]+Table_recettes[[#This Row],[D8]]+Table_recettes[[#This Row],[D9]]+Table_recettes[[#This Row],[D10]]) -> 0.01425637271 | BJ34: =Table_recettes[[#This Row],[Frequence]]*Table_recettes[[#This Row],[Unités]] -> 0 | BK34: =IFERROR(Table_recettes[[#This Row],[Duree]]/IF(Table_recettes[[#This Row],[Type]]="Produit",Table_recettes[[#This Row],[Unités]],Table_recettes[[#This Row],[Poids]]),0) -> 3.960103531e-06 | BL34: =IFERROR(IF(INDEX(Table_ing[Unité],MATCH(Table_recettes[[#This Row],[I1]],Table_ing[Ingredient],0))="g",Table_recettes[[#This Row],[Q1]],0),Table_recettes[[#This Row],[Q1]]) +IFERROR(IF(INDEX(Table_ing[Unité],MATCH(Table_recettes[[#This Row],[I2]],Table_ing[Ingredient],0))="g",Table_recettes[[#This Row],[Q2]],0),Table_recettes[[#This Row],[Q2]]) +IFERROR(IF(INDEX(Table_ing[Unité],MATCH(Table_recettes[[#This Row],[I3]],Table_ing[Ingredient],0))="g",Table_recettes[[#This Row],[Q3]],0),Table_recettes[[#This Row],[Q3]]) +IFERROR(IF(INDEX(Table_ing[Unité],MATCH(Table_recettes[[#This Row],[I4]],Table_ing[Ingredient],0))="g",Table_recettes[[#This Row],[Q4]],0),Table_recettes[[#This Row],[Q4]]) +IFERROR(IF(INDEX(Table_ing[Unité],MATCH(Table_recettes[[#This Row],[I5]],Table_ing[Ingredient],0))="g",Table_recettes[[#This Row],[Q5]],0),Table_recettes[[#This Row],[Q5]]) +IFERROR(IF(INDEX(Table_ing[Unité],MATCH(Table_recettes[[#This Row],[I6]],Table_ing[Ingredient],0))="g",Table_recettes[[#This Row],[Q6]],0),Table_recettes[[#This Row],[Q6]]) +IFERROR(IF(INDEX(Table_ing[Unité],MATCH(Table_recettes[[#This Row],[I7]],Table_ing[Ingredient],0))="g",Table_recettes[[#This Row],[Q7]],0),Table_recettes[[#This Row],[Q7]]) +IFERROR(IF(INDEX(Table_ing[Unité],MATCH(Table_recettes[[#This Row],[I8]],Table_ing[Ingredient],0))="g",Table_recettes[[#This Row],[Q8]],0),Table_recettes[[#This Row],[Q8]]) +IFERROR(IF(INDEX(Table_ing[Unité],MATCH(Table_recettes[[#This Row],[I9]],Table_ing[Ingredient],0))="g",Table_recettes[[#This Row],[Q9]],0),Table_recettes[[#This Row],[Q9]]) +IFERROR(IF(INDEX(Table_ing[Unité],MATCH(Table_recettes[[#This Row],[I10]],Table_ing[Ingredient],0))="g",Table_recettes[[#This Row],[Q10]],0),Table_recettes[[#This Row],[Q10]]) -> 3600 | BM34: =IFERROR(Table_recettes[[#This Row],[Poids]]/IF(Table_recettes[[#This Row],[Type]]="Produit",Table_recettes[[#This Row],[Unités]],1),0) -> 3600 | BN34: =Table_recettes[[#This Row],[CoutIng Recette]]*Table_recettes[[#This Row],[Frequence]] -> 97.33248016 | BO34: =IF(Table_recettes[[#This Row],[Q1]]>0,IFERROR(INDEX(Table_ing[Coût par unité],MATCH(Table_recettes[[#This Row],[I1]],Table_ing[Ingredient],0))*Table_recettes[[#This Row],[Q1]],INDEX(Table_recettes[CoutIng/U],MATCH(Table_recettes[[#This Row],[I1]],Table_recettes[Recette],0))*Table_recettes[[#This Row],[Q1]]),0) +IF(Table_recettes[[#This Row],[Q2]]>0,IFERROR(INDEX(Table_ing[Coût par unité],MATCH(Table_recettes[[#This Row],[I2]],Table_ing[Ingredient],0))*Table_recettes[[#This Row],[Q2]],INDEX(Table_recettes[CoutIng/U],MATCH(Table_recettes[[#This Row],[I2]],Table_recettes[Recette],0))*Table_recettes[[#This Row],[Q2]]),0) +IF(Table_recettes[[#This Row],[Q3]]>0,IFERROR(INDEX(Table_ing[Coût par unité],MATCH(Table_recettes[[#This Row],[I3]],Table_ing[Ingredient],0))*Table_recettes[[#This Row],[Q3]],INDEX(Table_recettes[CoutIng/U],MATCH(Table_recettes[[#This Row],[I3]],Table_recettes[Recette],0))*Table_recettes[[#This Row],[Q3]]),0) +IF(Table_recettes[[#This Row],[Q4]]>0,IFERROR(INDEX(Table_ing[Coût par unité],MATCH(Table_recettes[[#This Row],[I4]],Table_ing[Ingredient],0))*Table_recettes[[#This Row],[Q4]],INDEX(Table_recettes[CoutIng/U],MATCH(Table_recettes[[#This Row],[I4]],Table_recettes[Recette],0))*Table_recettes[[#This Row],[Q4]]),0) +IF(Table_recettes[[#This Row],[Q5]]>0,IFERROR(INDEX(Table_ing[Coût par unité],MATCH(Table_recettes[[#This Row],[I5]],Table_ing[Ingredient],0))*Table_recettes[[#This Row],[Q5]],INDEX(Table_recettes[CoutIng/U],MATCH(Table_recettes[[#This Row],[I5]],Table_recettes[Recette],0))*Table_recettes[[#This Row],[Q5]]),0) +IF(Table_recettes[[#This Row],[Q6]]>0,IFERROR(INDEX(Table_ing[Coût par unité],MATCH(Table_recettes[[#This Row],[I6]],Table_ing[Ingredient],0))*Table_recettes[[#This Row],[Q6]],INDEX(Table_recettes[CoutIng/U],MATCH(Table_recettes[[#This Row],[I6]],Table_recettes[Recette],0))*Table_recettes[[#This Row],[Q6]]),0) +IF(Table_recettes[[#This Row],[Q7]]>0,IFERROR(INDEX(Table_ing[Coût par unité],MATCH(Table_recettes[[#This Row],[I7]],Table_ing[Ingredient],0))*Table_recettes[[#This Row],[Q7]],INDEX(Table_recettes[CoutIng/U],MATCH(Table_recettes[[#This Row],[I7]],Table_recettes[Recette],0))*Table_recettes[[#This Row],[Q7]]),0) +IF(Table_recettes[[#This Row],[Q8]]>0,IFERROR(INDEX(Table_ing[Coût par unité],MATCH(Table_recettes[[#This Row],[I8]],Table_ing[Ingredient],0))*Table_recettes[[#This Row],[Q8]],INDEX(Table_recettes[CoutIng/U],MATCH(Table_recettes[[#This Row],[I8]],Table_recettes[Recette],0))*Table_recettes[[#This Row],[Q8]]),0) +IF(Table_recettes[[#This Row],[Q9]]>0,IFERROR(INDEX(Table_ing[Coût par unité],MATCH(Table_recettes[[#This Row],[I9]],Table_ing[Ingredient],0))*Table_recettes[[#This Row],[Q9]],INDEX(Table_recettes[CoutIng/U],MATCH(Table_recettes[[#This Row],[I9]],Table_recettes[Recette],0))*Table_recettes[[#This Row],[Q9]]),0) +IF(Table_recettes[[#This Row],[Q10]]>0,IFERROR(INDEX(Table_ing[Coût par unité],MATCH(Table_recettes[[#This Row],[I10]],Table_ing[Ingredient],0))*Table_recettes[[#This Row],[Q10]],INDEX(Table_recettes[CoutIng/U],MATCH(Table_recettes[[#This Row],[I10]],Table_recettes[Recette],0))*Table_recettes[[#This Row],[Q8]]),0) -> 9.733248016 | BP34: =IFERROR(Table_recettes[[#This Row],[CoutIng Recette]]/IF(Table_recettes[[#This Row],[Type]]="Produit",Table_recettes[[#This Row],[Unités]],Table_recettes[[#This Row],[Poids]]),0) -> 0.002703680004 | BQ34: =Table_recettes[[#This Row],[CoutRH Recette]]*Table_recettes[[#This Row],[Frequence]] -> 49.14419496 | BR34: =(IFERROR(INDEX(Table_CoutRH[Cout horaire],MATCH(Table_recettes[[#This Row],[RH2]],Table_CoutRH[Employé ou équipe],0))*Table_recettes[[#This Row],[D2]],0) +IFERROR(INDEX(Table_CoutRH[Cout horaire],MATCH(Table_recettes[[#This Row],[RH3]],Table_CoutRH[Employé ou équipe],0))*Table_recettes[[#This Row],[D3]],0) +IFERROR(INDEX(Table_CoutRH[Cout horaire],MATCH(Table_recettes[[#This Row],[RH4]],Table_CoutRH[Employé ou équipe],0))*Table_recettes[[#This Row],[D4]],0) +IFERROR(INDEX(Table_CoutRH[Cout horaire],MATCH(Table_recettes[[#This Row],[RH5]],Table_CoutRH[Employé ou équipe],0))*Table_recettes[[#This Row],[D5]],0) +IFERROR(INDEX(Table_CoutRH[Cout horaire],MATCH(Table_recettes[[#This Row],[RH6]],Table_CoutRH[Employé ou équipe],0))*Table_recettes[[#This Row],[D6]],0) +IFERROR(INDEX(Table_CoutRH[Cout horaire],MATCH(Table_recettes[[#This Row],[RH7]],Table_CoutRH[Employé ou équipe],0))*Table_recettes[[#This Row],[D7]],0) +IFERROR(INDEX(Table_CoutRH[Cout horaire],MATCH(Table_recettes[[#This Row],[RH8]],Table_CoutRH[Employé ou équipe],0))*Table_recettes[[#This Row],[D8]],0) +IFERROR(INDEX(Table_CoutRH[Cout horaire],MATCH(Table_recettes[[#This Row],[RH9]],Table_CoutRH[Employé ou équipe],0))*Table_recettes[[#This Row],[D9]],0) +IFERROR(INDEX(Table_CoutRH[Cout horaire],MATCH(Table_recettes[[#This Row],[RH10]],Table_CoutRH[Employé ou équipe],0))*Table_recettes[[#This Row],[D10]],0))*24 +FctCoutRH(ROW(Table_recettes[[#This Row],[CoutRH/U]])) -> 4.914419496 | BS34: =IFERROR(Table_recettes[[#This Row],[CoutRH Recette]]/IF(Table_recettes[[#This Row],[Type]]="Produit",Table_recettes[[#This Row],[Unités]],Table_recettes[[#This Row],[Poids]]),0) -> 0.001365116527 | BT34: =IF(Table_recettes[[#This Row],[Type]]="Produit",Table_recettes[[#This Row],[CA Total TTC Recette]]*Table_recettes[[#This Row],[Frequence]],"") ->  | BU34: =IF(Table_recettes[[#This Row],[Type]]="Produit",Table_recettes[Unités]*Table_recettes[[#This Row],[Prix/U]],"") ->  | BV34: =IF(Table_recettes[[#This Row],[Type]]="Produit",Table_recettes[[#This Row],[TVA totale Recette]]*Table_recettes[[#This Row],[Frequence]],"") ->  | BW34: =IF(Table_recettes[[#This Row],[Type]]="Produit",Table_recettes[[#This Row],[CA Total TTC Recette]]*Table_recettes[[#This Row],[TVA applicable]]/(1+Table_recettes[[#This Row],[TVA applicable]]),"") ->  | BX34: =IF(Table_recettes[[#This Row],[Type]]="Produit",Table_recettes[[#This Row],[Prix/U]]*Table_recettes[[#This Row],[TVA applicable]]/(1+Table_recettes[[#This Row],[TVA applicable]]),"") ->  | BY34: =IF(Table_recettes[[#This Row],[Type]]="Produit",Table_recettes[[#This Row],[CA Total TTC Recette]]-Table_recettes[[#This Row],[TVA totale Recette]]-Table_recettes[[#This Row],[CoutIng Recette]],"") ->  | BZ34: =IF(Table_recettes[[#This Row],[Type]]="Produit",(Table_recettes[[#This Row],[CA Total TTC Recette]]-Table_recettes[[#This Row],[TVA totale Recette]])*(1-IF(OR(Option_MO="Globale",Option_MO="Par produit et globale"),Cell_CRp9,0))-Table_recettes[[#This Row],[CoutIng Recette]]-IF(OR(Option_MO="Par produit",Option_MO="Par produit et globale"),Table_recettes[[#This Row],[CoutRH Recette]],0),"") ->  | CA34: =IF(Table_recettes[[#This Row],[Type]]="Produit",(Table_recettes[[#This Row],[CA Total TTC Recette]]-Table_recettes[[#This Row],[TVA totale Recette]])*(1-Cell_CRp10-Cell_CRp2-IF(OR(Option_MO="Globale",Option_MO="Par produit et globale"),Cell_CRp9,0))-Table_recettes[[#This Row],[CoutIng Recette]]-IF(OR(Option_MO="Par produit",Option_MO="Par produit et globale"),Table_recettes[[#This Row],[CoutRH Recette]],0),"") ->  | CB34: =IF(Table_recettes[[#This Row],[Type]]="Produit",((Table_recettes[[#This Row],[CA Total TTC Recette]]-Table_recettes[[#This Row],[TVA totale Recette]])*(1-Cell_CRp10-Cell_CRp2-Cell_CRp4-Cell_CRp5-Cell_CRp6-Cell_CRp7-IF(OR(Option_MO="Globale",Option_MO="Par produit et globale"),Cell_CRp9,0))-Table_recettes[[#This Row],[CoutIng Recette]]-IF(OR(Option_MO="Par produit",Option_MO="Par produit et globale"),Table_recettes[[#This Row],[CoutRH Recette]],0))*(1-Cell_CRp8),"") ->  | CC34: =IFERROR(IF(Table_recettes[[#This Row],[Type]]="Produit",Table_recettes[[#This Row],[Marge Brute Recette]]/Table_recettes[[#This Row],[Unités]],""),0) ->  | CD34: =IFERROR(IF(Table_recettes[[#This Row],[Type]]="Produit",Table_recettes[[#This Row],[Marge SCP Recette]]/Table_recettes[[#This Row],[Unités]],""),0) ->  | CE34: =IFERROR(IF(Table_recettes[[#This Row],[Type]]="Produit",Table_recettes[[#This Row],[Marge opérationnelle Recette]]/Table_recettes[[#This Row],[Unités]],""),0) ->  | CF34: =IFERROR(IF(Table_recettes[[#This Row],[Type]]="Produit",Table_recettes[[#This Row],[Marge Nette Recette]]/Table_recettes[[#This Row],[Unités]],""),0) ->  | CG34: =IFERROR(IF(Table_recettes[[#This Row],[Type]]="Produit",Table_recettes[[#This Row],[Marge Brute/U]]-Table_recettes[[#This Row],[Marge SCP/U]],""),0) ->  | CH34: =IF(Table_recettes[[#This Row],[Type]]="Produit",Table_recettes[[#This Row],[Marge SCP/U]]-Table_recettes[[#This Row],[Marge Nette/U]],"") ->  | CI34: =IFERROR(IF(Table_recettes[[#This Row],[Type]]="Produit",Table_recettes[[#This Row],[Marge Brute/U]]/(Table_recettes[[#This Row],[Prix/U]]-Table_recettes[[#This Row],[TVA/U]]),""),0) ->  | CJ34: =IFERROR(IF(Table_recettes[[#This Row],[Type]]="Produit",Table_recettes[[#This Row],[Marge SCP/U]]/(Table_recettes[[#This Row],[Prix/U]]-Table_recettes[[#This Row],[TVA/U]]),""),0) ->  | CK34: =IFERROR(IF(Table_recettes[[#This Row],[Type]]="Produit",Table_recettes[[#This Row],[Marge opérationnelle/U]]/(Table_recettes[[#This Row],[Prix/U]]-Table_recettes[[#This Row],[TVA/U]]),""),0) ->  | CL34: =IFERROR(IF(Table_recettes[[#This Row],[Type]]="Produit",Table_recettes[[#This Row],[Marge Nette/U]]/(Table_recettes[[#This Row],[Prix/U]]-Table_recettes[[#This Row],[TVA/U]]),""),0) -> 
C35: Produit | D35: Pains spéciaux | E35: Batard | F35: 6 | G35: 2 | H35: 0.9 | I35: 0.055 | J35: Pâte baguette blanche | K35: 700 | AD35: Prorata poids de la fabrication des appareils | AE35: =FctDuree(ROW(Table_recettes[[#This Row],[D1]])) -> 9.820426487e-05 | AF35: Bouler, laisser pointer 2 minutes en balancelle puis façonner | AG35: 0.0006944444444 | AH35: Equipe boulangerie | AI35: Enfourner, cuire 22 minutes puis défourner | AJ35: 0.0006944444444 | AK35: Equipe boulangerie | BG35: 2014-07-01 | BH35: 2014-05-03 | BI35: =(Table_recettes[[#This Row],[D1]]+Table_recettes[[#This Row],[D2]]+Table_recettes[[#This Row],[D3]]+Table_recettes[[#This Row],[D4]]+Table_recettes[[#This Row],[D5]]+Table_recettes[[#This Row],[D6]]+Table_recettes[[#This Row],[D7]]+Table_recettes[[#This Row],[D8]]+Table_recettes[[#This Row],[D9]]+Table_recettes[[#This Row],[D10]]) -> 0.001487093154 | BJ35: =Table_recettes[[#This Row],[Frequence]]*Table_recettes[[#This Row],[Unités]] -> 12 | BK35: =IFERROR(Table_recettes[[#This Row],[Duree]]/IF(Table_recettes[[#This Row],[Type]]="Produit",Table_recettes[[#This Row],[Unités]],Table_recettes[[#This Row],[Poids]]),0) -> 0.0007435465769 | BL35: =IFERROR(IF(INDEX(Table_ing[Unité],MATCH(Table_recettes[[#This Row],[I1]],Table_ing[Ingredient],0))="g",Table_recettes[[#This Row],[Q1]],0),Table_recettes[[#This Row],[Q1]]) +IFERROR(IF(INDEX(Table_ing[Unité],MATCH(Table_recettes[[#This Row],[I2]],Table_ing[Ingredient],0))="g",Table_recettes[[#This Row],[Q2]],0),Table_recettes[[#This Row],[Q2]]) +IFERROR(IF(INDEX(Table_ing[Unité],MATCH(Table_recettes[[#This Row],[I3]],Table_ing[Ingredient],0))="g",Table_recettes[[#This Row],[Q3]],0),Table_recettes[[#This Row],[Q3]]) +IFERROR(IF(INDEX(Table_ing[Unité],MATCH(Table_recettes[[#This Row],[I4]],Table_ing[Ingredient],0))="g",Table_recettes[[#This Row],[Q4]],0),Table_recettes[[#This Row],[Q4]]) +IFERROR(IF(INDEX(Table_ing[Unité],MATCH(Table_recettes[[#This Row],[I5]],Table_ing[Ingredient],0))="g",Table_recettes[[#This Row],[Q5]],0),Table_recettes[[#This Row],[Q5]]) +IFERROR(IF(INDEX(Table_ing[Unité],MATCH(Table_recettes[[#This Row],[I6]],Table_ing[Ingredient],0))="g",Table_recettes[[#This Row],[Q6]],0),Table_recettes[[#This Row],[Q6]]) +IFERROR(IF(INDEX(Table_ing[Unité],MATCH(Table_recettes[[#This Row],[I7]],Table_ing[Ingredient],0))="g",Table_recettes[[#This Row],[Q7]],0),Table_recettes[[#This Row],[Q7]]) +IFERROR(IF(INDEX(Table_ing[Unité],MATCH(Table_recettes[[#This Row],[I8]],Table_ing[Ingredient],0))="g",Table_recettes[[#This Row],[Q8]],0),Table_recettes[[#This Row],[Q8]]) +IFERROR(IF(INDEX(Table_ing[Unité],MATCH(Table_recettes[[#This Row],[I9]],Table_ing[Ingredient],0))="g",Table_recettes[[#This Row],[Q9]],0),Table_recettes[[#This Row],[Q9]]) +IFERROR(IF(INDEX(Table_ing[Unité],MATCH(Table_recettes[[#This Row],[I10]],Table_ing[Ingredient],0))="g",Table_recettes[[#This Row],[Q10]],0),Table_recettes[[#This Row],[Q10]]) -> 700 | BM35: =IFERROR(Table_recettes[[#This Row],[Poids]]/IF(Table_recettes[[#This Row],[Type]]="Produit",Table_recettes[[#This Row],[Unités]],1),0) -> 350 | BN35: =Table_recettes[[#This Row],[CoutIng Recette]]*Table_recettes[[#This Row],[Frequence]] -> 1.505111364 | BO35: =IF(Table_recettes[[#This Row],[Q1]]>0,IFERROR(INDEX(Table_ing[Coût par unité],MATCH(Table_recettes[[#This Row],[I1]],Table_ing[Ingredient],0))*Table_recettes[[#This Row],[Q1]],INDEX(Table_recettes[CoutIng/U],MATCH(Table_recettes[[#This Row],[I1]],Table_recettes[Recette],0))*Table_recettes[[#This Row],[Q1]]),0) +IF(Table_recettes[[#This Row],[Q2]]>0,IFERROR(INDEX(Table_ing[Coût par unité],MATCH(Table_recettes[[#This Row],[I2]],Table_ing[Ingredient],0))*Table_recettes[[#This Row],[Q2]],INDEX(Table_recettes[CoutIng/U],MATCH(Table_recettes[[#This Row],[I2]],Table_recettes[Recette],0))*Table_recettes[[#This Row],[Q2]]),0) +IF(Table_recettes[[#This Row],[Q3]]>0,IFERROR(INDEX(Table_ing[Coût par unité],MATCH(Table_recettes[[#This Row],[I3]],Table_ing[Ingredient],0))*Table_recettes[[#This Row],[Q3]],INDEX(Table_recettes[CoutIng/U],MATCH(Table_recettes[[#This Row],[I3]],Table_recettes[Recette],0))*Table_recettes[[#This Row],[Q3]]),0) +IF(Table_recettes[[#This Row],[Q4]]>0,IFERROR(INDEX(Table_ing[Coût par unité],MATCH(Table_recettes[[#This Row],[I4]],Table_ing[Ingredient],0))*Table_recettes[[#This Row],[Q4]],INDEX(Table_recettes[CoutIng/U],MATCH(Table_recettes[[#This Row],[I4]],Table_recettes[Recette],0))*Table_recettes[[#This Row],[Q4]]),0) +IF(Table_recettes[[#This Row],[Q5]]>0,IFERROR(INDEX(Table_ing[Coût par unité],MATCH(Table_recettes[[#This Row],[I5]],Table_ing[Ingredient],0))*Table_recettes[[#This Row],[Q5]],INDEX(Table_recettes[CoutIng/U],MATCH(Table_recettes[[#This Row],[I5]],Table_recettes[Recette],0))*Table_recettes[[#This Row],[Q5]]),0) +IF(Table_recettes[[#This Row],[Q6]]>0,IFERROR(INDEX(Table_ing[Coût par unité],MATCH(Table_recettes[[#This Row],[I6]],Table_ing[Ingredient],0))*Table_recettes[[#This Row],[Q6]],INDEX(Table_recettes[CoutIng/U],MATCH(Table_recettes[[#This Row],[I6]],Table_recettes[Recette],0))*Table_recettes[[#This Row],[Q6]]),0) +IF(Table_recettes[[#This Row],[Q7]]>0,IFERROR(INDEX(Table_ing[Coût par unité],MATCH(Table_recettes[[#This Row],[I7]],Table_ing[Ingredient],0))*Table_recettes[[#This Row],[Q7]],INDEX(Table_recettes[CoutIng/U],MATCH(Table_recettes[[#This Row],[I7]],Table_recettes[Recette],0))*Table_recettes[[#This Row],[Q7]]),0) +IF(Table_recettes[[#This Row],[Q8]]>0,IFERROR(INDEX(Table_ing[Coût par unité],MATCH(Table_recettes[[#This Row],[I8]],Table_ing[Ingredient],0))*Table_recettes[[#This Row],[Q8]],INDEX(Table_recettes[CoutIng/U],MATCH(Table_recettes[[#This Row],[I8]],Table_recettes[Recette],0))*Table_recettes[[#This Row],[Q8]]),0) +IF(Table_recettes[[#This Row],[Q9]]>0,IFERROR(INDEX(Table_ing[Coût par unité],MATCH(Table_recettes[[#This Row],[I9]],Table_ing[Ingredient],0))*Table_recettes[[#This Row],[Q9]],INDEX(Table_recettes[CoutIng/U],MATCH(Table_recettes[[#This Row],[I9]],Table_recettes[Recette],0))*Table_recettes[[#This Row],[Q9]]),0) +IF(Table_recettes[[#This Row],[Q10]]>0,IFERROR(INDEX(Table_ing[Coût par unité],MATCH(Table_recettes[[#This Row],[I10]],Table_ing[Ingredient],0))*Table_recettes[[#This Row],[Q10]],INDEX(Table_recettes[CoutIng/U],MATCH(Table_recettes[[#This Row],[I10]],Table_recettes[Recette],0))*Table_recettes[[#This Row],[Q8]]),0) -> 0.2508518939 | BP35: =IFERROR(Table_recettes[[#This Row],[CoutIng Recette]]/IF(Table_recettes[[#This Row],[Type]]="Produit",Table_recettes[[#This Row],[Unités]],Table_recettes[[#This Row],[Poids]]),0) -> 0.125425947 | BQ35: =Table_recettes[[#This Row],[CoutRH Recette]]*Table_recettes[[#This Row],[Frequence]] -> 2.420456876 | BR35: =(IFERROR(INDEX(Table_CoutRH[Cout horaire],MATCH(Table_recettes[[#This Row],[RH2]],Table_CoutRH[Employé ou équipe],0))*Table_recettes[[#This Row],[D2]],0) +IFERROR(INDEX(Table_CoutRH[Cout horaire],MATCH(Table_recettes[[#This Row],[RH3]],Table_CoutRH[Employé ou équipe],0))*Table_recettes[[#This Row],[D3]],0) +IFERROR(INDEX(Table_CoutRH[Cout horaire],MATCH(Table_recettes[[#This Row],[RH4]],Table_CoutRH[Employé ou équipe],0))*Table_recettes[[#This Row],[D4]],0) +IFERROR(INDEX(Table_CoutRH[Cout horaire],MATCH(Table_recettes[[#This Row],[RH5]],Table_CoutRH[Employé ou équipe],0))*Table_recettes[[#This Row],[D5]],0) +IFERROR(INDEX(Table_CoutRH[Cout horaire],MATCH(Table_recettes[[#This Row],[RH6]],Table_CoutRH[Employé ou équipe],0))*Table_recettes[[#This Row],[D6]],0) +IFERROR(INDEX(Table_CoutRH[Cout horaire],MATCH(Table_recettes[[#This Row],[RH7]],Table_CoutRH[Employé ou équipe],0))*Table_recettes[[#This Row],[D7]],0) +IFERROR(INDEX(Table_CoutRH[Cout horaire],MATCH(Table_recettes[[#This Row],[RH8]],Table_CoutRH[Employé ou équipe],0))*Table_recettes[[#This Row],[D8]],0) +IFERROR(INDEX(Table_CoutRH[Cout horaire],MATCH(Table_recettes[[#This Row],[RH9]],Table_CoutRH[Employé ou équipe],0))*Table_recettes[[#This Row],[D9]],0) +IFERROR(INDEX(Table_CoutRH[Cout horaire],MATCH(Table_recettes[[#This Row],[RH10]],Table_CoutRH[Employé ou équipe],0))*Table_recettes[[#This Row],[D10]],0))*24 +FctCoutRH(ROW(Table_recettes[[#This Row],[CoutRH/U]])) -> 0.4034094794 | BS35: =IFERROR(Table_recettes[[#This Row],[CoutRH Recette]]/IF(Table_recettes[[#This Row],[Type]]="Produit",Table_recettes[[#This Row],[Unités]],Table_recettes[[#This Row],[Poids]]),0) -> 0.2017047397 | BT35: =IF(Table_recettes[[#This Row],[Type]]="Produit",Table_recettes[[#This Row],[CA Total TTC Recette]]*Table_recettes[[#This Row],[Frequence]],"") -> 10.8 | BU35: =IF(Table_recettes[[#This Row],[Type]]="Produit",Table_recettes[Unités]*Table_recettes[[#This Row],[Prix/U]],"") -> 1.8 | BV35: =IF(Table_recettes[[#This Row],[Type]]="Produit",Table_recettes[[#This Row],[TVA totale Recette]]*Table_recettes[[#This Row],[Frequence]],"") -> 0.5630331754 | BW35: =IF(Table_recettes[[#This Row],[Type]]="Produit",Table_recettes[[#This Row],[CA Total TTC Recette]]*Table_recettes[[#This Row],[TVA applicable]]/(1+Table_recettes[[#This Row],[TVA applicable]]),"") -> 0.09383886256 | BX35: =IF(Table_recettes[[#This Row],[Type]]="Produit",Table_recettes[[#This Row],[Prix/U]]*Table_recettes[[#This Row],[TVA applicable]]/(1+Table_recettes[[#This Row],[TVA applicable]]),"") -> 0.04691943128 | BY35: =IF(Table_recettes[[#This Row],[Type]]="Produit",Table_recettes[[#This Row],[CA Total TTC Recette]]-Table_recettes[[#This Row],[TVA totale Recette]]-Table_recettes[[#This Row],[CoutIng Recette]],"") -> 1.455309244 | BZ35: =IF(Table_recettes[[#This Row],[Type]]="Produit",(Table_recettes[[#This Row],[CA Total TTC Recette]]-Table_recettes[[#This Row],[TVA totale Recette]])*(1-IF(OR(Option_MO="Globale",Option_MO="Par produit et globale"),Cell_CRp9,0))-Table_recettes[[#This Row],[CoutIng Recette]]-IF(OR(Option_MO="Par produit",Option_MO="Par produit et globale"),Table_recettes[[#This Row],[CoutRH Recette]],0),"") -> 0.8702745381 | CA35: =IF(Table_recettes[[#This Row],[Type]]="Produit",(Table_recettes[[#This Row],[CA Total TTC Recette]]-Table_recettes[[#This Row],[TVA totale Recette]])*(1-Cell_CRp10-Cell_CRp2-IF(OR(Option_MO="Globale",Option_MO="Par produit et globale"),Cell_CRp9,0))-Table_recettes[[#This Row],[CoutIng Recette]]-IF(OR(Option_MO="Par produit",Option_MO="Par produit et globale"),Table_recettes[[#This Row],[CoutRH Recette]],0),"") -> 0.3754878083 | CB35: =IF(Table_recettes[[#This Row],[Type]]="Produit",((Table_recettes[[#This Row],[CA Total TTC Recette]]-Table_recettes[[#This Row],[TVA totale Recette]])*(1-Cell_CRp10-Cell_CRp2-Cell_CRp4-Cell_CRp5-Cell_CRp6-Cell_CRp7-IF(OR(Option_MO="Globale",Option_MO="Par produit et globale"),Cell_CRp9,0))-Table_recettes[[#This Row],[CoutIng Recette]]-IF(OR(Option_MO="Par produit",Option_MO="Par produit et globale"),Table_recettes[[#This Row],[CoutRH Recette]],0))*(1-Cell_CRp8),"") -> 0.188462221 | CC35: =IFERROR(IF(Table_recettes[[#This Row],[Type]]="Produit",Table_recettes[[#This Row],[Marge Brute Recette]]/Table_recettes[[#This Row],[Unités]],""),0) -> 0.7276546218 | CD35: =IFERROR(IF(Table_recettes[[#This Row],[Type]]="Produit",Table_recettes[[#This Row],[Marge SCP Recette]]/Table_recettes[[#This Row],[Unités]],""),0) -> 0.4351372691 | CE35: =IFERROR(IF(Table_recettes[[#This Row],[Type]]="Produit",Table_recettes[[#This Row],[Marge opérationnelle Recette]]/Table_recettes[[#This Row],[Unités]],""),0) -> 0.1877439041 | CF35: =IFERROR(IF(Table_recettes[[#This Row],[Type]]="Produit",Table_recettes[[#This Row],[Marge Nette Recette]]/Table_recettes[[#This Row],[Unités]],""),0) -> 0.09423111052 | CG35: =IFERROR(IF(Table_recettes[[#This Row],[Type]]="Produit",Table_recettes[[#This Row],[Marge Brute/U]]-Table_recettes[[#This Row],[Marge SCP/U]],""),0) -> 0.2925173527 | CH35: =IF(Table_recettes[[#This Row],[Type]]="Produit",Table_recettes[[#This Row],[Marge SCP/U]]-Table_recettes[[#This Row],[Marge Nette/U]],"") -> 0.3409061585 | CI35: =IFERROR(IF(Table_recettes[[#This Row],[Type]]="Produit",Table_recettes[[#This Row],[Marge Brute/U]]/(Table_recettes[[#This Row],[Prix/U]]-Table_recettes[[#This Row],[TVA/U]]),""),0) -> 0.8529729177 | CJ35: =IFERROR(IF(Table_recettes[[#This Row],[Type]]="Produit",Table_recettes[[#This Row],[Marge SCP/U]]/(Table_recettes[[#This Row],[Prix/U]]-Table_recettes[[#This Row],[TVA/U]]),""),0) -> 0.5100775765 | CK35: =IFERROR(IF(Table_recettes[[#This Row],[Type]]="Produit",Table_recettes[[#This Row],[Marge opérationnelle/U]]/(Table_recettes[[#This Row],[Prix/U]]-Table_recettes[[#This Row],[TVA/U]]),""),0) -> 0.2200775765 | CL35: =IFERROR(IF(Table_recettes[[#This Row],[Type]]="Produit",Table_recettes[[#This Row],[Marge Nette/U]]/(Table_recettes[[#This Row],[Prix/U]]-Table_recettes[[#This Row],[TVA/U]]),""),0) -> 0.1104598018
C36: Appareil | D36: Appareil | E36: Biscuit cuillère | F36: 1 | J36: Oeuf coquille | K36: 24 | L36: Sucre semoule | M36: 600 | N36: Farine classique t55 or | O36: 600 | P36: Fécule | Q36: 150 | AD36: Prorata poids de la fabrication des appareils | AE36: =FctDuree(ROW(Table_recettes[[#This Row],[D1]])) -> 0 | AF36: Préparer les ingrédients | AG36: 0.001388888889 | AH36: Equipe pâtisserie | AI36: Casser les oeufs en séparant blancs et jaunes | AJ36: 0.003472222222 | AK36: Equipe pâtisserie | AL36: Faire monter les blancs au batteur. Serrer avec le sucre puis rajouter les poudres en pluie. Incorporer délicatement. Rajouter les jaunes délicatement également. | AM36: 0.003472222222 | AN36: Equipe pâtisserie | AO36: Etaler sur plaques par pesées de 300g. Mettre à cuire à 200°C 20 minutes. | AP36: 0.003472222222 | AQ36: Equipe pâtisserie | AR36: Défourner, emballer puis réserver au frais | AS36: 0.001388888889 | AT36: Equipe pâtisserie | BG36: 2014-05-30 | BH36: 2014-05-03 | BI36: =(Table_recettes[[#This Row],[D1]]+Table_recettes[[#This Row],[D2]]+Table_recettes[[#This Row],[D3]]+Table_recettes[[#This Row],[D4]]+Table_recettes[[#This Row],[D5]]+Table_recettes[[#This Row],[D6]]+Table_recettes[[#This Row],[D7]]+Table_recettes[[#This Row],[D8]]+Table_recettes[[#This Row],[D9]]+Table_recettes[[#This Row],[D10]]) -> 0.01319444444 | BJ36: =Table_recettes[[#This Row],[Frequence]]*Table_recettes[[#This Row],[Unités]] -> 0 | BK36: =IFERROR(Table_recettes[[#This Row],[Duree]]/IF(Table_recettes[[#This Row],[Type]]="Produit",Table_recettes[[#This Row],[Unités]],Table_recettes[[#This Row],[Poids]]),0) -> 9.773662551e-06 | BL36: =IFERROR(IF(INDEX(Table_ing[Unité],MATCH(Table_recettes[[#This Row],[I1]],Table_ing[Ingredient],0))="g",Table_recettes[[#This Row],[Q1]],0),Table_recettes[[#This Row],[Q1]]) +IFERROR(IF(INDEX(Table_ing[Unité],MATCH(Table_recettes[[#This Row],[I2]],Table_ing[Ingredient],0))="g",Table_recettes[[#This Row],[Q2]],0),Table_recettes[[#This Row],[Q2]]) +IFERROR(IF(INDEX(Table_ing[Unité],MATCH(Table_recettes[[#This Row],[I3]],Table_ing[Ingredient],0))="g",Table_recettes[[#This Row],[Q3]],0),Table_recettes[[#This Row],[Q3]]) +IFERROR(IF(INDEX(Table_ing[Unité],MATCH(Table_recettes[[#This Row],[I4]],Table_ing[Ingredient],0))="g",Table_recettes[[#This Row],[Q4]],0),Table_recettes[[#This Row],[Q4]]) +IFERROR(IF(INDEX(Table_ing[Unité],MATCH(Table_recettes[[#This Row],[I5]],Table_ing[Ingredient],0))="g",Table_recettes[[#This Row],[Q5]],0),Table_recettes[[#This Row],[Q5]]) +IFERROR(IF(INDEX(Table_ing[Unité],MATCH(Table_recettes[[#This Row],[I6]],Table_ing[Ingredient],0))="g",Table_recettes[[#This Row],[Q6]],0),Table_recettes[[#This Row],[Q6]]) +IFERROR(IF(INDEX(Table_ing[Unité],MATCH(Table_recettes[[#This Row],[I7]],Table_ing[Ingredient],0))="g",Table_recettes[[#This Row],[Q7]],0),Table_recettes[[#This Row],[Q7]]) +IFERROR(IF(INDEX(Table_ing[Unité],MATCH(Table_recettes[[#This Row],[I8]],Table_ing[Ingredient],0))="g",Table_recettes[[#This Row],[Q8]],0),Table_recettes[[#This Row],[Q8]]) +IFERROR(IF(INDEX(Table_ing[Unité],MATCH(Table_recettes[[#This Row],[I9]],Table_ing[Ingredient],0))="g",Table_recettes[[#This Row],[Q9]],0),Table_recettes[[#This Row],[Q9]]) +IFERROR(IF(INDEX(Table_ing[Unité],MATCH(Table_recettes[[#This Row],[I10]],Table_ing[Ingredient],0))="g",Table_recettes[[#This Row],[Q10]],0),Table_recettes[[#This Row],[Q10]]) -> 1350 | BM36: =IFERROR(Table_recettes[[#This Row],[Poids]]/IF(Table_recettes[[#This Row],[Type]]="Produit",Table_recettes[[#This Row],[Unités]],1),0) -> 1350 | BN36: =Table_recettes[[#This Row],[CoutIng Recette]]*Table_recettes[[#This Row],[Frequence]] -> 4.81596 | BO36: =IF(Table_recettes[[#This Row],[Q1]]>0,IFERROR(INDEX(Table_ing[Coût par unité],MATCH(Table_recettes[[#This Row],[I1]],Table_ing[Ingredient],0))*Table_recettes[[#This Row],[Q1]],INDEX(Table_recettes[CoutIng/U],MATCH(Table_recettes[[#This Row],[I1]],Table_recettes[Recette],0))*Table_recettes[[#This Row],[Q1]]),0) +IF(Table_recettes[[#This Row],[Q2]]>0,IFERROR(INDEX(Table_ing[Coût par unité],MATCH(Table_recettes[[#This Row],[I2]],Table_ing[Ingredient],0))*Table_recettes[[#This Row],[Q2]],INDEX(Table_recettes[CoutIng/U],MATCH(Table_recettes[[#This Row],[I2]],Table_recettes[Recette],0))*Table_recettes[[#This Row],[Q2]]),0) +IF(Table_recettes[[#This Row],[Q3]]>0,IFERROR(INDEX(Table_ing[Coût par unité],MATCH(Table_recettes[[#This Row],[I3]],Table_ing[Ingredient],0))*Table_recettes[[#This Row],[Q3]],INDEX(Table_recettes[CoutIng/U],MATCH(Table_recettes[[#This Row],[I3]],Table_recettes[Recette],0))*Table_recettes[[#This Row],[Q3]]),0) +IF(Table_recettes[[#This Row],[Q4]]>0,IFERROR(INDEX(Table_ing[Coût par unité],MATCH(Table_recettes[[#This Row],[I4]],Table_ing[Ingredient],0))*Table_recettes[[#This Row],[Q4]],INDEX(Table_recettes[CoutIng/U],MATCH(Table_recettes[[#This Row],[I4]],Table_recettes[Recette],0))*Table_recettes[[#This Row],[Q4]]),0) +IF(Table_recettes[[#This Row],[Q5]]>0,IFERROR(INDEX(Table_ing[Coût par unité],MATCH(Table_recettes[[#This Row],[I5]],Table_ing[Ingredient],0))*Table_recettes[[#This Row],[Q5]],INDEX(Table_recettes[CoutIng/U],MATCH(Table_recettes[[#This Row],[I5]],Table_recettes[Recette],0))*Table_recettes[[#This Row],[Q5]]),0) +IF(Table_recettes[[#This Row],[Q6]]>0,IFERROR(INDEX(Table_ing[Coût par unité],MATCH(Table_recettes[[#This Row],[I6]],Table_ing[Ingredient],0))*Table_recettes[[#This Row],[Q6]],INDEX(Table_recettes[CoutIng/U],MATCH(Table_recettes[[#This Row],[I6]],Table_recettes[Recette],0))*Table_recettes[[#This Row],[Q6]]),0) +IF(Table_recettes[[#This Row],[Q7]]>0,IFERROR(INDEX(Table_ing[Coût par unité],MATCH(Table_recettes[[#This Row],[I7]],Table_ing[Ingredient],0))*Table_recettes[[#This Row],[Q7]],INDEX(Table_recettes[CoutIng/U],MATCH(Table_recettes[[#This Row],[I7]],Table_recettes[Recette],0))*Table_recettes[[#This Row],[Q7]]),0) +IF(Table_recettes[[#This Row],[Q8]]>0,IFERROR(INDEX(Table_ing[Coût par unité],MATCH(Table_recettes[[#This Row],[I8]],Table_ing[Ingredient],0))*Table_recettes[[#This Row],[Q8]],INDEX(Table_recettes[CoutIng/U],MATCH(Table_recettes[[#This Row],[I8]],Table_recettes[Recette],0))*Table_recettes[[#This Row],[Q8]]),0) +IF(Table_recettes[[#This Row],[Q9]]>0,IFERROR(INDEX(Table_ing[Coût par unité],MATCH(Table_recettes[[#This Row],[I9]],Table_ing[Ingredient],0))*Table_recettes[[#This Row],[Q9]],INDEX(Table_recettes[CoutIng/U],MATCH(Table_recettes[[#This Row],[I9]],Table_recettes[Recette],0))*Table_recettes[[#This Row],[Q9]]),0) +IF(Table_recettes[[#This Row],[Q10]]>0,IFERROR(INDEX(Table_ing[Coût par unité],MATCH(Table_recettes[[#This Row],[I10]],Table_ing[Ingredient],0))*Table_recettes[[#This Row],[Q10]],INDEX(Table_recettes[CoutIng/U],MATCH(Table_recettes[[#This Row],[I10]],Table_recettes[Recette],0))*Table_recettes[[#This Row],[Q8]]),0) -> 4.81596 | BP36: =IFERROR(Table_recettes[[#This Row],[CoutIng Recette]]/IF(Table_recettes[[#This Row],[Type]]="Produit",Table_recettes[[#This Row],[Unités]],Table_recettes[[#This Row],[Poids]]),0) -> 0.003567377778 | BQ36: =Table_recettes[[#This Row],[CoutRH Recette]]*Table_recettes[[#This Row],[Frequence]] -> 4.233589744 | BR36: =(IFERROR(INDEX(Table_CoutRH[Cout horaire],MATCH(Table_recettes[[#This Row],[RH2]],Table_CoutRH[Employé ou équipe],0))*Table_recettes[[#This Row],[D2]],0) +IFERROR(INDEX(Table_CoutRH[Cout horaire],MATCH(Table_recettes[[#This Row],[RH3]],Table_CoutRH[Employé ou équipe],0))*Table_recettes[[#This Row],[D3]],0) +IFERROR(INDEX(Table_CoutRH[Cout horaire],MATCH(Table_recettes[[#This Row],[RH4]],Table_CoutRH[Employé ou équipe],0))*Table_recettes[[#This Row],[D4]],0) +IFERROR(INDEX(Table_CoutRH[Cout horaire],MATCH(Table_recettes[[#This Row],[RH5]],Table_CoutRH[Employé ou équipe],0))*Table_recettes[[#This Row],[D5]],0) +IFERROR(INDEX(Table_CoutRH[Cout horaire],MATCH(Table_recettes[[#This Row],[RH6]],Table_CoutRH[Employé ou équipe],0))*Table_recettes[[#This Row],[D6]],0) +IFERROR(INDEX(Table_CoutRH[Cout horaire],MATCH(Table_recettes[[#This Row],[RH7]],Table_CoutRH[Employé ou équipe],0))*Table_recettes[[#This Row],[D7]],0) +IFERROR(INDEX(Table_CoutRH[Cout horaire],MATCH(Table_recettes[[#This Row],[RH8]],Table_CoutRH[Employé ou équipe],0))*Table_recettes[[#This Row],[D8]],0) +IFERROR(INDEX(Table_CoutRH[Cout horaire],MATCH(Table_recettes[[#This Row],[RH9]],Table_CoutRH[Employé ou équipe],0))*Table_recettes[[#This Row],[D9]],0) +IFERROR(INDEX(Table_CoutRH[Cout horaire],MATCH(Table_recettes[[#This Row],[RH10]],Table_CoutRH[Employé ou équipe],0))*Table_recettes[[#This Row],[D10]],0))*24 +FctCoutRH(ROW(Table_recettes[[#This Row],[CoutRH/U]])) -> 4.233589744 | BS36: =IFERROR(Table_recettes[[#This Row],[CoutRH Recette]]/IF(Table_recettes[[#This Row],[Type]]="Produit",Table_recettes[[#This Row],[Unités]],Table_recettes[[#This Row],[Poids]]),0) -> 0.003135992403 | BT36: =IF(Table_recettes[[#This Row],[Type]]="Produit",Table_recettes[[#This Row],[CA Total TTC Recette]]*Table_recettes[[#This Row],[Frequence]],"") ->  | BU36: =IF(Table_recettes[[#This Row],[Type]]="Produit",Table_recettes[Unités]*Table_recettes[[#This Row],[Prix/U]],"") ->  | BV36: =IF(Table_recettes[[#This Row],[Type]]="Produit",Table_recettes[[#This Row],[TVA totale Recette]]*Table_recettes[[#This Row],[Frequence]],"") ->  | BW36: =IF(Table_recettes[[#This Row],[Type]]="Produit",Table_recettes[[#This Row],[CA Total TTC Recette]]*Table_recettes[[#This Row],[TVA applicable]]/(1+Table_recettes[[#This Row],[TVA applicable]]),"") ->  | BX36: =IF(Table_recettes[[#This Row],[Type]]="Produit",Table_recettes[[#This Row],[Prix/U]]*Table_recettes[[#This Row],[TVA applicable]]/(1+Table_recettes[[#This Row],[TVA applicable]]),"") ->  | BY36: =IF(Table_recettes[[#This Row],[Type]]="Produit",Table_recettes[[#This Row],[CA Total TTC Recette]]-Table_recettes[[#This Row],[TVA totale Recette]]-Table_recettes[[#This Row],[CoutIng Recette]],"") ->  | BZ36: =IF(Table_recettes[[#This Row],[Type]]="Produit",(Table_recettes[[#This Row],[CA Total TTC Recette]]-Table_recettes[[#This Row],[TVA totale Recette]])*(1-IF(OR(Option_MO="Globale",Option_MO="Par produit et globale"),Cell_CRp9,0))-Table_recettes[[#This Row],[CoutIng Recette]]-IF(OR(Option_MO="Par produit",Option_MO="Par produit et globale"),Table_recettes[[#This Row],[CoutRH Recette]],0),"") ->  | CA36: =IF(Table_recettes[[#This Row],[Type]]="Produit",(Table_recettes[[#This Row],[CA Total TTC Recette]]-Table_recettes[[#This Row],[TVA totale Recette]])*(1-Cell_CRp10-Cell_CRp2-IF(OR(Option_MO="Globale",Option_MO="Par produit et globale"),Cell_CRp9,0))-Table_recettes[[#This Row],[CoutIng Recette]]-IF(OR(Option_MO="Par produit",Option_MO="Par produit et globale"),Table_recettes[[#This Row],[CoutRH Recette]],0),"") ->  | CB36: =IF(Table_recettes[[#This Row],[Type]]="Produit",((Table_recettes[[#This Row],[CA Total TTC Recette]]-Table_recettes[[#This Row],[TVA totale Recette]])*(1-Cell_CRp10-Cell_CRp2-Cell_CRp4-Cell_CRp5-Cell_CRp6-Cell_CRp7-IF(OR(Option_MO="Globale",Option_MO="Par produit et globale"),Cell_CRp9,0))-Table_recettes[[#This Row],[CoutIng Recette]]-IF(OR(Option_MO="Par produit",Option_MO="Par produit et globale"),Table_recettes[[#This Row],[CoutRH Recette]],0))*(1-Cell_CRp8),"") ->  | CC36: =IFERROR(IF(Table_recettes[[#This Row],[Type]]="Produit",Table_recettes[[#This Row],[Marge Brute Recette]]/Table_recettes[[#This Row],[Unités]],""),0) ->  | CD36: =IFERROR(IF(Table_recettes[[#This Row],[Type]]="Produit",Table_recettes[[#This Row],[Marge SCP Recette]]/Table_recettes[[#This Row],[Unités]],""),0) ->  | CE36: =IFERROR(IF(Table_recettes[[#This Row],[Type]]="Produit",Table_recettes[[#This Row],[Marge opérationnelle Recette]]/Table_recettes[[#This Row],[Unités]],""),0) ->  | CF36: =IFERROR(IF(Table_recettes[[#This Row],[Type]]="Produit",Table_recettes[[#This Row],[Marge Nette Recette]]/Table_recettes[[#This Row],[Unités]],""),0) ->  | CG36: =IFERROR(IF(Table_recettes[[#This Row],[Type]]="Produit",Table_recettes[[#This Row],[Marge Brute/U]]-Table_recettes[[#This Row],[Marge SCP/U]],""),0) ->  | CH36: =IF(Table_recettes[[#This Row],[Type]]="Produit",Table_recettes[[#This Row],[Marge SCP/U]]-Table_recettes[[#This Row],[Marge Nette/U]],"") ->  | CI36: =IFERROR(IF(Table_recettes[[#This Row],[Type]]="Produit",Table_recettes[[#This Row],[Marge Brute/U]]/(Table_recettes[[#This Row],[Prix/U]]-Table_recettes[[#This Row],[TVA/U]]),""),0) ->  | CJ36: =IFERROR(IF(Table_recettes[[#This Row],[Type]]="Produit",Table_recettes[[#This Row],[Marge SCP/U]]/(Table_recettes[[#This Row],[Prix/U]]-Table_recettes[[#This Row],[TVA/U]]),""),0) ->  | CK36: =IFERROR(IF(Table_recettes[[#This Row],[Type]]="Produit",Table_recettes[[#This Row],[Marge opérationnelle/U]]/(Table_recettes[[#This Row],[Prix/U]]-Table_recettes[[#This Row],[TVA/U]]),""),0) ->  | CL36: =IFERROR(IF(Table_recettes[[#This Row],[Type]]="Produit",Table_recettes[[#This Row],[Marge Nette/U]]/(Table_recettes[[#This Row],[Prix/U]]-Table_recettes[[#This Row],[TVA/U]]),""),0) -> 
C37: Appareil | D37: Appareil | E37: Biscuit joconde | F37: 1 | J37: Oeuf entier | K37: 2000 | L37: Sucre semoule | M37: 1200 | N37: Poudre d'amandes | O37: 1200 | P37: Farine classique t55 or | Q37: 360 | R37: Blanc d'oeufs | S37: 1000 | T37: Sucre semoule | U37: 120 | AD37: Prorata poids de la fabrication des appareils | AE37: =FctDuree(ROW(Table_recettes[[#This Row],[D1]])) -> 0 | AF37: Préparer les ingrédients | AG37: 0.002083333333 | AH37: Equipe pâtisserie | AI37: Mettre les blancs à battre dans la cuve du batteur. Une fois montés, serrer avec le sucre (120g) | AJ37: 0.002083333333 | AK37: Equipe pâtisserie | AL37: Faire fondre le beurre. Débarasser la cuve puis monter le mélange oeufs, farine, sucre et poudre d'amandes. Une fois monté, rajouter le beurre fondu et continuer à battre pour incorporation. | AM37: 0.005555555556 | AN37: Equipe pâtisserie | AO37: Ajouter les blancs en prémélange. Puis incorporer le tout délicatement. | AP37: 0.002083333333 | AQ37: Equipe pâtisserie | AR37: Etaler sur des plaques par pesées de 300g. Cuire à 210°C pendant 20 minutes. | AS37: 0.006944444444 | AT37: Equipe pâtisserie | AU37: Défourner, emballer puis réserver au frais | AV37: 0.002083333333 | AW37: Equipe pâtisserie | BG37: 2014-06-23 | BH37: 2014-05-03 | BI37: =(Table_recettes[[#This Row],[D1]]+Table_recettes[[#This Row],[D2]]+Table_recettes[[#This Row],[D3]]+Table_recettes[[#This Row],[D4]]+Table_recettes[[#This Row],[D5]]+Table_recettes[[#This Row],[D6]]+Table_recettes[[#This Row],[D7]]+Table_recettes[[#This Row],[D8]]+Table_recettes[[#This Row],[D9]]+Table_recettes[[#This Row],[D10]]) -> 0.02083333333 | BJ37: =Table_recettes[[#This Row],[Frequence]]*Table_recettes[[#This Row],[Unités]] -> 0 | BK37: =IFERROR(Table_recettes[[#This Row],[Duree]]/IF(Table_recettes[[#This Row],[Type]]="Produit",Table_recettes[[#This Row],[Unités]],Table_recettes[[#This Row],[Poids]]),0) -> 3.5430839e-06 | BL37: =IFERROR(IF(INDEX(Table_ing[Unité],MATCH(Table_recettes[[#This Row],[I1]],Table_ing[Ingredient],0))="g",Table_recettes[[#This Row],[Q1]],0),Table_recettes[[#This Row],[Q1]]) +IFERROR(IF(INDEX(Table_ing[Unité],MATCH(Table_recettes[[#This Row],[I2]],Table_ing[Ingredient],0))="g",Table_recettes[[#This Row],[Q2]],0),Table_recettes[[#This Row],[Q2]]) +IFERROR(IF(INDEX(Table_ing[Unité],MATCH(Table_recettes[[#This Row],[I3]],Table_ing[Ingredient],0))="g",Table_recettes[[#This Row],[Q3]],0),Table_recettes[[#This Row],[Q3]]) +IFERROR(IF(INDEX(Table_ing[Unité],MATCH(Table_recettes[[#This Row],[I4]],Table_ing[Ingredient],0))="g",Table_recettes[[#This Row],[Q4]],0),Table_recettes[[#This Row],[Q4]]) +IFERROR(IF(INDEX(Table_ing[Unité],MATCH(Table_recettes[[#This Row],[I5]],Table_ing[Ingredient],0))="g",Table_recettes[[#This Row],[Q5]],0),Table_recettes[[#This Row],[Q5]]) +IFERROR(IF(INDEX(Table_ing[Unité],MATCH(Table_recettes[[#This Row],[I6]],Table_ing[Ingredient],0))="g",Table_recettes[[#This Row],[Q6]],0),Table_recettes[[#This Row],[Q6]]) +IFERROR(IF(INDEX(Table_ing[Unité],MATCH(Table_recettes[[#This Row],[I7]],Table_ing[Ingredient],0))="g",Table_recettes[[#This Row],[Q7]],0),Table_recettes[[#This Row],[Q7]]) +IFERROR(IF(INDEX(Table_ing[Unité],MATCH(Table_recettes[[#This Row],[I8]],Table_ing[Ingredient],0))="g",Table_recettes[[#This Row],[Q8]],0),Table_recettes[[#This Row],[Q8]]) +IFERROR(IF(INDEX(Table_ing[Unité],MATCH(Table_recettes[[#This Row],[I9]],Table_ing[Ingredient],0))="g",Table_recettes[[#This Row],[Q9]],0),Table_recettes[[#This Row],[Q9]]) +IFERROR(IF(INDEX(Table_ing[Unité],MATCH(Table_recettes[[#This Row],[I10]],Table_ing[Ingredient],0))="g",Table_recettes[[#This Row],[Q10]],0),Table_recettes[[#This Row],[Q10]]) -> 5880 | BM37: =IFERROR(Table_recettes[[#This Row],[Poids]]/IF(Table_recettes[[#This Row],[Type]]="Produit",Table_recettes[[#This Row],[Unités]],1),0) -> 5880 | BN37: =Table_recettes[[#This Row],[CoutIng Recette]]*Table_recettes[[#This Row],[Frequence]] -> 20.127376 | BO37: =IF(Table_recettes[[#This Row],[Q1]]>0,IFERROR(INDEX(Table_ing[Coût par unité],MATCH(Table_recettes[[#This Row],[I1]],Table_ing[Ingredient],0))*Table_recettes[[#This Row],[Q1]],INDEX(Table_recettes[CoutIng/U],MATCH(Table_recettes[[#This Row],[I1]],Table_recettes[Recette],0))*Table_recettes[[#This Row],[Q1]]),0) +IF(Table_recettes[[#This Row],[Q2]]>0,IFERROR(INDEX(Table_ing[Coût par unité],MATCH(Table_recettes[[#This Row],[I2]],Table_ing[Ingredient],0))*Table_recettes[[#This Row],[Q2]],INDEX(Table_recettes[CoutIng/U],MATCH(Table_recettes[[#This Row],[I2]],Table_recettes[Recette],0))*Table_recettes[[#This Row],[Q2]]),0) +IF(Table_recettes[[#This Row],[Q3]]>0,IFERROR(INDEX(Table_ing[Coût par unité],MATCH(Table_recettes[[#This Row],[I3]],Table_ing[Ingredient],0))*Table_recettes[[#This Row],[Q3]],INDEX(Table_recettes[CoutIng/U],MATCH(Table_recettes[[#This Row],[I3]],Table_recettes[Recette],0))*Table_recettes[[#This Row],[Q3]]),0) +IF(Table_recettes[[#This Row],[Q4]]>0,IFERROR(INDEX(Table_ing[Coût par unité],MATCH(Table_recettes[[#This Row],[I4]],Table_ing[Ingredient],0))*Table_recettes[[#This Row],[Q4]],INDEX(Table_recettes[CoutIng/U],MATCH(Table_recettes[[#This Row],[I4]],Table_recettes[Recette],0))*Table_recettes[[#This Row],[Q4]]),0) +IF(Table_recettes[[#This Row],[Q5]]>0,IFERROR(INDEX(Table_ing[Coût par unité],MATCH(Table_recettes[[#This Row],[I5]],Table_ing[Ingredient],0))*Table_recettes[[#This Row],[Q5]],INDEX(Table_recettes[CoutIng/U],MATCH(Table_recettes[[#This Row],[I5]],Table_recettes[Recette],0))*Table_recettes[[#This Row],[Q5]]),0) +IF(Table_recettes[[#This Row],[Q6]]>0,IFERROR(INDEX(Table_ing[Coût par unité],MATCH(Table_recettes[[#This Row],[I6]],Table_ing[Ingredient],0))*Table_recettes[[#This Row],[Q6]],INDEX(Table_recettes[CoutIng/U],MATCH(Table_recettes[[#This Row],[I6]],Table_recettes[Recette],0))*Table_recettes[[#This Row],[Q6]]),0) +IF(Table_recettes[[#This Row],[Q7]]>0,IFERROR(INDEX(Table_ing[Coût par unité],MATCH(Table_recettes[[#This Row],[I7]],Table_ing[Ingredient],0))*Table_recettes[[#This Row],[Q7]],INDEX(Table_recettes[CoutIng/U],MATCH(Table_recettes[[#This Row],[I7]],Table_recettes[Recette],0))*Table_recettes[[#This Row],[Q7]]),0) +IF(Table_recettes[[#This Row],[Q8]]>0,IFERROR(INDEX(Table_ing[Coût par unité],MATCH(Table_recettes[[#This Row],[I8]],Table_ing[Ingredient],0))*Table_recettes[[#This Row],[Q8]],INDEX(Table_recettes[CoutIng/U],MATCH(Table_recettes[[#This Row],[I8]],Table_recettes[Recette],0))*Table_recettes[[#This Row],[Q8]]),0) +IF(Table_recettes[[#This Row],[Q9]]>0,IFERROR(INDEX(Table_ing[Coût par unité],MATCH(Table_recettes[[#This Row],[I9]],Table_ing[Ingredient],0))*Table_recettes[[#This Row],[Q9]],INDEX(Table_recettes[CoutIng/U],MATCH(Table_recettes[[#This Row],[I9]],Table_recettes[Recette],0))*Table_recettes[[#This Row],[Q9]]),0) +IF(Table_recettes[[#This Row],[Q10]]>0,IFERROR(INDEX(Table_ing[Coût par unité],MATCH(Table_recettes[[#This Row],[I10]],Table_ing[Ingredient],0))*Table_recettes[[#This Row],[Q10]],INDEX(Table_recettes[CoutIng/U],MATCH(Table_recettes[[#This Row],[I10]],Table_recettes[Recette],0))*Table_recettes[[#This Row],[Q8]]),0) -> 20.127376 | BP37: =IFERROR(Table_recettes[[#This Row],[CoutIng Recette]]/IF(Table_recettes[[#This Row],[Type]]="Produit",Table_recettes[[#This Row],[Unités]],Table_recettes[[#This Row],[Poids]]),0) -> 0.003423023129 | BQ37: =Table_recettes[[#This Row],[CoutRH Recette]]*Table_recettes[[#This Row],[Frequence]] -> 6.684615385 | BR37: =(IFERROR(INDEX(Table_CoutRH[Cout horaire],MATCH(Table_recettes[[#This Row],[RH2]],Table_CoutRH[Employé ou équipe],0))*Table_recettes[[#This Row],[D2]],0) +IFERROR(INDEX(Table_CoutRH[Cout horaire],MATCH(Table_recettes[[#This Row],[RH3]],Table_CoutRH[Employé ou équipe],0))*Table_recettes[[#This Row],[D3]],0) +IFERROR(INDEX(Table_CoutRH[Cout horaire],MATCH(Table_recettes[[#This Row],[RH4]],Table_CoutRH[Employé ou équipe],0))*Table_recettes[[#This Row],[D4]],0) +IFERROR(INDEX(Table_CoutRH[Cout horaire],MATCH(Table_recettes[[#This Row],[RH5]],Table_CoutRH[Employé ou équipe],0))*Table_recettes[[#This Row],[D5]],0) +IFERROR(INDEX(Table_CoutRH[Cout horaire],MATCH(Table_recettes[[#This Row],[RH6]],Table_CoutRH[Employé ou équipe],0))*Table_recettes[[#This Row],[D6]],0) +IFERROR(INDEX(Table_CoutRH[Cout horaire],MATCH(Table_recettes[[#This Row],[RH7]],Table_CoutRH[Employé ou équipe],0))*Table_recettes[[#This Row],[D7]],0) +IFERROR(INDEX(Table_CoutRH[Cout horaire],MATCH(Table_recettes[[#This Row],[RH8]],Table_CoutRH[Employé ou équipe],0))*Table_recettes[[#This Row],[D8]],0) +IFERROR(INDEX(Table_CoutRH[Cout horaire],MATCH(Table_recettes[[#This Row],[RH9]],Table_CoutRH[Employé ou équipe],0))*Table_recettes[[#This Row],[D9]],0) +IFERROR(INDEX(Table_CoutRH[Cout horaire],MATCH(Table_recettes[[#This Row],[RH10]],Table_CoutRH[Employé ou équipe],0))*Table_recettes[[#This Row],[D10]],0))*24 +FctCoutRH(ROW(Table_recettes[[#This Row],[CoutRH/U]])) -> 6.684615385 | BS37: =IFERROR(Table_recettes[[#This Row],[CoutRH Recette]]/IF(Table_recettes[[#This Row],[Type]]="Produit",Table_recettes[[#This Row],[Unités]],Table_recettes[[#This Row],[Poids]]),0) -> 0.001136839351 | BT37: =IF(Table_recettes[[#This Row],[Type]]="Produit",Table_recettes[[#This Row],[CA Total TTC Recette]]*Table_recettes[[#This Row],[Frequence]],"") ->  | BU37: =IF(Table_recettes[[#This Row],[Type]]="Produit",Table_recettes[Unités]*Table_recettes[[#This Row],[Prix/U]],"") ->  | BV37: =IF(Table_recettes[[#This Row],[Type]]="Produit",Table_recettes[[#This Row],[TVA totale Recette]]*Table_recettes[[#This Row],[Frequence]],"") ->  | BW37: =IF(Table_recettes[[#This Row],[Type]]="Produit",Table_recettes[[#This Row],[CA Total TTC Recette]]*Table_recettes[[#This Row],[TVA applicable]]/(1+Table_recettes[[#This Row],[TVA applicable]]),"") ->  | BX37: =IF(Table_recettes[[#This Row],[Type]]="Produit",Table_recettes[[#This Row],[Prix/U]]*Table_recettes[[#This Row],[TVA applicable]]/(1+Table_recettes[[#This Row],[TVA applicable]]),"") ->  | BY37: =IF(Table_recettes[[#This Row],[Type]]="Produit",Table_recettes[[#This Row],[CA Total TTC Recette]]-Table_recettes[[#This Row],[TVA totale Recette]]-Table_recettes[[#This Row],[CoutIng Recette]],"") ->  | BZ37: =IF(Table_recettes[[#This Row],[Type]]="Produit",(Table_recettes[[#This Row],[CA Total TTC Recette]]-Table_recettes[[#This Row],[TVA totale Recette]])*(1-IF(OR(Option_MO="Globale",Option_MO="Par produit et globale"),Cell_CRp9,0))-Table_recettes[[#This Row],[CoutIng Recette]]-IF(OR(Option_MO="Par produit",Option_MO="Par produit et globale"),Table_recettes[[#This Row],[CoutRH Recette]],0),"") ->  | CA37: =IF(Table_recettes[[#This Row],[Type]]="Produit",(Table_recettes[[#This Row],[CA Total TTC Recette]]-Table_recettes[[#This Row],[TVA totale Recette]])*(1-Cell_CRp10-Cell_CRp2-IF(OR(Option_MO="Globale",Option_MO="Par produit et globale"),Cell_CRp9,0))-Table_recettes[[#This Row],[CoutIng Recette]]-IF(OR(Option_MO="Par produit",Option_MO="Par produit et globale"),Table_recettes[[#This Row],[CoutRH Recette]],0),"") ->  | CB37: =IF(Table_recettes[[#This Row],[Type]]="Produit",((Table_recettes[[#This Row],[CA Total TTC Recette]]-Table_recettes[[#This Row],[TVA totale Recette]])*(1-Cell_CRp10-Cell_CRp2-Cell_CRp4-Cell_CRp5-Cell_CRp6-Cell_CRp7-IF(OR(Option_MO="Globale",Option_MO="Par produit et globale"),Cell_CRp9,0))-Table_recettes[[#This Row],[CoutIng Recette]]-IF(OR(Option_MO="Par produit",Option_MO="Par produit et globale"),Table_recettes[[#This Row],[CoutRH Recette]],0))*(1-Cell_CRp8),"") ->  | CC37: =IFERROR(IF(Table_recettes[[#This Row],[Type]]="Produit",Table_recettes[[#This Row],[Marge Brute Recette]]/Table_recettes[[#This Row],[Unités]],""),0) ->  | CD37: =IFERROR(IF(Table_recettes[[#This Row],[Type]]="Produit",Table_recettes[[#This Row],[Marge SCP Recette]]/Table_recettes[[#This Row],[Unités]],""),0) ->  | CE37: =IFERROR(IF(Table_recettes[[#This Row],[Type]]="Produit",Table_recettes[[#This Row],[Marge opérationnelle Recette]]/Table_recettes[[#This Row],[Unités]],""),0) ->  | CF37: =IFERROR(IF(Table_recettes[[#This Row],[Type]]="Produit",Table_recettes[[#This Row],[Marge Nette Recette]]/Table_recettes[[#This Row],[Unités]],""),0) ->  | CG37: =IFERROR(IF(Table_recettes[[#This Row],[Type]]="Produit",Table_recettes[[#This Row],[Marge Brute/U]]-Table_recettes[[#This Row],[Marge SCP/U]],""),0) ->  | CH37: =IF(Table_recettes[[#This Row],[Type]]="Produit",Table_recettes[[#This Row],[Marge SCP/U]]-Table_recettes[[#This Row],[Marge Nette/U]],"") ->  | CI37: =IFERROR(IF(Table_recettes[[#This Row],[Type]]="Produit",Table_recettes[[#This Row],[Marge Brute/U]]/(Table_recettes[[#This Row],[Prix/U]]-Table_recettes[[#This Row],[TVA/U]]),""),0) ->  | CJ37: =IFERROR(IF(Table_recettes[[#This Row],[Type]]="Produit",Table_recettes[[#This Row],[Marge SCP/U]]/(Table_recettes[[#This Row],[Prix/U]]-Table_recettes[[#This Row],[TVA/U]]),""),0) ->  | CK37: =IFERROR(IF(Table_recettes[[#This Row],[Type]]="Produit",Table_recettes[[#This Row],[Marge opérationnelle/U]]/(Table_recettes[[#This Row],[Prix/U]]-Table_recettes[[#This Row],[TVA/U]]),""),0) ->  | CL37: =IFERROR(IF(Table_recettes[[#This Row],[Type]]="Produit",Table_recettes[[#This Row],[Marge Nette/U]]/(Table_recettes[[#This Row],[Prix/U]]-Table_recettes[[#This Row],[TVA/U]]),""),0) -> 
C38: Appareil | D38: Appareil | E38: Biscuit macaron | F38: 6 | J38: Sucre semoule | K38: 500 | L38: Poudre d'amandes | M38: 500 | N38: Blanc d'oeufs | O38: 180 | P38: Meringue macaron | Q38: 680 | AD38: Prorata poids de la fabrication des appareils | AE38: =FctDuree(ROW(Table_recettes[[#This Row],[D1]])) -> 0.005555555556 | AF38: Préparer les ingrédients | AG38: 0.002083333333 | AH38: Equipe pâtisserie | AI38: Monter les blancs et les serrer avec le sucre | AJ38: 0.002083333333 | AK38: Equipe pâtisserie | AL38: Incorporer les poudres délicatement puis macaronner : continuer l'incorporation jusqu'à ce que la texture ne laisse plus apparaître le relief des coques dressées | AM38: 0.002777777778 | AN38: Equipe pâtisserie | AO38: Dresser les coques sur des plaques | AP38: 0.01041666667 | AQ38: Equipe pâtisserie | AR38: Enfourner 12 minutes à 120°C, defourner puis laisser ressuer sur grille | AS38: 0.006944444444 | AT38: Equipe pâtisserie | BG38: 2014-07-01 | BH38: 2014-05-03 | BI38: =(Table_recettes[[#This Row],[D1]]+Table_recettes[[#This Row],[D2]]+Table_recettes[[#This Row],[D3]]+Table_recettes[[#This Row],[D4]]+Table_recettes[[#This Row],[D5]]+Table_recettes[[#This Row],[D6]]+Table_recettes[[#This Row],[D7]]+Table_recettes[[#This Row],[D8]]+Table_recettes[[#This Row],[D9]]+Table_recettes[[#This Row],[D10]]) -> 0.02986111111 | BJ38: =Table_recettes[[#This Row],[Frequence]]*Table_recettes[[#This Row],[Unités]] -> 0 | BK38: =IFERROR(Table_recettes[[#This Row],[Duree]]/IF(Table_recettes[[#This Row],[Type]]="Produit",Table_recettes[[#This Row],[Unités]],Table_recettes[[#This Row],[Poids]]),0) -> 1.605436081e-05 | BL38: =IFERROR(IF(INDEX(Table_ing[Unité],MATCH(Table_recettes[[#This Row],[I1]],Table_ing[Ingredient],0))="g",Table_recettes[[#This Row],[Q1]],0),Table_recettes[[#This Row],[Q1]]) +IFERROR(IF(INDEX(Table_ing[Unité],MATCH(Table_recettes[[#This Row],[I2]],Table_ing[Ingredient],0))="g",Table_recettes[[#This Row],[Q2]],0),Table_recettes[[#This Row],[Q2]]) +IFERROR(IF(INDEX(Table_ing[Unité],MATCH(Table_recettes[[#This Row],[I3]],Table_ing[Ingredient],0))="g",Table_recettes[[#This Row],[Q3]],0),Table_recettes[[#This Row],[Q3]]) +IFERROR(IF(INDEX(Table_ing[Unité],MATCH(Table_recettes[[#This Row],[I4]],Table_ing[Ingredient],0))="g",Table_recettes[[#This Row],[Q4]],0),Table_recettes[[#This Row],[Q4]]) +IFERROR(IF(INDEX(Table_ing[Unité],MATCH(Table_recettes[[#This Row],[I5]],Table_ing[Ingredient],0))="g",Table_recettes[[#This Row],[Q5]],0),Table_recettes[[#This Row],[Q5]]) +IFERROR(IF(INDEX(Table_ing[Unité],MATCH(Table_recettes[[#This Row],[I6]],Table_ing[Ingredient],0))="g",Table_recettes[[#This Row],[Q6]],0),Table_recettes[[#This Row],[Q6]]) +IFERROR(IF(INDEX(Table_ing[Unité],MATCH(Table_recettes[[#This Row],[I7]],Table_ing[Ingredient],0))="g",Table_recettes[[#This Row],[Q7]],0),Table_recettes[[#This Row],[Q7]]) +IFERROR(IF(INDEX(Table_ing[Unité],MATCH(Table_recettes[[#This Row],[I8]],Table_ing[Ingredient],0))="g",Table_recettes[[#This Row],[Q8]],0),Table_recettes[[#This Row],[Q8]]) +IFERROR(IF(INDEX(Table_ing[Unité],MATCH(Table_recettes[[#This Row],[I9]],Table_ing[Ingredient],0))="g",Table_recettes[[#This Row],[Q9]],0),Table_recettes[[#This Row],[Q9]]) +IFERROR(IF(INDEX(Table_ing[Unité],MATCH(Table_recettes[[#This Row],[I10]],Table_ing[Ingredient],0))="g",Table_recettes[[#This Row],[Q10]],0),Table_recettes[[#This Row],[Q10]]) -> 1860 | BM38: =IFERROR(Table_recettes[[#This Row],[Poids]]/IF(Table_recettes[[#This Row],[Type]]="Produit",Table_recettes[[#This Row],[Unités]],1),0) -> 1860 | BN38: =Table_recettes[[#This Row],[CoutIng Recette]]*Table_recettes[[#This Row],[Frequence]] -> 38.0688 | BO38: =IF(Table_recettes[[#This Row],[Q1]]>0,IFERROR(INDEX(Table_ing[Coût par unité],MATCH(Table_recettes[[#This Row],[I1]],Table_ing[Ingredient],0))*Table_recettes[[#This Row],[Q1]],INDEX(Table_recettes[CoutIng/U],MATCH(Table_recettes[[#This Row],[I1]],Table_recettes[Recette],0))*Table_recettes[[#This Row],[Q1]]),0) +IF(Table_recettes[[#This Row],[Q2]]>0,IFERROR(INDEX(Table_ing[Coût par unité],MATCH(Table_recettes[[#This Row],[I2]],Table_ing[Ingredient],0))*Table_recettes[[#This Row],[Q2]],INDEX(Table_recettes[CoutIng/U],MATCH(Table_recettes[[#This Row],[I2]],Table_recettes[Recette],0))*Table_recettes[[#This Row],[Q2]]),0) +IF(Table_recettes[[#This Row],[Q3]]>0,IFERROR(INDEX(Table_ing[Coût par unité],MATCH(Table_recettes[[#This Row],[I3]],Table_ing[Ingredient],0))*Table_recettes[[#This Row],[Q3]],INDEX(Table_recettes[CoutIng/U],MATCH(Table_recettes[[#This Row],[I3]],Table_recettes[Recette],0))*Table_recettes[[#This Row],[Q3]]),0) +IF(Table_recettes[[#This Row],[Q4]]>0,IFERROR(INDEX(Table_ing[Coût par unité],MATCH(Table_recettes[[#This Row],[I4]],Table_ing[Ingredient],0))*Table_recettes[[#This Row],[Q4]],INDEX(Table_recettes[CoutIng/U],MATCH(Table_recettes[[#This Row],[I4]],Table_recettes[Recette],0))*Table_recettes[[#This Row],[Q4]]),0) +IF(Table_recettes[[#This Row],[Q5]]>0,IFERROR(INDEX(Table_ing[Coût par unité],MATCH(Table_recettes[[#This Row],[I5]],Table_ing[Ingredient],0))*Table_recettes[[#This Row],[Q5]],INDEX(Table_recettes[CoutIng/U],MATCH(Table_recettes[[#This Row],[I5]],Table_recettes[Recette],0))*Table_recettes[[#This Row],[Q5]]),0) +IF(Table_recettes[[#This Row],[Q6]]>0,IFERROR(INDEX(Table_ing[Coût par unité],MATCH(Table_recettes[[#This Row],[I6]],Table_ing[Ingredient],0))*Table_recettes[[#This Row],[Q6]],INDEX(Table_recettes[CoutIng/U],MATCH(Table_recettes[[#This Row],[I6]],Table_recettes[Recette],0))*Table_recettes[[#This Row],[Q6]]),0) +IF(Table_recettes[[#This Row],[Q7]]>0,IFERROR(INDEX(Table_ing[Coût par unité],MATCH(Table_recettes[[#This Row],[I7]],Table_ing[Ingredient],0))*Table_recettes[[#This Row],[Q7]],INDEX(Table_recettes[CoutIng/U],MATCH(Table_recettes[[#This Row],[I7]],Table_recettes[Recette],0))*Table_recettes[[#This Row],[Q7]]),0) +IF(Table_recettes[[#This Row],[Q8]]>0,IFERROR(INDEX(Table_ing[Coût par unité],MATCH(Table_recettes[[#This Row],[I8]],Table_ing[Ingredient],0))*Table_recettes[[#This Row],[Q8]],INDEX(Table_recettes[CoutIng/U],MATCH(Table_recettes[[#This Row],[I8]],Table_recettes[Recette],0))*Table_recettes[[#This Row],[Q8]]),0) +IF(Table_recettes[[#This Row],[Q9]]>0,IFERROR(INDEX(Table_ing[Coût par unité],MATCH(Table_recettes[[#This Row],[I9]],Table_ing[Ingredient],0))*Table_recettes[[#This Row],[Q9]],INDEX(Table_recettes[CoutIng/U],MATCH(Table_recettes[[#This Row],[I9]],Table_recettes[Recette],0))*Table_recettes[[#This Row],[Q9]]),0) +IF(Table_recettes[[#This Row],[Q10]]>0,IFERROR(INDEX(Table_ing[Coût par unité],MATCH(Table_recettes[[#This Row],[I10]],Table_ing[Ingredient],0))*Table_recettes[[#This Row],[Q10]],INDEX(Table_recettes[CoutIng/U],MATCH(Table_recettes[[#This Row],[I10]],Table_recettes[Recette],0))*Table_recettes[[#This Row],[Q8]]),0) -> 6.3448 | BP38: =IFERROR(Table_recettes[[#This Row],[CoutIng Recette]]/IF(Table_recettes[[#This Row],[Type]]="Produit",Table_recettes[[#This Row],[Unités]],Table_recettes[[#This Row],[Poids]]),0) -> 0.003411182796 | BQ38: =Table_recettes[[#This Row],[CoutRH Recette]]*Table_recettes[[#This Row],[Frequence]] -> 57.48769231 | BR38: =(IFERROR(INDEX(Table_CoutRH[Cout horaire],MATCH(Table_recettes[[#This Row],[RH2]],Table_CoutRH[Employé ou équipe],0))*Table_recettes[[#This Row],[D2]],0) +IFERROR(INDEX(Table_CoutRH[Cout horaire],MATCH(Table_recettes[[#This Row],[RH3]],Table_CoutRH[Employé ou équipe],0))*Table_recettes[[#This Row],[D3]],0) +IFERROR(INDEX(Table_CoutRH[Cout horaire],MATCH(Table_recettes[[#This Row],[RH4]],Table_CoutRH[Employé ou équipe],0))*Table_recettes[[#This Row],[D4]],0) +IFERROR(INDEX(Table_CoutRH[Cout horaire],MATCH(Table_recettes[[#This Row],[RH5]],Table_CoutRH[Employé ou équipe],0))*Table_recettes[[#This Row],[D5]],0) +IFERROR(INDEX(Table_CoutRH[Cout horaire],MATCH(Table_recettes[[#This Row],[RH6]],Table_CoutRH[Employé ou équipe],0))*Table_recettes[[#This Row],[D6]],0) +IFERROR(INDEX(Table_CoutRH[Cout horaire],MATCH(Table_recettes[[#This Row],[RH7]],Table_CoutRH[Employé ou équipe],0))*Table_recettes[[#This Row],[D7]],0) +IFERROR(INDEX(Table_CoutRH[Cout horaire],MATCH(Table_recettes[[#This Row],[RH8]],Table_CoutRH[Employé ou équipe],0))*Table_recettes[[#This Row],[D8]],0) +IFERROR(INDEX(Table_CoutRH[Cout horaire],MATCH(Table_recettes[[#This Row],[RH9]],Table_CoutRH[Employé ou équipe],0))*Table_recettes[[#This Row],[D9]],0) +IFERROR(INDEX(Table_CoutRH[Cout horaire],MATCH(Table_recettes[[#This Row],[RH10]],Table_CoutRH[Employé ou équipe],0))*Table_recettes[[#This Row],[D10]],0))*24 +FctCoutRH(ROW(Table_recettes[[#This Row],[CoutRH/U]])) -> 9.581282051 | BS38: =IFERROR(Table_recettes[[#This Row],[CoutRH Recette]]/IF(Table_recettes[[#This Row],[Type]]="Produit",Table_recettes[[#This Row],[Unités]],Table_recettes[[#This Row],[Poids]]),0) -> 0.005151226909 | BT38: =IF(Table_recettes[[#This Row],[Type]]="Produit",Table_recettes[[#This Row],[CA Total TTC Recette]]*Table_recettes[[#This Row],[Frequence]],"") ->  | BU38: =IF(Table_recettes[[#This Row],[Type]]="Produit",Table_recettes[Unités]*Table_recettes[[#This Row],[Prix/U]],"") ->  | BV38: =IF(Table_recettes[[#This Row],[Type]]="Produit",Table_recettes[[#This Row],[TVA totale Recette]]*Table_recettes[[#This Row],[Frequence]],"") ->  | BW38: =IF(Table_recettes[[#This Row],[Type]]="Produit",Table_recettes[[#This Row],[CA Total TTC Recette]]*Table_recettes[[#This Row],[TVA applicable]]/(1+Table_recettes[[#This Row],[TVA applicable]]),"") ->  | BX38: =IF(Table_recettes[[#This Row],[Type]]="Produit",Table_recettes[[#This Row],[Prix/U]]*Table_recettes[[#This Row],[TVA applicable]]/(1+Table_recettes[[#This Row],[TVA applicable]]),"") ->  | BY38: =IF(Table_recettes[[#This Row],[Type]]="Produit",Table_recettes[[#This Row],[CA Total TTC Recette]]-Table_recettes[[#This Row],[TVA totale Recette]]-Table_recettes[[#This Row],[CoutIng Recette]],"") ->  | BZ38: =IF(Table_recettes[[#This Row],[Type]]="Produit",(Table_recettes[[#This Row],[CA Total TTC Recette]]-Table_recettes[[#This Row],[TVA totale Recette]])*(1-IF(OR(Option_MO="Globale",Option_MO="Par produit et globale"),Cell_CRp9,0))-Table_recettes[[#This Row],[CoutIng Recette]]-IF(OR(Option_MO="Par produit",Option_MO="Par produit et globale"),Table_recettes[[#This Row],[CoutRH Recette]],0),"") ->  | CA38: =IF(Table_recettes[[#This Row],[Type]]="Produit",(Table_recettes[[#This Row],[CA Total TTC Recette]]-Table_recettes[[#This Row],[TVA totale Recette]])*(1-Cell_CRp10-Cell_CRp2-IF(OR(Option_MO="Globale",Option_MO="Par produit et globale"),Cell_CRp9,0))-Table_recettes[[#This Row],[CoutIng Recette]]-IF(OR(Option_MO="Par produit",Option_MO="Par produit et globale"),Table_recettes[[#This Row],[CoutRH Recette]],0),"") ->  | CB38: =IF(Table_recettes[[#This Row],[Type]]="Produit",((Table_recettes[[#This Row],[CA Total TTC Recette]]-Table_recettes[[#This Row],[TVA totale Recette]])*(1-Cell_CRp10-Cell_CRp2-Cell_CRp4-Cell_CRp5-Cell_CRp6-Cell_CRp7-IF(OR(Option_MO="Globale",Option_MO="Par produit et globale"),Cell_CRp9,0))-Table_recettes[[#This Row],[CoutIng Recette]]-IF(OR(Option_MO="Par produit",Option_MO="Par produit et globale"),Table_recettes[[#This Row],[CoutRH Recette]],0))*(1-Cell_CRp8),"") ->  | CC38: =IFERROR(IF(Table_recettes[[#This Row],[Type]]="Produit",Table_recettes[[#This Row],[Marge Brute Recette]]/Table_recettes[[#This Row],[Unités]],""),0) ->  | CD38: =IFERROR(IF(Table_recettes[[#This Row],[Type]]="Produit",Table_recettes[[#This Row],[Marge SCP Recette]]/Table_recettes[[#This Row],[Unités]],""),0) ->  | CE38: =IFERROR(IF(Table_recettes[[#This Row],[Type]]="Produit",Table_recettes[[#This Row],[Marge opérationnelle Recette]]/Table_recettes[[#This Row],[Unités]],""),0) ->  | CF38: =IFERROR(IF(Table_recettes[[#This Row],[Type]]="Produit",Table_recettes[[#This Row],[Marge Nette Recette]]/Table_recettes[[#This Row],[Unités]],""),0) ->  | CG38: =IFERROR(IF(Table_recettes[[#This Row],[Type]]="Produit",Table_recettes[[#This Row],[Marge Brute/U]]-Table_recettes[[#This Row],[Marge SCP/U]],""),0) ->  | CH38: =IF(Table_recettes[[#This Row],[Type]]="Produit",Table_recettes[[#This Row],[Marge SCP/U]]-Table_recettes[[#This Row],[Marge Nette/U]],"") ->  | CI38: =IFERROR(IF(Table_recettes[[#This Row],[Type]]="Produit",Table_recettes[[#This Row],[Marge Brute/U]]/(Table_recettes[[#This Row],[Prix/U]]-Table_recettes[[#This Row],[TVA/U]]),""),0) ->  | CJ38: =IFERROR(IF(Table_recettes[[#This Row],[Type]]="Produit",Table_recettes[[#This Row],[Marge SCP/U]]/(Table_recettes[[#This Row],[Prix/U]]-Table_recettes[[#This Row],[TVA/U]]),""),0) ->  | CK38: =IFERROR(IF(Table_recettes[[#This Row],[Type]]="Produit",Table_recettes[[#This Row],[Marge opérationnelle/U]]/(Table_recettes[[#This Row],[Prix/U]]-Table_recettes[[#This Row],[TVA/U]]),""),0) ->  | CL38: =IFERROR(IF(Table_recettes[[#This Row],[Type]]="Produit",Table_recettes[[#This Row],[Marge Nette/U]]/(Table_recettes[[#This Row],[Prix/U]]-Table_recettes[[#This Row],[TVA/U]]),""),0) -> 
C39: Appareil | D39: Appareil | E39: Biscuit nature | F39: 1 | J39: Jaune d'oeufs | K39: 960 | L39: Sucre semoule | M39: 800 | N39: Miel | O39: 400 | P39: Farine classique t55 or | Q39: 1200 | R39: Blanc d'oeufs | S39: 1500 | AD39: Prorata poids de la fabrication des appareils | AE39: =FctDuree(ROW(Table_recettes[[#This Row],[D1]])) -> 0 | AF39: Préparer les ingrédients | AG39: 0.002083333333 | AH39: Equipe pâtisserie | AI39: Mettre les blancs à battre dans la cuve du batteur. Une fois montés, serrer avec le sucre. | AJ39: 0.003472222222 | AK39: Equipe pâtisserie | AL39: Rajouter les poudres en pluie et incorporer délicatement. Rajouter miel et jaunes délicatement également. | AM39: 0.003472222222 | AN39: Equipe pâtisserie | AO39: Etaler sur des plaques par pesées de 300g. Cuire à 210°C pendant 20 minutes. | AP39: 0.004166666667 | AQ39: Equipe pâtisserie | AR39: Défourner, emballer puis réserver au frais | AS39: 0.002083333333 | AT39: Equipe pâtisserie | BG39: 2014-06-23 | BH39: 2014-05-03 | BI39: =(Table_recettes[[#This Row],[D1]]+Table_recettes[[#This Row],[D2]]+Table_recettes[[#This Row],[D3]]+Table_recettes[[#This Row],[D4]]+Table_recettes[[#This Row],[D5]]+Table_recettes[[#This Row],[D6]]+Table_recettes[[#This Row],[D7]]+Table_recettes[[#This Row],[D8]]+Table_recettes[[#This Row],[D9]]+Table_recettes[[#This Row],[D10]]) -> 0.01527777778 | BJ39: =Table_recettes[[#This Row],[Frequence]]*Table_recettes[[#This Row],[Unités]] -> 0 | BK39: =IFERROR(Table_recettes[[#This Row],[Duree]]/IF(Table_recettes[[#This Row],[Type]]="Produit",Table_recettes[[#This Row],[Unités]],Table_recettes[[#This Row],[Poids]]),0) -> 3.143575674e-06 | BL39: =IFERROR(IF(INDEX(Table_ing[Unité],MATCH(Table_recettes[[#This Row],[I1]],Table_ing[Ingredient],0))="g",Table_recettes[[#This Row],[Q1]],0),Table_recettes[[#This Row],[Q1]]) +IFERROR(IF(INDEX(Table_ing[Unité],MATCH(Table_recettes[[#This Row],[I2]],Table_ing[Ingredient],0))="g",Table_recettes[[#This Row],[Q2]],0),Table_recettes[[#This Row],[Q2]]) +IFERROR(IF(INDEX(Table_ing[Unité],MATCH(Table_recettes[[#This Row],[I3]],Table_ing[Ingredient],0))="g",Table_recettes[[#This Row],[Q3]],0),Table_recettes[[#This Row],[Q3]]) +IFERROR(IF(INDEX(Table_ing[Unité],MATCH(Table_recettes[[#This Row],[I4]],Table_ing[Ingredient],0))="g",Table_recettes[[#This Row],[Q4]],0),Table_recettes[[#This Row],[Q4]]) +IFERROR(IF(INDEX(Table_ing[Unité],MATCH(Table_recettes[[#This Row],[I5]],Table_ing[Ingredient],0))="g",Table_recettes[[#This Row],[Q5]],0),Table_recettes[[#This Row],[Q5]]) +IFERROR(IF(INDEX(Table_ing[Unité],MATCH(Table_recettes[[#This Row],[I6]],Table_ing[Ingredient],0))="g",Table_recettes[[#This Row],[Q6]],0),Table_recettes[[#This Row],[Q6]]) +IFERROR(IF(INDEX(Table_ing[Unité],MATCH(Table_recettes[[#This Row],[I7]],Table_ing[Ingredient],0))="g",Table_recettes[[#This Row],[Q7]],0),Table_recettes[[#This Row],[Q7]]) +IFERROR(IF(INDEX(Table_ing[Unité],MATCH(Table_recettes[[#This Row],[I8]],Table_ing[Ingredient],0))="g",Table_recettes[[#This Row],[Q8]],0),Table_recettes[[#This Row],[Q8]]) +IFERROR(IF(INDEX(Table_ing[Unité],MATCH(Table_recettes[[#This Row],[I9]],Table_ing[Ingredient],0))="g",Table_recettes[[#This Row],[Q9]],0),Table_recettes[[#This Row],[Q9]]) +IFERROR(IF(INDEX(Table_ing[Unité],MATCH(Table_recettes[[#This Row],[I10]],Table_ing[Ingredient],0))="g",Table_recettes[[#This Row],[Q10]],0),Table_recettes[[#This Row],[Q10]]) -> 4860 | BM39: =IFERROR(Table_recettes[[#This Row],[Poids]]/IF(Table_recettes[[#This Row],[Type]]="Produit",Table_recettes[[#This Row],[Unités]],1),0) -> 4860 | BN39: =Table_recettes[[#This Row],[CoutIng Recette]]*Table_recettes[[#This Row],[Frequence]] -> 12.58832 | BO39: =IF(Table_recettes[[#This Row],[Q1]]>0,IFERROR(INDEX(Table_ing[Coût par unité],MATCH(Table_recettes[[#This Row],[I1]],Table_ing[Ingredient],0))*Table_recettes[[#This Row],[Q1]],INDEX(Table_recettes[CoutIng/U],MATCH(Table_recettes[[#This Row],[I1]],Table_recettes[Recette],0))*Table_recettes[[#This Row],[Q1]]),0) +IF(Table_recettes[[#This Row],[Q2]]>0,IFERROR(INDEX(Table_ing[Coût par unité],MATCH(Table_recettes[[#This Row],[I2]],Table_ing[Ingredient],0))*Table_recettes[[#This Row],[Q2]],INDEX(Table_recettes[CoutIng/U],MATCH(Table_recettes[[#This Row],[I2]],Table_recettes[Recette],0))*Table_recettes[[#This Row],[Q2]]),0) +IF(Table_recettes[[#This Row],[Q3]]>0,IFERROR(INDEX(Table_ing[Coût par unité],MATCH(Table_recettes[[#This Row],[I3]],Table_ing[Ingredient],0))*Table_recettes[[#This Row],[Q3]],INDEX(Table_recettes[CoutIng/U],MATCH(Table_recettes[[#This Row],[I3]],Table_recettes[Recette],0))*Table_recettes[[#This Row],[Q3]]),0) +IF(Table_recettes[[#This Row],[Q4]]>0,IFERROR(INDEX(Table_ing[Coût par unité],MATCH(Table_recettes[[#This Row],[I4]],Table_ing[Ingredient],0))*Table_recettes[[#This Row],[Q4]],INDEX(Table_recettes[CoutIng/U],MATCH(Table_recettes[[#This Row],[I4]],Table_recettes[Recette],0))*Table_recettes[[#This Row],[Q4]]),0) +IF(Table_recettes[[#This Row],[Q5]]>0,IFERROR(INDEX(Table_ing[Coût par unité],MATCH(Table_recettes[[#This Row],[I5]],Table_ing[Ingredient],0))*Table_recettes[[#This Row],[Q5]],INDEX(Table_recettes[CoutIng/U],MATCH(Table_recettes[[#This Row],[I5]],Table_recettes[Recette],0))*Table_recettes[[#This Row],[Q5]]),0) +IF(Table_recettes[[#This Row],[Q6]]>0,IFERROR(INDEX(Table_ing[Coût par unité],MATCH(Table_recettes[[#This Row],[I6]],Table_ing[Ingredient],0))*Table_recettes[[#This Row],[Q6]],INDEX(Table_recettes[CoutIng/U],MATCH(Table_recettes[[#This Row],[I6]],Table_recettes[Recette],0))*Table_recettes[[#This Row],[Q6]]),0) +IF(Table_recettes[[#This Row],[Q7]]>0,IFERROR(INDEX(Table_ing[Coût par unité],MATCH(Table_recettes[[#This Row],[I7]],Table_ing[Ingredient],0))*Table_recettes[[#This Row],[Q7]],INDEX(Table_recettes[CoutIng/U],MATCH(Table_recettes[[#This Row],[I7]],Table_recettes[Recette],0))*Table_recettes[[#This Row],[Q7]]),0) +IF(Table_recettes[[#This Row],[Q8]]>0,IFERROR(INDEX(Table_ing[Coût par unité],MATCH(Table_recettes[[#This Row],[I8]],Table_ing[Ingredient],0))*Table_recettes[[#This Row],[Q8]],INDEX(Table_recettes[CoutIng/U],MATCH(Table_recettes[[#This Row],[I8]],Table_recettes[Recette],0))*Table_recettes[[#This Row],[Q8]]),0) +IF(Table_recettes[[#This Row],[Q9]]>0,IFERROR(INDEX(Table_ing[Coût par unité],MATCH(Table_recettes[[#This Row],[I9]],Table_ing[Ingredient],0))*Table_recettes[[#This Row],[Q9]],INDEX(Table_recettes[CoutIng/U],MATCH(Table_recettes[[#This Row],[I9]],Table_recettes[Recette],0))*Table_recettes[[#This Row],[Q9]]),0) +IF(Table_recettes[[#This Row],[Q10]]>0,IFERROR(INDEX(Table_ing[Coût par unité],MATCH(Table_recettes[[#This Row],[I10]],Table_ing[Ingredient],0))*Table_recettes[[#This Row],[Q10]],INDEX(Table_recettes[CoutIng/U],MATCH(Table_recettes[[#This Row],[I10]],Table_recettes[Recette],0))*Table_recettes[[#This Row],[Q8]]),0) -> 12.58832 | BP39: =IFERROR(Table_recettes[[#This Row],[CoutIng Recette]]/IF(Table_recettes[[#This Row],[Type]]="Produit",Table_recettes[[#This Row],[Unités]],Table_recettes[[#This Row],[Poids]]),0) -> 0.0025901893 | BQ39: =Table_recettes[[#This Row],[CoutRH Recette]]*Table_recettes[[#This Row],[Frequence]] -> 4.902051282 | BR39: =(IFERROR(INDEX(Table_CoutRH[Cout horaire],MATCH(Table_recettes[[#This Row],[RH2]],Table_CoutRH[Employé ou équipe],0))*Table_recettes[[#This Row],[D2]],0) +IFERROR(INDEX(Table_CoutRH[Cout horaire],MATCH(Table_recettes[[#This Row],[RH3]],Table_CoutRH[Employé ou équipe],0))*Table_recettes[[#This Row],[D3]],0) +IFERROR(INDEX(Table_CoutRH[Cout horaire],MATCH(Table_recettes[[#This Row],[RH4]],Table_CoutRH[Employé ou équipe],0))*Table_recettes[[#This Row],[D4]],0) +IFERROR(INDEX(Table_CoutRH[Cout horaire],MATCH(Table_recettes[[#This Row],[RH5]],Table_CoutRH[Employé ou équipe],0))*Table_recettes[[#This Row],[D5]],0) +IFERROR(INDEX(Table_CoutRH[Cout horaire],MATCH(Table_recettes[[#This Row],[RH6]],Table_CoutRH[Employé ou équipe],0))*Table_recettes[[#This Row],[D6]],0) +IFERROR(INDEX(Table_CoutRH[Cout horaire],MATCH(Table_recettes[[#This Row],[RH7]],Table_CoutRH[Employé ou équipe],0))*Table_recettes[[#This Row],[D7]],0) +IFERROR(INDEX(Table_CoutRH[Cout horaire],MATCH(Table_recettes[[#This Row],[RH8]],Table_CoutRH[Employé ou équipe],0))*Table_recettes[[#This Row],[D8]],0) +IFERROR(INDEX(Table_CoutRH[Cout horaire],MATCH(Table_recettes[[#This Row],[RH9]],Table_CoutRH[Employé ou équipe],0))*Table_recettes[[#This Row],[D9]],0) +IFERROR(INDEX(Table_CoutRH[Cout horaire],MATCH(Table_recettes[[#This Row],[RH10]],Table_CoutRH[Employé ou équipe],0))*Table_recettes[[#This Row],[D10]],0))*24 +FctCoutRH(ROW(Table_recettes[[#This Row],[CoutRH/U]])) -> 4.902051282 | BS39: =IFERROR(Table_recettes[[#This Row],[CoutRH Recette]]/IF(Table_recettes[[#This Row],[Type]]="Produit",Table_recettes[[#This Row],[Unités]],Table_recettes[[#This Row],[Poids]]),0) -> 0.001008652527 | BT39: =IF(Table_recettes[[#This Row],[Type]]="Produit",Table_recettes[[#This Row],[CA Total TTC Recette]]*Table_recettes[[#This Row],[Frequence]],"") ->  | BU39: =IF(Table_recettes[[#This Row],[Type]]="Produit",Table_recettes[Unités]*Table_recettes[[#This Row],[Prix/U]],"") ->  | BV39: =IF(Table_recettes[[#This Row],[Type]]="Produit",Table_recettes[[#This Row],[TVA totale Recette]]*Table_recettes[[#This Row],[Frequence]],"") ->  | BW39: =IF(Table_recettes[[#This Row],[Type]]="Produit",Table_recettes[[#This Row],[CA Total TTC Recette]]*Table_recettes[[#This Row],[TVA applicable]]/(1+Table_recettes[[#This Row],[TVA applicable]]),"") ->  | BX39: =IF(Table_recettes[[#This Row],[Type]]="Produit",Table_recettes[[#This Row],[Prix/U]]*Table_recettes[[#This Row],[TVA applicable]]/(1+Table_recettes[[#This Row],[TVA applicable]]),"") ->  | BY39: =IF(Table_recettes[[#This Row],[Type]]="Produit",Table_recettes[[#This Row],[CA Total TTC Recette]]-Table_recettes[[#This Row],[TVA totale Recette]]-Table_recettes[[#This Row],[CoutIng Recette]],"") ->  | BZ39: =IF(Table_recettes[[#This Row],[Type]]="Produit",(Table_recettes[[#This Row],[CA Total TTC Recette]]-Table_recettes[[#This Row],[TVA totale Recette]])*(1-IF(OR(Option_MO="Globale",Option_MO="Par produit et globale"),Cell_CRp9,0))-Table_recettes[[#This Row],[CoutIng Recette]]-IF(OR(Option_MO="Par produit",Option_MO="Par produit et globale"),Table_recettes[[#This Row],[CoutRH Recette]],0),"") ->  | CA39: =IF(Table_recettes[[#This Row],[Type]]="Produit",(Table_recettes[[#This Row],[CA Total TTC Recette]]-Table_recettes[[#This Row],[TVA totale Recette]])*(1-Cell_CRp10-Cell_CRp2-IF(OR(Option_MO="Globale",Option_MO="Par produit et globale"),Cell_CRp9,0))-Table_recettes[[#This Row],[CoutIng Recette]]-IF(OR(Option_MO="Par produit",Option_MO="Par produit et globale"),Table_recettes[[#This Row],[CoutRH Recette]],0),"") ->  | CB39: =IF(Table_recettes[[#This Row],[Type]]="Produit",((Table_recettes[[#This Row],[CA Total TTC Recette]]-Table_recettes[[#This Row],[TVA totale Recette]])*(1-Cell_CRp10-Cell_CRp2-Cell_CRp4-Cell_CRp5-Cell_CRp6-Cell_CRp7-IF(OR(Option_MO="Globale",Option_MO="Par produit et globale"),Cell_CRp9,0))-Table_recettes[[#This Row],[CoutIng Recette]]-IF(OR(Option_MO="Par produit",Option_MO="Par produit et globale"),Table_recettes[[#This Row],[CoutRH Recette]],0))*(1-Cell_CRp8),"") ->  | CC39: =IFERROR(IF(Table_recettes[[#This Row],[Type]]="Produit",Table_recettes[[#This Row],[Marge Brute Recette]]/Table_recettes[[#This Row],[Unités]],""),0) ->  | CD39: =IFERROR(IF(Table_recettes[[#This Row],[Type]]="Produit",Table_recettes[[#This Row],[Marge SCP Recette]]/Table_recettes[[#This Row],[Unités]],""),0) ->  | CE39: =IFERROR(IF(Table_recettes[[#This Row],[Type]]="Produit",Table_recettes[[#This Row],[Marge opérationnelle Recette]]/Table_recettes[[#This Row],[Unités]],""),0) ->  | CF39: =IFERROR(IF(Table_recettes[[#This Row],[Type]]="Produit",Table_recettes[[#This Row],[Marge Nette Recette]]/Table_recettes[[#This Row],[Unités]],""),0) ->  | CG39: =IFERROR(IF(Table_recettes[[#This Row],[Type]]="Produit",Table_recettes[[#This Row],[Marge Brute/U]]-Table_recettes[[#This Row],[Marge SCP/U]],""),0) ->  | CH39: =IF(Table_recettes[[#This Row],[Type]]="Produit",Table_recettes[[#This Row],[Marge SCP/U]]-Table_recettes[[#This Row],[Marge Nette/U]],"") ->  | CI39: =IFERROR(IF(Table_recettes[[#This Row],[Type]]="Produit",Table_recettes[[#This Row],[Marge Brute/U]]/(Table_recettes[[#This Row],[Prix/U]]-Table_recettes[[#This Row],[TVA/U]]),""),0) ->  | CJ39: =IFERROR(IF(Table_recettes[[#This Row],[Type]]="Produit",Table_recettes[[#This Row],[Marge SCP/U]]/(Table_recettes[[#This Row],[Prix/U]]-Table_recettes[[#This Row],[TVA/U]]),""),0) ->  | CK39: =IFERROR(IF(Table_recettes[[#This Row],[Type]]="Produit",Table_recettes[[#This Row],[Marge opérationnelle/U]]/(Table_recettes[[#This Row],[Prix/U]]-Table_recettes[[#This Row],[TVA/U]]),""),0) ->  | CL39: =IFERROR(IF(Table_recettes[[#This Row],[Type]]="Produit",Table_recettes[[#This Row],[Marge Nette/U]]/(Table_recettes[[#This Row],[Prix/U]]-Table_recettes[[#This Row],[TVA/U]]),""),0) -> 
C40: Produit | D40: Viennoiserie | E40: Brioche tête | F40: 3 | G40: 100 | H40: 0.9 | I40: 0.055 | J40: Pâte à brioche | K40: 4500 | AD40: Prorata poids de la fabrication des appareils | AE40: =FctDuree(ROW(Table_recettes[[#This Row],[D1]])) -> 0.01597222222 | AF40: Façonner et dorer. Rajouter le sucre en grains. | AG40: 0.006944444444 | AH40: Equipe tour | AI40: Apprêt à 25°C 1h30. | AL40: Enfourner, cuire 10 à 20min à 200°C, défourner. Laisser refroidir dans les moules | AM40: 0.006944444444 | AN40: Equipe tour | BG40: 2014-07-02 | BH40: 2014-05-03 | BI40: =(Table_recettes[[#This Row],[D1]]+Table_recettes[[#This Row],[D2]]+Table_recettes[[#This Row],[D3]]+Table_recettes[[#This Row],[D4]]+Table_recettes[[#This Row],[D5]]+Table_recettes[[#This Row],[D6]]+Table_recettes[[#This Row],[D7]]+Table_recettes[[#This Row],[D8]]+Table_recettes[[#This Row],[D9]]+Table_recettes[[#This Row],[D10]]) -> 0.02986111111 | BJ40: =Table_recettes[[#This Row],[Frequence]]*Table_recettes[[#This Row],[Unités]] -> 300 | BK40: =IFERROR(Table_recettes[[#This Row],[Duree]]/IF(Table_recettes[[#This Row],[Type]]="Produit",Table_recettes[[#This Row],[Unités]],Table_recettes[[#This Row],[Poids]]),0) -> 0.0002986111111 | BL40: =IFERROR(IF(INDEX(Table_ing[Unité],MATCH(Table_recettes[[#This Row],[I1]],Table_ing[Ingredient],0))="g",Table_recettes[[#This Row],[Q1]],0),Table_recettes[[#This Row],[Q1]]) +IFERROR(IF(INDEX(Table_ing[Unité],MATCH(Table_recettes[[#This Row],[I2]],Table_ing[Ingredient],0))="g",Table_recettes[[#This Row],[Q2]],0),Table_recettes[[#This Row],[Q2]]) +IFERROR(IF(INDEX(Table_ing[Unité],MATCH(Table_recettes[[#This Row],[I3]],Table_ing[Ingredient],0))="g",Table_recettes[[#This Row],[Q3]],0),Table_recettes[[#This Row],[Q3]]) +IFERROR(IF(INDEX(Table_ing[Unité],MATCH(Table_recettes[[#This Row],[I4]],Table_ing[Ingredient],0))="g",Table_recettes[[#This Row],[Q4]],0),Table_recettes[[#This Row],[Q4]]) +IFERROR(IF(INDEX(Table_ing[Unité],MATCH(Table_recettes[[#This Row],[I5]],Table_ing[Ingredient],0))="g",Table_recettes[[#This Row],[Q5]],0),Table_recettes[[#This Row],[Q5]]) +IFERROR(IF(INDEX(Table_ing[Unité],MATCH(Table_recettes[[#This Row],[I6]],Table_ing[Ingredient],0))="g",Table_recettes[[#This Row],[Q6]],0),Table_recettes[[#This Row],[Q6]]) +IFERROR(IF(INDEX(Table_ing[Unité],MATCH(Table_recettes[[#This Row],[I7]],Table_ing[Ingredient],0))="g",Table_recettes[[#This Row],[Q7]],0),Table_recettes[[#This Row],[Q7]]) +IFERROR(IF(INDEX(Table_ing[Unité],MATCH(Table_recettes[[#This Row],[I8]],Table_ing[Ingredient],0))="g",Table_recettes[[#This Row],[Q8]],0),Table_recettes[[#This Row],[Q8]]) +IFERROR(IF(INDEX(Table_ing[Unité],MATCH(Table_recettes[[#This Row],[I9]],Table_ing[Ingredient],0))="g",Table_recettes[[#This Row],[Q9]],0),Table_recettes[[#This Row],[Q9]]) +IFERROR(IF(INDEX(Table_ing[Unité],MATCH(Table_recettes[[#This Row],[I10]],Table_ing[Ingredient],0))="g",Table_recettes[[#This Row],[Q10]],0),Table_recettes[[#This Row],[Q10]]) -> 4500 | BM40: =IFERROR(Table_recettes[[#This Row],[Poids]]/IF(Table_recettes[[#This Row],[Type]]="Produit",Table_recettes[[#This Row],[Unités]],1),0) -> 45 | BN40: =Table_recettes[[#This Row],[CoutIng Recette]]*Table_recettes[[#This Row],[Frequence]] -> 27.42575074 | BO40: =IF(Table_recettes[[#This Row],[Q1]]>0,IFERROR(INDEX(Table_ing[Coût par unité],MATCH(Table_recettes[[#This Row],[I1]],Table_ing[Ingredient],0))*Table_recettes[[#This Row],[Q1]],INDEX(Table_recettes[CoutIng/U],MATCH(Table_recettes[[#This Row],[I1]],Table_recettes[Recette],0))*Table_recettes[[#This Row],[Q1]]),0) +IF(Table_recettes[[#This Row],[Q2]]>0,IFERROR(INDEX(Table_ing[Coût par unité],MATCH(Table_recettes[[#This Row],[I2]],Table_ing[Ingredient],0))*Table_recettes[[#This Row],[Q2]],INDEX(Table_recettes[CoutIng/U],MATCH(Table_recettes[[#This Row],[I2]],Table_recettes[Recette],0))*Table_recettes[[#This Row],[Q2]]),0) +IF(Table_recettes[[#This Row],[Q3]]>0,IFERROR(INDEX(Table_ing[Coût par unité],MATCH(Table_recettes[[#This Row],[I3]],Table_ing[Ingredient],0))*Table_recettes[[#This Row],[Q3]],INDEX(Table_recettes[CoutIng/U],MATCH(Table_recettes[[#This Row],[I3]],Table_recettes[Recette],0))*Table_recettes[[#This Row],[Q3]]),0) +IF(Table_recettes[[#This Row],[Q4]]>0,IFERROR(INDEX(Table_ing[Coût par unité],MATCH(Table_recettes[[#This Row],[I4]],Table_ing[Ingredient],0))*Table_recettes[[#This Row],[Q4]],INDEX(Table_recettes[CoutIng/U],MATCH(Table_recettes[[#This Row],[I4]],Table_recettes[Recette],0))*Table_recettes[[#This Row],[Q4]]),0) +IF(Table_recettes[[#This Row],[Q5]]>0,IFERROR(INDEX(Table_ing[Coût par unité],MATCH(Table_recettes[[#This Row],[I5]],Table_ing[Ingredient],0))*Table_recettes[[#This Row],[Q5]],INDEX(Table_recettes[CoutIng/U],MATCH(Table_recettes[[#This Row],[I5]],Table_recettes[Recette],0))*Table_recettes[[#This Row],[Q5]]),0) +IF(Table_recettes[[#This Row],[Q6]]>0,IFERROR(INDEX(Table_ing[Coût par unité],MATCH(Table_recettes[[#This Row],[I6]],Table_ing[Ingredient],0))*Table_recettes[[#This Row],[Q6]],INDEX(Table_recettes[CoutIng/U],MATCH(Table_recettes[[#This Row],[I6]],Table_recettes[Recette],0))*Table_recettes[[#This Row],[Q6]]),0) +IF(Table_recettes[[#This Row],[Q7]]>0,IFERROR(INDEX(Table_ing[Coût par unité],MATCH(Table_recettes[[#This Row],[I7]],Table_ing[Ingredient],0))*Table_recettes[[#This Row],[Q7]],INDEX(Table_recettes[CoutIng/U],MATCH(Table_recettes[[#This Row],[I7]],Table_recettes[Recette],0))*Table_recettes[[#This Row],[Q7]]),0) +IF(Table_recettes[[#This Row],[Q8]]>0,IFERROR(INDEX(Table_ing[Coût par unité],MATCH(Table_recettes[[#This Row],[I8]],Table_ing[Ingredient],0))*Table_recettes[[#This Row],[Q8]],INDEX(Table_recettes[CoutIng/U],MATCH(Table_recettes[[#This Row],[I8]],Table_recettes[Recette],0))*Table_recettes[[#This Row],[Q8]]),0) +IF(Table_recettes[[#This Row],[Q9]]>0,IFERROR(INDEX(Table_ing[Coût par unité],MATCH(Table_recettes[[#This Row],[I9]],Table_ing[Ingredient],0))*Table_recettes[[#This Row],[Q9]],INDEX(Table_recettes[CoutIng/U],MATCH(Table_recettes[[#This Row],[I9]],Table_recettes[Recette],0))*Table_recettes[[#This Row],[Q9]]),0) +IF(Table_recettes[[#This Row],[Q10]]>0,IFERROR(INDEX(Table_ing[Coût par unité],MATCH(Table_recettes[[#This Row],[I10]],Table_ing[Ingredient],0))*Table_recettes[[#This Row],[Q10]],INDEX(Table_recettes[CoutIng/U],MATCH(Table_recettes[[#This Row],[I10]],Table_recettes[Recette],0))*Table_recettes[[#This Row],[Q8]]),0) -> 9.141916914 | BP40: =IFERROR(Table_recettes[[#This Row],[CoutIng Recette]]/IF(Table_recettes[[#This Row],[Type]]="Produit",Table_recettes[[#This Row],[Unités]],Table_recettes[[#This Row],[Poids]]),0) -> 0.09141916914 | BQ40: =Table_recettes[[#This Row],[CoutRH Recette]]*Table_recettes[[#This Row],[Frequence]] -> 40.31604396 | BR40: =(IFERROR(INDEX(Table_CoutRH[Cout horaire],MATCH(Table_recettes[[#This Row],[RH2]],Table_CoutRH[Employé ou équipe],0))*Table_recettes[[#This Row],[D2]],0) +IFERROR(INDEX(Table_CoutRH[Cout horaire],MATCH(Table_recettes[[#This Row],[RH3]],Table_CoutRH[Employé ou équipe],0))*Table_recettes[[#This Row],[D3]],0) +IFERROR(INDEX(Table_CoutRH[Cout horaire],MATCH(Table_recettes[[#This Row],[RH4]],Table_CoutRH[Employé ou équipe],0))*Table_recettes[[#This Row],[D4]],0) +IFERROR(INDEX(Table_CoutRH[Cout horaire],MATCH(Table_recettes[[#This Row],[RH5]],Table_CoutRH[Employé ou équipe],0))*Table_recettes[[#This Row],[D5]],0) +IFERROR(INDEX(Table_CoutRH[Cout horaire],MATCH(Table_recettes[[#This Row],[RH6]],Table_CoutRH[Employé ou équipe],0))*Table_recettes[[#This Row],[D6]],0) +IFERROR(INDEX(Table_CoutRH[Cout horaire],MATCH(Table_recettes[[#This Row],[RH7]],Table_CoutRH[Employé ou équipe],0))*Table_recettes[[#This Row],[D7]],0) +IFERROR(INDEX(Table_CoutRH[Cout horaire],MATCH(Table_recettes[[#This Row],[RH8]],Table_CoutRH[Employé ou équipe],0))*Table_recettes[[#This Row],[D8]],0) +IFERROR(INDEX(Table_CoutRH[Cout horaire],MATCH(Table_recettes[[#This Row],[RH9]],Table_CoutRH[Employé ou équipe],0))*Table_recettes[[#This Row],[D9]],0) +IFERROR(INDEX(Table_CoutRH[Cout horaire],MATCH(Table_recettes[[#This Row],[RH10]],Table_CoutRH[Employé ou équipe],0))*Table_recettes[[#This Row],[D10]],0))*24 +FctCoutRH(ROW(Table_recettes[[#This Row],[CoutRH/U]])) -> 13.43868132 | BS40: =IFERROR(Table_recettes[[#This Row],[CoutRH Recette]]/IF(Table_recettes[[#This Row],[Type]]="Produit",Table_recettes[[#This Row],[Unités]],Table_recettes[[#This Row],[Poids]]),0) -> 0.1343868132 | BT40: =IF(Table_recettes[[#This Row],[Type]]="Produit",Table_recettes[[#This Row],[CA Total TTC Recette]]*Table_recettes[[#This Row],[Frequence]],"") -> 270 | BU40: =IF(Table_recettes[[#This Row],[Type]]="Produit",Table_recettes[Unités]*Table_recettes[[#This Row],[Prix/U]],"") -> 90 | BV40: =IF(Table_recettes[[#This Row],[Type]]="Produit",Table_recettes[[#This Row],[TVA totale Recette]]*Table_recettes[[#This Row],[Frequence]],"") -> 14.07582938 | BW40: =IF(Table_recettes[[#This Row],[Type]]="Produit",Table_recettes[[#This Row],[CA Total TTC Recette]]*Table_recettes[[#This Row],[TVA applicable]]/(1+Table_recettes[[#This Row],[TVA applicable]]),"") -> 4.691943128 | BX40: =IF(Table_recettes[[#This Row],[Type]]="Produit",Table_recettes[[#This Row],[Prix/U]]*Table_recettes[[#This Row],[TVA applicable]]/(1+Table_recettes[[#This Row],[TVA applicable]]),"") -> 0.04691943128 | BY40: =IF(Table_recettes[[#This Row],[Type]]="Produit",Table_recettes[[#This Row],[CA Total TTC Recette]]-Table_recettes[[#This Row],[TVA totale Recette]]-Table_recettes[[#This Row],[CoutIng Recette]],"") -> 76.16613996 | BZ40: =IF(Table_recettes[[#This Row],[Type]]="Produit",(Table_recettes[[#This Row],[CA Total TTC Recette]]-Table_recettes[[#This Row],[TVA totale Recette]])*(1-IF(OR(Option_MO="Globale",Option_MO="Par produit et globale"),Cell_CRp9,0))-Table_recettes[[#This Row],[CoutIng Recette]]-IF(OR(Option_MO="Par produit",Option_MO="Par produit et globale"),Table_recettes[[#This Row],[CoutRH Recette]],0),"") -> 53.64619734 | CA40: =IF(Table_recettes[[#This Row],[Type]]="Produit",(Table_recettes[[#This Row],[CA Total TTC Recette]]-Table_recettes[[#This Row],[TVA totale Recette]])*(1-Cell_CRp10-Cell_CRp2-IF(OR(Option_MO="Globale",Option_MO="Par produit et globale"),Cell_CRp9,0))-Table_recettes[[#This Row],[CoutIng Recette]]-IF(OR(Option_MO="Par produit",Option_MO="Par produit et globale"),Table_recettes[[#This Row],[CoutRH Recette]],0),"") -> 28.90686085 | CB40: =IF(Table_recettes[[#This Row],[Type]]="Produit",((Table_recettes[[#This Row],[CA Total TTC Recette]]-Table_recettes[[#This Row],[TVA totale Recette]])*(1-Cell_CRp10-Cell_CRp2-Cell_CRp4-Cell_CRp5-Cell_CRp6-Cell_CRp7-IF(OR(Option_MO="Globale",Option_MO="Par produit et globale"),Cell_CRp9,0))-Table_recettes[[#This Row],[CoutIng Recette]]-IF(OR(Option_MO="Par produit",Option_MO="Par produit et globale"),Table_recettes[[#This Row],[CoutRH Recette]],0))*(1-Cell_CRp8),"") -> 16.45886493 | CC40: =IFERROR(IF(Table_recettes[[#This Row],[Type]]="Produit",Table_recettes[[#This Row],[Marge Brute Recette]]/Table_recettes[[#This Row],[Unités]],""),0) -> 0.7616613996 | CD40: =IFERROR(IF(Table_recettes[[#This Row],[Type]]="Produit",Table_recettes[[#This Row],[Marge SCP Recette]]/Table_recettes[[#This Row],[Unités]],""),0) -> 0.5364619734 | CE40: =IFERROR(IF(Table_recettes[[#This Row],[Type]]="Produit",Table_recettes[[#This Row],[Marge opérationnelle Recette]]/Table_recettes[[#This Row],[Unités]],""),0) -> 0.2890686085 | CF40: =IFERROR(IF(Table_recettes[[#This Row],[Type]]="Produit",Table_recettes[[#This Row],[Marge Nette Recette]]/Table_recettes[[#This Row],[Unités]],""),0) -> 0.1645886493 | CG40: =IFERROR(IF(Table_recettes[[#This Row],[Type]]="Produit",Table_recettes[[#This Row],[Marge Brute/U]]-Table_recettes[[#This Row],[Marge SCP/U]],""),0) -> 0.2251994262 | CH40: =IF(Table_recettes[[#This Row],[Type]]="Produit",Table_recettes[[#This Row],[Marge SCP/U]]-Table_recettes[[#This Row],[Marge Nette/U]],"") -> 0.3718733241 | CI40: =IFERROR(IF(Table_recettes[[#This Row],[Type]]="Produit",Table_recettes[[#This Row],[Marge Brute/U]]/(Table_recettes[[#This Row],[Prix/U]]-Table_recettes[[#This Row],[TVA/U]]),""),0) -> 0.8928364184 | CJ40: =IFERROR(IF(Table_recettes[[#This Row],[Type]]="Produit",Table_recettes[[#This Row],[Marge SCP/U]]/(Table_recettes[[#This Row],[Prix/U]]-Table_recettes[[#This Row],[TVA/U]]),""),0) -> 0.6288526466 | CK40: =IFERROR(IF(Table_recettes[[#This Row],[Type]]="Produit",Table_recettes[[#This Row],[Marge opérationnelle/U]]/(Table_recettes[[#This Row],[Prix/U]]-Table_recettes[[#This Row],[TVA/U]]),""),0) -> 0.3388526466 | CL40: =IFERROR(IF(Table_recettes[[#This Row],[Type]]="Produit",Table_recettes[[#This Row],[Marge Nette/U]]/(Table_recettes[[#This Row],[Prix/U]]-Table_recettes[[#This Row],[TVA/U]]),""),0) -> 0.1929344722
C41: Produit | D41: Viennoiserie | E41: Chausson aux pommes | F41: 2 | G41: 80 | H41: 1.15 | I41: 0.055 | J41: Pâte feuilletée | K41: 8000 | L41: Compote de pommes | M41: 1666 | AD41: Prorata poids de la fabrication des appareils | AE41: =FctDuree(ROW(Table_recettes[[#This Row],[D1]])) -> 0.0150862069 | AF41: Préparer les ingrédients | AG41: 0.001388888889 | AH41: Equipe pâtisserie | AI41: Récupérer la pâte feuilletée après les tours. Abaisser, détailler en ovales, ajouter environ 20 grammes de compote de pomme par chausson et refermer. Rayer et dorer. Réserver au frais. | AJ41: 0.01388888889 | AK41: Equipe pâtisserie | AL41: Redorer, enfourner, cuire 25 minutes à 180°C, puis défourner et laisser resuer. | AM41: 0.006944444444 | AN41: Equipe pâtisserie | BG41: 2014-06-30 | BH41: 2014-05-03 | BI41: =(Table_recettes[[#This Row],[D1]]+Table_recettes[[#This Row],[D2]]+Table_recettes[[#This Row],[D3]]+Table_recettes[[#This Row],[D4]]+Table_recettes[[#This Row],[D5]]+Table_recettes[[#This Row],[D6]]+Table_recettes[[#This Row],[D7]]+Table_recettes[[#This Row],[D8]]+Table_recettes[[#This Row],[D9]]+Table_recettes[[#This Row],[D10]]) -> 0.03730842912 | BJ41: =Table_recettes[[#This Row],[Frequence]]*Table_recettes[[#This Row],[Unités]] -> 160 | BK41: =IFERROR(Table_recettes[[#This Row],[Duree]]/IF(Table_recettes[[#This Row],[Type]]="Produit",Table_recettes[[#This Row],[Unités]],Table_recettes[[#This Row],[Poids]]),0) -> 0.000466355364 | BL41: =IFERROR(IF(INDEX(Table_ing[Unité],MATCH(Table_recettes[[#This Row],[I1]],Table_ing[Ingredient],0))="g",Table_recettes[[#This Row],[Q1]],0),Table_recettes[[#This Row],[Q1]]) +IFERROR(IF(INDEX(Table_ing[Unité],MATCH(Table_recettes[[#This Row],[I2]],Table_ing[Ingredient],0))="g",Table_recettes[[#This Row],[Q2]],0),Table_recettes[[#This Row],[Q2]]) +IFERROR(IF(INDEX(Table_ing[Unité],MATCH(Table_recettes[[#This Row],[I3]],Table_ing[Ingredient],0))="g",Table_recettes[[#This Row],[Q3]],0),Table_recettes[[#This Row],[Q3]]) +IFERROR(IF(INDEX(Table_ing[Unité],MATCH(Table_recettes[[#This Row],[I4]],Table_ing[Ingredient],0))="g",Table_recettes[[#This Row],[Q4]],0),Table_recettes[[#This Row],[Q4]]) +IFERROR(IF(INDEX(Table_ing[Unité],MATCH(Table_recettes[[#This Row],[I5]],Table_ing[Ingredient],0))="g",Table_recettes[[#This Row],[Q5]],0),Table_recettes[[#This Row],[Q5]]) +IFERROR(IF(INDEX(Table_ing[Unité],MATCH(Table_recettes[[#This Row],[I6]],Table_ing[Ingredient],0))="g",Table_recettes[[#This Row],[Q6]],0),Table_recettes[[#This Row],[Q6]]) +IFERROR(IF(INDEX(Table_ing[Unité],MATCH(Table_recettes[[#This Row],[I7]],Table_ing[Ingredient],0))="g",Table_recettes[[#This Row],[Q7]],0),Table_recettes[[#This Row],[Q7]]) +IFERROR(IF(INDEX(Table_ing[Unité],MATCH(Table_recettes[[#This Row],[I8]],Table_ing[Ingredient],0))="g",Table_recettes[[#This Row],[Q8]],0),Table_recettes[[#This Row],[Q8]]) +IFERROR(IF(INDEX(Table_ing[Unité],MATCH(Table_recettes[[#This Row],[I9]],Table_ing[Ingredient],0))="g",Table_recettes[[#This Row],[Q9]],0),Table_recettes[[#This Row],[Q9]]) +IFERROR(IF(INDEX(Table_ing[Unité],MATCH(Table_recettes[[#This Row],[I10]],Table_ing[Ingredient],0))="g",Table_recettes[[#This Row],[Q10]],0),Table_recettes[[#This Row],[Q10]]) -> 9666 | BM41: =IFERROR(Table_recettes[[#This Row],[Poids]]/IF(Table_recettes[[#This Row],[Type]]="Produit",Table_recettes[[#This Row],[Unités]],1),0) -> 120.825 | BN41: =Table_recettes[[#This Row],[CoutIng Recette]]*Table_recettes[[#This Row],[Frequence]] -> 52.95857448 | BO41: =IF(Table_recettes[[#This Row],[Q1]]>0,IFERROR(INDEX(Table_ing[Coût par unité],MATCH(Table_recettes[[#This Row],[I1]],Table_ing[Ingredient],0))*Table_recettes[[#This Row],[Q1]],INDEX(Table_recettes[CoutIng/U],MATCH(Table_recettes[[#This Row],[I1]],Table_recettes[Recette],0))*Table_recettes[[#This Row],[Q1]]),0) +IF(Table_recettes[[#This Row],[Q2]]>0,IFERROR(INDEX(Table_ing[Coût par unité],MATCH(Table_recettes[[#This Row],[I2]],Table_ing[Ingredient],0))*Table_recettes[[#This Row],[Q2]],INDEX(Table_recettes[CoutIng/U],MATCH(Table_recettes[[#This Row],[I2]],Table_recettes[Recette],0))*Table_recettes[[#This Row],[Q2]]),0) +IF(Table_recettes[[#This Row],[Q3]]>0,IFERROR(INDEX(Table_ing[Coût par unité],MATCH(Table_recettes[[#This Row],[I3]],Table_ing[Ingredient],0))*Table_recettes[[#This Row],[Q3]],INDEX(Table_recettes[CoutIng/U],MATCH(Table_recettes[[#This Row],[I3]],Table_recettes[Recette],0))*Table_recettes[[#This Row],[Q3]]),0) +IF(Table_recettes[[#This Row],[Q4]]>0,IFERROR(INDEX(Table_ing[Coût par unité],MATCH(Table_recettes[[#This Row],[I4]],Table_ing[Ingredient],0))*Table_recettes[[#This Row],[Q4]],INDEX(Table_recettes[CoutIng/U],MATCH(Table_recettes[[#This Row],[I4]],Table_recettes[Recette],0))*Table_recettes[[#This Row],[Q4]]),0) +IF(Table_recettes[[#This Row],[Q5]]>0,IFERROR(INDEX(Table_ing[Coût par unité],MATCH(Table_recettes[[#This Row],[I5]],Table_ing[Ingredient],0))*Table_recettes[[#This Row],[Q5]],INDEX(Table_recettes[CoutIng/U],MATCH(Table_recettes[[#This Row],[I5]],Table_recettes[Recette],0))*Table_recettes[[#This Row],[Q5]]),0) +IF(Table_recettes[[#This Row],[Q6]]>0,IFERROR(INDEX(Table_ing[Coût par unité],MATCH(Table_recettes[[#This Row],[I6]],Table_ing[Ingredient],0))*Table_recettes[[#This Row],[Q6]],INDEX(Table_recettes[CoutIng/U],MATCH(Table_recettes[[#This Row],[I6]],Table_recettes[Recette],0))*Table_recettes[[#This Row],[Q6]]),0) +IF(Table_recettes[[#This Row],[Q7]]>0,IFERROR(INDEX(Table_ing[Coût par unité],MATCH(Table_recettes[[#This Row],[I7]],Table_ing[Ingredient],0))*Table_recettes[[#This Row],[Q7]],INDEX(Table_recettes[CoutIng/U],MATCH(Table_recettes[[#This Row],[I7]],Table_recettes[Recette],0))*Table_recettes[[#This Row],[Q7]]),0) +IF(Table_recettes[[#This Row],[Q8]]>0,IFERROR(INDEX(Table_ing[Coût par unité],MATCH(Table_recettes[[#This Row],[I8]],Table_ing[Ingredient],0))*Table_recettes[[#This Row],[Q8]],INDEX(Table_recettes[CoutIng/U],MATCH(Table_recettes[[#This Row],[I8]],Table_recettes[Recette],0))*Table_recettes[[#This Row],[Q8]]),0) +IF(Table_recettes[[#This Row],[Q9]]>0,IFERROR(INDEX(Table_ing[Coût par unité],MATCH(Table_recettes[[#This Row],[I9]],Table_ing[Ingredient],0))*Table_recettes[[#This Row],[Q9]],INDEX(Table_recettes[CoutIng/U],MATCH(Table_recettes[[#This Row],[I9]],Table_recettes[Recette],0))*Table_recettes[[#This Row],[Q9]]),0) +IF(Table_recettes[[#This Row],[Q10]]>0,IFERROR(INDEX(Table_ing[Coût par unité],MATCH(Table_recettes[[#This Row],[I10]],Table_ing[Ingredient],0))*Table_recettes[[#This Row],[Q10]],INDEX(Table_recettes[CoutIng/U],MATCH(Table_recettes[[#This Row],[I10]],Table_recettes[Recette],0))*Table_recettes[[#This Row],[Q8]]),0) -> 26.47928724 | BP41: =IFERROR(Table_recettes[[#This Row],[CoutIng Recette]]/IF(Table_recettes[[#This Row],[Type]]="Produit",Table_recettes[[#This Row],[Unités]],Table_recettes[[#This Row],[Poids]]),0) -> 0.3309910905 | BQ41: =Table_recettes[[#This Row],[CoutRH Recette]]*Table_recettes[[#This Row],[Frequence]] -> 27.83929266 | BR41: =(IFERROR(INDEX(Table_CoutRH[Cout horaire],MATCH(Table_recettes[[#This Row],[RH2]],Table_CoutRH[Employé ou équipe],0))*Table_recettes[[#This Row],[D2]],0) +IFERROR(INDEX(Table_CoutRH[Cout horaire],MATCH(Table_recettes[[#This Row],[RH3]],Table_CoutRH[Employé ou équipe],0))*Table_recettes[[#This Row],[D3]],0) +IFERROR(INDEX(Table_CoutRH[Cout horaire],MATCH(Table_recettes[[#This Row],[RH4]],Table_CoutRH[Employé ou équipe],0))*Table_recettes[[#This Row],[D4]],0) +IFERROR(INDEX(Table_CoutRH[Cout horaire],MATCH(Table_recettes[[#This Row],[RH5]],Table_CoutRH[Employé ou équipe],0))*Table_recettes[[#This Row],[D5]],0) +IFERROR(INDEX(Table_CoutRH[Cout horaire],MATCH(Table_recettes[[#This Row],[RH6]],Table_CoutRH[Employé ou équipe],0))*Table_recettes[[#This Row],[D6]],0) +IFERROR(INDEX(Table_CoutRH[Cout horaire],MATCH(Table_recettes[[#This Row],[RH7]],Table_CoutRH[Employé ou équipe],0))*Table_recettes[[#This Row],[D7]],0) +IFERROR(INDEX(Table_CoutRH[Cout horaire],MATCH(Table_recettes[[#This Row],[RH8]],Table_CoutRH[Employé ou équipe],0))*Table_recettes[[#This Row],[D8]],0) +IFERROR(INDEX(Table_CoutRH[Cout horaire],MATCH(Table_recettes[[#This Row],[RH9]],Table_CoutRH[Employé ou équipe],0))*Table_recettes[[#This Row],[D9]],0) +IFERROR(INDEX(Table_CoutRH[Cout horaire],MATCH(Table_recettes[[#This Row],[RH10]],Table_CoutRH[Employé ou équipe],0))*Table_recettes[[#This Row],[D10]],0))*24 +FctCoutRH(ROW(Table_recettes[[#This Row],[CoutRH/U]])) -> 13.91964633 | BS41: =IFERROR(Table_recettes[[#This Row],[CoutRH Recette]]/IF(Table_recettes[[#This Row],[Type]]="Produit",Table_recettes[[#This Row],[Unités]],Table_recettes[[#This Row],[Poids]]),0) -> 0.1739955791 | BT41: =IF(Table_recettes[[#This Row],[Type]]="Produit",Table_recettes[[#This Row],[CA Total TTC Recette]]*Table_recettes[[#This Row],[Frequence]],"") -> 184 | BU41: =IF(Table_recettes[[#This Row],[Type]]="Produit",Table_recettes[Unités]*Table_recettes[[#This Row],[Prix/U]],"") -> 92 | BV41: =IF(Table_recettes[[#This Row],[Type]]="Produit",Table_recettes[[#This Row],[TVA totale Recette]]*Table_recettes[[#This Row],[Frequence]],"") -> 9.592417062 | BW41: =IF(Table_recettes[[#This Row],[Type]]="Produit",Table_recettes[[#This Row],[CA Total TTC Recette]]*Table_recettes[[#This Row],[TVA applicable]]/(1+Table_recettes[[#This Row],[TVA applicable]]),"") -> 4.796208531 | BX41: =IF(Table_recettes[[#This Row],[Type]]="Produit",Table_recettes[[#This Row],[Prix/U]]*Table_recettes[[#This Row],[TVA applicable]]/(1+Table_recettes[[#This Row],[TVA applicable]]),"") -> 0.05995260664 | BY41: =IF(Table_recettes[[#This Row],[Type]]="Produit",Table_recettes[[#This Row],[CA Total TTC Recette]]-Table_recettes[[#This Row],[TVA totale Recette]]-Table_recettes[[#This Row],[CoutIng Recette]],"") -> 60.72450423 | BZ41: =IF(Table_recettes[[#This Row],[Type]]="Produit",(Table_recettes[[#This Row],[CA Total TTC Recette]]-Table_recettes[[#This Row],[TVA totale Recette]])*(1-IF(OR(Option_MO="Globale",Option_MO="Par produit et globale"),Cell_CRp9,0))-Table_recettes[[#This Row],[CoutIng Recette]]-IF(OR(Option_MO="Par produit",Option_MO="Par produit et globale"),Table_recettes[[#This Row],[CoutRH Recette]],0),"") -> 37.52179079 | CA41: =IF(Table_recettes[[#This Row],[Type]]="Produit",(Table_recettes[[#This Row],[CA Total TTC Recette]]-Table_recettes[[#This Row],[TVA totale Recette]])*(1-Cell_CRp10-Cell_CRp2-IF(OR(Option_MO="Globale",Option_MO="Par produit et globale"),Cell_CRp9,0))-Table_recettes[[#This Row],[CoutIng Recette]]-IF(OR(Option_MO="Par produit",Option_MO="Par produit et globale"),Table_recettes[[#This Row],[CoutRH Recette]],0),"") -> 12.23269127 | CB41: =IF(Table_recettes[[#This Row],[Type]]="Produit",((Table_recettes[[#This Row],[CA Total TTC Recette]]-Table_recettes[[#This Row],[TVA totale Recette]])*(1-Cell_CRp10-Cell_CRp2-Cell_CRp4-Cell_CRp5-Cell_CRp6-Cell_CRp7-IF(OR(Option_MO="Globale",Option_MO="Par produit et globale"),Cell_CRp9,0))-Table_recettes[[#This Row],[CoutIng Recette]]-IF(OR(Option_MO="Par produit",Option_MO="Par produit et globale"),Table_recettes[[#This Row],[CoutRH Recette]],0))*(1-Cell_CRp8),"") -> 4.800408358 | CC41: =IFERROR(IF(Table_recettes[[#This Row],[Type]]="Produit",Table_recettes[[#This Row],[Marge Brute Recette]]/Table_recettes[[#This Row],[Unités]],""),0) -> 0.7590563028 | CD41: =IFERROR(IF(Table_recettes[[#This Row],[Type]]="Produit",Table_recettes[[#This Row],[Marge SCP Recette]]/Table_recettes[[#This Row],[Unités]],""),0) -> 0.4690223849 | CE41: =IFERROR(IF(Table_recettes[[#This Row],[Type]]="Produit",Table_recettes[[#This Row],[Marge opérationnelle Recette]]/Table_recettes[[#This Row],[Unités]],""),0) -> 0.1529086408 | CF41: =IFERROR(IF(Table_recettes[[#This Row],[Type]]="Produit",Table_recettes[[#This Row],[Marge Nette Recette]]/Table_recettes[[#This Row],[Unités]],""),0) -> 0.06000510447 | CG41: =IFERROR(IF(Table_recettes[[#This Row],[Type]]="Produit",Table_recettes[[#This Row],[Marge Brute/U]]-Table_recettes[[#This Row],[Marge SCP/U]],""),0) -> 0.2900339179 | CH41: =IF(Table_recettes[[#This Row],[Type]]="Produit",Table_recettes[[#This Row],[Marge SCP/U]]-Table_recettes[[#This Row],[Marge Nette/U]],"") -> 0.4090172804 | CI41: =IFERROR(IF(Table_recettes[[#This Row],[Type]]="Produit",Table_recettes[[#This Row],[Marge Brute/U]]/(Table_recettes[[#This Row],[Prix/U]]-Table_recettes[[#This Row],[TVA/U]]),""),0) -> 0.6963516517 | CJ41: =IFERROR(IF(Table_recettes[[#This Row],[Type]]="Produit",Table_recettes[[#This Row],[Marge SCP/U]]/(Table_recettes[[#This Row],[Prix/U]]-Table_recettes[[#This Row],[TVA/U]]),""),0) -> 0.4302770575 | CK41: =IFERROR(IF(Table_recettes[[#This Row],[Type]]="Produit",Table_recettes[[#This Row],[Marge opérationnelle/U]]/(Table_recettes[[#This Row],[Prix/U]]-Table_recettes[[#This Row],[TVA/U]]),""),0) -> 0.1402770575 | CL41: =IFERROR(IF(Table_recettes[[#This Row],[Type]]="Produit",Table_recettes[[#This Row],[Marge Nette/U]]/(Table_recettes[[#This Row],[Prix/U]]-Table_recettes[[#This Row],[TVA/U]]),""),0) -> 0.05504816106
C42: Produit | D42: Choux | E42: Chouquettes | F42: 1 | G42: 100 | H42: 2 | I42: 0.055 | J42: Pâte à choux | K42: 7165 | L42: Sucre en grains | M42: 2835 | AD42: Prorata poids de la fabrication des appareils | AE42: =FctDuree(ROW(Table_recettes[[#This Row],[D1]])) -> 0.01556048667 | AF42: Avant dressage, recouvrir de gros sucre | AG42: 0.002083333333 | AH42: Equipe pâtisserie | BG42: 2014-06-30 | BH42: 2014-05-03 | BI42: =(Table_recettes[[#This Row],[D1]]+Table_recettes[[#This Row],[D2]]+Table_recettes[[#This Row],[D3]]+Table_recettes[[#This Row],[D4]]+Table_recettes[[#This Row],[D5]]+Table_recettes[[#This Row],[D6]]+Table_recettes[[#This Row],[D7]]+Table_recettes[[#This Row],[D8]]+Table_recettes[[#This Row],[D9]]+Table_recettes[[#This Row],[D10]]) -> 0.01764382001 | BJ42: =Table_recettes[[#This Row],[Frequence]]*Table_recettes[[#This Row],[Unités]] -> 100 | BK42: =IFERROR(Table_recettes[[#This Row],[Duree]]/IF(Table_recettes[[#This Row],[Type]]="Produit",Table_recettes[[#This Row],[Unités]],Table_recettes[[#This Row],[Poids]]),0) -> 0.0001764382001 | BL42: =IFERROR(IF(INDEX(Table_ing[Unité],MATCH(Table_recettes[[#This Row],[I1]],Table_ing[Ingredient],0))="g",Table_recettes[[#This Row],[Q1]],0),Table_recettes[[#This Row],[Q1]]) +IFERROR(IF(INDEX(Table_ing[Unité],MATCH(Table_recettes[[#This Row],[I2]],Table_ing[Ingredient],0))="g",Table_recettes[[#This Row],[Q2]],0),Table_recettes[[#This Row],[Q2]]) +IFERROR(IF(INDEX(Table_ing[Unité],MATCH(Table_recettes[[#This Row],[I3]],Table_ing[Ingredient],0))="g",Table_recettes[[#This Row],[Q3]],0),Table_recettes[[#This Row],[Q3]]) +IFERROR(IF(INDEX(Table_ing[Unité],MATCH(Table_recettes[[#This Row],[I4]],Table_ing[Ingredient],0))="g",Table_recettes[[#This Row],[Q4]],0),Table_recettes[[#This Row],[Q4]]) +IFERROR(IF(INDEX(Table_ing[Unité],MATCH(Table_recettes[[#This Row],[I5]],Table_ing[Ingredient],0))="g",Table_recettes[[#This Row],[Q5]],0),Table_recettes[[#This Row],[Q5]]) +IFERROR(IF(INDEX(Table_ing[Unité],MATCH(Table_recettes[[#This Row],[I6]],Table_ing[Ingredient],0))="g",Table_recettes[[#This Row],[Q6]],0),Table_recettes[[#This Row],[Q6]]) +IFERROR(IF(INDEX(Table_ing[Unité],MATCH(Table_recettes[[#This Row],[I7]],Table_ing[Ingredient],0))="g",Table_recettes[[#This Row],[Q7]],0),Table_recettes[[#This Row],[Q7]]) +IFERROR(IF(INDEX(Table_ing[Unité],MATCH(Table_recettes[[#This Row],[I8]],Table_ing[Ingredient],0))="g",Table_recettes[[#This Row],[Q8]],0),Table_recettes[[#This Row],[Q8]]) +IFERROR(IF(INDEX(Table_ing[Unité],MATCH(Table_recettes[[#This Row],[I9]],Table_ing[Ingredient],0))="g",Table_recettes[[#This Row],[Q9]],0),Table_recettes[[#This Row],[Q9]]) +IFERROR(IF(INDEX(Table_ing[Unité],MATCH(Table_recettes[[#This Row],[I10]],Table_ing[Ingredient],0))="g",Table_recettes[[#This Row],[Q10]],0),Table_recettes[[#This Row],[Q10]]) -> 10000 | BM42: =IFERROR(Table_recettes[[#This Row],[Poids]]/IF(Table_recettes[[#This Row],[Type]]="Produit",Table_recettes[[#This Row],[Unités]],1),0) -> 100 | BN42: =Table_recettes[[#This Row],[CoutIng Recette]]*Table_recettes[[#This Row],[Frequence]] -> 16.97072275 | BO42: =IF(Table_recettes[[#This Row],[Q1]]>0,IFERROR(INDEX(Table_ing[Coût par unité],MATCH(Table_recettes[[#This Row],[I1]],Table_ing[Ingredient],0))*Table_recettes[[#This Row],[Q1]],INDEX(Table_recettes[CoutIng/U],MATCH(Table_recettes[[#This Row],[I1]],Table_recettes[Recette],0))*Table_recettes[[#This Row],[Q1]]),0) +IF(Table_recettes[[#This Row],[Q2]]>0,IFERROR(INDEX(Table_ing[Coût par unité],MATCH(Table_recettes[[#This Row],[I2]],Table_ing[Ingredient],0))*Table_recettes[[#This Row],[Q2]],INDEX(Table_recettes[CoutIng/U],MATCH(Table_recettes[[#This Row],[I2]],Table_recettes[Recette],0))*Table_recettes[[#This Row],[Q2]]),0) +IF(Table_recettes[[#This Row],[Q3]]>0,IFERROR(INDEX(Table_ing[Coût par unité],MATCH(Table_recettes[[#This Row],[I3]],Table_ing[Ingredient],0))*Table_recettes[[#This Row],[Q3]],INDEX(Table_recettes[CoutIng/U],MATCH(Table_recettes[[#This Row],[I3]],Table_recettes[Recette],0))*Table_recettes[[#This Row],[Q3]]),0) +IF(Table_recettes[[#This Row],[Q4]]>0,IFERROR(INDEX(Table_ing[Coût par unité],MATCH(Table_recettes[[#This Row],[I4]],Table_ing[Ingredient],0))*Table_recettes[[#This Row],[Q4]],INDEX(Table_recettes[CoutIng/U],MATCH(Table_recettes[[#This Row],[I4]],Table_recettes[Recette],0))*Table_recettes[[#This Row],[Q4]]),0) +IF(Table_recettes[[#This Row],[Q5]]>0,IFERROR(INDEX(Table_ing[Coût par unité],MATCH(Table_recettes[[#This Row],[I5]],Table_ing[Ingredient],0))*Table_recettes[[#This Row],[Q5]],INDEX(Table_recettes[CoutIng/U],MATCH(Table_recettes[[#This Row],[I5]],Table_recettes[Recette],0))*Table_recettes[[#This Row],[Q5]]),0) +IF(Table_recettes[[#This Row],[Q6]]>0,IFERROR(INDEX(Table_ing[Coût par unité],MATCH(Table_recettes[[#This Row],[I6]],Table_ing[Ingredient],0))*Table_recettes[[#This Row],[Q6]],INDEX(Table_recettes[CoutIng/U],MATCH(Table_recettes[[#This Row],[I6]],Table_recettes[Recette],0))*Table_recettes[[#This Row],[Q6]]),0) +IF(Table_recettes[[#This Row],[Q7]]>0,IFERROR(INDEX(Table_ing[Coût par unité],MATCH(Table_recettes[[#This Row],[I7]],Table_ing[Ingredient],0))*Table_recettes[[#This Row],[Q7]],INDEX(Table_recettes[CoutIng/U],MATCH(Table_recettes[[#This Row],[I7]],Table_recettes[Recette],0))*Table_recettes[[#This Row],[Q7]]),0) +IF(Table_recettes[[#This Row],[Q8]]>0,IFERROR(INDEX(Table_ing[Coût par unité],MATCH(Table_recettes[[#This Row],[I8]],Table_ing[Ingredient],0))*Table_recettes[[#This Row],[Q8]],INDEX(Table_recettes[CoutIng/U],MATCH(Table_recettes[[#This Row],[I8]],Table_recettes[Recette],0))*Table_recettes[[#This Row],[Q8]]),0) +IF(Table_recettes[[#This Row],[Q9]]>0,IFERROR(INDEX(Table_ing[Coût par unité],MATCH(Table_recettes[[#This Row],[I9]],Table_ing[Ingredient],0))*Table_recettes[[#This Row],[Q9]],INDEX(Table_recettes[CoutIng/U],MATCH(Table_recettes[[#This Row],[I9]],Table_recettes[Recette],0))*Table_recettes[[#This Row],[Q9]]),0) +IF(Table_recettes[[#This Row],[Q10]]>0,IFERROR(INDEX(Table_ing[Coût par unité],MATCH(Table_recettes[[#This Row],[I10]],Table_ing[Ingredient],0))*Table_recettes[[#This Row],[Q10]],INDEX(Table_recettes[CoutIng/U],MATCH(Table_recettes[[#This Row],[I10]],Table_recettes[Recette],0))*Table_recettes[[#This Row],[Q8]]),0) -> 16.97072275 | BP42: =IFERROR(Table_recettes[[#This Row],[CoutIng Recette]]/IF(Table_recettes[[#This Row],[Type]]="Produit",Table_recettes[[#This Row],[Unités]],Table_recettes[[#This Row],[Poids]]),0) -> 0.1697072275 | BQ42: =Table_recettes[[#This Row],[CoutRH Recette]]*Table_recettes[[#This Row],[Frequence]] -> 5.661223232 | BR42: =(IFERROR(INDEX(Table_CoutRH[Cout horaire],MATCH(Table_recettes[[#This Row],[RH2]],Table_CoutRH[Employé ou équipe],0))*Table_recettes[[#This Row],[D2]],0) +IFERROR(INDEX(Table_CoutRH[Cout horaire],MATCH(Table_recettes[[#This Row],[RH3]],Table_CoutRH[Employé ou équipe],0))*Table_recettes[[#This Row],[D3]],0) +IFERROR(INDEX(Table_CoutRH[Cout horaire],MATCH(Table_recettes[[#This Row],[RH4]],Table_CoutRH[Employé ou équipe],0))*Table_recettes[[#This Row],[D4]],0) +IFERROR(INDEX(Table_CoutRH[Cout horaire],MATCH(Table_recettes[[#This Row],[RH5]],Table_CoutRH[Employé ou équipe],0))*Table_recettes[[#This Row],[D5]],0) +IFERROR(INDEX(Table_CoutRH[Cout horaire],MATCH(Table_recettes[[#This Row],[RH6]],Table_CoutRH[Employé ou équipe],0))*Table_recettes[[#This Row],[D6]],0) +IFERROR(INDEX(Table_CoutRH[Cout horaire],MATCH(Table_recettes[[#This Row],[RH7]],Table_CoutRH[Employé ou équipe],0))*Table_recettes[[#This Row],[D7]],0) +IFERROR(INDEX(Table_CoutRH[Cout horaire],MATCH(Table_recettes[[#This Row],[RH8]],Table_CoutRH[Employé ou équipe],0))*Table_recettes[[#This Row],[D8]],0) +IFERROR(INDEX(Table_CoutRH[Cout horaire],MATCH(Table_recettes[[#This Row],[RH9]],Table_CoutRH[Employé ou équipe],0))*Table_recettes[[#This Row],[D9]],0) +IFERROR(INDEX(Table_CoutRH[Cout horaire],MATCH(Table_recettes[[#This Row],[RH10]],Table_CoutRH[Employé ou équipe],0))*Table_recettes[[#This Row],[D10]],0))*24 +FctCoutRH(ROW(Table_recettes[[#This Row],[CoutRH/U]])) -> 5.661223232 | BS42: =IFERROR(Table_recettes[[#This Row],[CoutRH Recette]]/IF(Table_recettes[[#This Row],[Type]]="Produit",Table_recettes[[#This Row],[Unités]],Table_recettes[[#This Row],[Poids]]),0) -> 0.05661223232 | BT42: =IF(Table_recettes[[#This Row],[Type]]="Produit",Table_recettes[[#This Row],[CA Total TTC Recette]]*Table_recettes[[#This Row],[Frequence]],"") -> 200 | BU42: =IF(Table_recettes[[#This Row],[Type]]="Produit",Table_recettes[Unités]*Table_recettes[[#This Row],[Prix/U]],"") -> 200 | BV42: =IF(Table_recettes[[#This Row],[Type]]="Produit",Table_recettes[[#This Row],[TVA totale Recette]]*Table_recettes[[#This Row],[Frequence]],"") -> 10.42654028 | BW42: =IF(Table_recettes[[#This Row],[Type]]="Produit",Table_recettes[[#This Row],[CA Total TTC Recette]]*Table_recettes[[#This Row],[TVA applicable]]/(1+Table_recettes[[#This Row],[TVA applicable]]),"") -> 10.42654028 | BX42: =IF(Table_recettes[[#This Row],[Type]]="Produit",Table_recettes[[#This Row],[Prix/U]]*Table_recettes[[#This Row],[TVA applicable]]/(1+Table_recettes[[#This Row],[TVA applicable]]),"") -> 0.1042654028 | BY42: =IF(Table_recettes[[#This Row],[Type]]="Produit",Table_recettes[[#This Row],[CA Total TTC Recette]]-Table_recettes[[#This Row],[TVA totale Recette]]-Table_recettes[[#This Row],[CoutIng Recette]],"") -> 172.602737 | BZ42: =IF(Table_recettes[[#This Row],[Type]]="Produit",(Table_recettes[[#This Row],[CA Total TTC Recette]]-Table_recettes[[#This Row],[TVA totale Recette]])*(1-IF(OR(Option_MO="Globale",Option_MO="Par produit et globale"),Cell_CRp9,0))-Table_recettes[[#This Row],[CoutIng Recette]]-IF(OR(Option_MO="Par produit",Option_MO="Par produit et globale"),Table_recettes[[#This Row],[CoutRH Recette]],0),"") -> 146.7609331 | CA42: =IF(Table_recettes[[#This Row],[Type]]="Produit",(Table_recettes[[#This Row],[CA Total TTC Recette]]-Table_recettes[[#This Row],[TVA totale Recette]])*(1-Cell_CRp10-Cell_CRp2-IF(OR(Option_MO="Globale",Option_MO="Par produit et globale"),Cell_CRp9,0))-Table_recettes[[#This Row],[CoutIng Recette]]-IF(OR(Option_MO="Par produit",Option_MO="Par produit et globale"),Table_recettes[[#This Row],[CoutRH Recette]],0),"") -> 91.78462975 | CB42: =IF(Table_recettes[[#This Row],[Type]]="Produit",((Table_recettes[[#This Row],[CA Total TTC Recette]]-Table_recettes[[#This Row],[TVA totale Recette]])*(1-Cell_CRp10-Cell_CRp2-Cell_CRp4-Cell_CRp5-Cell_CRp6-Cell_CRp7-IF(OR(Option_MO="Globale",Option_MO="Par produit et globale"),Cell_CRp9,0))-Table_recettes[[#This Row],[CoutIng Recette]]-IF(OR(Option_MO="Par produit",Option_MO="Par produit et globale"),Table_recettes[[#This Row],[CoutRH Recette]],0))*(1-Cell_CRp8),"") -> 55.70336907 | CC42: =IFERROR(IF(Table_recettes[[#This Row],[Type]]="Produit",Table_recettes[[#This Row],[Marge Brute Recette]]/Table_recettes[[#This Row],[Unités]],""),0) -> 1.72602737 | CD42: =IFERROR(IF(Table_recettes[[#This Row],[Type]]="Produit",Table_recettes[[#This Row],[Marge SCP Recette]]/Table_recettes[[#This Row],[Unités]],""),0) -> 1.467609331 | CE42: =IFERROR(IF(Table_recettes[[#This Row],[Type]]="Produit",Table_recettes[[#This Row],[Marge opérationnelle Recette]]/Table_recettes[[#This Row],[Unités]],""),0) -> 0.9178462975 | CF42: =IFERROR(IF(Table_recettes[[#This Row],[Type]]="Produit",Table_recettes[[#This Row],[Marge Nette Recette]]/Table_recettes[[#This Row],[Unités]],""),0) -> 0.5570336907 | CG42: =IFERROR(IF(Table_recettes[[#This Row],[Type]]="Produit",Table_recettes[[#This Row],[Marge Brute/U]]-Table_recettes[[#This Row],[Marge SCP/U]],""),0) -> 0.2584180389 | CH42: =IF(Table_recettes[[#This Row],[Type]]="Produit",Table_recettes[[#This Row],[Marge SCP/U]]-Table_recettes[[#This Row],[Marge Nette/U]],"") -> 0.91057564 | CI42: =IFERROR(IF(Table_recettes[[#This Row],[Type]]="Produit",Table_recettes[[#This Row],[Marge Brute/U]]/(Table_recettes[[#This Row],[Prix/U]]-Table_recettes[[#This Row],[TVA/U]]),""),0) -> 0.9104794375 | CJ42: =IFERROR(IF(Table_recettes[[#This Row],[Type]]="Produit",Table_recettes[[#This Row],[Marge SCP/U]]/(Table_recettes[[#This Row],[Prix/U]]-Table_recettes[[#This Row],[TVA/U]]),""),0) -> 0.774163922 | CK42: =IFERROR(IF(Table_recettes[[#This Row],[Type]]="Produit",Table_recettes[[#This Row],[Marge opérationnelle/U]]/(Table_recettes[[#This Row],[Prix/U]]-Table_recettes[[#This Row],[TVA/U]]),""),0) -> 0.484163922 | CL42: =IFERROR(IF(Table_recettes[[#This Row],[Type]]="Produit",Table_recettes[[#This Row],[Marge Nette/U]]/(Table_recettes[[#This Row],[Prix/U]]-Table_recettes[[#This Row],[TVA/U]]),""),0) -> 0.2938352718
C43: Appareil | D43: Appareil | E43: Crème anglaise | F43: 1 | J43: Lait | K43: 1000 | L43: Jaune d'oeufs | M43: 160 | N43: Gousses de vanille | O43: 2 | P43: Sucre semoule | Q43: 250 | AD43: Prorata poids de la fabrication des appareils | AE43: =FctDuree(ROW(Table_recettes[[#This Row],[D1]])) -> 0 | AF43: Préparer les ingrédients | AG43: 0.002083333333 | AH43: Equipe pâtisserie | AI43: Hydrater la gélatine avec 6 fois son poids en eau | AJ43: 0.001388888889 | AK43: Equipe pâtisserie | AL43: Porter la crème à ébullition et y laisser infuser la vanille décossée. En attendant, mélanger les jaunes d'oeufs avec le sucre. A ébullition, effectuer un prémélange puis verser le tout sur le feu. Cuire à la nappe (85°C), éviter la coagulation des jaunes. | AM43: 0.006944444444 | AN43: Equipe pâtisserie | AO43: Réserver au frais | AP43: 0.0006944444444 | AQ43: Equipe pâtisserie | BG43: 2014-05-30 | BH43: 2014-05-03 | BI43: =(Table_recettes[[#This Row],[D1]]+Table_recettes[[#This Row],[D2]]+Table_recettes[[#This Row],[D3]]+Table_recettes[[#This Row],[D4]]+Table_recettes[[#This Row],[D5]]+Table_recettes[[#This Row],[D6]]+Table_recettes[[#This Row],[D7]]+Table_recettes[[#This Row],[D8]]+Table_recettes[[#This Row],[D9]]+Table_recettes[[#This Row],[D10]]) -> 0.01111111111 | BJ43: =Table_recettes[[#This Row],[Frequence]]*Table_recettes[[#This Row],[Unités]] -> 0 | BK43: =IFERROR(Table_recettes[[#This Row],[Duree]]/IF(Table_recettes[[#This Row],[Type]]="Produit",Table_recettes[[#This Row],[Unités]],Table_recettes[[#This Row],[Poids]]),0) -> 7.869058861e-06 | BL43: =IFERROR(IF(INDEX(Table_ing[Unité],MATCH(Table_recettes[[#This Row],[I1]],Table_ing[Ingredient],0))="g",Table_recettes[[#This Row],[Q1]],0),Table_recettes[[#This Row],[Q1]]) +IFERROR(IF(INDEX(Table_ing[Unité],MATCH(Table_recettes[[#This Row],[I2]],Table_ing[Ingredient],0))="g",Table_recettes[[#This Row],[Q2]],0),Table_recettes[[#This Row],[Q2]]) +IFERROR(IF(INDEX(Table_ing[Unité],MATCH(Table_recettes[[#This Row],[I3]],Table_ing[Ingredient],0))="g",Table_recettes[[#This Row],[Q3]],0),Table_recettes[[#This Row],[Q3]]) +IFERROR(IF(INDEX(Table_ing[Unité],MATCH(Table_recettes[[#This Row],[I4]],Table_ing[Ingredient],0))="g",Table_recettes[[#This Row],[Q4]],0),Table_recettes[[#This Row],[Q4]]) +IFERROR(IF(INDEX(Table_ing[Unité],MATCH(Table_recettes[[#This Row],[I5]],Table_ing[Ingredient],0))="g",Table_recettes[[#This Row],[Q5]],0),Table_recettes[[#This Row],[Q5]]) +IFERROR(IF(INDEX(Table_ing[Unité],MATCH(Table_recettes[[#This Row],[I6]],Table_ing[Ingredient],0))="g",Table_recettes[[#This Row],[Q6]],0),Table_recettes[[#This Row],[Q6]]) +IFERROR(IF(INDEX(Table_ing[Unité],MATCH(Table_recettes[[#This Row],[I7]],Table_ing[Ingredient],0))="g",Table_recettes[[#This Row],[Q7]],0),Table_recettes[[#This Row],[Q7]]) +IFERROR(IF(INDEX(Table_ing[Unité],MATCH(Table_recettes[[#This Row],[I8]],Table_ing[Ingredient],0))="g",Table_recettes[[#This Row],[Q8]],0),Table_recettes[[#This Row],[Q8]]) +IFERROR(IF(INDEX(Table_ing[Unité],MATCH(Table_recettes[[#This Row],[I9]],Table_ing[Ingredient],0))="g",Table_recettes[[#This Row],[Q9]],0),Table_recettes[[#This Row],[Q9]]) +IFERROR(IF(INDEX(Table_ing[Unité],MATCH(Table_recettes[[#This Row],[I10]],Table_ing[Ingredient],0))="g",Table_recettes[[#This Row],[Q10]],0),Table_recettes[[#This Row],[Q10]]) -> 1412 | BM43: =IFERROR(Table_recettes[[#This Row],[Poids]]/IF(Table_recettes[[#This Row],[Type]]="Produit",Table_recettes[[#This Row],[Unités]],1),0) -> 1412 | BN43: =Table_recettes[[#This Row],[CoutIng Recette]]*Table_recettes[[#This Row],[Frequence]] -> 2.6217 | BO43: =IF(Table_recettes[[#This Row],[Q1]]>0,IFERROR(INDEX(Table_ing[Coût par unité],MATCH(Table_recettes[[#This Row],[I1]],Table_ing[Ingredient],0))*Table_recettes[[#This Row],[Q1]],INDEX(Table_recettes[CoutIng/U],MATCH(Table_recettes[[#This Row],[I1]],Table_recettes[Recette],0))*Table_recettes[[#This Row],[Q1]]),0) +IF(Table_recettes[[#This Row],[Q2]]>0,IFERROR(INDEX(Table_ing[Coût par unité],MATCH(Table_recettes[[#This Row],[I2]],Table_ing[Ingredient],0))*Table_recettes[[#This Row],[Q2]],INDEX(Table_recettes[CoutIng/U],MATCH(Table_recettes[[#This Row],[I2]],Table_recettes[Recette],0))*Table_recettes[[#This Row],[Q2]]),0) +IF(Table_recettes[[#This Row],[Q3]]>0,IFERROR(INDEX(Table_ing[Coût par unité],MATCH(Table_recettes[[#This Row],[I3]],Table_ing[Ingredient],0))*Table_recettes[[#This Row],[Q3]],INDEX(Table_recettes[CoutIng/U],MATCH(Table_recettes[[#This Row],[I3]],Table_recettes[Recette],0))*Table_recettes[[#This Row],[Q3]]),0) +IF(Table_recettes[[#This Row],[Q4]]>0,IFERROR(INDEX(Table_ing[Coût par unité],MATCH(Table_recettes[[#This Row],[I4]],Table_ing[Ingredient],0))*Table_recettes[[#This Row],[Q4]],INDEX(Table_recettes[CoutIng/U],MATCH(Table_recettes[[#This Row],[I4]],Table_recettes[Recette],0))*Table_recettes[[#This Row],[Q4]]),0) +IF(Table_recettes[[#This Row],[Q5]]>0,IFERROR(INDEX(Table_ing[Coût par unité],MATCH(Table_recettes[[#This Row],[I5]],Table_ing[Ingredient],0))*Table_recettes[[#This Row],[Q5]],INDEX(Table_recettes[CoutIng/U],MATCH(Table_recettes[[#This Row],[I5]],Table_recettes[Recette],0))*Table_recettes[[#This Row],[Q5]]),0) +IF(Table_recettes[[#This Row],[Q6]]>0,IFERROR(INDEX(Table_ing[Coût par unité],MATCH(Table_recettes[[#This Row],[I6]],Table_ing[Ingredient],0))*Table_recettes[[#This Row],[Q6]],INDEX(Table_recettes[CoutIng/U],MATCH(Table_recettes[[#This Row],[I6]],Table_recettes[Recette],0))*Table_recettes[[#This Row],[Q6]]),0) +IF(Table_recettes[[#This Row],[Q7]]>0,IFERROR(INDEX(Table_ing[Coût par unité],MATCH(Table_recettes[[#This Row],[I7]],Table_ing[Ingredient],0))*Table_recettes[[#This Row],[Q7]],INDEX(Table_recettes[CoutIng/U],MATCH(Table_recettes[[#This Row],[I7]],Table_recettes[Recette],0))*Table_recettes[[#This Row],[Q7]]),0) +IF(Table_recettes[[#This Row],[Q8]]>0,IFERROR(INDEX(Table_ing[Coût par unité],MATCH(Table_recettes[[#This Row],[I8]],Table_ing[Ingredient],0))*Table_recettes[[#This Row],[Q8]],INDEX(Table_recettes[CoutIng/U],MATCH(Table_recettes[[#This Row],[I8]],Table_recettes[Recette],0))*Table_recettes[[#This Row],[Q8]]),0) +IF(Table_recettes[[#This Row],[Q9]]>0,IFERROR(INDEX(Table_ing[Coût par unité],MATCH(Table_recettes[[#This Row],[I9]],Table_ing[Ingredient],0))*Table_recettes[[#This Row],[Q9]],INDEX(Table_recettes[CoutIng/U],MATCH(Table_recettes[[#This Row],[I9]],Table_recettes[Recette],0))*Table_recettes[[#This Row],[Q9]]),0) +IF(Table_recettes[[#This Row],[Q10]]>0,IFERROR(INDEX(Table_ing[Coût par unité],MATCH(Table_recettes[[#This Row],[I10]],Table_ing[Ingredient],0))*Table_recettes[[#This Row],[Q10]],INDEX(Table_recettes[CoutIng/U],MATCH(Table_recettes[[#This Row],[I10]],Table_recettes[Recette],0))*Table_recettes[[#This Row],[Q8]]),0) -> 2.6217 | BP43: =IFERROR(Table_recettes[[#This Row],[CoutIng Recette]]/IF(Table_recettes[[#This Row],[Type]]="Produit",Table_recettes[[#This Row],[Unités]],Table_recettes[[#This Row],[Poids]]),0) -> 0.001856728045 | BQ43: =Table_recettes[[#This Row],[CoutRH Recette]]*Table_recettes[[#This Row],[Frequence]] -> 3.565128205 | BR43: =(IFERROR(INDEX(Table_CoutRH[Cout horaire],MATCH(Table_recettes[[#This Row],[RH2]],Table_CoutRH[Employé ou équipe],0))*Table_recettes[[#This Row],[D2]],0) +IFERROR(INDEX(Table_CoutRH[Cout horaire],MATCH(Table_recettes[[#This Row],[RH3]],Table_CoutRH[Employé ou équipe],0))*Table_recettes[[#This Row],[D3]],0) +IFERROR(INDEX(Table_CoutRH[Cout horaire],MATCH(Table_recettes[[#This Row],[RH4]],Table_CoutRH[Employé ou équipe],0))*Table_recettes[[#This Row],[D4]],0) +IFERROR(INDEX(Table_CoutRH[Cout horaire],MATCH(Table_recettes[[#This Row],[RH5]],Table_CoutRH[Employé ou équipe],0))*Table_recettes[[#This Row],[D5]],0) +IFERROR(INDEX(Table_CoutRH[Cout horaire],MATCH(Table_recettes[[#This Row],[RH6]],Table_CoutRH[Employé ou équipe],0))*Table_recettes[[#This Row],[D6]],0) +IFERROR(INDEX(Table_CoutRH[Cout horaire],MATCH(Table_recettes[[#This Row],[RH7]],Table_CoutRH[Employé ou équipe],0))*Table_recettes[[#This Row],[D7]],0) +IFERROR(INDEX(Table_CoutRH[Cout horaire],MATCH(Table_recettes[[#This Row],[RH8]],Table_CoutRH[Employé ou équipe],0))*Table_recettes[[#This Row],[D8]],0) +IFERROR(INDEX(Table_CoutRH[Cout horaire],MATCH(Table_recettes[[#This Row],[RH9]],Table_CoutRH[Employé ou équipe],0))*Table_recettes[[#This Row],[D9]],0) +IFERROR(INDEX(Table_CoutRH[Cout horaire],MATCH(Table_recettes[[#This Row],[RH10]],Table_CoutRH[Employé ou équipe],0))*Table_recettes[[#This Row],[D10]],0))*24 +FctCoutRH(ROW(Table_recettes[[#This Row],[CoutRH/U]])) -> 3.565128205 | BS43: =IFERROR(Table_recettes[[#This Row],[CoutRH Recette]]/IF(Table_recettes[[#This Row],[Type]]="Produit",Table_recettes[[#This Row],[Unités]],Table_recettes[[#This Row],[Poids]]),0) -> 0.002524878332 | BT43: =IF(Table_recettes[[#This Row],[Type]]="Produit",Table_recettes[[#This Row],[CA Total TTC Recette]]*Table_recettes[[#This Row],[Frequence]],"") ->  | BU43: =IF(Table_recettes[[#This Row],[Type]]="Produit",Table_recettes[Unités]*Table_recettes[[#This Row],[Prix/U]],"") ->  | BV43: =IF(Table_recettes[[#This Row],[Type]]="Produit",Table_recettes[[#This Row],[TVA totale Recette]]*Table_recettes[[#This Row],[Frequence]],"") ->  | BW43: =IF(Table_recettes[[#This Row],[Type]]="Produit",Table_recettes[[#This Row],[CA Total TTC Recette]]*Table_recettes[[#This Row],[TVA applicable]]/(1+Table_recettes[[#This Row],[TVA applicable]]),"") ->  | BX43: =IF(Table_recettes[[#This Row],[Type]]="Produit",Table_recettes[[#This Row],[Prix/U]]*Table_recettes[[#This Row],[TVA applicable]]/(1+Table_recettes[[#This Row],[TVA applicable]]),"") ->  | BY43: =IF(Table_recettes[[#This Row],[Type]]="Produit",Table_recettes[[#This Row],[CA Total TTC Recette]]-Table_recettes[[#This Row],[TVA totale Recette]]-Table_recettes[[#This Row],[CoutIng Recette]],"") ->  | BZ43: =IF(Table_recettes[[#This Row],[Type]]="Produit",(Table_recettes[[#This Row],[CA Total TTC Recette]]-Table_recettes[[#This Row],[TVA totale Recette]])*(1-IF(OR(Option_MO="Globale",Option_MO="Par produit et globale"),Cell_CRp9,0))-Table_recettes[[#This Row],[CoutIng Recette]]-IF(OR(Option_MO="Par produit",Option_MO="Par produit et globale"),Table_recettes[[#This Row],[CoutRH Recette]],0),"") ->  | CA43: =IF(Table_recettes[[#This Row],[Type]]="Produit",(Table_recettes[[#This Row],[CA Total TTC Recette]]-Table_recettes[[#This Row],[TVA totale Recette]])*(1-Cell_CRp10-Cell_CRp2-IF(OR(Option_MO="Globale",Option_MO="Par produit et globale"),Cell_CRp9,0))-Table_recettes[[#This Row],[CoutIng Recette]]-IF(OR(Option_MO="Par produit",Option_MO="Par produit et globale"),Table_recettes[[#This Row],[CoutRH Recette]],0),"") ->  | CB43: =IF(Table_recettes[[#This Row],[Type]]="Produit",((Table_recettes[[#This Row],[CA Total TTC Recette]]-Table_recettes[[#This Row],[TVA totale Recette]])*(1-Cell_CRp10-Cell_CRp2-Cell_CRp4-Cell_CRp5-Cell_CRp6-Cell_CRp7-IF(OR(Option_MO="Globale",Option_MO="Par produit et globale"),Cell_CRp9,0))-Table_recettes[[#This Row],[CoutIng Recette]]-IF(OR(Option_MO="Par produit",Option_MO="Par produit et globale"),Table_recettes[[#This Row],[CoutRH Recette]],0))*(1-Cell_CRp8),"") ->  | CC43: =IFERROR(IF(Table_recettes[[#This Row],[Type]]="Produit",Table_recettes[[#This Row],[Marge Brute Recette]]/Table_recettes[[#This Row],[Unités]],""),0) ->  | CD43: =IFERROR(IF(Table_recettes[[#This Row],[Type]]="Produit",Table_recettes[[#This Row],[Marge SCP Recette]]/Table_recettes[[#This Row],[Unités]],""),0) ->  | CE43: =IFERROR(IF(Table_recettes[[#This Row],[Type]]="Produit",Table_recettes[[#This Row],[Marge opérationnelle Recette]]/Table_recettes[[#This Row],[Unités]],""),0) ->  | CF43: =IFERROR(IF(Table_recettes[[#This Row],[Type]]="Produit",Table_recettes[[#This Row],[Marge Nette Recette]]/Table_recettes[[#This Row],[Unités]],""),0) ->  | CG43: =IFERROR(IF(Table_recettes[[#This Row],[Type]]="Produit",Table_recettes[[#This Row],[Marge Brute/U]]-Table_recettes[[#This Row],[Marge SCP/U]],""),0) ->  | CH43: =IF(Table_recettes[[#This Row],[Type]]="Produit",Table_recettes[[#This Row],[Marge SCP/U]]-Table_recettes[[#This Row],[Marge Nette/U]],"") ->  | CI43: =IFERROR(IF(Table_recettes[[#This Row],[Type]]="Produit",Table_recettes[[#This Row],[Marge Brute/U]]/(Table_recettes[[#This Row],[Prix/U]]-Table_recettes[[#This Row],[TVA/U]]),""),0) ->  | CJ43: =IFERROR(IF(Table_recettes[[#This Row],[Type]]="Produit",Table_recettes[[#This Row],[Marge SCP/U]]/(Table_recettes[[#This Row],[Prix/U]]-Table_recettes[[#This Row],[TVA/U]]),""),0) ->  | CK43: =IFERROR(IF(Table_recettes[[#This Row],[Type]]="Produit",Table_recettes[[#This Row],[Marge opérationnelle/U]]/(Table_recettes[[#This Row],[Prix/U]]-Table_recettes[[#This Row],[TVA/U]]),""),0) ->  | CL43: =IFERROR(IF(Table_recettes[[#This Row],[Type]]="Produit",Table_recettes[[#This Row],[Marge Nette/U]]/(Table_recettes[[#This Row],[Prix/U]]-Table_recettes[[#This Row],[TVA/U]]),""),0) -> 
C44: Appareil | D44: Appareil | E44: Crème anglaise vanille gélifiée | F44: 1 | J44: Crème 35% | K44: 1000 | L44: Gousses de vanille | M44: 4 | N44: Sucre semoule | O44: 250 | P44: Jaune d'oeufs | Q44: 200 | R44: Gélatine | S44: 16 | AD44: Prorata poids de la fabrication des appareils | AE44: =FctDuree(ROW(Table_recettes[[#This Row],[D1]])) -> 0 | AF44: Préparer les ingrédients | AG44: 0.002083333333 | AH44: Equipe pâtisserie | AI44: Hydrater la gélatine avec 6 fois son poids en eau | AJ44: 0.001388888889 | AK44: Equipe pâtisserie | AL44: Porter la crème à ébullition et y laisser infuser la vanille décossée. En attendant, mélanger les jaunes d'oeufs avec le sucre. A ébullition, effectuer un prémélange puis verser le tout sur le feu. Cuire à la nappe (85°C), éviter la coagulation des jaunes. | AM44: 0.006944444444 | AN44: Equipe pâtisserie | AO44: Mélanger la gélatine avec le mélange et réserver au frais | AP44: 0.002083333333 | AQ44: Equipe pâtisserie | BG44: 2014-06-23 | BH44: 2014-05-03 | BI44: =(Table_recettes[[#This Row],[D1]]+Table_recettes[[#This Row],[D2]]+Table_recettes[[#This Row],[D3]]+Table_recettes[[#This Row],[D4]]+Table_recettes[[#This Row],[D5]]+Table_recettes[[#This Row],[D6]]+Table_recettes[[#This Row],[D7]]+Table_recettes[[#This Row],[D8]]+Table_recettes[[#This Row],[D9]]+Table_recettes[[#This Row],[D10]]) -> 0.0125 | BJ44: =Table_recettes[[#This Row],[Frequence]]*Table_recettes[[#This Row],[Unités]] -> 0 | BK44: =IFERROR(Table_recettes[[#This Row],[Duree]]/IF(Table_recettes[[#This Row],[Type]]="Produit",Table_recettes[[#This Row],[Unités]],Table_recettes[[#This Row],[Poids]]),0) -> 8.503401361e-06 | BL44: =IFERROR(IF(INDEX(Table_ing[Unité],MATCH(Table_recettes[[#This Row],[I1]],Table_ing[Ingredient],0))="g",Table_recettes[[#This Row],[Q1]],0),Table_recettes[[#This Row],[Q1]]) +IFERROR(IF(INDEX(Table_ing[Unité],MATCH(Table_recettes[[#This Row],[I2]],Table_ing[Ingredient],0))="g",Table_recettes[[#This Row],[Q2]],0),Table_recettes[[#This Row],[Q2]]) +IFERROR(IF(INDEX(Table_ing[Unité],MATCH(Table_recettes[[#This Row],[I3]],Table_ing[Ingredient],0))="g",Table_recettes[[#This Row],[Q3]],0),Table_recettes[[#This Row],[Q3]]) +IFERROR(IF(INDEX(Table_ing[Unité],MATCH(Table_recettes[[#This Row],[I4]],Table_ing[Ingredient],0))="g",Table_recettes[[#This Row],[Q4]],0),Table_recettes[[#This Row],[Q4]]) +IFERROR(IF(INDEX(Table_ing[Unité],MATCH(Table_recettes[[#This Row],[I5]],Table_ing[Ingredient],0))="g",Table_recettes[[#This Row],[Q5]],0),Table_recettes[[#This Row],[Q5]]) +IFERROR(IF(INDEX(Table_ing[Unité],MATCH(Table_recettes[[#This Row],[I6]],Table_ing[Ingredient],0))="g",Table_recettes[[#This Row],[Q6]],0),Table_recettes[[#This Row],[Q6]]) +IFERROR(IF(INDEX(Table_ing[Unité],MATCH(Table_recettes[[#This Row],[I7]],Table_ing[Ingredient],0))="g",Table_recettes[[#This Row],[Q7]],0),Table_recettes[[#This Row],[Q7]]) +IFERROR(IF(INDEX(Table_ing[Unité],MATCH(Table_recettes[[#This Row],[I8]],Table_ing[Ingredient],0))="g",Table_recettes[[#This Row],[Q8]],0),Table_recettes[[#This Row],[Q8]]) +IFERROR(IF(INDEX(Table_ing[Unité],MATCH(Table_recettes[[#This Row],[I9]],Table_ing[Ingredient],0))="g",Table_recettes[[#This Row],[Q9]],0),Table_recettes[[#This Row],[Q9]]) +IFERROR(IF(INDEX(Table_ing[Unité],MATCH(Table_recettes[[#This Row],[I10]],Table_ing[Ingredient],0))="g",Table_recettes[[#This Row],[Q10]],0),Table_recettes[[#This Row],[Q10]]) -> 1470 | BM44: =IFERROR(Table_recettes[[#This Row],[Poids]]/IF(Table_recettes[[#This Row],[Type]]="Produit",Table_recettes[[#This Row],[Unités]],1),0) -> 1470 | BN44: =Table_recettes[[#This Row],[CoutIng Recette]]*Table_recettes[[#This Row],[Frequence]] -> 6.5429 | BO44: =IF(Table_recettes[[#This Row],[Q1]]>0,IFERROR(INDEX(Table_ing[Coût par unité],MATCH(Table_recettes[[#This Row],[I1]],Table_ing[Ingredient],0))*Table_recettes[[#This Row],[Q1]],INDEX(Table_recettes[CoutIng/U],MATCH(Table_recettes[[#This Row],[I1]],Table_recettes[Recette],0))*Table_recettes[[#This Row],[Q1]]),0) +IF(Table_recettes[[#This Row],[Q2]]>0,IFERROR(INDEX(Table_ing[Coût par unité],MATCH(Table_recettes[[#This Row],[I2]],Table_ing[Ingredient],0))*Table_recettes[[#This Row],[Q2]],INDEX(Table_recettes[CoutIng/U],MATCH(Table_recettes[[#This Row],[I2]],Table_recettes[Recette],0))*Table_recettes[[#This Row],[Q2]]),0) +IF(Table_recettes[[#This Row],[Q3]]>0,IFERROR(INDEX(Table_ing[Coût par unité],MATCH(Table_recettes[[#This Row],[I3]],Table_ing[Ingredient],0))*Table_recettes[[#This Row],[Q3]],INDEX(Table_recettes[CoutIng/U],MATCH(Table_recettes[[#This Row],[I3]],Table_recettes[Recette],0))*Table_recettes[[#This Row],[Q3]]),0) +IF(Table_recettes[[#This Row],[Q4]]>0,IFERROR(INDEX(Table_ing[Coût par unité],MATCH(Table_recettes[[#This Row],[I4]],Table_ing[Ingredient],0))*Table_recettes[[#This Row],[Q4]],INDEX(Table_recettes[CoutIng/U],MATCH(Table_recettes[[#This Row],[I4]],Table_recettes[Recette],0))*Table_recettes[[#This Row],[Q4]]),0) +IF(Table_recettes[[#This Row],[Q5]]>0,IFERROR(INDEX(Table_ing[Coût par unité],MATCH(Table_recettes[[#This Row],[I5]],Table_ing[Ingredient],0))*Table_recettes[[#This Row],[Q5]],INDEX(Table_recettes[CoutIng/U],MATCH(Table_recettes[[#This Row],[I5]],Table_recettes[Recette],0))*Table_recettes[[#This Row],[Q5]]),0) +IF(Table_recettes[[#This Row],[Q6]]>0,IFERROR(INDEX(Table_ing[Coût par unité],MATCH(Table_recettes[[#This Row],[I6]],Table_ing[Ingredient],0))*Table_recettes[[#This Row],[Q6]],INDEX(Table_recettes[CoutIng/U],MATCH(Table_recettes[[#This Row],[I6]],Table_recettes[Recette],0))*Table_recettes[[#This Row],[Q6]]),0) +IF(Table_recettes[[#This Row],[Q7]]>0,IFERROR(INDEX(Table_ing[Coût par unité],MATCH(Table_recettes[[#This Row],[I7]],Table_ing[Ingredient],0))*Table_recettes[[#This Row],[Q7]],INDEX(Table_recettes[CoutIng/U],MATCH(Table_recettes[[#This Row],[I7]],Table_recettes[Recette],0))*Table_recettes[[#This Row],[Q7]]),0) +IF(Table_recettes[[#This Row],[Q8]]>0,IFERROR(INDEX(Table_ing[Coût par unité],MATCH(Table_recettes[[#This Row],[I8]],Table_ing[Ingredient],0))*Table_recettes[[#This Row],[Q8]],INDEX(Table_recettes[CoutIng/U],MATCH(Table_recettes[[#This Row],[I8]],Table_recettes[Recette],0))*Table_recettes[[#This Row],[Q8]]),0) +IF(Table_recettes[[#This Row],[Q9]]>0,IFERROR(INDEX(Table_ing[Coût par unité],MATCH(Table_recettes[[#This Row],[I9]],Table_ing[Ingredient],0))*Table_recettes[[#This Row],[Q9]],INDEX(Table_recettes[CoutIng/U],MATCH(Table_recettes[[#This Row],[I9]],Table_recettes[Recette],0))*Table_recettes[[#This Row],[Q9]]),0) +IF(Table_recettes[[#This Row],[Q10]]>0,IFERROR(INDEX(Table_ing[Coût par unité],MATCH(Table_recettes[[#This Row],[I10]],Table_ing[Ingredient],0))*Table_recettes[[#This Row],[Q10]],INDEX(Table_recettes[CoutIng/U],MATCH(Table_recettes[[#This Row],[I10]],Table_recettes[Recette],0))*Table_recettes[[#This Row],[Q8]]),0) -> 6.5429 | BP44: =IFERROR(Table_recettes[[#This Row],[CoutIng Recette]]/IF(Table_recettes[[#This Row],[Type]]="Produit",Table_recettes[[#This Row],[Unités]],Table_recettes[[#This Row],[Poids]]),0) -> 0.004450952381 | BQ44: =Table_recettes[[#This Row],[CoutRH Recette]]*Table_recettes[[#This Row],[Frequence]] -> 4.010769231 | BR44: =(IFERROR(INDEX(Table_CoutRH[Cout horaire],MATCH(Table_recettes[[#This Row],[RH2]],Table_CoutRH[Employé ou équipe],0))*Table_recettes[[#This Row],[D2]],0) +IFERROR(INDEX(Table_CoutRH[Cout horaire],MATCH(Table_recettes[[#This Row],[RH3]],Table_CoutRH[Employé ou équipe],0))*Table_recettes[[#This Row],[D3]],0) +IFERROR(INDEX(Table_CoutRH[Cout horaire],MATCH(Table_recettes[[#This Row],[RH4]],Table_CoutRH[Employé ou équipe],0))*Table_recettes[[#This Row],[D4]],0) +IFERROR(INDEX(Table_CoutRH[Cout horaire],MATCH(Table_recettes[[#This Row],[RH5]],Table_CoutRH[Employé ou équipe],0))*Table_recettes[[#This Row],[D5]],0) +IFERROR(INDEX(Table_CoutRH[Cout horaire],MATCH(Table_recettes[[#This Row],[RH6]],Table_CoutRH[Employé ou équipe],0))*Table_recettes[[#This Row],[D6]],0) +IFERROR(INDEX(Table_CoutRH[Cout horaire],MATCH(Table_recettes[[#This Row],[RH7]],Table_CoutRH[Employé ou équipe],0))*Table_recettes[[#This Row],[D7]],0) +IFERROR(INDEX(Table_CoutRH[Cout horaire],MATCH(Table_recettes[[#This Row],[RH8]],Table_CoutRH[Employé ou équipe],0))*Table_recettes[[#This Row],[D8]],0) +IFERROR(INDEX(Table_CoutRH[Cout horaire],MATCH(Table_recettes[[#This Row],[RH9]],Table_CoutRH[Employé ou équipe],0))*Table_recettes[[#This Row],[D9]],0) +IFERROR(INDEX(Table_CoutRH[Cout horaire],MATCH(Table_recettes[[#This Row],[RH10]],Table_CoutRH[Employé ou équipe],0))*Table_recettes[[#This Row],[D10]],0))*24 +FctCoutRH(ROW(Table_recettes[[#This Row],[CoutRH/U]])) -> 4.010769231 | BS44: =IFERROR(Table_recettes[[#This Row],[CoutRH Recette]]/IF(Table_recettes[[#This Row],[Type]]="Produit",Table_recettes[[#This Row],[Unités]],Table_recettes[[#This Row],[Poids]]),0) -> 0.002728414443 | BT44: =IF(Table_recettes[[#This Row],[Type]]="Produit",Table_recettes[[#This Row],[CA Total TTC Recette]]*Table_recettes[[#This Row],[Frequence]],"") ->  | BU44: =IF(Table_recettes[[#This Row],[Type]]="Produit",Table_recettes[Unités]*Table_recettes[[#This Row],[Prix/U]],"") ->  | BV44: =IF(Table_recettes[[#This Row],[Type]]="Produit",Table_recettes[[#This Row],[TVA totale Recette]]*Table_recettes[[#This Row],[Frequence]],"") ->  | BW44: =IF(Table_recettes[[#This Row],[Type]]="Produit",Table_recettes[[#This Row],[CA Total TTC Recette]]*Table_recettes[[#This Row],[TVA applicable]]/(1+Table_recettes[[#This Row],[TVA applicable]]),"") ->  | BX44: =IF(Table_recettes[[#This Row],[Type]]="Produit",Table_recettes[[#This Row],[Prix/U]]*Table_recettes[[#This Row],[TVA applicable]]/(1+Table_recettes[[#This Row],[TVA applicable]]),"") ->  | BY44: =IF(Table_recettes[[#This Row],[Type]]="Produit",Table_recettes[[#This Row],[CA Total TTC Recette]]-Table_recettes[[#This Row],[TVA totale Recette]]-Table_recettes[[#This Row],[CoutIng Recette]],"") ->  | BZ44: =IF(Table_recettes[[#This Row],[Type]]="Produit",(Table_recettes[[#This Row],[CA Total TTC Recette]]-Table_recettes[[#This Row],[TVA totale Recette]])*(1-IF(OR(Option_MO="Globale",Option_MO="Par produit et globale"),Cell_CRp9,0))-Table_recettes[[#This Row],[CoutIng Recette]]-IF(OR(Option_MO="Par produit",Option_MO="Par produit et globale"),Table_recettes[[#This Row],[CoutRH Recette]],0),"") ->  | CA44: =IF(Table_recettes[[#This Row],[Type]]="Produit",(Table_recettes[[#This Row],[CA Total TTC Recette]]-Table_recettes[[#This Row],[TVA totale Recette]])*(1-Cell_CRp10-Cell_CRp2-IF(OR(Option_MO="Globale",Option_MO="Par produit et globale"),Cell_CRp9,0))-Table_recettes[[#This Row],[CoutIng Recette]]-IF(OR(Option_MO="Par produit",Option_MO="Par produit et globale"),Table_recettes[[#This Row],[CoutRH Recette]],0),"") ->  | CB44: =IF(Table_recettes[[#This Row],[Type]]="Produit",((Table_recettes[[#This Row],[CA Total TTC Recette]]-Table_recettes[[#This Row],[TVA totale Recette]])*(1-Cell_CRp10-Cell_CRp2-Cell_CRp4-Cell_CRp5-Cell_CRp6-Cell_CRp7-IF(OR(Option_MO="Globale",Option_MO="Par produit et globale"),Cell_CRp9,0))-Table_recettes[[#This Row],[CoutIng Recette]]-IF(OR(Option_MO="Par produit",Option_MO="Par produit et globale"),Table_recettes[[#This Row],[CoutRH Recette]],0))*(1-Cell_CRp8),"") ->  | CC44: =IFERROR(IF(Table_recettes[[#This Row],[Type]]="Produit",Table_recettes[[#This Row],[Marge Brute Recette]]/Table_recettes[[#This Row],[Unités]],""),0) ->  | CD44: =IFERROR(IF(Table_recettes[[#This Row],[Type]]="Produit",Table_recettes[[#This Row],[Marge SCP Recette]]/Table_recettes[[#This Row],[Unités]],""),0) ->  | CE44: =IFERROR(IF(Table_recettes[[#This Row],[Type]]="Produit",Table_recettes[[#This Row],[Marge opérationnelle Recette]]/Table_recettes[[#This Row],[Unités]],""),0) ->  | CF44: =IFERROR(IF(Table_recettes[[#This Row],[Type]]="Produit",Table_recettes[[#This Row],[Marge Nette Recette]]/Table_recettes[[#This Row],[Unités]],""),0) ->  | CG44: =IFERROR(IF(Table_recettes[[#This Row],[Type]]="Produit",Table_recettes[[#This Row],[Marge Brute/U]]-Table_recettes[[#This Row],[Marge SCP/U]],""),0) ->  | CH44: =IF(Table_recettes[[#This Row],[Type]]="Produit",Table_recettes[[#This Row],[Marge SCP/U]]-Table_recettes[[#This Row],[Marge Nette/U]],"") ->  | CI44: =IFERROR(IF(Table_recettes[[#This Row],[Type]]="Produit",Table_recettes[[#This Row],[Marge Brute/U]]/(Table_recettes[[#This Row],[Prix/U]]-Table_recettes[[#This Row],[TVA/U]]),""),0) ->  | CJ44: =IFERROR(IF(Table_recettes[[#This Row],[Type]]="Produit",Table_recettes[[#This Row],[Marge SCP/U]]/(Table_recettes[[#This Row],[Prix/U]]-Table_recettes[[#This Row],[TVA/U]]),""),0) ->  | CK44: =IFERROR(IF(Table_recettes[[#This Row],[Type]]="Produit",Table_recettes[[#This Row],[Marge opérationnelle/U]]/(Table_recettes[[#This Row],[Prix/U]]-Table_recettes[[#This Row],[TVA/U]]),""),0) ->  | CL44: =IFERROR(IF(Table_recettes[[#This Row],[Type]]="Produit",Table_recettes[[#This Row],[Marge Nette/U]]/(Table_recettes[[#This Row],[Prix/U]]-Table_recettes[[#This Row],[TVA/U]]),""),0) -> 
